Workbook

Sheet Data Input Instructions (hidden)
A3: Worksheet ID | B3: Worksheet | C3: Input Data Notes
A4: 1 | B4: Data Current Rates | C4: R2 Service Charge should already be net of RRRP credit
A5: 1 | B5: Data Current Rates | C5: Demand billed RTSR should already be loss adjusted
A6: 2 | B6: Data Proposed Rates | C6: Mapped from Draft Rates file prepared for Claude
A7: 2 | B7: Data Proposed Rates | C7: Row 5 with header name TEXT is precedent to templates; changes to TEXT need to reflected in templates
A8: 2 | B8: Data Proposed Rates | C8: Templates are set up with 2-dimension vlookups so it will accommodate inserted/deleted rows and/or columns
A9: 3 | B9: Data Billing Quantities | C9: Row 4 with header name TEXT is precedent to templates; changes to TEXT need to reflected in templates
A10: 3 | B10: Data Billing Quantities | C10: Templates are set up with 2-dimension vlookups so it will accommodate inserted/deleted rows and/or columns
A11: 4 | B11: Data Pass Through | C11: Changes to Pass Through rates can be manually input on this sheet, which is precedent to the templates
A12: 4 | B12: Data Pass Through | C12: Links to templates from Column A TEXT; any changes in the TEXT of the charge names must be reflected in the templates
A13: 5 | B13: Data BI List | C13: Instruction Sheet for macro to create individual bill impact worksheets
A14: 5 | B14: Data BI List | C14: Need to MANUALLY update Test Year to appear as header on all bill impact worksheets
A15: 6 | B15: Data BI Summary | C15: This replaces the need for cell references in summary sheet, and displays value for totals so rows can be added to templates and worksheets without having to update the summary sheet
B16: Bill Impact Summary | C16: This file has 2 hidden columns needed to link to worksheets; see Col E and F

Sheet Data Current Rates (hidden)
A1: Approved 2023 Rates
A3: 1 | B3: 2 | C3: 3 | D3: 4 | E3: 5 | F3: 6 | G3: 7 | H3: 8 | I3: 9 | J3: 10 | K3: 11 | L3: 12 | M3: 13 | N3: 14 | O3: 15
A4: Rate Class | B4: Proposed Fixed Charge ($/month) | C4: Proposed Volumetric Charge ($/kWh or $/kW) | D4: Proposed Group 1 DVA Rider - Volumetric ($/kWh or $/kW) (2023) | E4: Porposed Group 1 DVA Rider - Volumetric Applicable to Non-WMP Only ($/kWh or $/kW) (2023) | F4: Proposed Rate Rider for Disposition of Global Adjustment (Non WMP, Non-RPP, Non-LDC, and Class B) ($/kWh) (2023) | G4: Fixed 1592 VA Rider for Acq ($/month) | H4: Vol 1592 VA Rider for Acq ($/kWh or $/kW) | I4: Proposed Group 2 Rate Rider - Fixed ($/month) | J4: Proposed Group 2 Rate Rider - Volumetric ($/kWh or $/kW) | K4: Proposed Base Rate Adjustment for Past Tax Amounts - Fixed ($/month) | L4: Proposed Base Rate Adjustment for Past Tax Amounts - Volumetric ($/kWh or $/kW) | M4: Rate Rider for LRAMVA - Volumetric ($/kWh or $/kW) | N4: Proposed RTSR-NW ($/kWh or $/kW) | O4: Proposed RTSR-CONN ($/kWh or $/kW)
A5: Rate as shown on Bill Impact Sheet | B5: Service Charge | C5: Distribution Volumetric Charge | D5: Group 1 Volumetric DVA Rider (General) (2023) | E5: Group 1 Volumetric Deferral/Variance Account Rider (Sub-Account RSVA Wholesale Market Service Charge & RSVA Power) (2023) | F5: Group 1 Volumetric Deferral/Variance Account Rider (Sub-Account Global Adjustment) (2023) | G5: Fixed Rider for Account 1592 | H5: Volumetric Rider for Account 1592 | I5: Group 2 Fixed DVA Rider | J5: Group 2 Volumetric DVA Rider | K5: Fixed Base Rate Adjustment to Recover Past Tax Amounts | L5: Volumetric Base Rate Adjustment to Recover Past Tax Amounts | M5: LRAMVA Volumetric Rate Rider | N5: Retail Transmission Rate – Network Service Rate | O5: Retail Transmission Rate – Line and Transformation Connection Service Rate
A6: Rounding factor | B6: 2 | C6: 4 | D6: 4 | E6: 4 | F6: 4 | G6: 2 | H6: 4 | I6: 2 | J6: 4 | K6: 2 | L6: 4 | M6: 4 | N6: 4 | O6: 4
A7: UR | B7: 38.1 | C7: 0 | D7: -0.0007 | E7: 0 | F7: -0.0009 | I7: -0.11 | K7: 0.83 | L7: 0 | N7: 0.012 | O7: 0.0083
A8: Seas-UR | B8: =B7 -> 38.1 | C8: =C7 -> 0 | D8: -0.0007 | E8: 0 | F8: =F7 -> -0.0009 | I8: =I7 -> -0.11 | K8: =K12 -> 1.79 | L8: =L7 -> 0 | N8: =N7 -> 0.012 | O8: =O7 -> 0.0083
A9: R1 | B9: 60.72 | C9: 0.0056 | D9: -0.0007 | E9: 0 | F9: -0.0009 | I9: -0.21 | K9: 1.56 | L9: 0 | N9: 0.0111 | O9: 0.0077
A10: Seas-R1 | B10: =B9 -> 60.72 | C10: =C9 -> 0.0056 | D10: -0.0007 | E10: 0 | F10: -0.0009 | I10: =I9 -> -0.21 | K10: =K12 -> 1.79 | L10: =L9 -> 0 | N10: =N9 -> 0.0111 | O10: =O9 -> 0.0077
A11: R2 | B11: 63.24 | C11: 0.0198 | D11: -0.0007 | E11: 0 | F11: -0.0009 | I11: -0.44 | K11: 4.42 | L11: 0 | N11: 0.0103 | O11: 0.0073
A12: Seas-R2 | B12: 65.79 | C12: =C11 -> 0.0198 | D12: =D11 -> -0.0007 | E12: 0 | F12: -0.0009 | I12: -0.44 | K12: 1.79 | L12: 0 | N12: =N11 -> 0.0103 | O12: =O11 -> 0.0073
A13: GSe | B13: 32.78 | C13: 0.0688 | D13: -0.0007 | E13: 0 | F13: -0.0009 | J13: -0.0003 | K13: 1.11 | L13: 0.0022 | N13: 0.0088 | O13: 0.0065
A14: UGe | B14: 25.51 | C14: 0.033 | D14: -0.0007 | E14: 0 | F14: -0.0009 | J14: -0.0001 | K14: 0.81 | L14: 0.001 | N14: 0.0094 | O14: 0.0069
A15: St Lgt | B15: 3.15 | C15: 0.113 | D15: -0.0007 | E15: 0 | F15: -0.0009 | J15: -0.0004 | K15: 0.11 | L15: 0.0034 | N15: 0.0064 | O15: 0.0048
A16: Sen Lgt | B16: 3.15 | C16: 0.1727 | D16: -0.0007 | E16: 0 | F16: -0.0009 | J16: -0.0005 | K16: 0.14 | L16: 0.0078 | N16: 0.0065 | O16: 0.0048
A17: USL | B17: 38.29 | C17: 0.024 | D17: -0.0007 | E17: 0 | F17: -0.0009 | J17: -0.0003 | K17: 0.89 | L17: 0.0006 | N17: 0.0075 | O17: 0.0052
A18: GSd | B18: 105.55 | C18: 19.5196 | D18: -0.0855 | E18: -0.1195 | F18: -0.0009 | J18: -0.071 | K18: 4.34 | L18: 0.7338 | N18: 2.8581 | O18: 2.093
A19: UGd | B19: 96.47 | C19: 11.3288 | D19: -0.1053 | E19: -0.1473 | F19: -0.0009 | J19: -0.0421 | K19: 3.92 | L19: 0.4134 | N19: 3.6533 | O19: 2.6295
A20: Dgen | B20: 199.26 | C20: 11.478 | D20: -0.0394 | E20: -0.0565 | F20: -0.0009 | J20: -0.093 | K20: 1.74 | L20: 0.0883 | N20: 1.5686 | O20: 0.8981
A21: ST | B21: 1241.87 | C21: 1.5442 | D21: -0.134 | E21: -0.188 | F21: -0.0009 | J21: -0.0072 | K21: 36.18 | L21: 0.054 | N21: 4.8128 | O21: 3.6169
A22: AUR | B22: 31.46 | C22: 0 | D22: -0.0007 | E22: 0 | F22: -0.0009 | N22: 0.0124 | O22: 0.0085
A23: AUGe | B23: 26.36 | C23: 0.0152 | D23: -0.0007 | E23: 0 | F23: -0.0009 | N23: 0.0095 | O23: 0.0069
A24: AUGd | B24: 146.47 | C24: 2.8482 | D24: -0.0972 | E24: -0.1351 | F24: -0.0009 | N24: 3.3115 | O24: 2.3759
A25: AR | B25: 38.2 | C25: 0 | D25: -0.0007 | E25: 0 | F25: -0.0009 | N25: 0.0118 | O25: 0.0082
A26: AGSe | B26: 39.96 | C26: 0.0183 | D26: -0.0007 | E26: 0 | F26: -0.0009 | N26: 0.0093 | O26: 0.0068
A27: AGSd | B27: 170.26 | C27: 4.6406 | D27: -0.098 | E27: -0.1364 | F27: -0.0009 | N27: 2.9071 | O27: 2.1382
A28: AUR-WHSI | B28: 31.46 | C28: 0 | D28: -0.0009 | E28: 0 | F28: -0.0009 | G28: -0.4 | M28: 0.0003 | N28: =N22 -> 0.0124 | O28: 0.0085
A29: AUGe-WHSI | B29: 26.36 | C29: 0.0152 | D29: -0.0009 | E29: 0 | F29: -0.0009 | H29: -0.0003 | M29: 0.0037 | N29: 0.0095 | O29: 0.0069
A30: AUGd-WHSI | B30: 146.47 | C30: 2.8482 | D30: -0.0645 | E30: -0.1351 | F30: -0.0009 | H30: -0.0392 | M30: 0.6839 | N30: 3.3115 | O30: 2.3759
A31: ST-WHSI | B31: 1241.87 | C31: 1.5442 | D31: -0.1063 | E31: -0.188 | F31: -0.0009 | H31: -0.0438 | M31: 0.5521 | N31: =N21 -> 4.8128 | O31: =O21 -> 3.6169
A32: St Lgt-WHSI | B32: 3.15 | C32: 0.113 | D32: -0.0006 | E32: 0 | F32: -0.0009 | H32: -0.0013 | N32: =N15 -> 0.0064 | O32: =O15 -> 0.0048
A33: USL-WHSI | B33: 38.29 | C33: 0.024 | D33: -0.0009 | E33: 0 | F33: -0.0009 | H33: -0.0003 | N33: =N17 -> 0.0075 | O33: =O17 -> 0.0052
A34: AR-NPDI | B34: 38.2 | C34: 0 | D34: -0.0008 | E34: 0 | F34: -0.0009 | G34: -0.43 | M34: 0.0004 | N34: =N25 -> 0.0118 | O34: 0.0082
A35: AGSe-NPDI | B35: 39.96 | C35: 0.0183 | D35: -0.0008 | E35: 0 | F35: -0.0009 | H35: -0.0004 | M35: 0.0081 | N35: 0.0093 | O35: 0.0068
A36: AGSd-NPDI | B36: 170.26 | C36: 4.6406 | D36: -0.0653 | E36: -0.1364 | F36: -0.0009 | H36: -0.0618 | M36: 0.2853 | N36: 2.9071 | O36: 2.1382
A37: St Lgt-NPDI | B37: 3.15 | C37: 0.113 | D37: -0.0011 | E37: 0 | F37: -0.0009 | H37: -0.0011 | N37: =N15 -> 0.0064 | O37: =O15 -> 0.0048
A38: Sen Lgt-NPDI | B38: 3.15 | C38: 0.1727 | D38: -0.0012 | E38: 0 | F38: -0.0009 | H38: -0.0018 | N38: =N16 -> 0.0065 | O38: 0.0048
A39: USL-NPDI | B39: 38.29 | C39: 0.024 | D39: -0.0014 | E39: 0 | F39: -0.0009 | H39: -0.0008 | N39: 0.0075 | O39: 0.0052
A40: AR-HCHI | B40: 38.2 | C40: 0 | D40: -0.0007 | E40: 0 | F40: -0.0009 | G40: -0.46 | M40: 0.0003 | N40: =N25 -> 0.0118 | O40: =O25 -> 0.0082
A41: AGSe-HCHI | B41: 39.96 | C41: 0.0183 | D41: -0.0007 | E41: 0 | F41: -0.0009 | H41: -0.0004 | M41: -0.0002 | N41: =N26 -> 0.0093 | O41: 0.0068
A42: AGSd-HCHI | B42: 170.26 | C42: 4.6406 | D42: -0.098 | E42: -0.1364 | F42: -0.0009 | H42: -0.0603 | M42: -0.0575 | N42: 2.9071 | O42: 2.1382
A43: St Lgt-HCHI | B43: 3.15 | C43: 0.113 | D43: -0.0007 | E43: 0 | F43: -0.0009 | H43: -0.0028 | N43: =N15 -> 0.0064 | O43: =O15 -> 0.0048
A44: Sen Lgt-HCHI | B44: 3.15 | C44: 0.1727 | D44: -0.0007 | E44: 0 | F44: -0.0009 | H44: -0.0055 | N44: =N16 -> 0.0065 | O44: 0.0048
A45: USL-HCHI | B45: 38.29 | C45: 0.024 | D45: -0.0007 | E45: 0 | F45: -0.0009 | H45: -0.0007 | N45: 0.0075 | O45: 0.0052

Sheet Data Proposed Rates (hidden)
A1: Proposed 2024 Rates
A3: 1 | B3: 2 | C3: 3 | D3: 4 | E3: 5 | F3: 6 | G3: 7 | I3: 8 | J3: 9 | K3: 10 | L3: 11 | M3: 12 | N3: 13 | O3: 14 | P3: 15 | Q3: 16 | R3: 17 | S3: 18
A4: Rate Class | B4: Proposed Fixed Charge ($/month) | C4: Proposed Volumetric Charge ($/kWh or $/kW) | D4: Proposed Group 1 DVA Rider - Volumetric ($/kWh or $/kW) (2023) | E4: Porposed Group 1 DVA Rider - Volumetric Applicable to Non-WMP Only ($/kWh or $/kW) (2023) | F4: Proposed Rate Rider for Disposition of Global Adjustment (Non WMP, Non-RPP, Non-LDC, and Class B) ($/kWh) (2023) | G4: Proposed Group 1 DVA Rider - Volumetric ($/kWh or $/kW) (2024) | H4: Porposed Rate Rider for Account 1595 - for HONI-DX Only | I4: Porposed Group 1 DVA Rider - Volumetric Applicable to Non-WMP Only ($/kWh or $/kW) (2024) | J4: Proposed Rate Rider for Disposition of Global Adjustment (Non WMP, Non-RPP, Non-LDC, and Class B) ($/kWh) (2024) | K4: Vol CBR-B Rider ($/kWh or $/kW) - Non-WMP, Class B Only (2024) | L4: Fixed 1592 VA Rider for Acq ($/month) | M4: Vol 1592 VA Rider for Acq ($/kWh or $/kW) | N4: Proposed Group 2 Rate Rider - Fixed ($/month) | O4: Proposed Group 2 Rate Rider - Volumetric ($/kWh or $/kW) | P4: Proposed Base Rate Adjustment for Past Tax Amounts - Fixed ($/month) | Q4: Proposed Base Rate Adjustment for Past Tax Amounts - Volumetric ($/kWh or $/kW) | R4: Proposed RTSR-NW ($/kWh or $/kW) | S4: Proposed RTSR-CONN ($/kWh or $/kW)
A5: Rate as shown on Bill Impact Sheet | B5: Service Charge | C5: Distribution Volumetric Charge | D5: Group 1 Volumetric DVA Rider (General) (2023) | E5: Group 1 Volumetric Deferral/Variance Account Rider (Sub-Account RSVA Wholesale Market Service Charge & RSVA Power) (2023) | F5: Group 1 Volumetric Deferral/Variance Account Rider (Sub-Account Global Adjustment) (2023) | G5: Group 1 Volumetric DVA Rider (General) (2024) | H5: Group 1 Volumetric DVA Rider (Excl 1595) (2024) | I5: Group 1 Volumetric Deferral/Variance Account Rider (Sub-Account RSVA Wholesale Market Service Charge & RSVA Power) (2024) | J5: Group 1 Volumetric Deferral/Variance Account Rider (Sub-Account Global Adjustment) (2024) | K5: Group 1 Volumetric Deferral/Variance Account Rider (Sub-Account CBR) (2024) | L5: Fixed Rider for Account 1592 | M5: Volumetric Rider for Account 1592 | N5: Group 2 Fixed DVA Rider | O5: Group 2 Volumetric DVA Rider | P5: Fixed Base Rate Adjustment to Recover Past Tax Amounts | Q5: Volumetric Base Rate Adjustment to Recover Past Tax Amounts | R5: Retail Transmission Rate – Network Service Rate | S5: Retail Transmission Rate – Line and Transformation Connection Service Rate
A6: Rounding Factor | B6: 2 | C6: 4 | D6: 4 | E6: 4 | F6: 4 | G6: 4 | H6: 4 | I6: 4 | J6: 4 | K6: 4 | L6: 2 | M6: 4 | N6: 2 | O6: 4 | P6: 2 | Q6: 4 | R6: 4 | S6: 4
A7: UR | B7: 40 | C7: 0 | D7: -0.0007 | E7: 0 | F7: -0.0009 | G7: 0.0013 | H7: 0.0011 | I7: 0 | J7: -0.0044 | K7: -0.0005 | N7: -0.11 | R7: 0.0118 | S7: 0.0086
A8: Seas-UR | B8: 40 | C8: 0 | D8: -0.0007 | E8: 0 | F8: -0.0009 | G8: 0.0013 | H8: 0.0011 | I8: 0 | J8: -0.0044 | K8: -0.0005 | N8: -0.11 | R8: 0.0118 | S8: 0.0086
A9: R1 | B9: 68.3 | C9: 0 | D9: -0.0007 | E9: 0 | F9: -0.0009 | G9: 0.0013 | H9: 0.0011 | I9: 0 | J9: -0.0044 | K9: -0.0005 | N9: -0.21 | R9: 0.011 | S9: 0.0081
A10: Seas-R1 | B10: 68.3 | C10: 0 | D10: -0.0007 | E10: 0 | F10: -0.0009 | G10: 0.0013 | H10: 0.0011 | I10: 0 | J10: -0.0044 | K10: -0.0005 | N10: -0.21 | R10: 0.011 | S10: 0.0081
A11: R2 | B11: 78.09 | C11: 0.0126 | D11: -0.0007 | E11: 0 | F11: -0.0009 | G11: 0.0014 | H11: 0.0012 | I11: 0 | J11: -0.0044 | K11: -0.0005 | N11: -0.44 | R11: 0.0101 | S11: 0.0076
A12: Seas-R2 | B12: 73.88 | C12: 0.0126 | D12: -0.0007 | E12: 0 | F12: -0.0009 | G12: 0.0014 | H12: 0.0012 | I12: 0 | J12: -0.0044 | K12: -0.0005 | N12: -0.44 | R12: 0.0101 | S12: 0.0076
A13: GSe | B13: 32.78 | C13: 0.0731 | D13: -0.0007 | E13: 0 | F13: -0.0009 | G13: 0.0017 | H13: 0.0013 | I13: 0 | J13: -0.0044 | K13: -0.0005 | O13: -0.0003 | R13: 0.0087 | S13: 0.0069
A14: UGe | B14: 25.51 | C14: 0.0352 | D14: -0.0007 | E14: 0 | F14: -0.0009 | G14: 0.0018 | H14: 0.0014 | I14: 0 | J14: -0.0044 | K14: -0.0005 | O14: -0.0001 | R14: 0.0093 | S14: 0.0073
A15: St Lgt | B15: 3.27 | C15: 0.1186 | D15: -0.0007 | E15: 0 | F15: -0.0009 | G15: 0.0024 | H15: 0.0015 | I15: 0 | J15: -0.0044 | K15: -0.0005 | O15: -0.0004 | R15: 0.0063 | S15: 0.005
A16: Sen Lgt | B16: 3.29 | C16: 0.1816 | D16: -0.0007 | E16: 0 | F16: -0.0009 | G16: 0.0018 | H16: 0.0015 | I16: 0 | J16: -0.0044 | K16: -0.0005 | O16: -0.0005 | R16: 0.0064 | S16: 0.005
A17: USL | B17: 38.29 | C17: 0.0292 | D17: -0.0007 | E17: 0 | F17: -0.0009 | G17: 0.0017 | H17: 0.0015 | I17: 0 | J17: -0.0044 | K17: -0.0005 | O17: -0.0003 | R17: 0.0073 | S17: 0.0055
A18: GSd | B18: 105.55 | C18: 20.5366 | D18: -0.0855 | E18: -0.1195 | F18: -0.0009 | G18: 0.6252 | H18: 0.2537 | I18: 0.2099 | J18: -0.0044 | K18: -0.1687 | O18: -0.071 | R18: 2.811 | S18: 2.1911 | T18: =R18/1.061 -> 2.64938737 | U18: =S18/1.061 -> 2.065127238
A19: UGd | B19: 96.47 | C19: 11.931 | D19: -0.1053 | E19: -0.1473 | F19: -0.0009 | G19: 0.6383 | H19: 0.3125 | I19: 0.2588 | J19: -0.0044 | K19: -0.2095 | O19: -0.0421 | R19: 3.5931 | S19: 2.7526 | T19: =R19/1.05 -> 3.422 | U19: =S19/1.05 -> 2.62152381
A20: Dgen | B20: 199.26 | C20: 12.8895 | D20: -0.0394 | E20: -0.0565 | F20: -0.0009 | G20: 0.2835 | H20: 0.117 | I20: 0.0992 | J20: -0.0044 | K20: -0.0798 | O20: -0.093 | R20: 1.5427 | S20: 0.9402 | T20: =R20/1.061 -> 1.454005655 | U20: =S20/1.061 -> 0.8861451461
A21: ST | B21: 1241.87 | C21: 1.6398 | D21: -0.134 | E21: -0.188 | F21: -0.0009 | G21: 0.3748 | H21: 0.3978 | I21: 0.3307 | J21: -0.0044 | K21: -0.2408 | O21: -0.0072 | R21: 4.7334 | S21: 3.7978 | T21: =R21/1.034 -> 4.577756286 | U21: =S21/1.034 -> 3.672920696
A22: AUR | B22: 33.03 | C22: 0 | D22: -0.0007 | E22: 0 | F22: -0.0009 | G22: 0.001 | H22: 0.001 | I22: 0 | J22: -0.0044 | K22: -0.0005 | R22: 0.0121 | S22: 0.0089
A23: AUGe | B23: 26.36 | C23: 0.0165 | D23: -0.0007 | E23: 0 | F23: -0.0009 | G23: 0.0014 | H23: 0.0014 | I23: 0 | J23: -0.0044 | K23: -0.0005 | R23: 0.0093 | S23: 0.0072
A24: AUGd | B24: 146.47 | C24: 3.0288 | D24: -0.0972 | E24: -0.1351 | F24: -0.0009 | G24: 0.2885 | H24: 0.2885 | I24: 0.2374 | J24: -0.0044 | K24: -0.1923 | R24: 3.2568 | S24: 2.4872 | T24: =R24/1.033 -> 3.152758955 | U24: =S24/1.033 -> 2.407744434
A25: AR | B25: 40.1 | C25: 0 | D25: -0.0007 | E25: 0 | F25: -0.0009 | G25: 0.0011 | H25: 0.0011 | I25: 0 | J25: -0.0044 | K25: -0.0005 | R25: 0.0116 | S25: 0.0086
A26: AGSe | B26: 39.96 | C26: 0.0201 | D26: -0.0007 | E26: 0 | F26: -0.0009 | G26: 0.0014 | H26: 0.0014 | I26: 0 | J26: -0.0044 | K26: -0.0005 | R26: 0.0092 | S26: 0.0071
A27: AGSd | B27: 170.26 | C27: 4.908 | D27: -0.098 | E27: -0.1364 | F27: -0.0009 | G27: 0.291 | H27: 0.291 | I27: 0.2386 | J27: -0.0044 | K27: -0.1908 | R27: 2.8592 | S27: 2.2384 | T27: =R27/1.053 -> 2.715289649 | U27: =S27/1.053 -> 2.125735992
A28: AUR-WHSI | B28: 33.03 | C28: 0 | D28: -0.0009 | E28: 0 | F28: -0.0009 | G28: 0.001 | H28: 0.001 | I28: 0 | J28: -0.0044 | K28: -0.0005 | L28: -0.4 | R28: 0.0121 | S28: 0.0089
A29: AUGe-WHSI | B29: 26.36 | C29: 0.0165 | D29: -0.0009 | E29: 0 | F29: -0.0009 | G29: 0.0014 | H29: 0.0014 | I29: 0 | J29: -0.0044 | K29: -0.0005 | M29: -0.0003 | R29: 0.0093 | S29: 0.0072
A30: AUGd-WHSI | B30: 146.47 | C30: 3.0288 | D30: -0.0645 | E30: -0.1351 | F30: -0.0009 | G30: 0.2885 | H30: 0.2885 | I30: 0.2374 | J30: -0.0044 | K30: -0.1923 | M30: -0.0392 | R30: =R24 -> 3.2568 | S30: =S24 -> 2.4872 | T30: =R30/1.033 -> 3.152758955 | U30: =S30/1.033 -> 2.407744434
A31: ST-WHSI | B31: 1241.87 | C31: 1.6398 | D31: -0.1063 | E31: -0.188 | F31: -0.0009 | G31: 0.3978 | H31: 0.3978 | I31: 0.3307 | J31: -0.0044 | K31: -0.2408 | M31: -0.0438 | R31: =R21 -> 4.7334 | S31: =S21 -> 3.7978 | T31: =R31/1.034 -> 4.577756286 | U31: =S31/1.034 -> 3.672920696
A32: St Lgt-WHSI | B32: 3.27 | C32: 0.1186 | D32: -0.0006 | E32: 0 | F32: -0.0009 | G32: 0.0015 | H32: 0.0015 | I32: 0 | J32: -0.0044 | K32: -0.0005 | M32: -0.0013 | R32: 0.0063 | S32: 0.005
A33: USL-WHSI | B33: 38.29 | C33: 0.0292 | D33: -0.0009 | E33: 0 | F33: -0.0009 | G33: 0.0015 | H33: 0.0015 | I33: 0 | J33: -0.0044 | K33: -0.0005 | M33: -0.0003 | R33: 0.0073 | S33: 0.0055
A34: AR-NPDI | B34: 40.1 | C34: 0 | D34: -0.0008 | E34: 0 | F34: -0.0009 | G34: 0.0011 | H34: 0.0011 | I34: 0 | J34: -0.0044 | K34: -0.0005 | L34: -0.43 | R34: 0.0116 | S34: 0.0086
A35: AGSe-NPDI | B35: 39.96 | C35: 0.0201 | D35: -0.0008 | E35: 0 | F35: -0.0009 | G35: 0.0014 | H35: 0.0014 | I35: 0 | J35: -0.0044 | K35: -0.0005 | M35: -0.0004 | R35: 0.0092 | S35: 0.0071
A36: AGSd-NPDI | B36: 170.26 | C36: 4.908 | D36: -0.0653 | E36: -0.1364 | F36: -0.0009 | G36: 0.291 | H36: 0.291 | I36: 0.2386 | J36: -0.0044 | K36: -0.1908 | M36: -0.0618 | R36: =R27 -> 2.8592 | S36: =S27 -> 2.2384 | T36: =R36/1.053 -> 2.715289649 | U36: =S36/1.053 -> 2.125735992
A37: St Lgt-NPDI | B37: 3.27 | C37: 0.1186 | D37: -0.0011 | E37: 0 | F37: -0.0009 | G37: 0.0015 | H37: 0.0015 | I37: 0 | J37: -0.0044 | K37: -0.0005 | M37: -0.0011 | R37: 0.0063 | S37: 0.005
A38: Sen Lgt-NPDI | B38: 3.29 | C38: 0.1816 | D38: -0.0012 | E38: 0 | F38: -0.0009 | G38: 0.0015 | H38: 0.0015 | I38: 0 | J38: -0.0044 | K38: -0.0005 | M38: -0.0018 | R38: 0.0064 | S38: 0.005
A39: USL-NPDI | B39: 38.29 | C39: 0.0292 | D39: -0.0014 | E39: 0 | F39: -0.0009 | G39: 0.0015 | H39: 0.0015 | I39: 0 | J39: -0.0044 | K39: -0.0005 | M39: -0.0008 | R39: 0.0073 | S39: 0.0055
A40: AR-HCHI | B40: 40.1 | C40: 0 | D40: -0.0007 | E40: 0 | F40: -0.0009 | G40: 0.0011 | H40: 0.0011 | I40: 0 | J40: -0.0044 | K40: -0.0005 | L40: -0.46 | R40: 0.0116 | S40: 0.0086
A41: AGSe-HCHI | B41: 39.96 | C41: 0.0201 | D41: -0.0007 | E41: 0 | F41: -0.0009 | G41: 0.0014 | H41: 0.0014 | I41: 0 | J41: -0.0044 | K41: -0.0005 | M41: -0.0004 | R41: 0.0092 | S41: 0.0071
A42: AGSd-HCHI | B42: 170.26 | C42: 4.908 | D42: -0.098 | E42: -0.1364 | F42: -0.0009 | G42: 0.291 | H42: 0.291 | I42: 0.2386 | J42: -0.0044 | K42: -0.1908 | M42: -0.0603 | R42: =R27 -> 2.8592 | S42: =S27 -> 2.2384 | T42: =R42/1.053 -> 2.715289649 | U42: =S42/1.053 -> 2.125735992
A43: St Lgt-HCHI | B43: 3.27 | C43: 0.1186 | D43: -0.0007 | E43: 0 | F43: -0.0009 | G43: 0.0015 | H43: 0.0015 | I43: 0 | J43: -0.0044 | K43: -0.0005 | M43: -0.0028 | R43: 0.0063 | S43: 0.005
A44: Sen Lgt-HCHI | B44: 3.29 | C44: 0.1816 | D44: -0.0007 | E44: 0 | F44: -0.0009 | G44: 0.0015 | H44: 0.0015 | I44: 0 | J44: -0.0044 | K44: -0.0005 | M44: -0.0055 | R44: 0.0064 | S44: 0.005
A45: USL-HCHI | B45: 38.29 | C45: 0.0292 | D45: -0.0007 | E45: 0 | F45: -0.0009 | G45: 0.0015 | H45: 0.0015 | I45: 0 | J45: -0.0044 | K45: -0.0005 | M45: -0.0007 | R45: 0.0073 | S45: 0.0055

Sheet Data Billing Quantities (hidden)
A1: Rate Class-Specific Billing Quantities (Applied to Current and Proposed Bill)
E3: Consumption (kWh) | I3: Peak (kW) | M3: TOU Split
A4: Rate Class | B4: Loss Factor | C4: Charge Determinant | D4: Commodity Threshold | E4: Low kWh | F4: Typical kWh | G4: Average kWh | H4: High kWh | I4: Low kW | J4: Typical kW | K4: Average kW | L4: High kW | M4: TOU-Off Peak | N4: TOU-Mid Peak | O4: TOU-On Peak | P4: Acquired Street Light Service Charge
A5: UR | B5: 1.057 | C5: kWh | D5: 600 | E5: 340 | F5: 750 | G5: 690 | H5: 1260 | M5: 0.64 | N5: 0.18 | O5: 0.18
A6: R1 | B6: 1.076 | C6: kWh | D6: 600 | E6: 370 | F6: 750 | G6: 784 | H6: 1650 | M6: =M$5 -> 0.64 | N6: =N$5 -> 0.18 | O6: =O$5 -> 0.18
A7: R2 | B7: 1.105 | C7: kWh | D7: 600 | E7: 440 | F7: 750 | G7: 978 | H7: 2110 | M7: =M$5 -> 0.64 | N7: 0.18 | O7: 0.18
A8: Seasonal | B8: 1.104 | C8: kWh | D8: 600 | E8: 40 | G8: 369 | H8: 1040 | M8: 0.64 | N8: 0.18 | O8: 0.18
A9: Seas-UR | B9: =B5 -> 1.057 | C9: =C5 -> kWh | D9: 600 | E9: =E8 -> 40 | G9: =G8 -> 369 | H9: =H8 -> 1040 | M9: 0.64 | N9: 0.18 | O9: 0.18
A10: Seas-R1 | B10: =B6 -> 1.076 | C10: =C6 -> kWh | D10: 600 | E10: =E8 -> 40 | G10: =G8 -> 369 | H10: =H8 -> 1040 | M10: 0.64 | N10: 0.18 | O10: 0.18
A11: Seas-R2 | B11: =B7 -> 1.105 | C11: =C7 -> kWh | D11: 600 | E11: =E8 -> 40 | G11: =G8 -> 369 | H11: =H8 -> 1040 | M11: 0.64 | N11: 0.18 | O11: 0.18
A12: GSe | B12: 1.096 | C12: kWh | D12: 750 | E12: 60 | F12: 2000 | G12: 1887 | H12: 5570 | M12: 0.64 | N12: 0.18 | O12: 0.18
A13: UGe | B13: 1.067 | C13: kWh | D13: 750 | E13: 180 | F13: 2000 | G13: 2494 | H13: 6930 | M13: 0.64 | N13: 0.18 | O13: 0.18
A14: St Lgt | B14: 1.092 | C14: kWh | D14: 750 | E14: 30 | G14: 1274 | H14: 2310
A15: Sen Lgt | B15: 1.092 | C15: kWh | D15: 750 | E15: 20 | G15: 49 | H15: 80
A16: USL | B16: 1.092 | C16: kWh | D16: 750 | E16: 100 | G16: 477 | H16: 550
A17: GSd | B17: 1.061 | C17: kW | D17: 0 | E17: 9310 | G17: 34334 | H17: 75790 | I17: 55 | K17: 110 | L17: 250
A18: UGd | B18: 1.05 | C18: kW | D18: 0 | E18: 13900 | G18: 42592 | H18: 97610 | I18: 55 | K18: 111 | L18: 280
A19: Dgen | B19: 1.061 | C19: kW | D19: 0 | E19: 10 | G19: 1709 | H19: 8490 | I19: 0.02941666667 | K19: 12 | L19: 45
A20: ST | B20: 1.034 | C20: kW | D20: 0 | E20: 88780 | G20: 1373443 | H20: 2641420 | I20: 500 | K20: 2808 | L20: 13730
A21: WHSI_RES | B21: 1.0431 | C21: kWh | D21: 600 | E21: 310 | F21: 750 | G21: 636 | H21: 1160 | M21: =M$5 -> 0.64 | N21: 0.18 | O21: 0.18
A22: WHSI_GS<50 | B22: 1.0431 | C22: kWh | D22: 750 | E22: 190 | F22: 2000 | G22: 2471 | H22: 7240 | M22: 0.64 | N22: 0.18 | O22: 0.18
A23: WHSI_GS 50-999 | B23: 1.0431 | C23: kW | E23: 9370 | G23: 47636 | H23: 137890 | I23: 50 | K23: 134 | L23: 340
A24: WHSI_GS >1,000kW | B24: 1.0326 | C24: kW | G24: 895853 | K24: 3301
A25: WHSI_St Lgt | B25: 1.0431 | C25: kW | D25: 750 | G25: 37079 | K25: 104 | P25: 1
A26: WHSI_USL | B26: 1.0431 | C26: kWh | D26: 750 | G26: 1349 | M26: =M$5 -> 0.64 | N26: 0.18 | O26: 0.18
A27: NPDI_RES | B27: 1.0564 | C27: kWh | D27: 600 | E27: 290 | F27: 750 | G27: 692 | H27: 1230 | M27: 0.64 | N27: 0.18 | O27: 0.18
A28: NPDI_GS<50 | B28: 1.0564 | C28: kWh | D28: 750 | E28: 110 | F28: 2000 | G28: 2377 | H28: 6410 | M28: 0.64 | N28: 0.18 | O28: 0.18
A29: NPDI_GS >50 | B29: 1.0464 | C29: kW | E29: 13020 | G29: 70294 | H29: 129420 | I29: 55 | K29: 181 | L29: 300
A30: NPDI_St Lgt | B30: 1.0564 | C30: kW | D30: 750 | G30: 11389 | K30: 39 | P30: 1
A31: NPDI_Sen Lgt | B31: 1.0564 | C31: kW | D31: 750 | G31: 108 | K31: 0.3368027211
A32: NPDI_USL | B32: 1.0564 | C32: kWh | D32: 750 | G32: 904 | M32: =M$5 -> 0.64 | N32: 0.18 | O32: 0.18
A33: HCHI_RES | B33: 1.0655 | C33: kWh | D33: 600 | E33: 250 | F33: 750 | G33: 742 | H33: 1410 | M33: 0.64 | N33: 0.18 | O33: 0.18
A34: HCHI_GS<50 | B34: 1.0655 | C34: kWh | D34: 750 | E34: 90 | F34: 2000 | G34: 2261 | H34: 5430 | M34: 0.64 | N34: 0.18 | O34: 0.18
A35: HCHI_GS >50 | B35: 1.0548 | C35: kW | E35: 10880 | G35: 57529 | H35: 135160 | I35: 55 | K35: 175 | L35: 375
A36: HCHI_St Lgt | B36: 1.0655 | C36: kW | D36: 750 | G36: 31001 | K36: 85 | P36: 1
A37: HCHI_Sen Lgt | B37: 1.0655 | C37: kW | D37: 750 | G37: 61 | K37: 0.1956473214
A38: HCHI_USL | B38: 1.0655 | C38: kWh | D38: 750 | G38: 471 | M38: =M$5 -> 0.64 | N38: 0.18 | O38: 0.18
A39: AUR | B39: 1.043 | C39: kWh | D39: 750 | E39: 310 | F39: 750 | G39: 636 | H39: 1160 | M39: 0.64 | N39: 0.18 | O39: 0.18
A40: AUGe | B40: =B39 -> 1.043 | C40: kWh | D40: 750 | E40: 190 | F40: 2000 | G40: 2471 | H40: 7240 | M40: 0.64 | N40: 0.18 | O40: 0.18
A41: AUGd | B41: 1.033 | C41: kW | E41: 9370 | G41: 47636 | H41: 137890 | I41: 50 | K41: 134 | L41: 340
A42: AR | B42: 1.064 | C42: kWh | D42: 750 | F42: 750 | M42: =M$5 -> 0.64 | N42: 0.18 | O42: 0.18
A43: AGSe | B43: =B42 -> 1.064 | C43: kWh | D43: 750 | F43: 2000 | M43: 0.64 | N43: 0.18 | O43: 0.18
A44: AGSd | B44: 1.053 | C44: kW
A45: AUR-WHSI | B45: =B39 -> 1.043 | C45: kWh | D45: =D39 -> 750 | E45: 310 | F45: 750 | G45: 636 | H45: 1160 | M45: =M$5 -> 0.64 | N45: 0.18 | O45: 0.18
A46: AUGe-WHSI | B46: =B40 -> 1.043 | C46: kWh | D46: =D40 -> 750 | E46: 190 | F46: 2000 | G46: 2471 | H46: 7240 | M46: 0.64 | N46: 0.18 | O46: 0.18
A47: AUGd-WHSI | B47: =B41 -> 1.033 | C47: kW | E47: 9370 | G47: 47636 | H47: 137890 | I47: 50 | K47: 134 | L47: 340
A48: ST-WHSI | B48: =B20 -> 1.034 | C48: kW | G48: 895853 | K48: 3301
A49: St Lgt-WHSI | B49: =B14 -> 1.092 | C49: kWh | D49: =D14 -> 750 | G49: =G25 -> 37079 | K49: =K25 -> 104 | P49: =P25 -> 1
A50: USL-WHSI | B50: =B16 -> 1.092 | C50: kWh | D50: =D16 -> 750 | G50: =G26 -> 1349 | M50: =M$5 -> 0.64 | N50: 0.18 | O50: 0.18
A51: AR-NPDI | B51: =B42 -> 1.064 | C51: kWh | D51: =D42 -> 750 | E51: 290 | F51: 750 | G51: 692 | H51: 1230 | M51: 0.64 | N51: 0.18 | O51: 0.18
A52: AGSe-NPDI | B52: =B43 -> 1.064 | C52: kWh | D52: =D43 -> 750 | E52: 110 | F52: 2000 | G52: 2377 | H52: 6410 | M52: 0.64 | N52: 0.18 | O52: 0.18
A53: AGSd-NPDI | B53: =B44 -> 1.053 | C53: kW | D53: =D44 -> 0 | E53: 13020 | G53: 70294 | H53: 129420 | I53: 55 | K53: 181 | L53: 300
A54: St Lgt-NPDI | B54: =B14 -> 1.092 | C54: kWh | D54: =D14 -> 750 | G54: =G30 -> 11389 | K54: =K30 -> 39 | P54: =P30 -> 1
A55: Sen Lgt-NPDI | B55: =B15 -> 1.092 | C55: kWh | D55: =D15 -> 750 | G55: =G31 -> 108 | K55: =K31 -> 0.3368027211
A56: USL-NPDI | B56: =B16 -> 1.092 | C56: kWh | D56: =D16 -> 750 | G56: =G32 -> 904 | M56: =M$5 -> 0.64 | N56: 0.18 | O56: 0.18
A57: AR-HCHI | B57: =B51 -> 1.064 | C57: kWh | D57: 750 | E57: 250 | F57: 750 | G57: 742 | H57: 1410 | M57: 0.64 | N57: 0.18 | O57: 0.18
A58: AGSe-HCHI | B58: 1.064 | C58: kWh | D58: 750 | E58: 90 | F58: 2000 | G58: 2261 | H58: 5430 | M58: 0.64 | N58: 0.18 | O58: 0.18
A59: AGSd-HCHI | B59: 1.053 | C59: kW | D59: 0 | E59: 10880 | G59: 57529 | H59: 135160 | I59: 55 | K59: 175 | L59: 375
A60: St Lgt-HCHI | B60: 1.092 | C60: kWh | D60: 750 | G60: =G36 -> 31001 | K60: =K36 -> 85 | P60: =P36 -> 1
A61: Sen Lgt-HCHI | B61: 1.092 | C61: kWh | D61: 750 | G61: =G37 -> 61 | K61: =K37 -> 0.1956473214
A62: USL-HCHI | B62: 1.092 | C62: kWh | D62: 750 | G62: =G38 -> 471 | M62: =M$5 -> 0.64 | N62: 0.18 | O62: 0.18

Sheet Data Pass Through (hidden)
A1: 3. Pass Through Charges
B2: Current Bill | C2: Proposed Bill
A3: Effective Date | B3: 2023-01-01 | C3: 2024-01-01 | D3: TOU % | E3: Notes
A4: R2 Credit | B4: 60.5 | C4: =B4 -> 60.5
A5: Energy First Tier | B5: 0.087 | C5: =B5 -> 0.087 | E5: Effective Nov 1 2022
A6: Energy Second Tier | B6: 0.103 | C6: 0.103 | E6: Effective Nov 1 2022
A7: Weighted Average Hourly Spot Price | B7: 0.1025 | C7: =B7 -> 0.1025 | E7: Avg for Jul 2022 to Jun 2023 (source: Commodity prices_SPOTv2.xls file at RAinternal/Niki/Misc
A8: TOU-Off Peak | B8: 0.074 | C8: 0.074 | D8: 0.63 | E8: Effective Nov 1 2022
A9: TOU-Mid Peak | B9: 0.102 | C9: 0.102 | D9: 0.18 | E9: Effective Nov 1 2022
A10: TOU-On Peak | B10: 0.151 | C10: 0.151 | D10: 0.19 | E10: Effective Nov 1 2022
A11: Wholesale Market Service Rate (WMS) - not including CBR | B11: 0.0041 | C11: 0.0041 | E11: Effective Jan 1 2023, 0.0045 WMSC broken up between WMSC and CBR
A12: Capacity Based Recovery (CBR) - Applicable for Class B Customers | B12: 0.0004 | C12: 0.0004 | E12: Effective Jan 1 2023, 0.0045 WMSC broken up between WMSC and CBR
A13: Rural Rate Protection Charge | B13: 0.0007 | C13: 0.0007 | E13: RRRP charge increased from $0.0005/kWh to $0.0007/kWh effective Jan 1, 2023.
A14: Ontario Electricity Support Program Charge | B14: 0 | C14: 0 | E14: OESP charge removed for all rate classes effective May 1, 2017. ROW HIDDEN IN BILL IMPACT FILE
A15: Standard Supply Service – Administration Charge (if applicable) | B15: 0.25 | C15: 0.25
A16: Fair Hydro Plan - Distribution Rate Protection Savings* | B16: =IF('Bill Impact Summary'!L6="TOU",0,IF('Bill Impact Summary'!L6="TOU (DRP applied)",B17,"error")) -> 39.49 | C16: =IF('Bill Impact Summary'!L6="TOU",0,IF('Bill Impact Summary'!L6="TOU (DRP applied)",C17,"error")) -> 39.49 | E16: Highlighted cells are FORMULAS; do not overwrite with hard-entered values. Input DRP limit values in row 17 below
A17: DRP limit (applied when selected from Bill Impact Summary) | B17: 39.49 | C17: 39.49 | E17: Make change to FHP DRP limit here, but to apply DRP, must do in Bill Impact Summary sheet cell L6
A18: Smart Metering Entity Charge | B18: 0.42 | C18: 0.42 | E18: Change from 0.57 to 0.42 effective Jan 1 2023; only for metered energy-billed (UR, R1, R2, GSE, UGE, AUR, AUGE, AR, AGSE)
A19: Debt Retirement Charge (DRC) | B19: 0 | C19: 0 | E19: DRC removed from all rate classes Apr 1 2018 ROW HIDDEN IN BILL IMPACT FILE
A20: Ontario Electricity Rebate (OER) | B20: -0.117 | C20: =B20 -> -0.117
A22: Customer Attributes - Assumptions
A23: ST customers are assumed to be Non-WMP, Class A

Sheet Data BI Summary (hidden)
A2: Summary Column | B2: Current Total Bill | C2: Change in DX Bill ($) | D2: Change in DX Bill (%) | E2: Change in Total Bill ($) | F2: Change in Total Bill (%)
A3: BI Template_Energy | B3: Total Amount on TOU | C3: Sub-Total: Distribution (excluding pass through) | D3: Sub-Total: Distribution (excluding pass through) | E3: Total Amount on TOU | F3: Total Amount on TOU
A4: BI Template_EnergyUNM | B4: Total Amount on Two-Tier RPP | C4: Sub-Total: Distribution (excluding pass through) | D4: Sub-Total: Distribution (excluding pass through) | E4: Total Amount on Two-Tier RPP | F4: Total Amount on Two-Tier RPP
A5: BI Template_Demand | B5: Total Amount on WAHSP | C5: Sub-Total: Distribution | D5: Sub-Total: Distribution | E5: Total Amount on WAHSP | F5: Total Amount on WAHSP
A6: BI Template_EnergyNPDI | B6: Total Amount on TOU | C6: Sub-Total: Distribution (excluding pass through) | D6: Sub-Total: Distribution (excluding pass through) | E6: Total Amount on TOU | F6: Total Amount on TOU
A7: BI Template_UNMNPDI | B7: Total Amount on Two-Tier RPP | C7: Sub-Total: Distribution (excluding pass through) | D7: Sub-Total: Distribution (excluding pass through) | E7: Total Amount on Two-Tier RPP | F7: Total Amount on Two-Tier RPP
A8: BI Template_DemandNPDI | B8: Total Amount on WAHSP | C8: Sub-Total: Distribution | D8: Sub-Total: Distribution | E8: Total Amount on WAHSP | F8: Total Amount on WAHSP
A9: BI Template_EnergyHCHI | B9: Total Amount on TOU | C9: Sub-Total: Distribution (excluding pass through) | D9: Sub-Total: Distribution (excluding pass through) | E9: Total Amount on TOU | F9: Total Amount on TOU
A10: BI Template_UNMHCHI | B10: Total Amount on Two-Tier RPP | C10: Sub-Total: Distribution (excluding pass through) | D10: Sub-Total: Distribution (excluding pass through) | E10: Total Amount on Two-Tier RPP | F10: Total Amount on Two-Tier RPP
A11: BI Template_DemandHCHI | B11: Total Amount on WAHSP | C11: Sub-Total: Distribution | D11: Sub-Total: Distribution | E11: Total Amount on WAHSP | F11: Total Amount on WAHSP
A12: BI Template_EnergyWHSI | B12: Total Amount on TOU | C12: Sub-Total: Distribution (excluding pass through) | D12: Sub-Total: Distribution (excluding pass through) | E12: Total Amount on TOU | F12: Total Amount on TOU
A13: BI Template_UNMWHSI | B13: Total Amount on Two-Tier RPP | C13: Sub-Total: Distribution (excluding pass through) | D13: Sub-Total: Distribution (excluding pass through) | E13: Total Amount on Two-Tier RPP | F13: Total Amount on Two-Tier RPP
A14: BI Template_DemandWHSI | B14: Total Amount on WAHSP | C14: Sub-Total: Distribution | D14: Sub-Total: Distribution | E14: Total Amount on WAHSP | F14: Total Amount on WAHSP
A15: BI Template_Seasonal | B15: Total Amount on TOU | C15: Sub-Total: Distribution (excluding pass through) | D15: Sub-Total: Distribution (excluding pass through) | E15: Total Amount on TOU | F15: Total Amount on TOU

Sheet Data BI List (hidden)
A1: Template Name | B1: Bill Impact Worksheet Name | C1: Bill Impact Header
A2: BI Template_Energy | B2: BI_UR_Low | C2: 2024 Bill Impacts (Low Consumption Level) - UR
A3: BI Template_Energy | B3: BI_UR_Typical | C3: 2024 Bill Impacts (Typical Consumption Level) - UR
A4: BI Template_Energy | B4: BI_UR_Avg | C4: 2024 Bill Impacts (Average Consumption Level) - UR
A5: BI Template_Energy | B5: BI_UR_High | C5: 2024 Bill Impacts (High Consumption Level) - UR
A6: BI Template_Energy | B6: BI_R1_Low (with DRP) | C6: 2024 Bill Impacts (Low Consumption Level) - R1
A7: BI Template_Energy | B7: BI_R1_Typical (with DRP) | C7: 2024 Bill Impacts (Typical Consumption Level) - R1
A8: BI Template_Energy | B8: BI_R1_Avg (with DRP) | C8: 2024 Bill Impacts (Average Consumption Level) - R1
A9: BI Template_Energy | B9: BI_R1_High (with DRP) | C9: 2024 Bill Impacts (High Consumption Level) - R1
A10: BI Template_Energy | B10: BI_R1_Low (without DRP) | C10: 2024 Bill Impacts (Low Consumption Level) - R1
A11: BI Template_Energy | B11: BI_R1_Typical (without DRP) | C11: 2024 Bill Impacts (Typical Consumption Level) - R1
A12: BI Template_Energy | B12: BI_R1_Avg (without DRP) | C12: 2024 Bill Impacts (Average Consumption Level) - R1
A13: BI Template_Energy | B13: BI_R1_High (without DRP) | C13: 2024 Bill Impacts (High Consumption Level) - R1
A14: BI Template_Energy | B14: BI_R2_Low (with DRP) | C14: 2024 Bill Impacts (Low Consumption Level) - R2
A15: BI Template_Energy | B15: BI_R2_Typical (with DRP) | C15: 2024 Bill Impacts (Typical Consumption Level) - R2
A16: BI Template_Energy | B16: BI_R2_Avg (with DRP) | C16: 2024 Bill Impacts (Average Consumption Level) - R2
A17: BI Template_Energy | B17: BI_R2_High (with DRP) | C17: 2024 Bill Impacts (High Consumption Level) - R2
A18: BI Template_Energy | B18: BI_R2_Low (without DRP) | C18: 2024 Bill Impacts (Low Consumption Level) - R2
A19: BI Template_Energy | B19: BI_R2_Typical (without DRP) | C19: 2024 Bill Impacts (Typical Consumption Level) - R2
A20: BI Template_Energy | B20: BI_R2_Avg (without DRP) | C20: 2024 Bill Impacts (Average Consumption Level) - R2
A21: BI Template_Energy | B21: BI_R2_High (without DRP) | C21: 2024 Bill Impacts (High Consumption Level) - R2
A22: BI Template_Energy | B22: BI_GSe_Low | C22: 2024 Bill Impacts (Low Consumption Level) - GSe
A23: BI Template_Energy | B23: BI_GSe_Typical | C23: 2024 Bill Impacts (Typical Consumption Level) - GSe
A24: BI Template_Energy | B24: BI_GSe_Avg | C24: 2024 Bill Impacts (Average Consumption Level) - GSe
A25: BI Template_Energy | B25: BI_GSe_High | C25: 2024 Bill Impacts (High Consumption Level) - GSe
A26: BI Template_Energy | B26: BI_UGe_Low | C26: 2024 Bill Impacts (Low Consumption Level) - UGe
A27: BI Template_Energy | B27: BI_UGe_Typical | C27: 2024 Bill Impacts (Typical Consumption Level) - UGe
A28: BI Template_Energy | B28: BI_UGe_Avg | C28: 2024 Bill Impacts (Average Consumption Level) - UGe
A29: BI Template_Energy | B29: BI_UGe_High | C29: 2024 Bill Impacts (High Consumption Level) - UGe
A30: BI Template_Demand | B30: BI_GSd_Low | C30: 2024 Bill Impacts (Low Consumption Level) - GSd
A31: BI Template_Demand | B31: BI_GSd_Avg | C31: 2024 Bill Impacts (Average Consumption Level) - GSd
A32: BI Template_Demand | B32: BI_GSd_High | C32: 2024 Bill Impacts (High Consumption Level) - GSd
A33: BI Template_Demand | B33: BI_UGd_Low | C33: 2024 Bill Impacts (Low Consumption Level) - UGd
A34: BI Template_Demand | B34: BI_UGd_Avg | C34: 2024 Bill Impacts (Average Consumption Level) - UGd
A35: BI Template_Demand | B35: BI_UGd_High | C35: 2024 Bill Impacts (High Consumption Level) - UGd
A36: BI Template_EnergyUNM | B36: BI_StLgt_Low | C36: 2024 Bill Impacts (Low Consumption Level) - St Lgt
A37: BI Template_EnergyUNM | B37: BI_StLgt_Avg | C37: 2024 Bill Impacts (Average Consumption Level) - St Lgt
A38: BI Template_EnergyUNM | B38: BI_StLgt_High | C38: 2024 Bill Impacts (High Consumption Level) - St Lgt
A39: BI Template_EnergyUNM | B39: BI_SenLgt_Low | C39: 2024 Bill Impacts (Low Consumption Level) - Sen Lgt
A40: BI Template_EnergyUNM | B40: BI_SenLgt_Avg | C40: 2024 Bill Impacts (Average Consumption Level) - Sen Lgt
A41: BI Template_EnergyUNM | B41: BI_SenLgt_High | C41: 2024 Bill Impacts (High Consumption Level) - Sen Lgt
A42: BI Template_EnergyUNM | B42: BI_USL_Low | C42: 2024 Bill Impacts (Low Consumption Level) - USL
A43: BI Template_EnergyUNM | B43: BI_USL_Avg | C43: 2024 Bill Impacts (Average Consumption Level) - USL
A44: BI Template_EnergyUNM | B44: BI_USL_High | C44: 2024 Bill Impacts (High Consumption Level) - USL
A45: BI Template_Demand | B45: BI_Dgen_Low | C45: 2024 Bill Impacts (Low Consumption Level) - Dgen
A46: BI Template_Demand | B46: BI_Dgen_Avg | C46: 2024 Bill Impacts (Average Consumption Level) - Dgen
A47: BI Template_Demand | B47: BI_Dgen_High | C47: 2024 Bill Impacts (High Consumption Level) - Dgen
A48: BI Template_Demand | B48: BI_ST_Low | C48: 2024 Bill Impacts (Low Consumption Level) - ST
A49: BI Template_Demand | B49: BI_ST_Avg | C49: 2024 Bill Impacts (Average Consumption Level) - ST
A50: BI Template_Demand | B50: BI_ST_High | C50: 2024 Bill Impacts (High Consumption Level) - ST
A51: BI Template_EnergyWHSI | B51: BI_WHSI_AUR_Low | C51: 2024 Bill Impacts (Low Consumption Level) - AUR_WHSI
A52: BI Template_EnergyWHSI | B52: BI_WHSI_AUR_Typical | C52: 2024 Bill Impacts (Typical Consumption Level) - AUR_WHSI
A53: BI Template_EnergyWHSI | B53: BI_WHSI_AUR_Avg | C53: 2024 Bill Impacts (Average Consumption Level) - AUR_WHSI
A54: BI Template_EnergyWHSI | B54: BI_WHSI_AUR_High | C54: 2024 Bill Impacts (High Consumption Level) - AUR_WHSI
A55: BI Template_EnergyWHSI | B55: BI_WHSI_AUGe_Low | C55: 2024 Bill Impacts (Low Consumption Level) - AUGe_WHSI
A56: BI Template_EnergyWHSI | B56: BI_WHSI_AUGe_Typical | C56: 2024 Bill Impacts (Typical Consumption Level) - AUGe_WHSI
A57: BI Template_EnergyWHSI | B57: BI_WHSI_AUGe_Avg | C57: 2024 Bill Impacts (Average Consumption Level) - AUGe_WHSI
A58: BI Template_EnergyWHSI | B58: BI_WHSI_AUGe_High | C58: 2024 Bill Impacts (High Consumption Level) - AUGe_WHSI
A59: BI Template_DemandWHSI | B59: BI_WHSI_AUGd_Low | C59: 2024 Bill Impacts (Low Consumption Level) - AUGd_WHSI
A60: BI Template_DemandWHSI | B60: BI_WHSI_AUGd_Avg | C60: 2024 Bill Impacts (Average Consumption Level) - AUGd_WHSI
A61: BI Template_DemandWHSI | B61: BI_WHSI_AUGd_High | C61: 2024 Bill Impacts (High Consumption Level) - AUGd_WHSI
A62: BI Template_DemandWHSI | B62: BI_WHSI_ST_Avg | C62: 2024 Bill Impacts (Average Consumption Level) - ST_WHSI
A63: BI Template_EnergyNPDI | B63: BI_NPDI_AR_Low | C63: 2024 Bill Impacts (Low Consumption Level) - AR_NPDI
A64: BI Template_EnergyNPDI | B64: BI_NPDI_AR_Typical | C64: 2024 Bill Impacts (Typical Consumption Level) - AR_NPDI
A65: BI Template_EnergyNPDI | B65: BI_NPDI_AR_Avg | C65: 2024 Bill Impacts (Average Consumption Level) - AR_NPDI
A66: BI Template_EnergyNPDI | B66: BI_NPDI_AR_High | C66: 2024 Bill Impacts (High Consumption Level) - AR_NPDI
A67: BI Template_EnergyHCHI | B67: BI_HCHI_AR_Low | C67: 2024 Bill Impacts (Low Consumption Level) - AR_HCHI
A68: BI Template_EnergyHCHI | B68: BI_HCHI_AR_Typical | C68: 2024 Bill Impacts (Typical Consumption Level) - AR_HCHI
A69: BI Template_EnergyHCHI | B69: BI_HCHI_AR_Avg | C69: 2024 Bill Impacts (Average Consumption Level) - AR_HCHI
A70: BI Template_EnergyHCHI | B70: BI_HCHI_AR_High | C70: 2024 Bill Impacts (High Consumption Level) - AR_HCHI
A71: BI Template_EnergyNPDI | B71: BI_NPDI_AGSe_Low | C71: 2024 Bill Impacts (Low Consumption Level) - AGSe_NPDI
A72: BI Template_EnergyNPDI | B72: BI_NPDI_AGSe_Typical | C72: 2024 Bill Impacts (Typical Consumption Level) - AGSe_NPDI
A73: BI Template_EnergyNPDI | B73: BI_NPDI_AGSe_Avg | C73: 2024 Bill Impacts (Average Consumption Level) - AGSe_NPDI
A74: BI Template_EnergyNPDI | B74: BI_NPDI_AGSe_High | C74: 2024 Bill Impacts (High Consumption Level) - AGSe_NPDI
A75: BI Template_EnergyHCHI | B75: BI_HCHI_AGSe_Low | C75: 2024 Bill Impacts (Low Consumption Level) - AGSe_HCHI
A76: BI Template_EnergyHCHI | B76: BI_HCHI_AGSe_Typical | C76: 2024 Bill Impacts (Typical Consumption Level) - AGSe_HCHI
A77: BI Template_EnergyHCHI | B77: BI_HCHI_AGSe_Avg | C77: 2024 Bill Impacts (Average Consumption Level) - AGSe_HCHI
A78: BI Template_EnergyHCHI | B78: BI_HCHI_AGSe_High | C78: 2024 Bill Impacts (High Consumption Level) - AGSe_HCHI
A79: BI Template_DemandNPDI | B79: BI_NPDI_AGSd_Low | C79: 2024 Bill Impacts (Low Consumption Level) - AGSd_NPDI
A80: BI Template_DemandNPDI | B80: BI_NPDI_AGSd_Avg | C80: 2024 Bill Impacts (Average Consumption Level) - AGSd_NPDI
A81: BI Template_DemandNPDI | B81: BI_NPDI_AGSd_High | C81: 2024 Bill Impacts (High Consumption Level) - AGSd_NPDI
A82: BI Template_DemandHCHI | B82: BI_HCHI_AGSd_Low | C82: 2024 Bill Impacts (Low Consumption Level) - AGSd_HCHI
A83: BI Template_DemandHCHI | B83: BI_HCHI_AGSd_Avg | C83: 2024 Bill Impacts (Average Consumption Level) - AGSd_HCHI
A84: BI Template_DemandHCHI | B84: BI_HCHI_AGSd_High | C84: 2024 Bill Impacts (High Consumption Level) - AGSd_HCHI
A85: BI Template_unmWHSI | B85: BI_WHSI_USL_Avg | C85: 2024 Bill Impacts (Average Consumption Level) - USL_WHSI
A86: BI Template_unmNPDI | B86: BI_NPDI_USL_Avg | C86: 2024 Bill Impacts (Average Consumption Level) - USL_NPDI
A87: BI Template_unmHCHI | B87: BI_HCHI_USL_Avg | C87: 2024 Bill Impacts (Average Consumption Level) - USL_HCHI
A88: BI Template_unmWHSI | B88: BI_WHSI_StLgt_Avg | C88: 2024 Bill Impacts (Average Consumption Level) - St Lgt_WHSI
A89: BI Template_unmNPDI | B89: BI_NPDI_StLgt_Avg | C89: 2024 Bill Impacts (Average Consumption Level) - St Lgt_NPDI
A90: BI Template_unmHCHI | B90: BI_HCHI_StLgt_Avg | C90: 2024 Bill Impacts (Average Consumption Level) - St Lgt_HCHI
A91: BI Template_unmNPDI | B91: BI_NPDI_SenLgt_Avg | C91: 2024 Bill Impacts (Average Consumption Level) - Sen Lgt_NPDI
A92: BI Template_unmHCHI | B92: BI_HCHI_SenLgt_Avg | C92: 2024 Bill Impacts (Average Consumption Level) - Sen Lgt_HCHI
A93: BI Template_Seasonal | B93: BI_Seas_UR_Low | C93: 2024 Bill Impacts (Low Consumption Level) - Seas-UR
A94: BI Template_Seasonal | B94: BI_Seas_UR_Avg | C94: 2024 Bill Impacts (Average Consumption Level) - Seas-UR
A95: BI Template_Seasonal | B95: BI_Seas_UR_High | C95: 2024 Bill Impacts (High Consumption Level) - Seas-UR
A96: BI Template_Seasonal | B96: BI_Seas_R1_Low | C96: 2024 Bill Impacts (Low Consumption Level) - Seas-R1
A97: BI Template_Seasonal | B97: BI_Seas_R1_Avg | C97: 2024 Bill Impacts (Average Consumption Level) - Seas-R1
A98: BI Template_Seasonal | B98: BI_Seas_R1_High | C98: 2024 Bill Impacts (High Consumption Level) - Seas-R1
A99: BI Template_Seasonal | B99: BI_Seas_R2_Low | C99: 2024 Bill Impacts (Low Consumption Level) - Seas-R2
A100: BI Template_Seasonal | B100: BI_Seas_R2_Avg | C100: 2024 Bill Impacts (Average Consumption Level) - Seas-R2
A101: BI Template_Seasonal | B101: BI_Seas_R2_High | C101: 2024 Bill Impacts (High Consumption Level) - Seas-R2

Sheet Data BI List Acq_Seas (hidden)
A1: Template Name | B1: Bill Impact Worksheet Name | C1: Bill Impact Header | D1: Current Rate Class (Acq) | E1: Proposed Rate Class
A2: BI Template_EnergyWHSI | B2: BI_AUR_Low | C2: 2024 Bill Impacts (Low Consumption Level) - AUR_WHSI | D2: AUR-WHSI | E2: AUR-WHSI
A3: BI Template_EnergyWHSI | B3: BI_AUR_Typical | C3: 2024 Bill Impacts (Typical Consumption Level) - AUR_WHSI | D3: AUR-WHSI | E3: AUR-WHSI
A4: BI Template_EnergyWHSI | B4: BI_AUR_Avg | C4: 2024 Bill Impacts (Average Consumption Level) - AUR_WHSI | D4: AUR-WHSI | E4: AUR-WHSI
A5: BI Template_EnergyWHSI | B5: BI_AUR_High | C5: 2024 Bill Impacts (High Consumption Level) - AUR_WHSI | D5: AUR-WHSI | E5: AUR-WHSI
A6: BI Template_EnergyWHSI | B6: BI_AUGe_Low | C6: 2024 Bill Impacts (Low Consumption Level) - AUGe_WHSI | D6: AUGe-WHSI | E6: AUGe-WHSI
A7: BI Template_EnergyWHSI | B7: BI_AUGe_Typical | C7: 2024 Bill Impacts (Typical Consumption Level) - AUGe_WHSI | D7: AUGe-WHSI | E7: AUGe-WHSI
A8: BI Template_EnergyWHSI | B8: BI_AUGe_Avg | C8: 2024 Bill Impacts (Average Consumption Level) - AUGe_WHSI | D8: AUGe-WHSI | E8: AUGe-WHSI
A9: BI Template_EnergyWHSI | B9: BI_AUGe_High | C9: 2024 Bill Impacts (High Consumption Level) - AUGe_WHSI | D9: AUGe-WHSI | E9: AUGe-WHSI
A10: BI Template_DemandWHSI | B10: BI_AUGd_Low | C10: 2024 Bill Impacts (Low Consumption Level) - AUGd_WHSI | D10: AUGd-WHSI | E10: AUGd-WHSI
A11: BI Template_DemandWHSI | B11: BI_AUGd_Avg | C11: 2024 Bill Impacts (Average Consumption Level) - AUGd_WHSI | D11: AUGd-WHSI | E11: AUGd-WHSI
A12: BI Template_DemandWHSI | B12: BI_AUGd_High | C12: 2024 Bill Impacts (High Consumption Level) - AUGd_WHSI | D12: AUGd-WHSI | E12: AUGd-WHSI
A13: BI Template_DemandWHSI | B13: BI_WHSI_ST_Avg | C13: 2024 Bill Impacts (Average Consumption Level) - ST_WHSI | D13: ST-WHSI | E13: ST-WHSI
A14: BI Template_EnergyNPDI | B14: BI_NPDI_AR_Low | C14: 2024 Bill Impacts (Low Consumption Level) - AR_NPDI | D14: AR-NPDI | E14: AR-NPDI
A15: BI Template_EnergyNPDI | B15: BI_NPDI_AR_Typical | C15: 2024 Bill Impacts (Typical Consumption Level) - AR_NPDI | D15: AR-NPDI | E15: AR-NPDI
A16: BI Template_EnergyNPDI | B16: BI_NPDI_AR_Avg | C16: 2024 Bill Impacts (Average Consumption Level) - AR_NPDI | D16: AR-NPDI | E16: AR-NPDI
A17: BI Template_EnergyNPDI | B17: BI_NPDI_AR_High | C17: 2024 Bill Impacts (High Consumption Level) - AR_NPDI | D17: AR-NPDI | E17: AR-NPDI
A18: BI Template_EnergyHCHI | B18: BI_HCHI_AR_Low | C18: 2024 Bill Impacts (Low Consumption Level) - AR_HCHI | D18: AR-HCHI | E18: AR-HCHI
A19: BI Template_EnergyHCHI | B19: BI_HCHI_AR_Typical | C19: 2024 Bill Impacts (Typical Consumption Level) - AR_HCHI | D19: AR-HCHI | E19: AR-HCHI
A20: BI Template_EnergyHCHI | B20: BI_HCHI_AR_Avg | C20: 2024 Bill Impacts (Average Consumption Level) - AR_HCHI | D20: AR-HCHI | E20: AR-HCHI
A21: BI Template_EnergyHCHI | B21: BI_HCHI_AR_High | C21: 2024 Bill Impacts (High Consumption Level) - AR_HCHI | D21: AR-HCHI | E21: AR-HCHI
A22: BI Template_EnergyNPDI | B22: BI_NPDI_AGSe_Low | C22: 2024 Bill Impacts (Low Consumption Level) - AGSe_NPDI | D22: AGSe-NPDI | E22: AGSe-NPDI
A23: BI Template_EnergyNPDI | B23: BI_NPDI_AGSe_Typical | C23: 2024 Bill Impacts (Typical Consumption Level) - AGSe_NPDI | D23: AGSe-NPDI | E23: AGSe-NPDI
A24: BI Template_EnergyNPDI | B24: BI_NPDI_AGSe_Avg | C24: 2024 Bill Impacts (Average Consumption Level) - AGSe_NPDI | D24: AGSe-NPDI | E24: AGSe-NPDI
A25: BI Template_EnergyNPDI | B25: BI_NPDI_AGSe_High | C25: 2024 Bill Impacts (High Consumption Level) - AGSe_NPDI | D25: AGSe-NPDI | E25: AGSe-NPDI
A26: BI Template_EnergyHCHI | B26: BI_HCHI_AGSe_Low | C26: 2024 Bill Impacts (Low Consumption Level) - AGSe_HCHI | D26: AGSe-HCHI | E26: AGSe-HCHI
A27: BI Template_EnergyHCHI | B27: BI_HCHI_AGSe_Typical | C27: 2024 Bill Impacts (Typical Consumption Level) - AGSe_HCHI | D27: AGSe-HCHI | E27: AGSe-HCHI
A28: BI Template_EnergyHCHI | B28: BI_HCHI_AGSe_Avg | C28: 2024 Bill Impacts (Average Consumption Level) - AGSe_HCHI | D28: AGSe-HCHI | E28: AGSe-HCHI
A29: BI Template_EnergyHCHI | B29: BI_HCHI_AGSe_High | C29: 2024 Bill Impacts (High Consumption Level) - AGSe_HCHI | D29: AGSe-HCHI | E29: AGSe-HCHI
A30: BI Template_DemandNPDI | B30: BI_NPDI_AGSd_Low | C30: 2024 Bill Impacts (Low Consumption Level) - AGSd_NPDI | D30: AGSd-NPDI | E30: AGSd-NPDI
A31: BI Template_DemandNPDI | B31: BI_NPDI_AGSd_Avg | C31: 2024 Bill Impacts (Average Consumption Level) - AGSd_NPDI | D31: AGSd-NPDI | E31: AGSd-NPDI
A32: BI Template_DemandNPDI | B32: BI_NPDI_AGSd_High | C32: 2024 Bill Impacts (High Consumption Level) - AGSd_NPDI | D32: AGSd-NPDI | E32: AGSd-NPDI
A33: BI Template_DemandHCHI | B33: BI_HCHI_AGSd_Low | C33: 2024 Bill Impacts (Low Consumption Level) - AGSd_HCHI | D33: AGSd-HCHI | E33: AGSd-HCHI
A34: BI Template_DemandHCHI | B34: BI_HCHI_AGSd_Avg | C34: 2024 Bill Impacts (Average Consumption Level) - AGSd_HCHI | D34: AGSd-HCHI | E34: AGSd-HCHI
A35: BI Template_DemandHCHI | B35: BI_HCHI_AGSd_High | C35: 2024 Bill Impacts (High Consumption Level) - AGSd_HCHI | D35: AGSd-HCHI | E35: AGSd-HCHI
A36: BI Template_EnergyUNM | B36: BI_WHSI_USL_Avg | C36: 2024 Bill Impacts (Average Consumption Level) - USL_WHSI | D36: USL-WHSI | E36: USL-WHSI
A37: BI Template_unmNPDI | B37: BI_NPDI_USL_Avg | C37: 2024 Bill Impacts (Average Consumption Level) - USL_NPDI | D37: USL-NPDI | E37: USL-NPDI
A38: BI Template_unmHCHI | B38: BI_HCHI_USL_Avg | C38: 2024 Bill Impacts (Average Consumption Level) - USL_HCHI | D38: USL-HCHI | E38: USL-HCHI
A39: BI Template_unmWHSI | B39: BI_WHSI_StLgt_Avg | C39: 2024 Bill Impacts (Average Consumption Level) - St Lgt_WHSI | D39: St Lgt-WHSI | E39: St Lgt-WHSI
A40: BI Template_unmNPDI | B40: BI_NPDI_StLgt_Avg | C40: 2024 Bill Impacts (Average Consumption Level) - St Lgt_NPDI | D40: St Lgt-NPDI | E40: St Lgt-NPDI
A41: BI Template_unmHCHI | B41: BI_HCHI_StLgt_Avg | C41: 2024 Bill Impacts (Average Consumption Level) - St Lgt_HCHI | D41: St Lgt-HCHI | E41: St Lgt-HCHI
A42: BI Template_unmNPDI | B42: BI_NPDI_SenLgt_Avg | C42: 2024 Bill Impacts (Average Consumption Level) - Sen Lgt_NPDI | D42: Sen Lgt-NPDI | E42: Sen Lgt-NPDI
A43: BI Template_unmHCHI | B43: BI_HCHI_SenLgt_Avg | C43: 2024 Bill Impacts (Average Consumption Level) - Sen Lgt_HCHI | D43: Sen Lgt-HCHI | E43: Sen Lgt-HCHI
A44: BI Template_Seasonal | B44: BI_Seas_UR_Low | C44: 2024 Bill Impacts (Low Consumption Level) - Seas-UR | D44: Seas-UR | E44: Seas-UR
A45: BI Template_Seasonal | B45: BI_Seas_UR_Avg | C45: 2024 Bill Impacts (Average Consumption Level) - Seas-UR | D45: Seas-UR | E45: Seas-UR
A46: BI Template_Seasonal | B46: BI_Seas_UR_High | C46: 2024 Bill Impacts (High Consumption Level) - Seas-UR | D46: Seas-UR | E46: Seas-UR
A47: BI Template_Seasonal | B47: BI_Seas_R1_Low | C47: 2024 Bill Impacts (Low Consumption Level) - Seas-R1 | D47: Seas-R1 | E47: Seas-R1
A48: BI Template_Seasonal | B48: BI_Seas_R1_Avg | C48: 2024 Bill Impacts (Average Consumption Level) - Seas-R1 | D48: Seas-R1 | E48: Seas-R1
A49: BI Template_Seasonal | B49: BI_Seas_R1_High | C49: 2024 Bill Impacts (High Consumption Level) - Seas-R1 | D49: Seas-R1 | E49: Seas-R1
A50: BI Template_Seasonal | B50: BI_Seas_R2_Low | C50: 2024 Bill Impacts (Low Consumption Level) - Seas-R2 | D50: Seas-R2 | E50: Seas-R2
A51: BI Template_Seasonal | B51: BI_Seas_R2_Avg | C51: 2024 Bill Impacts (Average Consumption Level) - Seas-R2 | D51: Seas-R2 | E51: Seas-R2
A52: BI Template_Seasonal | B52: BI_Seas_R2_High | C52: 2024 Bill Impacts (High Consumption Level) - Seas-R2 | D52: Seas-R2 | E52: Seas-R2

Sheet Bill Impact Summary (hidden)
A1: Rate Class | B1: Consumption Level | C1: Monthly Consumption (kWh) | D1: Monthly Peak (kW) | E1: BI Worksheet | F1: Template | G1: Current Total Bill | H1: Change in DX Bill ($) | I1: Change in DX Bill (%) | J1: Change in Total Bill ($) | K1: Change in Total Bill (%) | L1: Commodity Price Used | O1: List for Data Validation of cell L6; do not remove
A2: UR | B2: Low | C2: =VLOOKUP(A$2,'Data Billing Quantities'!A:P,MATCH(B2&" kWh",'Data Billing Quantities'!$4:$4,0),FALSE) -> 340 | E2: BI_UR_Low | F2: BI Template_Energy | G2: =VLOOKUP(VLOOKUP($F2,'Data BI Summary'!$A:$F,MATCH(G$1,'Data BI Summary'!$2:$2,0),FALSE),INDIRECT("'"&$E2&"'!"&"$A:$K"),4,FALSE) -> 82.8660257 | H2: =VLOOKUP(VLOOKUP($F2,'Data BI Summary'!$A:$F,MATCH(H$1,'Data BI Summary'!$2:$2,0),FALSE),INDIRECT("'"&$E2&"'!"&"$A:$K"),8,FALSE) -> 1.342 | I2: =VLOOKUP(VLOOKUP($F2,'Data BI Summary'!$A:$F,MATCH(I$1,'Data BI Summary'!$2:$2,0),FALSE),INDIRECT("'"&$E2&"'!"&"$A:$K"),9,FALSE) -> 0.03478305946 | J2: =VLOOKUP(VLOOKUP($F2,'Data BI Summary'!$A:$F,MATCH(J$1,'Data BI Summary'!$2:$2,0),FALSE),INDIRECT("'"&$E2&"'!"&"$A:$K"),8,FALSE) -> 1.395851194 | K2: =VLOOKUP(VLOOKUP($F2,'Data BI Summary'!$A:$F,MATCH(K$1,'Data BI Summary'!$2:$2,0),FALSE),INDIRECT("'"&$E2&"'!"&"$A:$K"),9,FALSE) -> 0.01684467407 | L2: TOU
B3: Typical | C3: =VLOOKUP(A$2,'Data Billing Quantities'!A:P,MATCH(B3&" kWh",'Data Billing Quantities'!$4:$4,0),FALSE) -> 750 | E3: BI_UR_Typical | F3: BI Template_Energy | G3: =VLOOKUP(VLOOKUP($F3,'Data BI Summary'!$A:$F,MATCH(G$1,'Data BI Summary'!$2:$2,0),FALSE),INDIRECT("'"&$E3&"'!"&"$A:$K"),4,FALSE) -> 134.5533458 | H3: =VLOOKUP(VLOOKUP($F3,'Data BI Summary'!$A:$F,MATCH(H$1,'Data BI Summary'!$2:$2,0),FALSE),INDIRECT("'"&$E3&"'!"&"$A:$K"),8,FALSE) -> 1.67 | I3: =VLOOKUP(VLOOKUP($F3,'Data BI Summary'!$A:$F,MATCH(I$1,'Data BI Summary'!$2:$2,0),FALSE),INDIRECT("'"&$E3&"'!"&"$A:$K"),9,FALSE) -> 0.04360882622 | J3: =VLOOKUP(VLOOKUP($F3,'Data BI Summary'!$A:$F,MATCH(J$1,'Data BI Summary'!$2:$2,0),FALSE),INDIRECT("'"&$E3&"'!"&"$A:$K"),8,FALSE) -> 1.772015575 | K3: =VLOOKUP(VLOOKUP($F3,'Data BI Summary'!$A:$F,MATCH(K$1,'Data BI Summary'!$2:$2,0),FALSE),INDIRECT("'"&$E3&"'!"&"$A:$K"),9,FALSE) -> 0.01316961362
B4: Average | C4: =VLOOKUP(A$2,'Data Billing Quantities'!A:P,MATCH(B4&" kWh",'Data Billing Quantities'!$4:$4,0),FALSE) -> 690 | E4: BI_UR_Avg | F4: BI Template_Energy | G4: =VLOOKUP(VLOOKUP($F4,'Data BI Summary'!$A:$F,MATCH(G$1,'Data BI Summary'!$2:$2,0),FALSE),INDIRECT("'"&$E4&"'!"&"$A:$K"),4,FALSE) -> 126.9893477 | H4: =VLOOKUP(VLOOKUP($F4,'Data BI Summary'!$A:$F,MATCH(H$1,'Data BI Summary'!$2:$2,0),FALSE),INDIRECT("'"&$E4&"'!"&"$A:$K"),8,FALSE) -> 1.622 | I4: =VLOOKUP(VLOOKUP($F4,'Data BI Summary'!$A:$F,MATCH(I$1,'Data BI Summary'!$2:$2,0),FALSE),INDIRECT("'"&$E4&"'!"&"$A:$K"),9,FALSE) -> 0.04230899653 | J4: =VLOOKUP(VLOOKUP($F4,'Data BI Summary'!$A:$F,MATCH(J$1,'Data BI Summary'!$2:$2,0),FALSE),INDIRECT("'"&$E4&"'!"&"$A:$K"),8,FALSE) -> 1.716967129 | K4: =VLOOKUP(VLOOKUP($F4,'Data BI Summary'!$A:$F,MATCH(K$1,'Data BI Summary'!$2:$2,0),FALSE),INDIRECT("'"&$E4&"'!"&"$A:$K"),9,FALSE) -> 0.01352056026
B5: High | C5: =VLOOKUP(A$2,'Data Billing Quantities'!A:P,MATCH(B5&" kWh",'Data Billing Quantities'!$4:$4,0),FALSE) -> 1260 | E5: BI_UR_High | F5: BI Template_Energy | G5: =VLOOKUP(VLOOKUP($F5,'Data BI Summary'!$A:$F,MATCH(G$1,'Data BI Summary'!$2:$2,0),FALSE),INDIRECT("'"&$E5&"'!"&"$A:$K"),4,FALSE) -> 198.8473293 | H5: =VLOOKUP(VLOOKUP($F5,'Data BI Summary'!$A:$F,MATCH(H$1,'Data BI Summary'!$2:$2,0),FALSE),INDIRECT("'"&$E5&"'!"&"$A:$K"),8,FALSE) -> 2.078 | I5: =VLOOKUP(VLOOKUP($F5,'Data BI Summary'!$A:$F,MATCH(I$1,'Data BI Summary'!$2:$2,0),FALSE),INDIRECT("'"&$E5&"'!"&"$A:$K"),9,FALSE) -> 0.05477357794 | J5: =VLOOKUP(VLOOKUP($F5,'Data BI Summary'!$A:$F,MATCH(J$1,'Data BI Summary'!$2:$2,0),FALSE),INDIRECT("'"&$E5&"'!"&"$A:$K"),8,FALSE) -> 2.239927366 | K5: =VLOOKUP(VLOOKUP($F5,'Data BI Summary'!$A:$F,MATCH(K$1,'Data BI Summary'!$2:$2,0),FALSE),INDIRECT("'"&$E5&"'!"&"$A:$K"),9,FALSE) -> 0.01126455846
A6: R1 (with DRP) | B6: Low | C6: =VLOOKUP("R1",'Data Billing Quantities'!A:P,MATCH(B6&" kWh",'Data Billing Quantities'!$4:$4,0),FALSE) -> 370 | E6: BI_R1_Low (with DRP) | F6: BI Template_Energy | G6: =VLOOKUP(VLOOKUP($F6,'Data BI Summary'!$A:$F,MATCH(G$1,'Data BI Summary'!$2:$2,0),FALSE),INDIRECT("'"&$E6&"'!"&"$A:$K"),4,FALSE) -> 87.35223396 | H6: =VLOOKUP(VLOOKUP($F6,'Data BI Summary'!$A:$F,MATCH(H$1,'Data BI Summary'!$2:$2,0),FALSE),INDIRECT("'"&$E6&"'!"&"$A:$K"),8,FALSE) -> 0.296 | I6: =VLOOKUP(VLOOKUP($F6,'Data BI Summary'!$A:$F,MATCH(I$1,'Data BI Summary'!$2:$2,0),FALSE),INDIRECT("'"&$E6&"'!"&"$A:$K"),9,FALSE) -> 0.007585659004 | J6: =VLOOKUP(VLOOKUP($F6,'Data BI Summary'!$A:$F,MATCH(J$1,'Data BI Summary'!$2:$2,0),FALSE),INDIRECT("'"&$E6&"'!"&"$A:$K"),8,FALSE) -> 0.420836668 | K6: =VLOOKUP(VLOOKUP($F6,'Data BI Summary'!$A:$F,MATCH(K$1,'Data BI Summary'!$2:$2,0),FALSE),INDIRECT("'"&$E6&"'!"&"$A:$K"),9,FALSE) -> 0.00481769783 | L6: TOU (DRP applied) | O6: TOU
B7: Typical | C7: =VLOOKUP("R1",'Data Billing Quantities'!A:P,MATCH(B7&" kWh",'Data Billing Quantities'!$4:$4,0),FALSE) -> 750 | E7: BI_R1_Typical (with DRP) | F7: BI Template_Energy | G7: =VLOOKUP(VLOOKUP($F7,'Data BI Summary'!$A:$F,MATCH(G$1,'Data BI Summary'!$2:$2,0),FALSE),INDIRECT("'"&$E7&"'!"&"$A:$K"),4,FALSE) -> 135.5022229 | H7: =VLOOKUP(VLOOKUP($F7,'Data BI Summary'!$A:$F,MATCH(H$1,'Data BI Summary'!$2:$2,0),FALSE),INDIRECT("'"&$E7&"'!"&"$A:$K"),8,FALSE) -> 0.6 | I7: =VLOOKUP(VLOOKUP($F7,'Data BI Summary'!$A:$F,MATCH(I$1,'Data BI Summary'!$2:$2,0),FALSE),INDIRECT("'"&$E7&"'!"&"$A:$K"),9,FALSE) -> 0.01548187331 | J7: =VLOOKUP(VLOOKUP($F7,'Data BI Summary'!$A:$F,MATCH(J$1,'Data BI Summary'!$2:$2,0),FALSE),INDIRECT("'"&$E7&"'!"&"$A:$K"),8,FALSE) -> 0.8530473 | K7: =VLOOKUP(VLOOKUP($F7,'Data BI Summary'!$A:$F,MATCH(K$1,'Data BI Summary'!$2:$2,0),FALSE),INDIRECT("'"&$E7&"'!"&"$A:$K"),9,FALSE) -> 0.006295448752 | O7: TOU (DRP applied)
B8: Average | C8: =VLOOKUP("R1",'Data Billing Quantities'!A:P,MATCH(B8&" kWh",'Data Billing Quantities'!$4:$4,0),FALSE) -> 784 | E8: BI_R1_Avg (with DRP) | F8: BI Template_Energy | G8: =VLOOKUP(VLOOKUP($F8,'Data BI Summary'!$A:$F,MATCH(G$1,'Data BI Summary'!$2:$2,0),FALSE),INDIRECT("'"&$E8&"'!"&"$A:$K"),4,FALSE) -> 139.8103798 | H8: =VLOOKUP(VLOOKUP($F8,'Data BI Summary'!$A:$F,MATCH(H$1,'Data BI Summary'!$2:$2,0),FALSE),INDIRECT("'"&$E8&"'!"&"$A:$K"),8,FALSE) -> 0.6272 | I8: =VLOOKUP(VLOOKUP($F8,'Data BI Summary'!$A:$F,MATCH(I$1,'Data BI Summary'!$2:$2,0),FALSE),INDIRECT("'"&$E8&"'!"&"$A:$K"),9,FALSE) -> 0.01619366299 | J8: =VLOOKUP(VLOOKUP($F8,'Data BI Summary'!$A:$F,MATCH(J$1,'Data BI Summary'!$2:$2,0),FALSE),INDIRECT("'"&$E8&"'!"&"$A:$K"),8,FALSE) -> 0.8917187776 | K8: =VLOOKUP(VLOOKUP($F8,'Data BI Summary'!$A:$F,MATCH(K$1,'Data BI Summary'!$2:$2,0),FALSE),INDIRECT("'"&$E8&"'!"&"$A:$K"),9,FALSE) -> 0.006378058474
B9: High | C9: =VLOOKUP("R1",'Data Billing Quantities'!A:P,MATCH(B9&" kWh",'Data Billing Quantities'!$4:$4,0),FALSE) -> 1650 | E9: BI_R1_High (with DRP) | F9: BI Template_Energy | G9: =VLOOKUP(VLOOKUP($F9,'Data BI Summary'!$A:$F,MATCH(G$1,'Data BI Summary'!$2:$2,0),FALSE),INDIRECT("'"&$E9&"'!"&"$A:$K"),4,FALSE) -> 249.5416704 | H9: =VLOOKUP(VLOOKUP($F9,'Data BI Summary'!$A:$F,MATCH(H$1,'Data BI Summary'!$2:$2,0),FALSE),INDIRECT("'"&$E9&"'!"&"$A:$K"),8,FALSE) -> 1.32 | I9: =VLOOKUP(VLOOKUP($F9,'Data BI Summary'!$A:$F,MATCH(I$1,'Data BI Summary'!$2:$2,0),FALSE),INDIRECT("'"&$E9&"'!"&"$A:$K"),9,FALSE) -> 0.03462295082 | J9: =VLOOKUP(VLOOKUP($F9,'Data BI Summary'!$A:$F,MATCH(J$1,'Data BI Summary'!$2:$2,0),FALSE),INDIRECT("'"&$E9&"'!"&"$A:$K"),8,FALSE) -> 1.87670406 | K9: =VLOOKUP(VLOOKUP($F9,'Data BI Summary'!$A:$F,MATCH(K$1,'Data BI Summary'!$2:$2,0),FALSE),INDIRECT("'"&$E9&"'!"&"$A:$K"),9,FALSE) -> 0.007520603902
A10: R1 (without DRP) | B10: Low | C10: =VLOOKUP("R1",'Data Billing Quantities'!A:P,MATCH(B10&" kWh",'Data Billing Quantities'!$4:$4,0),FALSE) -> 370 | E10: BI_R1_Low (without DRP) | F10: BI Template_Energy | G10: =VLOOKUP(VLOOKUP($F10,'Data BI Summary'!$A:$F,MATCH(G$1,'Data BI Summary'!$2:$2,0),FALSE),INDIRECT("'"&$E10&"'!"&"$A:$K"),4,FALSE) -> 112.53744 | H10: =VLOOKUP(VLOOKUP($F10,'Data BI Summary'!$A:$F,MATCH(H$1,'Data BI Summary'!$2:$2,0),FALSE),INDIRECT("'"&$E10&"'!"&"$A:$K"),8,FALSE) -> 4.244 | I10: =VLOOKUP(VLOOKUP($F10,'Data BI Summary'!$A:$F,MATCH(I$1,'Data BI Summary'!$2:$2,0),FALSE),INDIRECT("'"&$E10&"'!"&"$A:$K"),9,FALSE) -> 0.06643394956 | J10: =VLOOKUP(VLOOKUP($F10,'Data BI Summary'!$A:$F,MATCH(J$1,'Data BI Summary'!$2:$2,0),FALSE),INDIRECT("'"&$E10&"'!"&"$A:$K"),8,FALSE) -> 4.420160668 | K10: =VLOOKUP(VLOOKUP($F10,'Data BI Summary'!$A:$F,MATCH(K$1,'Data BI Summary'!$2:$2,0),FALSE),INDIRECT("'"&$E10&"'!"&"$A:$K"),9,FALSE) -> 0.03927724559 | L10: TOU | M10: Make sure to zero out DRP credit in individual sheets
B11: Typical | C11: =VLOOKUP("R1",'Data Billing Quantities'!A:P,MATCH(B11&" kWh",'Data Billing Quantities'!$4:$4,0),FALSE) -> 750 | E11: BI_R1_Typical (without DRP) | F11: BI Template_Energy | G11: =VLOOKUP(VLOOKUP($F11,'Data BI Summary'!$A:$F,MATCH(G$1,'Data BI Summary'!$2:$2,0),FALSE),INDIRECT("'"&$E11&"'!"&"$A:$K"),4,FALSE) -> 162.8430929 | H11: =VLOOKUP(VLOOKUP($F11,'Data BI Summary'!$A:$F,MATCH(H$1,'Data BI Summary'!$2:$2,0),FALSE),INDIRECT("'"&$E11&"'!"&"$A:$K"),8,FALSE) -> 2.42 | I11: =VLOOKUP(VLOOKUP($F11,'Data BI Summary'!$A:$F,MATCH(I$1,'Data BI Summary'!$2:$2,0),FALSE),INDIRECT("'"&$E11&"'!"&"$A:$K"),9,FALSE) -> 0.0368088828 | J11: =VLOOKUP(VLOOKUP($F11,'Data BI Summary'!$A:$F,MATCH(J$1,'Data BI Summary'!$2:$2,0),FALSE),INDIRECT("'"&$E11&"'!"&"$A:$K"),8,FALSE) -> 2.6967073 | K11: =VLOOKUP(VLOOKUP($F11,'Data BI Summary'!$A:$F,MATCH(K$1,'Data BI Summary'!$2:$2,0),FALSE),INDIRECT("'"&$E11&"'!"&"$A:$K"),9,FALSE) -> 0.01656015771
B12: Average | C12: =VLOOKUP("R1",'Data Billing Quantities'!A:P,MATCH(B12&" kWh",'Data Billing Quantities'!$4:$4,0),FALSE) -> 784 | E12: BI_R1_Avg (without DRP) | F12: BI Template_Energy | G12: =VLOOKUP(VLOOKUP($F12,'Data BI Summary'!$A:$F,MATCH(G$1,'Data BI Summary'!$2:$2,0),FALSE),INDIRECT("'"&$E12&"'!"&"$A:$K"),4,FALSE) -> 167.344125 | H12: =VLOOKUP(VLOOKUP($F12,'Data BI Summary'!$A:$F,MATCH(H$1,'Data BI Summary'!$2:$2,0),FALSE),INDIRECT("'"&$E12&"'!"&"$A:$K"),8,FALSE) -> 2.2568 | I12: =VLOOKUP(VLOOKUP($F12,'Data BI Summary'!$A:$F,MATCH(I$1,'Data BI Summary'!$2:$2,0),FALSE),INDIRECT("'"&$E12&"'!"&"$A:$K"),9,FALSE) -> 0.03423979997 | J12: =VLOOKUP(VLOOKUP($F12,'Data BI Summary'!$A:$F,MATCH(J$1,'Data BI Summary'!$2:$2,0),FALSE),INDIRECT("'"&$E12&"'!"&"$A:$K"),8,FALSE) -> 2.542503578 | K12: =VLOOKUP(VLOOKUP($F12,'Data BI Summary'!$A:$F,MATCH(K$1,'Data BI Summary'!$2:$2,0),FALSE),INDIRECT("'"&$E12&"'!"&"$A:$K"),9,FALSE) -> 0.01519326464
B13: High | C13: =VLOOKUP("R1",'Data Billing Quantities'!A:P,MATCH(B13&" kWh",'Data Billing Quantities'!$4:$4,0),FALSE) -> 1650 | E13: BI_R1_High (without DRP) | F13: BI Template_Energy | G13: =VLOOKUP(VLOOKUP($F13,'Data BI Summary'!$A:$F,MATCH(G$1,'Data BI Summary'!$2:$2,0),FALSE),INDIRECT("'"&$E13&"'!"&"$A:$K"),4,FALSE) -> 281.9880604 | H13: =VLOOKUP(VLOOKUP($F13,'Data BI Summary'!$A:$F,MATCH(H$1,'Data BI Summary'!$2:$2,0),FALSE),INDIRECT("'"&$E13&"'!"&"$A:$K"),8,FALSE) -> -1.9 | I13: =VLOOKUP(VLOOKUP($F13,'Data BI Summary'!$A:$F,MATCH(I$1,'Data BI Summary'!$2:$2,0),FALSE),INDIRECT("'"&$E13&"'!"&"$A:$K"),9,FALSE) -> -0.02708288789 | J13: =VLOOKUP(VLOOKUP($F13,'Data BI Summary'!$A:$F,MATCH(J$1,'Data BI Summary'!$2:$2,0),FALSE),INDIRECT("'"&$E13&"'!"&"$A:$K"),8,FALSE) -> -1.38515594 | K13: =VLOOKUP(VLOOKUP($F13,'Data BI Summary'!$A:$F,MATCH(K$1,'Data BI Summary'!$2:$2,0),FALSE),INDIRECT("'"&$E13&"'!"&"$A:$K"),9,FALSE) -> -0.004912108471
A14: R2 (with DRP) | B14: Low | C14: =VLOOKUP("R2",'Data Billing Quantities'!A:P,MATCH(B14&" kWh",'Data Billing Quantities'!$4:$4,0),FALSE) -> 440 | E14: BI_R2_Low (with DRP) | F14: BI Template_Energy | G14: =VLOOKUP(VLOOKUP($F14,'Data BI Summary'!$A:$F,MATCH(G$1,'Data BI Summary'!$2:$2,0),FALSE),INDIRECT("'"&$E14&"'!"&"$A:$K"),4,FALSE) -> 96.90898942 | H14: =VLOOKUP(VLOOKUP($F14,'Data BI Summary'!$A:$F,MATCH(H$1,'Data BI Summary'!$2:$2,0),FALSE),INDIRECT("'"&$E14&"'!"&"$A:$K"),8,FALSE) -> 0.396 | I14: =VLOOKUP(VLOOKUP($F14,'Data BI Summary'!$A:$F,MATCH(I$1,'Data BI Summary'!$2:$2,0),FALSE),INDIRECT("'"&$E14&"'!"&"$A:$K"),9,FALSE) -> 0.01022146508 | J14: =VLOOKUP(VLOOKUP($F14,'Data BI Summary'!$A:$F,MATCH(J$1,'Data BI Summary'!$2:$2,0),FALSE),INDIRECT("'"&$E14&"'!"&"$A:$K"),8,FALSE) -> 0.45040006 | K14: =VLOOKUP(VLOOKUP($F14,'Data BI Summary'!$A:$F,MATCH(K$1,'Data BI Summary'!$2:$2,0),FALSE),INDIRECT("'"&$E14&"'!"&"$A:$K"),9,FALSE) -> 0.004647660271 | L14: =L6 -> TOU (DRP applied)
B15: Typical | C15: =VLOOKUP("R2",'Data Billing Quantities'!A:P,MATCH(B15&" kWh",'Data Billing Quantities'!$4:$4,0),FALSE) -> 750 | E15: BI_R2_Typical (with DRP) | F15: BI Template_Energy | G15: =VLOOKUP(VLOOKUP($F15,'Data BI Summary'!$A:$F,MATCH(G$1,'Data BI Summary'!$2:$2,0),FALSE),INDIRECT("'"&$E15&"'!"&"$A:$K"),4,FALSE) -> 136.8374329 | H15: =VLOOKUP(VLOOKUP($F15,'Data BI Summary'!$A:$F,MATCH(H$1,'Data BI Summary'!$2:$2,0),FALSE),INDIRECT("'"&$E15&"'!"&"$A:$K"),8,FALSE) -> 0.675 | I15: =VLOOKUP(VLOOKUP($F15,'Data BI Summary'!$A:$F,MATCH(I$1,'Data BI Summary'!$2:$2,0),FALSE),INDIRECT("'"&$E15&"'!"&"$A:$K"),9,FALSE) -> 0.0175210902 | J15: =VLOOKUP(VLOOKUP($F15,'Data BI Summary'!$A:$F,MATCH(J$1,'Data BI Summary'!$2:$2,0),FALSE),INDIRECT("'"&$E15&"'!"&"$A:$K"),8,FALSE) -> 0.767727375 | K15: =VLOOKUP(VLOOKUP($F15,'Data BI Summary'!$A:$F,MATCH(K$1,'Data BI Summary'!$2:$2,0),FALSE),INDIRECT("'"&$E15&"'!"&"$A:$K"),9,FALSE) -> 0.005610507
B16: Average | C16: =VLOOKUP("R2",'Data Billing Quantities'!A:P,MATCH(B16&" kWh",'Data Billing Quantities'!$4:$4,0),FALSE) -> 978 | E16: BI_R2_Avg (with DRP) | F16: BI Template_Energy | G16: =VLOOKUP(VLOOKUP($F16,'Data BI Summary'!$A:$F,MATCH(G$1,'Data BI Summary'!$2:$2,0),FALSE),INDIRECT("'"&$E16&"'!"&"$A:$K"),4,FALSE) -> 166.204159 | H16: =VLOOKUP(VLOOKUP($F16,'Data BI Summary'!$A:$F,MATCH(H$1,'Data BI Summary'!$2:$2,0),FALSE),INDIRECT("'"&$E16&"'!"&"$A:$K"),8,FALSE) -> 0.8802 | I16: =VLOOKUP(VLOOKUP($F16,'Data BI Summary'!$A:$F,MATCH(I$1,'Data BI Summary'!$2:$2,0),FALSE),INDIRECT("'"&$E16&"'!"&"$A:$K"),9,FALSE) -> 0.02294254719 | J16: =VLOOKUP(VLOOKUP($F16,'Data BI Summary'!$A:$F,MATCH(J$1,'Data BI Summary'!$2:$2,0),FALSE),INDIRECT("'"&$E16&"'!"&"$A:$K"),8,FALSE) -> 1.001116497 | K16: =VLOOKUP(VLOOKUP($F16,'Data BI Summary'!$A:$F,MATCH(K$1,'Data BI Summary'!$2:$2,0),FALSE),INDIRECT("'"&$E16&"'!"&"$A:$K"),9,FALSE) -> 0.006023414233
B17: High | C17: =VLOOKUP("R2",'Data Billing Quantities'!A:P,MATCH(B17&" kWh",'Data Billing Quantities'!$4:$4,0),FALSE) -> 2110 | E17: BI_R2_High (with DRP) | F17: BI Template_Energy | G17: =VLOOKUP(VLOOKUP($F17,'Data BI Summary'!$A:$F,MATCH(G$1,'Data BI Summary'!$2:$2,0),FALSE),INDIRECT("'"&$E17&"'!"&"$A:$K"),4,FALSE) -> 312.0073784 | H17: =VLOOKUP(VLOOKUP($F17,'Data BI Summary'!$A:$F,MATCH(H$1,'Data BI Summary'!$2:$2,0),FALSE),INDIRECT("'"&$E17&"'!"&"$A:$K"),8,FALSE) -> 1.899 | I17: =VLOOKUP(VLOOKUP($F17,'Data BI Summary'!$A:$F,MATCH(I$1,'Data BI Summary'!$2:$2,0),FALSE),INDIRECT("'"&$E17&"'!"&"$A:$K"),9,FALSE) -> 0.05054161233 | J17: =VLOOKUP(VLOOKUP($F17,'Data BI Summary'!$A:$F,MATCH(J$1,'Data BI Summary'!$2:$2,0),FALSE),INDIRECT("'"&$E17&"'!"&"$A:$K"),8,FALSE) -> 2.159873015 | K17: =VLOOKUP(VLOOKUP($F17,'Data BI Summary'!$A:$F,MATCH(K$1,'Data BI Summary'!$2:$2,0),FALSE),INDIRECT("'"&$E17&"'!"&"$A:$K"),9,FALSE) -> 0.006922506212
A18: R2 (without DRP) | B18: Low | C18: =VLOOKUP("R2",'Data Billing Quantities'!A:P,MATCH(B18&" kWh",'Data Billing Quantities'!$4:$4,0),FALSE) -> 440 | E18: BI_R2_Low (without DRP) | F18: BI Template_Energy | G18: =VLOOKUP(VLOOKUP($F18,'Data BI Summary'!$A:$F,MATCH(G$1,'Data BI Summary'!$2:$2,0),FALSE),INDIRECT("'"&$E18&"'!"&"$A:$K"),4,FALSE) -> 134.2704554 | H18: =VLOOKUP(VLOOKUP($F18,'Data BI Summary'!$A:$F,MATCH(H$1,'Data BI Summary'!$2:$2,0),FALSE),INDIRECT("'"&$E18&"'!"&"$A:$K"),8,FALSE) -> 7.658 | I18: =VLOOKUP(VLOOKUP($F18,'Data BI Summary'!$A:$F,MATCH(I$1,'Data BI Summary'!$2:$2,0),FALSE),INDIRECT("'"&$E18&"'!"&"$A:$K"),9,FALSE) -> 0.1012641489 | J18: =VLOOKUP(VLOOKUP($F18,'Data BI Summary'!$A:$F,MATCH(J$1,'Data BI Summary'!$2:$2,0),FALSE),INDIRECT("'"&$E18&"'!"&"$A:$K"),8,FALSE) -> 7.80680606 | K18: =VLOOKUP(VLOOKUP($F18,'Data BI Summary'!$A:$F,MATCH(K$1,'Data BI Summary'!$2:$2,0),FALSE),INDIRECT("'"&$E18&"'!"&"$A:$K"),9,FALSE) -> 0.05814239652 | L18: =L10 -> TOU | M18: Make sure to zero out DRP credit in individual sheets
B19: Typical | C19: =VLOOKUP("R2",'Data Billing Quantities'!A:P,MATCH(B19&" kWh",'Data Billing Quantities'!$4:$4,0),FALSE) -> 750 | E19: BI_R2_Typical (without DRP) | F19: BI Template_Energy | G19: =VLOOKUP(VLOOKUP($F19,'Data BI Summary'!$A:$F,MATCH(G$1,'Data BI Summary'!$2:$2,0),FALSE),INDIRECT("'"&$E19&"'!"&"$A:$K"),4,FALSE) -> 180.4166929 | H19: =VLOOKUP(VLOOKUP($F19,'Data BI Summary'!$A:$F,MATCH(H$1,'Data BI Summary'!$2:$2,0),FALSE),INDIRECT("'"&$E19&"'!"&"$A:$K"),8,FALSE) -> 5.705 | I19: =VLOOKUP(VLOOKUP($F19,'Data BI Summary'!$A:$F,MATCH(I$1,'Data BI Summary'!$2:$2,0),FALSE),INDIRECT("'"&$E19&"'!"&"$A:$K"),9,FALSE) -> 0.06996137102 | J19: =VLOOKUP(VLOOKUP($F19,'Data BI Summary'!$A:$F,MATCH(J$1,'Data BI Summary'!$2:$2,0),FALSE),INDIRECT("'"&$E19&"'!"&"$A:$K"),8,FALSE) -> 5.863117375 | K19: =VLOOKUP(VLOOKUP($F19,'Data BI Summary'!$A:$F,MATCH(K$1,'Data BI Summary'!$2:$2,0),FALSE),INDIRECT("'"&$E19&"'!"&"$A:$K"),9,FALSE) -> 0.03249764355
B20: Average | C20: =VLOOKUP("R2",'Data Billing Quantities'!A:P,MATCH(B20&" kWh",'Data Billing Quantities'!$4:$4,0),FALSE) -> 978 | E20: BI_R2_Avg (without DRP) | F20: BI Template_Energy | G20: =VLOOKUP(VLOOKUP($F20,'Data BI Summary'!$A:$F,MATCH(G$1,'Data BI Summary'!$2:$2,0),FALSE),INDIRECT("'"&$E20&"'!"&"$A:$K"),4,FALSE) -> 214.3565062 | H20: =VLOOKUP(VLOOKUP($F20,'Data BI Summary'!$A:$F,MATCH(H$1,'Data BI Summary'!$2:$2,0),FALSE),INDIRECT("'"&$E20&"'!"&"$A:$K"),8,FALSE) -> 4.2686 | I20: =VLOOKUP(VLOOKUP($F20,'Data BI Summary'!$A:$F,MATCH(I$1,'Data BI Summary'!$2:$2,0),FALSE),INDIRECT("'"&$E20&"'!"&"$A:$K"),9,FALSE) -> 0.04969278159 | J20: =VLOOKUP(VLOOKUP($F20,'Data BI Summary'!$A:$F,MATCH(J$1,'Data BI Summary'!$2:$2,0),FALSE),INDIRECT("'"&$E20&"'!"&"$A:$K"),8,FALSE) -> 4.433565697 | K20: =VLOOKUP(VLOOKUP($F20,'Data BI Summary'!$A:$F,MATCH(K$1,'Data BI Summary'!$2:$2,0),FALSE),INDIRECT("'"&$E20&"'!"&"$A:$K"),9,FALSE) -> 0.02068314032
B21: High | C21: =VLOOKUP("R2",'Data Billing Quantities'!A:P,MATCH(B21&" kWh",'Data Billing Quantities'!$4:$4,0),FALSE) -> 2110 | E21: BI_R2_High (without DRP) | F21: BI Template_Energy | G21: =VLOOKUP(VLOOKUP($F21,'Data BI Summary'!$A:$F,MATCH(G$1,'Data BI Summary'!$2:$2,0),FALSE),INDIRECT("'"&$E21&"'!"&"$A:$K"),4,FALSE) -> 382.8647024 | H21: =VLOOKUP(VLOOKUP($F21,'Data BI Summary'!$A:$F,MATCH(H$1,'Data BI Summary'!$2:$2,0),FALSE),INDIRECT("'"&$E21&"'!"&"$A:$K"),8,FALSE) -> -2.863 | I21: =VLOOKUP(VLOOKUP($F21,'Data BI Summary'!$A:$F,MATCH(I$1,'Data BI Summary'!$2:$2,0),FALSE),INDIRECT("'"&$E21&"'!"&"$A:$K"),9,FALSE) -> -0.02662735652 | J21: =VLOOKUP(VLOOKUP($F21,'Data BI Summary'!$A:$F,MATCH(J$1,'Data BI Summary'!$2:$2,0),FALSE),INDIRECT("'"&$E21&"'!"&"$A:$K"),8,FALSE) -> -2.664032985 | K21: =VLOOKUP(VLOOKUP($F21,'Data BI Summary'!$A:$F,MATCH(K$1,'Data BI Summary'!$2:$2,0),FALSE),INDIRECT("'"&$E21&"'!"&"$A:$K"),9,FALSE) -> -0.006958157722
A22: Seasonal-UR | B22: Low | C22: =VLOOKUP("Seasonal",'Data Billing Quantities'!A:P,MATCH(B22&" kWh",'Data Billing Quantities'!$4:$4,0),FALSE) -> 40 | E22: BI_Seas_UR_Low | F22: BI Template_Seasonal | G22: =VLOOKUP(VLOOKUP($F22,'Data BI Summary'!$A:$F,MATCH(G$1,'Data BI Summary'!$2:$2,0),FALSE),INDIRECT("'"&$E22&"'!"&"$A:$K"),4,FALSE) -> 46.01851538 | H22: =VLOOKUP(VLOOKUP($F22,'Data BI Summary'!$A:$F,MATCH(H$1,'Data BI Summary'!$2:$2,0),FALSE),INDIRECT("'"&$E22&"'!"&"$A:$K"),8,FALSE) -> 0.142 | I22: =VLOOKUP(VLOOKUP($F22,'Data BI Summary'!$A:$F,MATCH(I$1,'Data BI Summary'!$2:$2,0),FALSE),INDIRECT("'"&$E22&"'!"&"$A:$K"),9,FALSE) -> 0.003572147313 | J22: =VLOOKUP(VLOOKUP($F22,'Data BI Summary'!$A:$F,MATCH(J$1,'Data BI Summary'!$2:$2,0),FALSE),INDIRECT("'"&$E22&"'!"&"$A:$K"),8,FALSE) -> 0.148128964 | K22: =VLOOKUP(VLOOKUP($F22,'Data BI Summary'!$A:$F,MATCH(K$1,'Data BI Summary'!$2:$2,0),FALSE),INDIRECT("'"&$E22&"'!"&"$A:$K"),9,FALSE) -> 0.003218899236 | L22: TOU
B23: Average | C23: =VLOOKUP("Seasonal",'Data Billing Quantities'!A:P,MATCH(B23&" kWh",'Data Billing Quantities'!$4:$4,0),FALSE) -> 369 | E23: BI_Seas_UR_Avg | F23: BI Template_Seasonal | G23: =VLOOKUP(VLOOKUP($F23,'Data BI Summary'!$A:$F,MATCH(G$1,'Data BI Summary'!$2:$2,0),FALSE),INDIRECT("'"&$E23&"'!"&"$A:$K"),4,FALSE) -> 87.49443809 | H23: =VLOOKUP(VLOOKUP($F23,'Data BI Summary'!$A:$F,MATCH(H$1,'Data BI Summary'!$2:$2,0),FALSE),INDIRECT("'"&$E23&"'!"&"$A:$K"),8,FALSE) -> 0.4052 | I23: =VLOOKUP(VLOOKUP($F23,'Data BI Summary'!$A:$F,MATCH(I$1,'Data BI Summary'!$2:$2,0),FALSE),INDIRECT("'"&$E23&"'!"&"$A:$K"),9,FALSE) -> 0.01025259541 | J23: =VLOOKUP(VLOOKUP($F23,'Data BI Summary'!$A:$F,MATCH(J$1,'Data BI Summary'!$2:$2,0),FALSE),INDIRECT("'"&$E23&"'!"&"$A:$K"),8,FALSE) -> 0.4499779429 | K23: =VLOOKUP(VLOOKUP($F23,'Data BI Summary'!$A:$F,MATCH(K$1,'Data BI Summary'!$2:$2,0),FALSE),INDIRECT("'"&$E23&"'!"&"$A:$K"),9,FALSE) -> 0.00514293197
B24: High | C24: =VLOOKUP("Seasonal",'Data Billing Quantities'!A:P,MATCH(B24&" kWh",'Data Billing Quantities'!$4:$4,0),FALSE) -> 1040 | E24: BI_Seas_UR_High | F24: BI Template_Seasonal | G24: =VLOOKUP(VLOOKUP($F24,'Data BI Summary'!$A:$F,MATCH(G$1,'Data BI Summary'!$2:$2,0),FALSE),INDIRECT("'"&$E24&"'!"&"$A:$K"),4,FALSE) -> 172.0851498 | H24: =VLOOKUP(VLOOKUP($F24,'Data BI Summary'!$A:$F,MATCH(H$1,'Data BI Summary'!$2:$2,0),FALSE),INDIRECT("'"&$E24&"'!"&"$A:$K"),8,FALSE) -> 0.942 | I24: =VLOOKUP(VLOOKUP($F24,'Data BI Summary'!$A:$F,MATCH(I$1,'Data BI Summary'!$2:$2,0),FALSE),INDIRECT("'"&$E24&"'!"&"$A:$K"),9,FALSE) -> 0.02412168391 | J24: =VLOOKUP(VLOOKUP($F24,'Data BI Summary'!$A:$F,MATCH(J$1,'Data BI Summary'!$2:$2,0),FALSE),INDIRECT("'"&$E24&"'!"&"$A:$K"),8,FALSE) -> 1.065603064 | K24: =VLOOKUP(VLOOKUP($F24,'Data BI Summary'!$A:$F,MATCH(K$1,'Data BI Summary'!$2:$2,0),FALSE),INDIRECT("'"&$E24&"'!"&"$A:$K"),9,FALSE) -> 0.00619230111
A25: Seasonal-R1 | B25: Low | C25: =VLOOKUP("Seasonal",'Data Billing Quantities'!A:P,MATCH(B25&" kWh",'Data Billing Quantities'!$4:$4,0),FALSE) -> 40 | E25: BI_Seas_R1_Low | F25: BI Template_Seasonal | G25: =VLOOKUP(VLOOKUP($F25,'Data BI Summary'!$A:$F,MATCH(G$1,'Data BI Summary'!$2:$2,0),FALSE),INDIRECT("'"&$E25&"'!"&"$A:$K"),4,FALSE) -> 69.08394189 | H25: =VLOOKUP(VLOOKUP($F25,'Data BI Summary'!$A:$F,MATCH(H$1,'Data BI Summary'!$2:$2,0),FALSE),INDIRECT("'"&$E25&"'!"&"$A:$K"),8,FALSE) -> 5.598 | I25: =VLOOKUP(VLOOKUP($F25,'Data BI Summary'!$A:$F,MATCH(I$1,'Data BI Summary'!$2:$2,0),FALSE),INDIRECT("'"&$E25&"'!"&"$A:$K"),9,FALSE) -> 0.08957373272 | J25: =VLOOKUP(VLOOKUP($F25,'Data BI Summary'!$A:$F,MATCH(J$1,'Data BI Summary'!$2:$2,0),FALSE),INDIRECT("'"&$E25&"'!"&"$A:$K"),8,FALSE) -> 5.683853856 | K25: =VLOOKUP(VLOOKUP($F25,'Data BI Summary'!$A:$F,MATCH(K$1,'Data BI Summary'!$2:$2,0),FALSE),INDIRECT("'"&$E25&"'!"&"$A:$K"),9,FALSE) -> 0.08227460247 | L25: TOU
B26: Average | C26: =VLOOKUP("Seasonal",'Data Billing Quantities'!A:P,MATCH(B26&" kWh",'Data Billing Quantities'!$4:$4,0),FALSE) -> 369 | E26: BI_Seas_R1_Avg | F26: BI Template_Seasonal | G26: =VLOOKUP(VLOOKUP($F26,'Data BI Summary'!$A:$F,MATCH(G$1,'Data BI Summary'!$2:$2,0),FALSE),INDIRECT("'"&$E26&"'!"&"$A:$K"),4,FALSE) -> 112.6380467 | H26: =VLOOKUP(VLOOKUP($F26,'Data BI Summary'!$A:$F,MATCH(H$1,'Data BI Summary'!$2:$2,0),FALSE),INDIRECT("'"&$E26&"'!"&"$A:$K"),8,FALSE) -> 4.0188 | I26: =VLOOKUP(VLOOKUP($F26,'Data BI Summary'!$A:$F,MATCH(I$1,'Data BI Summary'!$2:$2,0),FALSE),INDIRECT("'"&$E26&"'!"&"$A:$K"),9,FALSE) -> 0.06268786628 | J26: =VLOOKUP(VLOOKUP($F26,'Data BI Summary'!$A:$F,MATCH(J$1,'Data BI Summary'!$2:$2,0),FALSE),INDIRECT("'"&$E26&"'!"&"$A:$K"),8,FALSE) -> 4.191706072 | K26: =VLOOKUP(VLOOKUP($F26,'Data BI Summary'!$A:$F,MATCH(K$1,'Data BI Summary'!$2:$2,0),FALSE),INDIRECT("'"&$E26&"'!"&"$A:$K"),9,FALSE) -> 0.03721394498
B27: High | C27: =VLOOKUP("Seasonal",'Data Billing Quantities'!A:P,MATCH(B27&" kWh",'Data Billing Quantities'!$4:$4,0),FALSE) -> 1040 | E27: BI_Seas_R1_High | F27: BI Template_Seasonal | G27: =VLOOKUP(VLOOKUP($F27,'Data BI Summary'!$A:$F,MATCH(G$1,'Data BI Summary'!$2:$2,0),FALSE),INDIRECT("'"&$E27&"'!"&"$A:$K"),4,FALSE) -> 201.4672391 | H27: =VLOOKUP(VLOOKUP($F27,'Data BI Summary'!$A:$F,MATCH(H$1,'Data BI Summary'!$2:$2,0),FALSE),INDIRECT("'"&$E27&"'!"&"$A:$K"),8,FALSE) -> 0.798 | I27: =VLOOKUP(VLOOKUP($F27,'Data BI Summary'!$A:$F,MATCH(I$1,'Data BI Summary'!$2:$2,0),FALSE),INDIRECT("'"&$E27&"'!"&"$A:$K"),9,FALSE) -> 0.01184046531 | J27: =VLOOKUP(VLOOKUP($F27,'Data BI Summary'!$A:$F,MATCH(J$1,'Data BI Summary'!$2:$2,0),FALSE),INDIRECT("'"&$E27&"'!"&"$A:$K"),8,FALSE) -> 1.148450256 | K27: =VLOOKUP(VLOOKUP($F27,'Data BI Summary'!$A:$F,MATCH(K$1,'Data BI Summary'!$2:$2,0),FALSE),INDIRECT("'"&$E27&"'!"&"$A:$K"),9,FALSE) -> 0.005700431798
A28: Seasonal-R2 | B28: Low | C28: =VLOOKUP("Seasonal",'Data Billing Quantities'!A:P,MATCH(B28&" kWh",'Data Billing Quantities'!$4:$4,0),FALSE) -> 40 | E28: BI_Seas_R2_Low | F28: BI Template_Seasonal | G28: =VLOOKUP(VLOOKUP($F28,'Data BI Summary'!$A:$F,MATCH(G$1,'Data BI Summary'!$2:$2,0),FALSE),INDIRECT("'"&$E28&"'!"&"$A:$K"),4,FALSE) -> 74.64588322 | H28: =VLOOKUP(VLOOKUP($F28,'Data BI Summary'!$A:$F,MATCH(H$1,'Data BI Summary'!$2:$2,0),FALSE),INDIRECT("'"&$E28&"'!"&"$A:$K"),8,FALSE) -> 6.048 | I28: =VLOOKUP(VLOOKUP($F28,'Data BI Summary'!$A:$F,MATCH(I$1,'Data BI Summary'!$2:$2,0),FALSE),INDIRECT("'"&$E28&"'!"&"$A:$K"),9,FALSE) -> 0.089066918 | J28: =VLOOKUP(VLOOKUP($F28,'Data BI Summary'!$A:$F,MATCH(J$1,'Data BI Summary'!$2:$2,0),FALSE),INDIRECT("'"&$E28&"'!"&"$A:$K"),8,FALSE) -> 6.13110146 | K28: =VLOOKUP(VLOOKUP($F28,'Data BI Summary'!$A:$F,MATCH(K$1,'Data BI Summary'!$2:$2,0),FALSE),INDIRECT("'"&$E28&"'!"&"$A:$K"),9,FALSE) -> 0.08213582847 | L28: TOU
B29: Average | C29: =VLOOKUP("Seasonal",'Data Billing Quantities'!A:P,MATCH(B29&" kWh",'Data Billing Quantities'!$4:$4,0),FALSE) -> 369 | E29: BI_Seas_R2_Avg | F29: BI Template_Seasonal | G29: =VLOOKUP(VLOOKUP($F29,'Data BI Summary'!$A:$F,MATCH(G$1,'Data BI Summary'!$2:$2,0),FALSE),INDIRECT("'"&$E29&"'!"&"$A:$K"),4,FALSE) -> 123.6204385 | H29: =VLOOKUP(VLOOKUP($F29,'Data BI Summary'!$A:$F,MATCH(H$1,'Data BI Summary'!$2:$2,0),FALSE),INDIRECT("'"&$E29&"'!"&"$A:$K"),8,FALSE) -> 3.9753 | I29: =VLOOKUP(VLOOKUP($F29,'Data BI Summary'!$A:$F,MATCH(I$1,'Data BI Summary'!$2:$2,0),FALSE),INDIRECT("'"&$E29&"'!"&"$A:$K"),9,FALSE) -> 0.05358420982 | J29: =VLOOKUP(VLOOKUP($F29,'Data BI Summary'!$A:$F,MATCH(J$1,'Data BI Summary'!$2:$2,0),FALSE),INDIRECT("'"&$E29&"'!"&"$A:$K"),8,FALSE) -> 4.068283468 | K29: =VLOOKUP(VLOOKUP($F29,'Data BI Summary'!$A:$F,MATCH(K$1,'Data BI Summary'!$2:$2,0),FALSE),INDIRECT("'"&$E29&"'!"&"$A:$K"),9,FALSE) -> 0.03290947289
B30: High | C30: =VLOOKUP("Seasonal",'Data Billing Quantities'!A:P,MATCH(B30&" kWh",'Data Billing Quantities'!$4:$4,0),FALSE) -> 1040 | E30: BI_Seas_R2_High | F30: BI Template_Seasonal | G30: =VLOOKUP(VLOOKUP($F30,'Data BI Summary'!$A:$F,MATCH(G$1,'Data BI Summary'!$2:$2,0),FALSE),INDIRECT("'"&$E30&"'!"&"$A:$K"),4,FALSE) -> 223.5047137 | H30: =VLOOKUP(VLOOKUP($F30,'Data BI Summary'!$A:$F,MATCH(H$1,'Data BI Summary'!$2:$2,0),FALSE),INDIRECT("'"&$E30&"'!"&"$A:$K"),8,FALSE) -> -0.252 | I30: =VLOOKUP(VLOOKUP($F30,'Data BI Summary'!$A:$F,MATCH(I$1,'Data BI Summary'!$2:$2,0),FALSE),INDIRECT("'"&$E30&"'!"&"$A:$K"),9,FALSE) -> -0.002896418555 | J30: =VLOOKUP(VLOOKUP($F30,'Data BI Summary'!$A:$F,MATCH(J$1,'Data BI Summary'!$2:$2,0),FALSE),INDIRECT("'"&$E30&"'!"&"$A:$K"),8,FALSE) -> -0.13886204 | K30: =VLOOKUP(VLOOKUP($F30,'Data BI Summary'!$A:$F,MATCH(K$1,'Data BI Summary'!$2:$2,0),FALSE),INDIRECT("'"&$E30&"'!"&"$A:$K"),9,FALSE) -> -0.0006212935633
A31: GSe | B31: Low | C31: =VLOOKUP(A$31,'Data Billing Quantities'!A:P,MATCH(B31&" kWh",'Data Billing Quantities'!$4:$4,0),FALSE) -> 60 | E31: BI_GSe_Low | F31: BI Template_Energy | G31: =VLOOKUP(VLOOKUP($F31,'Data BI Summary'!$A:$F,MATCH(G$1,'Data BI Summary'!$2:$2,0),FALSE),INDIRECT("'"&$E31&"'!"&"$A:$K"),4,FALSE) -> 46.81800739 | H31: =VLOOKUP(VLOOKUP($F31,'Data BI Summary'!$A:$F,MATCH(H$1,'Data BI Summary'!$2:$2,0),FALSE),INDIRECT("'"&$E31&"'!"&"$A:$K"),8,FALSE) -> -0.912 | I31: =VLOOKUP(VLOOKUP($F31,'Data BI Summary'!$A:$F,MATCH(I$1,'Data BI Summary'!$2:$2,0),FALSE),INDIRECT("'"&$E31&"'!"&"$A:$K"),9,FALSE) -> -0.0239432922 | J31: =VLOOKUP(VLOOKUP($F31,'Data BI Summary'!$A:$F,MATCH(J$1,'Data BI Summary'!$2:$2,0),FALSE),INDIRECT("'"&$E31&"'!"&"$A:$K"),8,FALSE) -> -0.903871536 | K31: =VLOOKUP(VLOOKUP($F31,'Data BI Summary'!$A:$F,MATCH(K$1,'Data BI Summary'!$2:$2,0),FALSE),INDIRECT("'"&$E31&"'!"&"$A:$K"),9,FALSE) -> -0.0193060659 | L31: TOU
B32: Typical | C32: =VLOOKUP(A$31,'Data Billing Quantities'!A:P,MATCH(B32&" kWh",'Data Billing Quantities'!$4:$4,0),FALSE) -> 2000 | E32: BI_GSe_Typical | F32: BI Template_Energy | G32: =VLOOKUP(VLOOKUP($F32,'Data BI Summary'!$A:$F,MATCH(G$1,'Data BI Summary'!$2:$2,0),FALSE),INDIRECT("'"&$E32&"'!"&"$A:$K"),4,FALSE) -> 428.6335264 | H32: =VLOOKUP(VLOOKUP($F32,'Data BI Summary'!$A:$F,MATCH(H$1,'Data BI Summary'!$2:$2,0),FALSE),INDIRECT("'"&$E32&"'!"&"$A:$K"),8,FALSE) -> 5.49 | I32: =VLOOKUP(VLOOKUP($F32,'Data BI Summary'!$A:$F,MATCH(I$1,'Data BI Summary'!$2:$2,0),FALSE),INDIRECT("'"&$E32&"'!"&"$A:$K"),9,FALSE) -> 0.03157168325 | J32: =VLOOKUP(VLOOKUP($F32,'Data BI Summary'!$A:$F,MATCH(J$1,'Data BI Summary'!$2:$2,0),FALSE),INDIRECT("'"&$E32&"'!"&"$A:$K"),8,FALSE) -> 6.2275188 | K32: =VLOOKUP(VLOOKUP($F32,'Data BI Summary'!$A:$F,MATCH(K$1,'Data BI Summary'!$2:$2,0),FALSE),INDIRECT("'"&$E32&"'!"&"$A:$K"),9,FALSE) -> 0.01452877205
B33: Average | C33: =VLOOKUP(A$31,'Data Billing Quantities'!A:P,MATCH(B33&" kWh",'Data Billing Quantities'!$4:$4,0),FALSE) -> 1887 | E33: BI_GSe_Avg | F33: BI Template_Energy | G33: =VLOOKUP(VLOOKUP($F33,'Data BI Summary'!$A:$F,MATCH(G$1,'Data BI Summary'!$2:$2,0),FALSE),INDIRECT("'"&$E33&"'!"&"$A:$K"),4,FALSE) -> 406.3937565 | H33: =VLOOKUP(VLOOKUP($F33,'Data BI Summary'!$A:$F,MATCH(H$1,'Data BI Summary'!$2:$2,0),FALSE),INDIRECT("'"&$E33&"'!"&"$A:$K"),8,FALSE) -> 5.1171 | I33: =VLOOKUP(VLOOKUP($F33,'Data BI Summary'!$A:$F,MATCH(I$1,'Data BI Summary'!$2:$2,0),FALSE),INDIRECT("'"&$E33&"'!"&"$A:$K"),9,FALSE) -> 0.03082961803 | J33: =VLOOKUP(VLOOKUP($F33,'Data BI Summary'!$A:$F,MATCH(J$1,'Data BI Summary'!$2:$2,0),FALSE),INDIRECT("'"&$E33&"'!"&"$A:$K"),8,FALSE) -> 5.812133693 | K33: =VLOOKUP(VLOOKUP($F33,'Data BI Summary'!$A:$F,MATCH(K$1,'Data BI Summary'!$2:$2,0),FALSE),INDIRECT("'"&$E33&"'!"&"$A:$K"),9,FALSE) -> 0.01430172979
B34: High | C34: =VLOOKUP(A$31,'Data Billing Quantities'!A:P,MATCH(B34&" kWh",'Data Billing Quantities'!$4:$4,0),FALSE) -> 5570 | E34: BI_GSe_High | F34: BI Template_Energy | G34: =VLOOKUP(VLOOKUP($F34,'Data BI Summary'!$A:$F,MATCH(G$1,'Data BI Summary'!$2:$2,0),FALSE),INDIRECT("'"&$E34&"'!"&"$A:$K"),4,FALSE) -> 1131.252806 | H34: =VLOOKUP(VLOOKUP($F34,'Data BI Summary'!$A:$F,MATCH(H$1,'Data BI Summary'!$2:$2,0),FALSE),INDIRECT("'"&$E34&"'!"&"$A:$K"),8,FALSE) -> 17.271 | I34: =VLOOKUP(VLOOKUP($F34,'Data BI Summary'!$A:$F,MATCH(I$1,'Data BI Summary'!$2:$2,0),FALSE),INDIRECT("'"&$E34&"'!"&"$A:$K"),9,FALSE) -> 0.04075367517 | J34: =VLOOKUP(VLOOKUP($F34,'Data BI Summary'!$A:$F,MATCH(J$1,'Data BI Summary'!$2:$2,0),FALSE),INDIRECT("'"&$E34&"'!"&"$A:$K"),8,FALSE) -> 19.35074741 | K34: =VLOOKUP(VLOOKUP($F34,'Data BI Summary'!$A:$F,MATCH(K$1,'Data BI Summary'!$2:$2,0),FALSE),INDIRECT("'"&$E34&"'!"&"$A:$K"),9,FALSE) -> 0.01710559064
A35: UGe | B35: Low | C35: =VLOOKUP(A$35,'Data Billing Quantities'!A:P,MATCH(B35&" kWh",'Data Billing Quantities'!$4:$4,0),FALSE) -> 180 | E35: BI_UGe_Low | F35: BI Template_Energy | G35: =VLOOKUP(VLOOKUP($F35,'Data BI Summary'!$A:$F,MATCH(G$1,'Data BI Summary'!$2:$2,0),FALSE),INDIRECT("'"&$E35&"'!"&"$A:$K"),4,FALSE) -> 55.65185363 | H35: =VLOOKUP(VLOOKUP($F35,'Data BI Summary'!$A:$F,MATCH(H$1,'Data BI Summary'!$2:$2,0),FALSE),INDIRECT("'"&$E35&"'!"&"$A:$K"),8,FALSE) -> -0.36 | I35: =VLOOKUP(VLOOKUP($F35,'Data BI Summary'!$A:$F,MATCH(I$1,'Data BI Summary'!$2:$2,0),FALSE),INDIRECT("'"&$E35&"'!"&"$A:$K"),9,FALSE) -> -0.01114689126 | J35: =VLOOKUP(VLOOKUP($F35,'Data BI Summary'!$A:$F,MATCH(J$1,'Data BI Summary'!$2:$2,0),FALSE),INDIRECT("'"&$E35&"'!"&"$A:$K"),8,FALSE) -> -0.306312966 | K35: =VLOOKUP(VLOOKUP($F35,'Data BI Summary'!$A:$F,MATCH(K$1,'Data BI Summary'!$2:$2,0),FALSE),INDIRECT("'"&$E35&"'!"&"$A:$K"),9,FALSE) -> -0.005504092784 | L35: TOU
B36: Typical | C36: =VLOOKUP(A$35,'Data Billing Quantities'!A:P,MATCH(B36&" kWh",'Data Billing Quantities'!$4:$4,0),FALSE) -> 2000 | E36: BI_UGe_Typical | F36: BI Template_Energy | G36: =VLOOKUP(VLOOKUP($F36,'Data BI Summary'!$A:$F,MATCH(G$1,'Data BI Summary'!$2:$2,0),FALSE),INDIRECT("'"&$E36&"'!"&"$A:$K"),4,FALSE) -> 341.9073548 | H36: =VLOOKUP(VLOOKUP($F36,'Data BI Summary'!$A:$F,MATCH(H$1,'Data BI Summary'!$2:$2,0),FALSE),INDIRECT("'"&$E36&"'!"&"$A:$K"),8,FALSE) -> 4.19 | I36: =VLOOKUP(VLOOKUP($F36,'Data BI Summary'!$A:$F,MATCH(I$1,'Data BI Summary'!$2:$2,0),FALSE),INDIRECT("'"&$E36&"'!"&"$A:$K"),9,FALSE) -> 0.04518981881 | J36: =VLOOKUP(VLOOKUP($F36,'Data BI Summary'!$A:$F,MATCH(J$1,'Data BI Summary'!$2:$2,0),FALSE),INDIRECT("'"&$E36&"'!"&"$A:$K"),8,FALSE) -> 4.8929926 | K36: =VLOOKUP(VLOOKUP($F36,'Data BI Summary'!$A:$F,MATCH(K$1,'Data BI Summary'!$2:$2,0),FALSE),INDIRECT("'"&$E36&"'!"&"$A:$K"),9,FALSE) -> 0.01431087261
B37: Average | C37: =VLOOKUP(A$35,'Data Billing Quantities'!A:P,MATCH(B37&" kWh",'Data Billing Quantities'!$4:$4,0),FALSE) -> 2494 | E37: BI_UGe_Avg | F37: BI Template_Energy | G37: =VLOOKUP(VLOOKUP($F37,'Data BI Summary'!$A:$F,MATCH(G$1,'Data BI Summary'!$2:$2,0),FALSE),INDIRECT("'"&$E37&"'!"&"$A:$K"),4,FALSE) -> 419.6052765 | H37: =VLOOKUP(VLOOKUP($F37,'Data BI Summary'!$A:$F,MATCH(H$1,'Data BI Summary'!$2:$2,0),FALSE),INDIRECT("'"&$E37&"'!"&"$A:$K"),8,FALSE) -> 5.425 | I37: =VLOOKUP(VLOOKUP($F37,'Data BI Summary'!$A:$F,MATCH(I$1,'Data BI Summary'!$2:$2,0),FALSE),INDIRECT("'"&$E37&"'!"&"$A:$K"),9,FALSE) -> 0.04971554461 | J37: =VLOOKUP(VLOOKUP($F37,'Data BI Summary'!$A:$F,MATCH(J$1,'Data BI Summary'!$2:$2,0),FALSE),INDIRECT("'"&$E37&"'!"&"$A:$K"),8,FALSE) -> 6.304232682 | K37: =VLOOKUP(VLOOKUP($F37,'Data BI Summary'!$A:$F,MATCH(K$1,'Data BI Summary'!$2:$2,0),FALSE),INDIRECT("'"&$E37&"'!"&"$A:$K"),9,FALSE) -> 0.01502419782
B38: High | C38: =VLOOKUP(A$35,'Data Billing Quantities'!A:P,MATCH(B38&" kWh",'Data Billing Quantities'!$4:$4,0),FALSE) -> 6930 | E38: BI_UGe_High | F38: BI Template_Energy | G38: =VLOOKUP(VLOOKUP($F38,'Data BI Summary'!$A:$F,MATCH(G$1,'Data BI Summary'!$2:$2,0),FALSE),INDIRECT("'"&$E38&"'!"&"$A:$K"),4,FALSE) -> 1117.31374 | H38: =VLOOKUP(VLOOKUP($F38,'Data BI Summary'!$A:$F,MATCH(H$1,'Data BI Summary'!$2:$2,0),FALSE),INDIRECT("'"&$E38&"'!"&"$A:$K"),8,FALSE) -> 16.515 | I38: =VLOOKUP(VLOOKUP($F38,'Data BI Summary'!$A:$F,MATCH(I$1,'Data BI Summary'!$2:$2,0),FALSE),INDIRECT("'"&$E38&"'!"&"$A:$K"),9,FALSE) -> 0.06441208131 | J38: =VLOOKUP(VLOOKUP($F38,'Data BI Summary'!$A:$F,MATCH(J$1,'Data BI Summary'!$2:$2,0),FALSE),INDIRECT("'"&$E38&"'!"&"$A:$K"),8,FALSE) -> 18.97682581 | K38: =VLOOKUP(VLOOKUP($F38,'Data BI Summary'!$A:$F,MATCH(K$1,'Data BI Summary'!$2:$2,0),FALSE),INDIRECT("'"&$E38&"'!"&"$A:$K"),9,FALSE) -> 0.01698433048
A39: GSd | B39: Low | C39: =VLOOKUP(A$39,'Data Billing Quantities'!A:P,MATCH(B39&" kWh",'Data Billing Quantities'!$4:$4,0),FALSE) -> 9310 | D39: =VLOOKUP(A$39,'Data Billing Quantities'!A:P,MATCH(B39&" kW",'Data Billing Quantities'!$4:$4,0),FALSE) -> 55 | E39: BI_GSd_Low | F39: BI Template_Demand | G39: =VLOOKUP(VLOOKUP($F39,'Data BI Summary'!$A:$F,MATCH(G$1,'Data BI Summary'!$2:$2,0),FALSE),INDIRECT("'"&$E39&"'!"&"$A:$K"),4,FALSE) -> 2866.44773 | H39: =VLOOKUP(VLOOKUP($F39,'Data BI Summary'!$A:$F,MATCH(H$1,'Data BI Summary'!$2:$2,0),FALSE),INDIRECT("'"&$E39&"'!"&"$A:$K"),8,FALSE) -> 6.924 | I39: =VLOOKUP(VLOOKUP($F39,'Data BI Summary'!$A:$F,MATCH(I$1,'Data BI Summary'!$2:$2,0),FALSE),INDIRECT("'"&$E39&"'!"&"$A:$K"),9,FALSE) -> 0.005768711654 | J39: =VLOOKUP(VLOOKUP($F39,'Data BI Summary'!$A:$F,MATCH(J$1,'Data BI Summary'!$2:$2,0),FALSE),INDIRECT("'"&$E39&"'!"&"$A:$K"),8,FALSE) -> 10.99377 | K39: =VLOOKUP(VLOOKUP($F39,'Data BI Summary'!$A:$F,MATCH(K$1,'Data BI Summary'!$2:$2,0),FALSE),INDIRECT("'"&$E39&"'!"&"$A:$K"),9,FALSE) -> 0.003835328963 | L39: WAHSP
B40: Average | C40: =VLOOKUP(A$39,'Data Billing Quantities'!A:P,MATCH(B40&" kWh",'Data Billing Quantities'!$4:$4,0),FALSE) -> 34334 | D40: =VLOOKUP(A$39,'Data Billing Quantities'!A:P,MATCH(B40&" kW",'Data Billing Quantities'!$4:$4,0),FALSE) -> 110 | E40: BI_GSd_Avg | F40: BI Template_Demand | G40: =VLOOKUP(VLOOKUP($F40,'Data BI Summary'!$A:$F,MATCH(G$1,'Data BI Summary'!$2:$2,0),FALSE),INDIRECT("'"&$E40&"'!"&"$A:$K"),4,FALSE) -> 7621.522616 | H40: =VLOOKUP(VLOOKUP($F40,'Data BI Summary'!$A:$F,MATCH(H$1,'Data BI Summary'!$2:$2,0),FALSE),INDIRECT("'"&$E40&"'!"&"$A:$K"),8,FALSE) -> -50.9536 | I40: =VLOOKUP(VLOOKUP($F40,'Data BI Summary'!$A:$F,MATCH(I$1,'Data BI Summary'!$2:$2,0),FALSE),INDIRECT("'"&$E40&"'!"&"$A:$K"),9,FALSE) -> -0.02238239574 | J40: =VLOOKUP(VLOOKUP($F40,'Data BI Summary'!$A:$F,MATCH(J$1,'Data BI Summary'!$2:$2,0),FALSE),INDIRECT("'"&$E40&"'!"&"$A:$K"),8,FALSE) -> -51.238268 | K40: =VLOOKUP(VLOOKUP($F40,'Data BI Summary'!$A:$F,MATCH(K$1,'Data BI Summary'!$2:$2,0),FALSE),INDIRECT("'"&$E40&"'!"&"$A:$K"),9,FALSE) -> -0.006722838805
B41: High | C41: =VLOOKUP(A$39,'Data Billing Quantities'!A:P,MATCH(B41&" kWh",'Data Billing Quantities'!$4:$4,0),FALSE) -> 75790 | D41: =VLOOKUP(A$39,'Data Billing Quantities'!A:P,MATCH(B41&" kW",'Data Billing Quantities'!$4:$4,0),FALSE) -> 250 | E41: BI_GSd_High | F41: BI Template_Demand | G41: =VLOOKUP(VLOOKUP($F41,'Data BI Summary'!$A:$F,MATCH(G$1,'Data BI Summary'!$2:$2,0),FALSE),INDIRECT("'"&$E41&"'!"&"$A:$K"),4,FALSE) -> 16876.04666 | H41: =VLOOKUP(VLOOKUP($F41,'Data BI Summary'!$A:$F,MATCH(H$1,'Data BI Summary'!$2:$2,0),FALSE),INDIRECT("'"&$E41&"'!"&"$A:$K"),8,FALSE) -> -100.416 | I41: =VLOOKUP(VLOOKUP($F41,'Data BI Summary'!$A:$F,MATCH(I$1,'Data BI Summary'!$2:$2,0),FALSE),INDIRECT("'"&$E41&"'!"&"$A:$K"),9,FALSE) -> -0.01993951981 | J41: =VLOOKUP(VLOOKUP($F41,'Data BI Summary'!$A:$F,MATCH(J$1,'Data BI Summary'!$2:$2,0),FALSE),INDIRECT("'"&$E41&"'!"&"$A:$K"),8,FALSE) -> -99.06258 | K41: =VLOOKUP(VLOOKUP($F41,'Data BI Summary'!$A:$F,MATCH(K$1,'Data BI Summary'!$2:$2,0),FALSE),INDIRECT("'"&$E41&"'!"&"$A:$K"),9,FALSE) -> -0.005870011029
A42: UGd | B42: Low | C42: =VLOOKUP(A$42,'Data Billing Quantities'!A:P,MATCH(B42&" kWh",'Data Billing Quantities'!$4:$4,0),FALSE) -> 13900 | D42: =VLOOKUP(A$42,'Data Billing Quantities'!A:P,MATCH(B42&" kW",'Data Billing Quantities'!$4:$4,0),FALSE) -> 55 | E42: BI_UGd_Low | F42: BI Template_Demand | G42: =VLOOKUP(VLOOKUP($F42,'Data BI Summary'!$A:$F,MATCH(G$1,'Data BI Summary'!$2:$2,0),FALSE),INDIRECT("'"&$E42&"'!"&"$A:$K"),4,FALSE) -> 2977.75114 | H42: =VLOOKUP(VLOOKUP($F42,'Data BI Summary'!$A:$F,MATCH(H$1,'Data BI Summary'!$2:$2,0),FALSE),INDIRECT("'"&$E42&"'!"&"$A:$K"),8,FALSE) -> -16.878 | I42: =VLOOKUP(VLOOKUP($F42,'Data BI Summary'!$A:$F,MATCH(I$1,'Data BI Summary'!$2:$2,0),FALSE),INDIRECT("'"&$E42&"'!"&"$A:$K"),9,FALSE) -> -0.02352359084 | J42: =VLOOKUP(VLOOKUP($F42,'Data BI Summary'!$A:$F,MATCH(J$1,'Data BI Summary'!$2:$2,0),FALSE),INDIRECT("'"&$E42&"'!"&"$A:$K"),8,FALSE) -> -15.162905 | K42: =VLOOKUP(VLOOKUP($F42,'Data BI Summary'!$A:$F,MATCH(K$1,'Data BI Summary'!$2:$2,0),FALSE),INDIRECT("'"&$E42&"'!"&"$A:$K"),9,FALSE) -> -0.005092065887 | L42: WAHSP
B43: Average | C43: =VLOOKUP(A$42,'Data Billing Quantities'!A:P,MATCH(B43&" kWh",'Data Billing Quantities'!$4:$4,0),FALSE) -> 42592 | D43: =VLOOKUP(A$42,'Data Billing Quantities'!A:P,MATCH(B43&" kW",'Data Billing Quantities'!$4:$4,0),FALSE) -> 111 | E43: BI_UGd_Avg | F43: BI Template_Demand | G43: =VLOOKUP(VLOOKUP($F43,'Data BI Summary'!$A:$F,MATCH(G$1,'Data BI Summary'!$2:$2,0),FALSE),INDIRECT("'"&$E43&"'!"&"$A:$K"),4,FALSE) -> 7736.982107 | H43: =VLOOKUP(VLOOKUP($F43,'Data BI Summary'!$A:$F,MATCH(H$1,'Data BI Summary'!$2:$2,0),FALSE),INDIRECT("'"&$E43&"'!"&"$A:$K"),8,FALSE) -> -94.0444 | I43: =VLOOKUP(VLOOKUP($F43,'Data BI Summary'!$A:$F,MATCH(I$1,'Data BI Summary'!$2:$2,0),FALSE),INDIRECT("'"&$E43&"'!"&"$A:$K"),9,FALSE) -> -0.07056524665 | J43: =VLOOKUP(VLOOKUP($F43,'Data BI Summary'!$A:$F,MATCH(J$1,'Data BI Summary'!$2:$2,0),FALSE),INDIRECT("'"&$E43&"'!"&"$A:$K"),8,FALSE) -> -98.380625 | K43: =VLOOKUP(VLOOKUP($F43,'Data BI Summary'!$A:$F,MATCH(K$1,'Data BI Summary'!$2:$2,0),FALSE),INDIRECT("'"&$E43&"'!"&"$A:$K"),9,FALSE) -> -0.012715633
B44: High | C44: =VLOOKUP(A$42,'Data Billing Quantities'!A:P,MATCH(B44&" kWh",'Data Billing Quantities'!$4:$4,0),FALSE) -> 97610 | D44: =VLOOKUP(A$42,'Data Billing Quantities'!A:P,MATCH(B44&" kW",'Data Billing Quantities'!$4:$4,0),FALSE) -> 280 | E44: BI_UGd_High | F44: BI Template_Demand | G44: =VLOOKUP(VLOOKUP($F44,'Data BI Summary'!$A:$F,MATCH(G$1,'Data BI Summary'!$2:$2,0),FALSE),INDIRECT("'"&$E44&"'!"&"$A:$K"),4,FALSE) -> 18097.51709 | H44: =VLOOKUP(VLOOKUP($F44,'Data BI Summary'!$A:$F,MATCH(H$1,'Data BI Summary'!$2:$2,0),FALSE),INDIRECT("'"&$E44&"'!"&"$A:$K"),8,FALSE) -> -188.012 | I44: =VLOOKUP(VLOOKUP($F44,'Data BI Summary'!$A:$F,MATCH(I$1,'Data BI Summary'!$2:$2,0),FALSE),INDIRECT("'"&$E44&"'!"&"$A:$K"),9,FALSE) -> -0.05842799567 | J44: =VLOOKUP(VLOOKUP($F44,'Data BI Summary'!$A:$F,MATCH(J$1,'Data BI Summary'!$2:$2,0),FALSE),INDIRECT("'"&$E44&"'!"&"$A:$K"),8,FALSE) -> -192.552 | K44: =VLOOKUP(VLOOKUP($F44,'Data BI Summary'!$A:$F,MATCH(K$1,'Data BI Summary'!$2:$2,0),FALSE),INDIRECT("'"&$E44&"'!"&"$A:$K"),9,FALSE) -> -0.01063969157
A45: St Lgt | B45: Low | C45: =VLOOKUP(A$45,'Data Billing Quantities'!A:P,MATCH(B45&" kWh",'Data Billing Quantities'!$4:$4,0),FALSE) -> 30 | E45: BI_StLgt_Low | F45: BI Template_EnergyUNM | G45: =VLOOKUP(VLOOKUP($F45,'Data BI Summary'!$A:$F,MATCH(G$1,'Data BI Summary'!$2:$2,0),FALSE),INDIRECT("'"&$E45&"'!"&"$A:$K"),4,FALSE) -> 10.49101699 | H45: =VLOOKUP(VLOOKUP($F45,'Data BI Summary'!$A:$F,MATCH(H$1,'Data BI Summary'!$2:$2,0),FALSE),INDIRECT("'"&$E45&"'!"&"$A:$K"),8,FALSE) -> 0.133 | I45: =VLOOKUP(VLOOKUP($F45,'Data BI Summary'!$A:$F,MATCH(I$1,'Data BI Summary'!$2:$2,0),FALSE),INDIRECT("'"&$E45&"'!"&"$A:$K"),9,FALSE) -> 0.01979461229 | J45: =VLOOKUP(VLOOKUP($F45,'Data BI Summary'!$A:$F,MATCH(J$1,'Data BI Summary'!$2:$2,0),FALSE),INDIRECT("'"&$E45&"'!"&"$A:$K"),8,FALSE) -> 0.138047588 | K45: =VLOOKUP(VLOOKUP($F45,'Data BI Summary'!$A:$F,MATCH(K$1,'Data BI Summary'!$2:$2,0),FALSE),INDIRECT("'"&$E45&"'!"&"$A:$K"),9,FALSE) -> 0.01315864688 | L45: Two-tier RPP
B46: Average | C46: =VLOOKUP(A$45,'Data Billing Quantities'!A:P,MATCH(B46&" kWh",'Data Billing Quantities'!$4:$4,0),FALSE) -> 1274 | E46: BI_StLgt_Avg | F46: BI Template_EnergyUNM | G46: =VLOOKUP(VLOOKUP($F46,'Data BI Summary'!$A:$F,MATCH(G$1,'Data BI Summary'!$2:$2,0),FALSE),INDIRECT("'"&$E46&"'!"&"$A:$K"),4,FALSE) -> 308.4710969 | H46: =VLOOKUP(VLOOKUP($F46,'Data BI Summary'!$A:$F,MATCH(H$1,'Data BI Summary'!$2:$2,0),FALSE),INDIRECT("'"&$E46&"'!"&"$A:$K"),8,FALSE) -> 5.2334 | I46: =VLOOKUP(VLOOKUP($F46,'Data BI Summary'!$A:$F,MATCH(I$1,'Data BI Summary'!$2:$2,0),FALSE),INDIRECT("'"&$E46&"'!"&"$A:$K"),9,FALSE) -> 0.03485396817 | J46: =VLOOKUP(VLOOKUP($F46,'Data BI Summary'!$A:$F,MATCH(J$1,'Data BI Summary'!$2:$2,0),FALSE),INDIRECT("'"&$E46&"'!"&"$A:$K"),8,FALSE) -> 5.44236357 | K46: =VLOOKUP(VLOOKUP($F46,'Data BI Summary'!$A:$F,MATCH(K$1,'Data BI Summary'!$2:$2,0),FALSE),INDIRECT("'"&$E46&"'!"&"$A:$K"),9,FALSE) -> 0.01764302596
B47: High | C47: =VLOOKUP(A$45,'Data Billing Quantities'!A:P,MATCH(B47&" kWh",'Data Billing Quantities'!$4:$4,0),FALSE) -> 2310 | E47: BI_StLgt_High | F47: BI Template_EnergyUNM | G47: =VLOOKUP(VLOOKUP($F47,'Data BI Summary'!$A:$F,MATCH(G$1,'Data BI Summary'!$2:$2,0),FALSE),INDIRECT("'"&$E47&"'!"&"$A:$K"),4,FALSE) -> 566.3094325 | H47: =VLOOKUP(VLOOKUP($F47,'Data BI Summary'!$A:$F,MATCH(H$1,'Data BI Summary'!$2:$2,0),FALSE),INDIRECT("'"&$E47&"'!"&"$A:$K"),8,FALSE) -> 9.481 | I47: =VLOOKUP(VLOOKUP($F47,'Data BI Summary'!$A:$F,MATCH(I$1,'Data BI Summary'!$2:$2,0),FALSE),INDIRECT("'"&$E47&"'!"&"$A:$K"),9,FALSE) -> 0.03516652263 | J47: =VLOOKUP(VLOOKUP($F47,'Data BI Summary'!$A:$F,MATCH(J$1,'Data BI Summary'!$2:$2,0),FALSE),INDIRECT("'"&$E47&"'!"&"$A:$K"),8,FALSE) -> 9.859784276 | K47: =VLOOKUP(VLOOKUP($F47,'Data BI Summary'!$A:$F,MATCH(K$1,'Data BI Summary'!$2:$2,0),FALSE),INDIRECT("'"&$E47&"'!"&"$A:$K"),9,FALSE) -> 0.01741059518
A48: Sen Lgt | B48: Low | C48: =VLOOKUP(A$48,'Data Billing Quantities'!A:P,MATCH(B48&" kWh",'Data Billing Quantities'!$4:$4,0),FALSE) -> 20 | E48: BI_SenLgt_Low | F48: BI Template_EnergyUNM | G48: =VLOOKUP(VLOOKUP($F48,'Data BI Summary'!$A:$F,MATCH(G$1,'Data BI Summary'!$2:$2,0),FALSE),INDIRECT("'"&$E48&"'!"&"$A:$K"),4,FALSE) -> 9.50846372 | H48: =VLOOKUP(VLOOKUP($F48,'Data BI Summary'!$A:$F,MATCH(H$1,'Data BI Summary'!$2:$2,0),FALSE),INDIRECT("'"&$E48&"'!"&"$A:$K"),8,FALSE) -> 0.048 | I48: =VLOOKUP(VLOOKUP($F48,'Data BI Summary'!$A:$F,MATCH(I$1,'Data BI Summary'!$2:$2,0),FALSE),INDIRECT("'"&$E48&"'!"&"$A:$K"),9,FALSE) -> 0.006980802792 | J48: =VLOOKUP(VLOOKUP($F48,'Data BI Summary'!$A:$F,MATCH(J$1,'Data BI Summary'!$2:$2,0),FALSE),INDIRECT("'"&$E48&"'!"&"$A:$K"),8,FALSE) -> 0.050836392 | K48: =VLOOKUP(VLOOKUP($F48,'Data BI Summary'!$A:$F,MATCH(K$1,'Data BI Summary'!$2:$2,0),FALSE),INDIRECT("'"&$E48&"'!"&"$A:$K"),9,FALSE) -> 0.005346435922 | L48: Two-tier RPP
B49: Average | C49: =VLOOKUP(A$48,'Data Billing Quantities'!A:P,MATCH(B49&" kWh",'Data Billing Quantities'!$4:$4,0),FALSE) -> 49 | E49: BI_SenLgt_Avg | F49: BI Template_EnergyUNM | G49: =VLOOKUP(VLOOKUP($F49,'Data BI Summary'!$A:$F,MATCH(G$1,'Data BI Summary'!$2:$2,0),FALSE),INDIRECT("'"&$E49&"'!"&"$A:$K"),4,FALSE) -> 18.09600711 | H49: =VLOOKUP(VLOOKUP($F49,'Data BI Summary'!$A:$F,MATCH(H$1,'Data BI Summary'!$2:$2,0),FALSE),INDIRECT("'"&$E49&"'!"&"$A:$K"),8,FALSE) -> 0.1176 | I49: =VLOOKUP(VLOOKUP($F49,'Data BI Summary'!$A:$F,MATCH(I$1,'Data BI Summary'!$2:$2,0),FALSE),INDIRECT("'"&$E49&"'!"&"$A:$K"),9,FALSE) -> 0.00973856588 | J49: =VLOOKUP(VLOOKUP($F49,'Data BI Summary'!$A:$F,MATCH(J$1,'Data BI Summary'!$2:$2,0),FALSE),INDIRECT("'"&$E49&"'!"&"$A:$K"),8,FALSE) -> 0.1245491604 | K49: =VLOOKUP(VLOOKUP($F49,'Data BI Summary'!$A:$F,MATCH(K$1,'Data BI Summary'!$2:$2,0),FALSE),INDIRECT("'"&$E49&"'!"&"$A:$K"),9,FALSE) -> 0.006882687414
B50: High | C50: =VLOOKUP(A$48,'Data Billing Quantities'!A:P,MATCH(B50&" kWh",'Data Billing Quantities'!$4:$4,0),FALSE) -> 80 | E50: BI_SenLgt_High | F50: BI Template_EnergyUNM | G50: =VLOOKUP(VLOOKUP($F50,'Data BI Summary'!$A:$F,MATCH(G$1,'Data BI Summary'!$2:$2,0),FALSE),INDIRECT("'"&$E50&"'!"&"$A:$K"),4,FALSE) -> 27.27579488 | H50: =VLOOKUP(VLOOKUP($F50,'Data BI Summary'!$A:$F,MATCH(H$1,'Data BI Summary'!$2:$2,0),FALSE),INDIRECT("'"&$E50&"'!"&"$A:$K"),8,FALSE) -> 0.192 | I50: =VLOOKUP(VLOOKUP($F50,'Data BI Summary'!$A:$F,MATCH(I$1,'Data BI Summary'!$2:$2,0),FALSE),INDIRECT("'"&$E50&"'!"&"$A:$K"),9,FALSE) -> 0.01088805716 | J50: =VLOOKUP(VLOOKUP($F50,'Data BI Summary'!$A:$F,MATCH(J$1,'Data BI Summary'!$2:$2,0),FALSE),INDIRECT("'"&$E50&"'!"&"$A:$K"),8,FALSE) -> 0.203345568 | K50: =VLOOKUP(VLOOKUP($F50,'Data BI Summary'!$A:$F,MATCH(K$1,'Data BI Summary'!$2:$2,0),FALSE),INDIRECT("'"&$E50&"'!"&"$A:$K"),9,FALSE) -> 0.007455165611
A51: USL | B51: Low | C51: =VLOOKUP(A$51,'Data Billing Quantities'!A:P,MATCH(B51&" kWh",'Data Billing Quantities'!$4:$4,0),FALSE) -> 100 | E51: BI_USL_Low | F51: BI Template_EnergyUNM | G51: =VLOOKUP(VLOOKUP($F51,'Data BI Summary'!$A:$F,MATCH(G$1,'Data BI Summary'!$2:$2,0),FALSE),INDIRECT("'"&$E51&"'!"&"$A:$K"),4,FALSE) -> 53.93726604 | H51: =VLOOKUP(VLOOKUP($F51,'Data BI Summary'!$A:$F,MATCH(H$1,'Data BI Summary'!$2:$2,0),FALSE),INDIRECT("'"&$E51&"'!"&"$A:$K"),8,FALSE) -> -0.31 | I51: =VLOOKUP(VLOOKUP($F51,'Data BI Summary'!$A:$F,MATCH(I$1,'Data BI Summary'!$2:$2,0),FALSE),INDIRECT("'"&$E51&"'!"&"$A:$K"),9,FALSE) -> -0.007462686567 | J51: =VLOOKUP(VLOOKUP($F51,'Data BI Summary'!$A:$F,MATCH(J$1,'Data BI Summary'!$2:$2,0),FALSE),INDIRECT("'"&$E51&"'!"&"$A:$K"),8,FALSE) -> -0.30296804 | K51: =VLOOKUP(VLOOKUP($F51,'Data BI Summary'!$A:$F,MATCH(K$1,'Data BI Summary'!$2:$2,0),FALSE),INDIRECT("'"&$E51&"'!"&"$A:$K"),9,FALSE) -> -0.005617044805 | L51: Two-tier RPP
B52: Average | C52: =VLOOKUP(A$51,'Data Billing Quantities'!A:P,MATCH(B52&" kWh",'Data Billing Quantities'!$4:$4,0),FALSE) -> 477 | E52: BI_USL_Avg | F52: BI Template_EnergyUNM | G52: =VLOOKUP(VLOOKUP($F52,'Data BI Summary'!$A:$F,MATCH(G$1,'Data BI Summary'!$2:$2,0),FALSE),INDIRECT("'"&$E52&"'!"&"$A:$K"),4,FALSE) -> 106.6971947 | H52: =VLOOKUP(VLOOKUP($F52,'Data BI Summary'!$A:$F,MATCH(H$1,'Data BI Summary'!$2:$2,0),FALSE),INDIRECT("'"&$E52&"'!"&"$A:$K"),8,FALSE) -> 1.8766 | I52: =VLOOKUP(VLOOKUP($F52,'Data BI Summary'!$A:$F,MATCH(I$1,'Data BI Summary'!$2:$2,0),FALSE),INDIRECT("'"&$E52&"'!"&"$A:$K"),9,FALSE) -> 0.03720666492 | J52: =VLOOKUP(VLOOKUP($F52,'Data BI Summary'!$A:$F,MATCH(J$1,'Data BI Summary'!$2:$2,0),FALSE),INDIRECT("'"&$E52&"'!"&"$A:$K"),8,FALSE) -> 1.953761349 | K52: =VLOOKUP(VLOOKUP($F52,'Data BI Summary'!$A:$F,MATCH(K$1,'Data BI Summary'!$2:$2,0),FALSE),INDIRECT("'"&$E52&"'!"&"$A:$K"),9,FALSE) -> 0.01831127196
B53: High | C53: =VLOOKUP(A$51,'Data Billing Quantities'!A:P,MATCH(B53&" kWh",'Data Billing Quantities'!$4:$4,0),FALSE) -> 550 | E53: BI_USL_High | F53: BI Template_EnergyUNM | G53: =VLOOKUP(VLOOKUP($F53,'Data BI Summary'!$A:$F,MATCH(G$1,'Data BI Summary'!$2:$2,0),FALSE),INDIRECT("'"&$E53&"'!"&"$A:$K"),4,FALSE) -> 116.9133082 | H53: =VLOOKUP(VLOOKUP($F53,'Data BI Summary'!$A:$F,MATCH(H$1,'Data BI Summary'!$2:$2,0),FALSE),INDIRECT("'"&$E53&"'!"&"$A:$K"),8,FALSE) -> 2.3 | I53: =VLOOKUP(VLOOKUP($F53,'Data BI Summary'!$A:$F,MATCH(I$1,'Data BI Summary'!$2:$2,0),FALSE),INDIRECT("'"&$E53&"'!"&"$A:$K"),9,FALSE) -> 0.04409509202 | J53: =VLOOKUP(VLOOKUP($F53,'Data BI Summary'!$A:$F,MATCH(J$1,'Data BI Summary'!$2:$2,0),FALSE),INDIRECT("'"&$E53&"'!"&"$A:$K"),8,FALSE) -> 2.39074078 | K53: =VLOOKUP(VLOOKUP($F53,'Data BI Summary'!$A:$F,MATCH(K$1,'Data BI Summary'!$2:$2,0),FALSE),INDIRECT("'"&$E53&"'!"&"$A:$K"),9,FALSE) -> 0.02044883355
A54: DGen | B54: Low | C54: =VLOOKUP(A$54,'Data Billing Quantities'!A:P,MATCH($B54&" kWh",'Data Billing Quantities'!$4:$4,0),FALSE) -> 10 | D54: =VLOOKUP(A$54,'Data Billing Quantities'!A:P,MATCH($B54&" kW",'Data Billing Quantities'!$4:$4,0),FALSE) -> 0.02941666667 | E54: BI_Dgen_Low | F54: BI Template_Demand | G54: =VLOOKUP(VLOOKUP($F54,'Data BI Summary'!$A:$F,MATCH(G$1,'Data BI Summary'!$2:$2,0),FALSE),INDIRECT("'"&$E54&"'!"&"$A:$K"),4,FALSE) -> 229.153767 | H54: =VLOOKUP(VLOOKUP($F54,'Data BI Summary'!$A:$F,MATCH(H$1,'Data BI Summary'!$2:$2,0),FALSE),INDIRECT("'"&$E54&"'!"&"$A:$K"),8,FALSE) -> -1.736165558 | I54: =VLOOKUP(VLOOKUP($F54,'Data BI Summary'!$A:$F,MATCH(I$1,'Data BI Summary'!$2:$2,0),FALSE),INDIRECT("'"&$E54&"'!"&"$A:$K"),9,FALSE) -> -0.008623666457 | J54: =VLOOKUP(VLOOKUP($F54,'Data BI Summary'!$A:$F,MATCH(J$1,'Data BI Summary'!$2:$2,0),FALSE),INDIRECT("'"&$E54&"'!"&"$A:$K"),8,FALSE) -> -1.961328579 | K54: =VLOOKUP(VLOOKUP($F54,'Data BI Summary'!$A:$F,MATCH(K$1,'Data BI Summary'!$2:$2,0),FALSE),INDIRECT("'"&$E54&"'!"&"$A:$K"),9,FALSE) -> -0.008559006491 | L54: WAHSP
B55: Average | C55: =VLOOKUP(A$54,'Data Billing Quantities'!A:P,MATCH($B55&" kWh",'Data Billing Quantities'!$4:$4,0),FALSE) -> 1709 | D55: =VLOOKUP(A$54,'Data Billing Quantities'!A:P,MATCH($B55&" kW",'Data Billing Quantities'!$4:$4,0),FALSE) -> 12 | E55: BI_Dgen_Avg | F55: BI Template_Demand | G55: =VLOOKUP(VLOOKUP($F55,'Data BI Summary'!$A:$F,MATCH(G$1,'Data BI Summary'!$2:$2,0),FALSE),INDIRECT("'"&$E55&"'!"&"$A:$K"),4,FALSE) -> 634.0746595 | H55: =VLOOKUP(VLOOKUP($F55,'Data BI Summary'!$A:$F,MATCH(H$1,'Data BI Summary'!$2:$2,0),FALSE),INDIRECT("'"&$E55&"'!"&"$A:$K"),8,FALSE) -> 10.2536 | I55: =VLOOKUP(VLOOKUP($F55,'Data BI Summary'!$A:$F,MATCH(I$1,'Data BI Summary'!$2:$2,0),FALSE),INDIRECT("'"&$E55&"'!"&"$A:$K"),9,FALSE) -> 0.03051751135 | J55: =VLOOKUP(VLOOKUP($F55,'Data BI Summary'!$A:$F,MATCH(J$1,'Data BI Summary'!$2:$2,0),FALSE),INDIRECT("'"&$E55&"'!"&"$A:$K"),8,FALSE) -> 11.80624 | K55: =VLOOKUP(VLOOKUP($F55,'Data BI Summary'!$A:$F,MATCH(K$1,'Data BI Summary'!$2:$2,0),FALSE),INDIRECT("'"&$E55&"'!"&"$A:$K"),9,FALSE) -> 0.01861963701
B56: High | C56: =VLOOKUP(A$54,'Data Billing Quantities'!A:P,MATCH($B56&" kWh",'Data Billing Quantities'!$4:$4,0),FALSE) -> 8490 | D56: =VLOOKUP(A$54,'Data Billing Quantities'!A:P,MATCH($B56&" kW",'Data Billing Quantities'!$4:$4,0),FALSE) -> 45 | E56: BI_Dgen_High | F56: BI Template_Demand | G56: =VLOOKUP(VLOOKUP($F56,'Data BI Summary'!$A:$F,MATCH(G$1,'Data BI Summary'!$2:$2,0),FALSE),INDIRECT("'"&$E56&"'!"&"$A:$K"),4,FALSE) -> 2019.019876 | H56: =VLOOKUP(VLOOKUP($F56,'Data BI Summary'!$A:$F,MATCH(H$1,'Data BI Summary'!$2:$2,0),FALSE),INDIRECT("'"&$E56&"'!"&"$A:$K"),8,FALSE) -> 34.0785 | I56: =VLOOKUP(VLOOKUP($F56,'Data BI Summary'!$A:$F,MATCH(I$1,'Data BI Summary'!$2:$2,0),FALSE),INDIRECT("'"&$E56&"'!"&"$A:$K"),9,FALSE) -> 0.04831486003 | J56: =VLOOKUP(VLOOKUP($F56,'Data BI Summary'!$A:$F,MATCH(J$1,'Data BI Summary'!$2:$2,0),FALSE),INDIRECT("'"&$E56&"'!"&"$A:$K"),8,FALSE) -> 39.332475 | K56: =VLOOKUP(VLOOKUP($F56,'Data BI Summary'!$A:$F,MATCH(K$1,'Data BI Summary'!$2:$2,0),FALSE),INDIRECT("'"&$E56&"'!"&"$A:$K"),9,FALSE) -> 0.01948097464
A57: ST | B57: Low | C57: =VLOOKUP(A$57,'Data Billing Quantities'!A:P,MATCH($B57&" kWh",'Data Billing Quantities'!$4:$4,0),FALSE) -> 88780 | D57: =VLOOKUP(A$57,'Data Billing Quantities'!A:P,MATCH($B57&" kW",'Data Billing Quantities'!$4:$4,0),FALSE) -> 500 | E57: BI_ST_Low | F57: BI Template_Demand | G57: =VLOOKUP(VLOOKUP($F57,'Data BI Summary'!$A:$F,MATCH(G$1,'Data BI Summary'!$2:$2,0),FALSE),INDIRECT("'"&$E57&"'!"&"$A:$K"),4,FALSE) -> 18005.92692 | H57: =VLOOKUP(VLOOKUP($F57,'Data BI Summary'!$A:$F,MATCH(H$1,'Data BI Summary'!$2:$2,0),FALSE),INDIRECT("'"&$E57&"'!"&"$A:$K"),8,FALSE) -> -173.662 | I57: =VLOOKUP(VLOOKUP($F57,'Data BI Summary'!$A:$F,MATCH(I$1,'Data BI Summary'!$2:$2,0),FALSE),INDIRECT("'"&$E57&"'!"&"$A:$K"),9,FALSE) -> -0.09476015034 | J57: =VLOOKUP(VLOOKUP($F57,'Data BI Summary'!$A:$F,MATCH(J$1,'Data BI Summary'!$2:$2,0),FALSE),INDIRECT("'"&$E57&"'!"&"$A:$K"),8,FALSE) -> -138.89056 | K57: =VLOOKUP(VLOOKUP($F57,'Data BI Summary'!$A:$F,MATCH(K$1,'Data BI Summary'!$2:$2,0),FALSE),INDIRECT("'"&$E57&"'!"&"$A:$K"),9,FALSE) -> -0.007713602338 | L57: WAHSP
B58: Average | C58: =VLOOKUP(A$57,'Data Billing Quantities'!A:P,MATCH($B58&" kWh",'Data Billing Quantities'!$4:$4,0),FALSE) -> 1373443 | D58: =VLOOKUP(A$57,'Data Billing Quantities'!A:P,MATCH($B58&" kW",'Data Billing Quantities'!$4:$4,0),FALSE) -> 2808 | E58: BI_ST_Avg | F58: BI Template_Demand | G58: =VLOOKUP(VLOOKUP($F58,'Data BI Summary'!$A:$F,MATCH(G$1,'Data BI Summary'!$2:$2,0),FALSE),INDIRECT("'"&$E58&"'!"&"$A:$K"),4,FALSE) -> 203654.5162 | H58: =VLOOKUP(VLOOKUP($F58,'Data BI Summary'!$A:$F,MATCH(H$1,'Data BI Summary'!$2:$2,0),FALSE),INDIRECT("'"&$E58&"'!"&"$A:$K"),8,FALSE) -> -4657.6388 | I58: =VLOOKUP(VLOOKUP($F58,'Data BI Summary'!$A:$F,MATCH(I$1,'Data BI Summary'!$2:$2,0),FALSE),INDIRECT("'"&$E58&"'!"&"$A:$K"),9,FALSE) -> -1.291885429 | J58: =VLOOKUP(VLOOKUP($F58,'Data BI Summary'!$A:$F,MATCH(J$1,'Data BI Summary'!$2:$2,0),FALSE),INDIRECT("'"&$E58&"'!"&"$A:$K"),8,FALSE) -> -4941.068284 | K58: =VLOOKUP(VLOOKUP($F58,'Data BI Summary'!$A:$F,MATCH(K$1,'Data BI Summary'!$2:$2,0),FALSE),INDIRECT("'"&$E58&"'!"&"$A:$K"),9,FALSE) -> -0.02426201184
B59: High | C59: =VLOOKUP(A$57,'Data Billing Quantities'!A:P,MATCH($B59&" kWh",'Data Billing Quantities'!$4:$4,0),FALSE) -> 2641420 | D59: =VLOOKUP(A$57,'Data Billing Quantities'!A:P,MATCH($B59&" kW",'Data Billing Quantities'!$4:$4,0),FALSE) -> 13730 | E59: BI_ST_High | F59: BI Template_Demand | G59: =VLOOKUP(VLOOKUP($F59,'Data BI Summary'!$A:$F,MATCH(G$1,'Data BI Summary'!$2:$2,0),FALSE),INDIRECT("'"&$E59&"'!"&"$A:$K"),4,FALSE) -> 481625.7284 | H59: =VLOOKUP(VLOOKUP($F59,'Data BI Summary'!$A:$F,MATCH(H$1,'Data BI Summary'!$2:$2,0),FALSE),INDIRECT("'"&$E59&"'!"&"$A:$K"),8,FALSE) -> -4706.929 | I59: =VLOOKUP(VLOOKUP($F59,'Data BI Summary'!$A:$F,MATCH(I$1,'Data BI Summary'!$2:$2,0),FALSE),INDIRECT("'"&$E59&"'!"&"$A:$K"),9,FALSE) -> -0.2883415863 | J59: =VLOOKUP(VLOOKUP($F59,'Data BI Summary'!$A:$F,MATCH(J$1,'Data BI Summary'!$2:$2,0),FALSE),INDIRECT("'"&$E59&"'!"&"$A:$K"),8,FALSE) -> -3744.06742 | K59: =VLOOKUP(VLOOKUP($F59,'Data BI Summary'!$A:$F,MATCH(K$1,'Data BI Summary'!$2:$2,0),FALSE),INDIRECT("'"&$E59&"'!"&"$A:$K"),9,FALSE) -> -0.007773811072

Sheet Bill Impact Summary_Acq (hidden)
A1: Rate Class | B1: Consumption Level | C1: Monthly Consumption (kWh) | D1: Monthly Peak (kW) | E1: BI Worksheet | F1: Template | G1: Current Total Bill | H1: Change in DX Bill ($) | I1: Change in DX Bill (%) | J1: Change in Total Bill ($) | K1: Change in Total Bill (%) | L1: Commodity Price Used
A2: WHSI to HONI
A3: AUR-WHSI | B3: Low | C3: =VLOOKUP(A$3,'Data Billing Quantities'!A:P,MATCH($B3&" kWh",'Data Billing Quantities'!$4:$4,0),FALSE) -> 310 | E3: BI_WHSI_AUR_Low | F3: BI Template_EnergyWHSI | G3: =VLOOKUP(VLOOKUP($F3,'Data BI Summary'!$A:$F,MATCH(G$1,'Data BI Summary'!$2:$2,0),FALSE),INDIRECT("'"&$E3&"'!"&"$A:$K"),4,FALSE) -> 70.83632451 | H3: =VLOOKUP(VLOOKUP($F3,'Data BI Summary'!$A:$F,MATCH(H$1,'Data BI Summary'!$2:$2,0),FALSE),INDIRECT("'"&$E3&"'!"&"$A:$K"),8,FALSE) -> 1.725 | I3: =VLOOKUP(VLOOKUP($F3,'Data BI Summary'!$A:$F,MATCH(I$1,'Data BI Summary'!$2:$2,0),FALSE),INDIRECT("'"&$E3&"'!"&"$A:$K"),9,FALSE) -> 0.05604106429 | J3: =VLOOKUP(VLOOKUP($F3,'Data BI Summary'!$A:$F,MATCH(J$1,'Data BI Summary'!$2:$2,0),FALSE),INDIRECT("'"&$E3&"'!"&"$A:$K"),8,FALSE) -> 1.780178329 | K3: =VLOOKUP(VLOOKUP($F3,'Data BI Summary'!$A:$F,MATCH(K$1,'Data BI Summary'!$2:$2,0),FALSE),INDIRECT("'"&$E3&"'!"&"$A:$K"),9,FALSE) -> 0.02513086811 | L3: TOU
B4: Typical | C4: =VLOOKUP(A$3,'Data Billing Quantities'!A:P,MATCH($B4&" kWh",'Data Billing Quantities'!$4:$4,0),FALSE) -> 750 | E4: BI_WHSI_AUR_Typical | F4: BI Template_EnergyWHSI | G4: =VLOOKUP(VLOOKUP($F4,'Data BI Summary'!$A:$F,MATCH(G$1,'Data BI Summary'!$2:$2,0),FALSE),INDIRECT("'"&$E4&"'!"&"$A:$K"),4,FALSE) -> 125.7566057 | H4: =VLOOKUP(VLOOKUP($F4,'Data BI Summary'!$A:$F,MATCH(H$1,'Data BI Summary'!$2:$2,0),FALSE),INDIRECT("'"&$E4&"'!"&"$A:$K"),8,FALSE) -> 1.945 | I4: =VLOOKUP(VLOOKUP($F4,'Data BI Summary'!$A:$F,MATCH(I$1,'Data BI Summary'!$2:$2,0),FALSE),INDIRECT("'"&$E4&"'!"&"$A:$K"),9,FALSE) -> 0.06401184795 | J4: =VLOOKUP(VLOOKUP($F4,'Data BI Summary'!$A:$F,MATCH(J$1,'Data BI Summary'!$2:$2,0),FALSE),INDIRECT("'"&$E4&"'!"&"$A:$K"),8,FALSE) -> 2.049526925 | K4: =VLOOKUP(VLOOKUP($F4,'Data BI Summary'!$A:$F,MATCH(K$1,'Data BI Summary'!$2:$2,0),FALSE),INDIRECT("'"&$E4&"'!"&"$A:$K"),9,FALSE) -> 0.01629756873
B5: Average | C5: =VLOOKUP(A$3,'Data Billing Quantities'!A:P,MATCH($B5&" kWh",'Data Billing Quantities'!$4:$4,0),FALSE) -> 636 | E5: BI_WHSI_AUR_Avg | F5: BI Template_EnergyWHSI | G5: =VLOOKUP(VLOOKUP($F5,'Data BI Summary'!$A:$F,MATCH(G$1,'Data BI Summary'!$2:$2,0),FALSE),INDIRECT("'"&$E5&"'!"&"$A:$K"),4,FALSE) -> 111.5272602 | H5: =VLOOKUP(VLOOKUP($F5,'Data BI Summary'!$A:$F,MATCH(H$1,'Data BI Summary'!$2:$2,0),FALSE),INDIRECT("'"&$E5&"'!"&"$A:$K"),8,FALSE) -> 1.888 | I5: =VLOOKUP(VLOOKUP($F5,'Data BI Summary'!$A:$F,MATCH(I$1,'Data BI Summary'!$2:$2,0),FALSE),INDIRECT("'"&$E5&"'!"&"$A:$K"),9,FALSE) -> 0.06192681615 | J5: =VLOOKUP(VLOOKUP($F5,'Data BI Summary'!$A:$F,MATCH(J$1,'Data BI Summary'!$2:$2,0),FALSE),INDIRECT("'"&$E5&"'!"&"$A:$K"),8,FALSE) -> 1.979741152 | K5: =VLOOKUP(VLOOKUP($F5,'Data BI Summary'!$A:$F,MATCH(K$1,'Data BI Summary'!$2:$2,0),FALSE),INDIRECT("'"&$E5&"'!"&"$A:$K"),9,FALSE) -> 0.01775118612
B6: High | C6: =VLOOKUP(A$3,'Data Billing Quantities'!A:P,MATCH($B6&" kWh",'Data Billing Quantities'!$4:$4,0),FALSE) -> 1160 | E6: BI_WHSI_AUR_High | F6: BI Template_EnergyWHSI | G6: =VLOOKUP(VLOOKUP($F6,'Data BI Summary'!$A:$F,MATCH(G$1,'Data BI Summary'!$2:$2,0),FALSE),INDIRECT("'"&$E6&"'!"&"$A:$K"),4,FALSE) -> 176.9323224 | H6: =VLOOKUP(VLOOKUP($F6,'Data BI Summary'!$A:$F,MATCH(H$1,'Data BI Summary'!$2:$2,0),FALSE),INDIRECT("'"&$E6&"'!"&"$A:$K"),8,FALSE) -> 2.15 | I6: =VLOOKUP(VLOOKUP($F6,'Data BI Summary'!$A:$F,MATCH(I$1,'Data BI Summary'!$2:$2,0),FALSE),INDIRECT("'"&$E6&"'!"&"$A:$K"),9,FALSE) -> 0.07162846482 | J6: =VLOOKUP(VLOOKUP($F6,'Data BI Summary'!$A:$F,MATCH(J$1,'Data BI Summary'!$2:$2,0),FALSE),INDIRECT("'"&$E6&"'!"&"$A:$K"),8,FALSE) -> 2.300510844 | K6: =VLOOKUP(VLOOKUP($F6,'Data BI Summary'!$A:$F,MATCH(K$1,'Data BI Summary'!$2:$2,0),FALSE),INDIRECT("'"&$E6&"'!"&"$A:$K"),9,FALSE) -> 0.01300220793
A7: AUGe-WHSI | B7: Low | C7: =VLOOKUP(A$7,'Data Billing Quantities'!A:P,MATCH($B7&" kWh",'Data Billing Quantities'!$4:$4,0),FALSE) -> 190 | E7: BI_WHSI_AUGe_Low | F7: BI Template_EnergyWHSI | G7: =VLOOKUP(VLOOKUP($F7,'Data BI Summary'!$A:$F,MATCH(G$1,'Data BI Summary'!$2:$2,0),FALSE),INDIRECT("'"&$E7&"'!"&"$A:$K"),4,FALSE) -> 53.06141104 | H7: =VLOOKUP(VLOOKUP($F7,'Data BI Summary'!$A:$F,MATCH(H$1,'Data BI Summary'!$2:$2,0),FALSE),INDIRECT("'"&$E7&"'!"&"$A:$K"),8,FALSE) -> 0.418 | I7: =VLOOKUP(VLOOKUP($F7,'Data BI Summary'!$A:$F,MATCH(I$1,'Data BI Summary'!$2:$2,0),FALSE),INDIRECT("'"&$E7&"'!"&"$A:$K"),9,FALSE) -> 0.01440385941 | J7: =VLOOKUP(VLOOKUP($F7,'Data BI Summary'!$A:$F,MATCH(J$1,'Data BI Summary'!$2:$2,0),FALSE),INDIRECT("'"&$E7&"'!"&"$A:$K"),8,FALSE) -> 0.443508621 | K7: =VLOOKUP(VLOOKUP($F7,'Data BI Summary'!$A:$F,MATCH(K$1,'Data BI Summary'!$2:$2,0),FALSE),INDIRECT("'"&$E7&"'!"&"$A:$K"),9,FALSE) -> 0.008358402317 | L7: TOU
B8: Typical | C8: =VLOOKUP(A$7,'Data Billing Quantities'!A:P,MATCH($B8&" kWh",'Data Billing Quantities'!$4:$4,0),FALSE) -> 2000 | E8: BI_WHSI_AUGe_Typical | F8: BI Template_EnergyWHSI | G8: =VLOOKUP(VLOOKUP($F8,'Data BI Summary'!$A:$F,MATCH(G$1,'Data BI Summary'!$2:$2,0),FALSE),INDIRECT("'"&$E8&"'!"&"$A:$K"),4,FALSE) -> 297.697401 | H8: =VLOOKUP(VLOOKUP($F8,'Data BI Summary'!$A:$F,MATCH(H$1,'Data BI Summary'!$2:$2,0),FALSE),INDIRECT("'"&$E8&"'!"&"$A:$K"),8,FALSE) -> 4.4 | I8: =VLOOKUP(VLOOKUP($F8,'Data BI Summary'!$A:$F,MATCH(I$1,'Data BI Summary'!$2:$2,0),FALSE),INDIRECT("'"&$E8&"'!"&"$A:$K"),9,FALSE) -> 0.08094186902 | J8: =VLOOKUP(VLOOKUP($F8,'Data BI Summary'!$A:$F,MATCH(J$1,'Data BI Summary'!$2:$2,0),FALSE),INDIRECT("'"&$E8&"'!"&"$A:$K"),8,FALSE) -> 4.6685118 | K8: =VLOOKUP(VLOOKUP($F8,'Data BI Summary'!$A:$F,MATCH(K$1,'Data BI Summary'!$2:$2,0),FALSE),INDIRECT("'"&$E8&"'!"&"$A:$K"),9,FALSE) -> 0.01568207107
B9: Average | C9: =VLOOKUP(A$7,'Data Billing Quantities'!A:P,MATCH($B9&" kWh",'Data Billing Quantities'!$4:$4,0),FALSE) -> 2471 | E9: BI_WHSI_AUGe_Avg | F9: BI Template_EnergyWHSI | G9: =VLOOKUP(VLOOKUP($F9,'Data BI Summary'!$A:$F,MATCH(G$1,'Data BI Summary'!$2:$2,0),FALSE),INDIRECT("'"&$E9&"'!"&"$A:$K"),4,FALSE) -> 361.3568216 | H9: =VLOOKUP(VLOOKUP($F9,'Data BI Summary'!$A:$F,MATCH(H$1,'Data BI Summary'!$2:$2,0),FALSE),INDIRECT("'"&$E9&"'!"&"$A:$K"),8,FALSE) -> 5.4362 | I9: =VLOOKUP(VLOOKUP($F9,'Data BI Summary'!$A:$F,MATCH(I$1,'Data BI Summary'!$2:$2,0),FALSE),INDIRECT("'"&$E9&"'!"&"$A:$K"),9,FALSE) -> 0.08918528727 | J9: =VLOOKUP(VLOOKUP($F9,'Data BI Summary'!$A:$F,MATCH(J$1,'Data BI Summary'!$2:$2,0),FALSE),INDIRECT("'"&$E9&"'!"&"$A:$K"),8,FALSE) -> 5.767946329 | K9: =VLOOKUP(VLOOKUP($F9,'Data BI Summary'!$A:$F,MATCH(K$1,'Data BI Summary'!$2:$2,0),FALSE),INDIRECT("'"&$E9&"'!"&"$A:$K"),9,FALSE) -> 0.0159619135
B10: High | C10: =VLOOKUP(A$7,'Data Billing Quantities'!A:P,MATCH($B10&" kWh",'Data Billing Quantities'!$4:$4,0),FALSE) -> 7240 | E10: BI_WHSI_AUGe_High | F10: BI Template_EnergyWHSI | G10: =VLOOKUP(VLOOKUP($F10,'Data BI Summary'!$A:$F,MATCH(G$1,'Data BI Summary'!$2:$2,0),FALSE),INDIRECT("'"&$E10&"'!"&"$A:$K"),4,FALSE) -> 1005.92535 | H10: =VLOOKUP(VLOOKUP($F10,'Data BI Summary'!$A:$F,MATCH(H$1,'Data BI Summary'!$2:$2,0),FALSE),INDIRECT("'"&$E10&"'!"&"$A:$K"),8,FALSE) -> 15.928 | I10: =VLOOKUP(VLOOKUP($F10,'Data BI Summary'!$A:$F,MATCH(I$1,'Data BI Summary'!$2:$2,0),FALSE),INDIRECT("'"&$E10&"'!"&"$A:$K"),9,FALSE) -> 0.1247103038 | J10: =VLOOKUP(VLOOKUP($F10,'Data BI Summary'!$A:$F,MATCH(J$1,'Data BI Summary'!$2:$2,0),FALSE),INDIRECT("'"&$E10&"'!"&"$A:$K"),8,FALSE) -> 16.90001272 | K10: =VLOOKUP(VLOOKUP($F10,'Data BI Summary'!$A:$F,MATCH(K$1,'Data BI Summary'!$2:$2,0),FALSE),INDIRECT("'"&$E10&"'!"&"$A:$K"),9,FALSE) -> 0.01680046409
A11: AUGd-WHSI | B11: Low | C11: =VLOOKUP(A$11,'Data Billing Quantities'!A:P,MATCH($B11&" kWh",'Data Billing Quantities'!$4:$4,0),FALSE) -> 9370 | D11: =VLOOKUP(A$11,'Data Billing Quantities'!A:P,MATCH(B11&" kW",'Data Billing Quantities'!$4:$4,0),FALSE) -> 50 | E11: BI_WHSI_AUGd_Low | F11: BI Template_DemandWHSI | G11: =VLOOKUP(VLOOKUP($F11,'Data BI Summary'!$A:$F,MATCH(G$1,'Data BI Summary'!$2:$2,0),FALSE),INDIRECT("'"&$E11&"'!"&"$A:$K"),4,FALSE) -> 1803.003046 | H11: =VLOOKUP(VLOOKUP($F11,'Data BI Summary'!$A:$F,MATCH(H$1,'Data BI Summary'!$2:$2,0),FALSE),INDIRECT("'"&$E11&"'!"&"$A:$K"),8,FALSE) -> -15.518 | I11: =VLOOKUP(VLOOKUP($F11,'Data BI Summary'!$A:$F,MATCH(I$1,'Data BI Summary'!$2:$2,0),FALSE),INDIRECT("'"&$E11&"'!"&"$A:$K"),9,FALSE) -> -0.05779365156 | J11: =VLOOKUP(VLOOKUP($F11,'Data BI Summary'!$A:$F,MATCH(J$1,'Data BI Summary'!$2:$2,0),FALSE),INDIRECT("'"&$E11&"'!"&"$A:$K"),8,FALSE) -> -14.33744 | K11: =VLOOKUP(VLOOKUP($F11,'Data BI Summary'!$A:$F,MATCH(K$1,'Data BI Summary'!$2:$2,0),FALSE),INDIRECT("'"&$E11&"'!"&"$A:$K"),9,FALSE) -> -0.007951977691 | L11: WAHSP
B12: Average | C12: =VLOOKUP(A$11,'Data Billing Quantities'!A:P,MATCH($B12&" kWh",'Data Billing Quantities'!$4:$4,0),FALSE) -> 47636 | D12: =VLOOKUP(A$11,'Data Billing Quantities'!A:P,MATCH(B12&" kW",'Data Billing Quantities'!$4:$4,0),FALSE) -> 134 | E12: BI_WHSI_AUGd_Avg | F12: BI Template_DemandWHSI | G12: =VLOOKUP(VLOOKUP($F12,'Data BI Summary'!$A:$F,MATCH(G$1,'Data BI Summary'!$2:$2,0),FALSE),INDIRECT("'"&$E12&"'!"&"$A:$K"),4,FALSE) -> 7362.310592 | H12: =VLOOKUP(VLOOKUP($F12,'Data BI Summary'!$A:$F,MATCH(H$1,'Data BI Summary'!$2:$2,0),FALSE),INDIRECT("'"&$E12&"'!"&"$A:$K"),8,FALSE) -> -140.6956 | I12: =VLOOKUP(VLOOKUP($F12,'Data BI Summary'!$A:$F,MATCH(I$1,'Data BI Summary'!$2:$2,0),FALSE),INDIRECT("'"&$E12&"'!"&"$A:$K"),9,FALSE) -> -0.3104100718 | J12: =VLOOKUP(VLOOKUP($F12,'Data BI Summary'!$A:$F,MATCH(J$1,'Data BI Summary'!$2:$2,0),FALSE),INDIRECT("'"&$E12&"'!"&"$A:$K"),8,FALSE) -> -150.415656 | K12: =VLOOKUP(VLOOKUP($F12,'Data BI Summary'!$A:$F,MATCH(K$1,'Data BI Summary'!$2:$2,0),FALSE),INDIRECT("'"&$E12&"'!"&"$A:$K"),9,FALSE) -> -0.02043049585
B13: High | C13: =VLOOKUP(A$11,'Data Billing Quantities'!A:P,MATCH($B13&" kWh",'Data Billing Quantities'!$4:$4,0),FALSE) -> 137890 | D13: =VLOOKUP(A$11,'Data Billing Quantities'!A:P,MATCH(B13&" kW",'Data Billing Quantities'!$4:$4,0),FALSE) -> 340 | E13: BI_WHSI_AUGd_High | F13: BI Template_DemandWHSI | G13: =VLOOKUP(VLOOKUP($F13,'Data BI Summary'!$A:$F,MATCH(G$1,'Data BI Summary'!$2:$2,0),FALSE),INDIRECT("'"&$E13&"'!"&"$A:$K"),4,FALSE) -> 20548.3255 | H13: =VLOOKUP(VLOOKUP($F13,'Data BI Summary'!$A:$F,MATCH(H$1,'Data BI Summary'!$2:$2,0),FALSE),INDIRECT("'"&$E13&"'!"&"$A:$K"),8,FALSE) -> -431.888 | I13: =VLOOKUP(VLOOKUP($F13,'Data BI Summary'!$A:$F,MATCH(I$1,'Data BI Summary'!$2:$2,0),FALSE),INDIRECT("'"&$E13&"'!"&"$A:$K"),9,FALSE) -> -0.4748291766 | J13: =VLOOKUP(VLOOKUP($F13,'Data BI Summary'!$A:$F,MATCH(J$1,'Data BI Summary'!$2:$2,0),FALSE),INDIRECT("'"&$E13&"'!"&"$A:$K"),8,FALSE) -> -466.28772 | K13: =VLOOKUP(VLOOKUP($F13,'Data BI Summary'!$A:$F,MATCH(K$1,'Data BI Summary'!$2:$2,0),FALSE),INDIRECT("'"&$E13&"'!"&"$A:$K"),9,FALSE) -> -0.02269224906
A14: St Lgt-WHSI | B14: Average | C14: =VLOOKUP(A14,'Data Billing Quantities'!A:P,MATCH($B14&" kWh",'Data Billing Quantities'!$4:$4,0),FALSE) -> 37079 | D14: =VLOOKUP(A$14,'Data Billing Quantities'!A:P,MATCH(B14&" kW",'Data Billing Quantities'!$4:$4,0),FALSE) -> 104 | E14: BI_WHSI_StLgt_Avg | F14: BI Template_unmWHSI | G14: =VLOOKUP(VLOOKUP($F14,'Data BI Summary'!$A:$F,MATCH(G$1,'Data BI Summary'!$2:$2,0),FALSE),INDIRECT("'"&$E14&"'!"&"$A:$K"),4,FALSE) -> 10108.31884 | H14: =VLOOKUP(VLOOKUP($F14,'Data BI Summary'!$A:$F,MATCH(H$1,'Data BI Summary'!$2:$2,0),FALSE),INDIRECT("'"&$E14&"'!"&"$A:$K"),8,FALSE) -> 244.8414 | I14: =VLOOKUP(VLOOKUP($F14,'Data BI Summary'!$A:$F,MATCH(I$1,'Data BI Summary'!$2:$2,0),FALSE),INDIRECT("'"&$E14&"'!"&"$A:$K"),9,FALSE) -> 0.0593896576 | J14: =VLOOKUP(VLOOKUP($F14,'Data BI Summary'!$A:$F,MATCH(J$1,'Data BI Summary'!$2:$2,0),FALSE),INDIRECT("'"&$E14&"'!"&"$A:$K"),8,FALSE) -> 281.2461823 | K14: =VLOOKUP(VLOOKUP($F14,'Data BI Summary'!$A:$F,MATCH(K$1,'Data BI Summary'!$2:$2,0),FALSE),INDIRECT("'"&$E14&"'!"&"$A:$K"),9,FALSE) -> 0.02782324013 | L14: Two-tier RPP
A15: USL-WHSI | B15: Average | C15: =VLOOKUP(A15,'Data Billing Quantities'!A:P,MATCH($B15&" kWh",'Data Billing Quantities'!$4:$4,0),FALSE) -> 1349 | E15: BI_WHSI_USL_Avg | F15: BI Template_unmWHSI | G15: =VLOOKUP(VLOOKUP($F15,'Data BI Summary'!$A:$F,MATCH(G$1,'Data BI Summary'!$2:$2,0),FALSE),INDIRECT("'"&$E15&"'!"&"$A:$K"),4,FALSE) -> 238.4561046 | H15: =VLOOKUP(VLOOKUP($F15,'Data BI Summary'!$A:$F,MATCH(H$1,'Data BI Summary'!$2:$2,0),FALSE),INDIRECT("'"&$E15&"'!"&"$A:$K"),8,FALSE) -> 8.3638 | I15: =VLOOKUP(VLOOKUP($F15,'Data BI Summary'!$A:$F,MATCH(I$1,'Data BI Summary'!$2:$2,0),FALSE),INDIRECT("'"&$E15&"'!"&"$A:$K"),9,FALSE) -> 0.1211316317 | J15: =VLOOKUP(VLOOKUP($F15,'Data BI Summary'!$A:$F,MATCH(J$1,'Data BI Summary'!$2:$2,0),FALSE),INDIRECT("'"&$E15&"'!"&"$A:$K"),8,FALSE) -> 8.62175524 | K15: =VLOOKUP(VLOOKUP($F15,'Data BI Summary'!$A:$F,MATCH(K$1,'Data BI Summary'!$2:$2,0),FALSE),INDIRECT("'"&$E15&"'!"&"$A:$K"),9,FALSE) -> 0.03615657168 | L15: Two-tier RPP
A16: ST-WHSI | B16: Average | C16: =VLOOKUP(A16,'Data Billing Quantities'!A:P,MATCH($B16&" kWh",'Data Billing Quantities'!$4:$4,0),FALSE) -> 895853 | D16: =VLOOKUP(A$16,'Data Billing Quantities'!A:P,MATCH(B16&" kW",'Data Billing Quantities'!$4:$4,0),FALSE) -> 3301 | E16: BI_WHSI_ST_Avg | F16: BI Template_DemandWHSI | G16: =VLOOKUP(VLOOKUP($F16,'Data BI Summary'!$A:$F,MATCH(G$1,'Data BI Summary'!$2:$2,0),FALSE),INDIRECT("'"&$E16&"'!"&"$A:$K"),4,FALSE) -> 149168.3967 | H16: =VLOOKUP(VLOOKUP($F16,'Data BI Summary'!$A:$F,MATCH(H$1,'Data BI Summary'!$2:$2,0),FALSE),INDIRECT("'"&$E16&"'!"&"$A:$K"),8,FALSE) -> -2016.2799 | I16: =VLOOKUP(VLOOKUP($F16,'Data BI Summary'!$A:$F,MATCH(I$1,'Data BI Summary'!$2:$2,0),FALSE),INDIRECT("'"&$E16&"'!"&"$A:$K"),9,FALSE) -> -0.4564881186 | J16: =VLOOKUP(VLOOKUP($F16,'Data BI Summary'!$A:$F,MATCH(J$1,'Data BI Summary'!$2:$2,0),FALSE),INDIRECT("'"&$E16&"'!"&"$A:$K"),8,FALSE) -> -1899.788092 | K16: =VLOOKUP(VLOOKUP($F16,'Data BI Summary'!$A:$F,MATCH(K$1,'Data BI Summary'!$2:$2,0),FALSE),INDIRECT("'"&$E16&"'!"&"$A:$K"),9,FALSE) -> -0.01273586184 | L16: WAHSP
A17: NPDI to HONI
A18: AR-NPDI | B18: Low | C18: =VLOOKUP(A$18,'Data Billing Quantities'!A:P,MATCH($B18&" kWh",'Data Billing Quantities'!$4:$4,0),FALSE) -> 290 | E18: BI_NPDI_AR_Low | F18: BI Template_EnergyNPDI | G18: =VLOOKUP(VLOOKUP($F18,'Data BI Summary'!$A:$F,MATCH(G$1,'Data BI Summary'!$2:$2,0),FALSE),INDIRECT("'"&$E18&"'!"&"$A:$K"),4,FALSE) -> 75.61937217 | H18: =VLOOKUP(VLOOKUP($F18,'Data BI Summary'!$A:$F,MATCH(H$1,'Data BI Summary'!$2:$2,0),FALSE),INDIRECT("'"&$E18&"'!"&"$A:$K"),8,FALSE) -> 2.074 | I18: =VLOOKUP(VLOOKUP($F18,'Data BI Summary'!$A:$F,MATCH(I$1,'Data BI Summary'!$2:$2,0),FALSE),INDIRECT("'"&$E18&"'!"&"$A:$K"),9,FALSE) -> 0.05525067931 | J18: =VLOOKUP(VLOOKUP($F18,'Data BI Summary'!$A:$F,MATCH(J$1,'Data BI Summary'!$2:$2,0),FALSE),INDIRECT("'"&$E18&"'!"&"$A:$K"),8,FALSE) -> 2.163476256 | K18: =VLOOKUP(VLOOKUP($F18,'Data BI Summary'!$A:$F,MATCH(K$1,'Data BI Summary'!$2:$2,0),FALSE),INDIRECT("'"&$E18&"'!"&"$A:$K"),9,FALSE) -> 0.02861007959 | L18: TOU
B19: Typical | C19: =VLOOKUP(A$18,'Data Billing Quantities'!A:P,MATCH($B19&" kWh",'Data Billing Quantities'!$4:$4,0),FALSE) -> 750 | E19: BI_NPDI_AR_Typical | F19: BI Template_EnergyNPDI | G19: =VLOOKUP(VLOOKUP($F19,'Data BI Summary'!$A:$F,MATCH(G$1,'Data BI Summary'!$2:$2,0),FALSE),INDIRECT("'"&$E19&"'!"&"$A:$K"),4,FALSE) -> 133.8008894 | H19: =VLOOKUP(VLOOKUP($F19,'Data BI Summary'!$A:$F,MATCH(H$1,'Data BI Summary'!$2:$2,0),FALSE),INDIRECT("'"&$E19&"'!"&"$A:$K"),8,FALSE) -> 2.35 | I19: =VLOOKUP(VLOOKUP($F19,'Data BI Summary'!$A:$F,MATCH(I$1,'Data BI Summary'!$2:$2,0),FALSE),INDIRECT("'"&$E19&"'!"&"$A:$K"),9,FALSE) -> 0.06322302932 | J19: =VLOOKUP(VLOOKUP($F19,'Data BI Summary'!$A:$F,MATCH(J$1,'Data BI Summary'!$2:$2,0),FALSE),INDIRECT("'"&$E19&"'!"&"$A:$K"),8,FALSE) -> 2.5422248 | K19: =VLOOKUP(VLOOKUP($F19,'Data BI Summary'!$A:$F,MATCH(K$1,'Data BI Summary'!$2:$2,0),FALSE),INDIRECT("'"&$E19&"'!"&"$A:$K"),9,FALSE) -> 0.01900005905
B20: Average | C20: =VLOOKUP(A$18,'Data Billing Quantities'!A:P,MATCH($B20&" kWh",'Data Billing Quantities'!$4:$4,0),FALSE) -> 692 | E20: BI_NPDI_AR_Avg | F20: BI Template_EnergyNPDI | G20: =VLOOKUP(VLOOKUP($F20,'Data BI Summary'!$A:$F,MATCH(G$1,'Data BI Summary'!$2:$2,0),FALSE),INDIRECT("'"&$E20&"'!"&"$A:$K"),4,FALSE) -> 126.464959 | H20: =VLOOKUP(VLOOKUP($F20,'Data BI Summary'!$A:$F,MATCH(H$1,'Data BI Summary'!$2:$2,0),FALSE),INDIRECT("'"&$E20&"'!"&"$A:$K"),8,FALSE) -> 2.3152 | I20: =VLOOKUP(VLOOKUP($F20,'Data BI Summary'!$A:$F,MATCH(I$1,'Data BI Summary'!$2:$2,0),FALSE),INDIRECT("'"&$E20&"'!"&"$A:$K"),9,FALSE) -> 0.06220913361 | J20: =VLOOKUP(VLOOKUP($F20,'Data BI Summary'!$A:$F,MATCH(J$1,'Data BI Summary'!$2:$2,0),FALSE),INDIRECT("'"&$E20&"'!"&"$A:$K"),8,FALSE) -> 2.494469549 | K20: =VLOOKUP(VLOOKUP($F20,'Data BI Summary'!$A:$F,MATCH(K$1,'Data BI Summary'!$2:$2,0),FALSE),INDIRECT("'"&$E20&"'!"&"$A:$K"),9,FALSE) -> 0.01972459066
B21: High | C21: =VLOOKUP(A$18,'Data Billing Quantities'!A:P,MATCH($B21&" kWh",'Data Billing Quantities'!$4:$4,0),FALSE) -> 1230 | E21: BI_NPDI_AR_High | F21: BI Template_EnergyNPDI | G21: =VLOOKUP(VLOOKUP($F21,'Data BI Summary'!$A:$F,MATCH(G$1,'Data BI Summary'!$2:$2,0),FALSE),INDIRECT("'"&$E21&"'!"&"$A:$K"),4,FALSE) -> 194.5120378 | H21: =VLOOKUP(VLOOKUP($F21,'Data BI Summary'!$A:$F,MATCH(H$1,'Data BI Summary'!$2:$2,0),FALSE),INDIRECT("'"&$E21&"'!"&"$A:$K"),8,FALSE) -> 2.638 | I21: =VLOOKUP(VLOOKUP($F21,'Data BI Summary'!$A:$F,MATCH(I$1,'Data BI Summary'!$2:$2,0),FALSE),INDIRECT("'"&$E21&"'!"&"$A:$K"),9,FALSE) -> 0.07171206437 | J21: =VLOOKUP(VLOOKUP($F21,'Data BI Summary'!$A:$F,MATCH(J$1,'Data BI Summary'!$2:$2,0),FALSE),INDIRECT("'"&$E21&"'!"&"$A:$K"),8,FALSE) -> 2.937440672 | K21: =VLOOKUP(VLOOKUP($F21,'Data BI Summary'!$A:$F,MATCH(K$1,'Data BI Summary'!$2:$2,0),FALSE),INDIRECT("'"&$E21&"'!"&"$A:$K"),9,FALSE) -> 0.01510158808
A22: AGSe-NPDI | B22: Low | C22: =VLOOKUP(A$22,'Data Billing Quantities'!A:P,MATCH($B22&" kWh",'Data Billing Quantities'!$4:$4,0),FALSE) -> 110 | E22: BI_NPDI_AGSe_Low | F22: BI Template_EnergyNPDI | G22: =VLOOKUP(VLOOKUP($F22,'Data BI Summary'!$A:$F,MATCH(G$1,'Data BI Summary'!$2:$2,0),FALSE),INDIRECT("'"&$E22&"'!"&"$A:$K"),4,FALSE) -> 56.60336858 | H22: =VLOOKUP(VLOOKUP($F22,'Data BI Summary'!$A:$F,MATCH(H$1,'Data BI Summary'!$2:$2,0),FALSE),INDIRECT("'"&$E22&"'!"&"$A:$K"),8,FALSE) -> 0.297 | I22: =VLOOKUP(VLOOKUP($F22,'Data BI Summary'!$A:$F,MATCH(I$1,'Data BI Summary'!$2:$2,0),FALSE),INDIRECT("'"&$E22&"'!"&"$A:$K"),9,FALSE) -> 0.00709830071 | J22: =VLOOKUP(VLOOKUP($F22,'Data BI Summary'!$A:$F,MATCH(J$1,'Data BI Summary'!$2:$2,0),FALSE),INDIRECT("'"&$E22&"'!"&"$A:$K"),8,FALSE) -> 0.324573304 | K22: =VLOOKUP(VLOOKUP($F22,'Data BI Summary'!$A:$F,MATCH(K$1,'Data BI Summary'!$2:$2,0),FALSE),INDIRECT("'"&$E22&"'!"&"$A:$K"),9,FALSE) -> 0.005734169399 | L22: TOU
B23: Typical | C23: =VLOOKUP(A$22,'Data Billing Quantities'!A:P,MATCH($B23&" kWh",'Data Billing Quantities'!$4:$4,0),FALSE) -> 2000 | E23: BI_NPDI_AGSe_Typical | F23: BI Template_EnergyNPDI | G23: =VLOOKUP(VLOOKUP($F23,'Data BI Summary'!$A:$F,MATCH(G$1,'Data BI Summary'!$2:$2,0),FALSE),INDIRECT("'"&$E23&"'!"&"$A:$K"),4,FALSE) -> 321.9796188 | H23: =VLOOKUP(VLOOKUP($F23,'Data BI Summary'!$A:$F,MATCH(H$1,'Data BI Summary'!$2:$2,0),FALSE),INDIRECT("'"&$E23&"'!"&"$A:$K"),8,FALSE) -> 5.4 | I23: =VLOOKUP(VLOOKUP($F23,'Data BI Summary'!$A:$F,MATCH(I$1,'Data BI Summary'!$2:$2,0),FALSE),INDIRECT("'"&$E23&"'!"&"$A:$K"),9,FALSE) -> 0.07281553398 | J23: =VLOOKUP(VLOOKUP($F23,'Data BI Summary'!$A:$F,MATCH(J$1,'Data BI Summary'!$2:$2,0),FALSE),INDIRECT("'"&$E23&"'!"&"$A:$K"),8,FALSE) -> 5.9013328 | K23: =VLOOKUP(VLOOKUP($F23,'Data BI Summary'!$A:$F,MATCH(K$1,'Data BI Summary'!$2:$2,0),FALSE),INDIRECT("'"&$E23&"'!"&"$A:$K"),9,FALSE) -> 0.0183282806
B24: Average | C24: =VLOOKUP(A$22,'Data Billing Quantities'!A:P,MATCH($B24&" kWh",'Data Billing Quantities'!$4:$4,0),FALSE) -> 2377 | E24: BI_NPDI_AGSe_Avg | F24: BI Template_EnergyNPDI | G24: =VLOOKUP(VLOOKUP($F24,'Data BI Summary'!$A:$F,MATCH(G$1,'Data BI Summary'!$2:$2,0),FALSE),INDIRECT("'"&$E24&"'!"&"$A:$K"),4,FALSE) -> 374.9144581 | H24: =VLOOKUP(VLOOKUP($F24,'Data BI Summary'!$A:$F,MATCH(H$1,'Data BI Summary'!$2:$2,0),FALSE),INDIRECT("'"&$E24&"'!"&"$A:$K"),8,FALSE) -> 6.4179 | I24: =VLOOKUP(VLOOKUP($F24,'Data BI Summary'!$A:$F,MATCH(I$1,'Data BI Summary'!$2:$2,0),FALSE),INDIRECT("'"&$E24&"'!"&"$A:$K"),9,FALSE) -> 0.07961993234 | J24: =VLOOKUP(VLOOKUP($F24,'Data BI Summary'!$A:$F,MATCH(J$1,'Data BI Summary'!$2:$2,0),FALSE),INDIRECT("'"&$E24&"'!"&"$A:$K"),8,FALSE) -> 7.013734033 | K24: =VLOOKUP(VLOOKUP($F24,'Data BI Summary'!$A:$F,MATCH(K$1,'Data BI Summary'!$2:$2,0),FALSE),INDIRECT("'"&$E24&"'!"&"$A:$K"),9,FALSE) -> 0.01870755817
B25: High | C25: =VLOOKUP(A$22,'Data Billing Quantities'!A:P,MATCH($B25&" kWh",'Data Billing Quantities'!$4:$4,0),FALSE) -> 6410 | E25: BI_NPDI_AGSe_High | F25: BI Template_EnergyNPDI | G25: =VLOOKUP(VLOOKUP($F25,'Data BI Summary'!$A:$F,MATCH(G$1,'Data BI Summary'!$2:$2,0),FALSE),INDIRECT("'"&$E25&"'!"&"$A:$K"),4,FALSE) -> 941.1908693 | H25: =VLOOKUP(VLOOKUP($F25,'Data BI Summary'!$A:$F,MATCH(H$1,'Data BI Summary'!$2:$2,0),FALSE),INDIRECT("'"&$E25&"'!"&"$A:$K"),8,FALSE) -> 17.307 | I25: =VLOOKUP(VLOOKUP($F25,'Data BI Summary'!$A:$F,MATCH(I$1,'Data BI Summary'!$2:$2,0),FALSE),INDIRECT("'"&$E25&"'!"&"$A:$K"),9,FALSE) -> 0.1157109333 | J25: =VLOOKUP(VLOOKUP($F25,'Data BI Summary'!$A:$F,MATCH(J$1,'Data BI Summary'!$2:$2,0),FALSE),INDIRECT("'"&$E25&"'!"&"$A:$K"),8,FALSE) -> 18.91377162 | K25: =VLOOKUP(VLOOKUP($F25,'Data BI Summary'!$A:$F,MATCH(K$1,'Data BI Summary'!$2:$2,0),FALSE),INDIRECT("'"&$E25&"'!"&"$A:$K"),9,FALSE) -> 0.02009557492
A26: AGSd-NPDI | B26: Low | C26: =VLOOKUP(A$26,'Data Billing Quantities'!A:P,MATCH($B26&" kWh",'Data Billing Quantities'!$4:$4,0),FALSE) -> 13020 | D26: =VLOOKUP(A$26,'Data Billing Quantities'!A:P,MATCH(B26&" kW",'Data Billing Quantities'!$4:$4,0),FALSE) -> 55 | E26: BI_NPDI_AGSd_Low | F26: BI Template_DemandNPDI | G26: =VLOOKUP(VLOOKUP($F26,'Data BI Summary'!$A:$F,MATCH(G$1,'Data BI Summary'!$2:$2,0),FALSE),INDIRECT("'"&$E26&"'!"&"$A:$K"),4,FALSE) -> 2433.565132 | H26: =VLOOKUP(VLOOKUP($F26,'Data BI Summary'!$A:$F,MATCH(H$1,'Data BI Summary'!$2:$2,0),FALSE),INDIRECT("'"&$E26&"'!"&"$A:$K"),8,FALSE) -> -23.947 | I26: =VLOOKUP(VLOOKUP($F26,'Data BI Summary'!$A:$F,MATCH(I$1,'Data BI Summary'!$2:$2,0),FALSE),INDIRECT("'"&$E26&"'!"&"$A:$K"),9,FALSE) -> -0.0599750803 | J26: =VLOOKUP(VLOOKUP($F26,'Data BI Summary'!$A:$F,MATCH(J$1,'Data BI Summary'!$2:$2,0),FALSE),INDIRECT("'"&$E26&"'!"&"$A:$K"),8,FALSE) -> -23.809665 | K26: =VLOOKUP(VLOOKUP($F26,'Data BI Summary'!$A:$F,MATCH(K$1,'Data BI Summary'!$2:$2,0),FALSE),INDIRECT("'"&$E26&"'!"&"$A:$K"),9,FALSE) -> -0.009783861827 | L26: WAHSP
B27: Average | C27: =VLOOKUP(A$26,'Data Billing Quantities'!A:P,MATCH($B27&" kWh",'Data Billing Quantities'!$4:$4,0),FALSE) -> 70294 | D27: =VLOOKUP(A$26,'Data Billing Quantities'!A:P,MATCH(B27&" kW",'Data Billing Quantities'!$4:$4,0),FALSE) -> 181 | E27: BI_NPDI_AGSd_Avg | F27: BI Template_DemandNPDI | G27: =VLOOKUP(VLOOKUP($F27,'Data BI Summary'!$A:$F,MATCH(G$1,'Data BI Summary'!$2:$2,0),FALSE),INDIRECT("'"&$E27&"'!"&"$A:$K"),4,FALSE) -> 11056.60792 | H27: =VLOOKUP(VLOOKUP($F27,'Data BI Summary'!$A:$F,MATCH(H$1,'Data BI Summary'!$2:$2,0),FALSE),INDIRECT("'"&$E27&"'!"&"$A:$K"),8,FALSE) -> -199.5714 | I27: =VLOOKUP(VLOOKUP($F27,'Data BI Summary'!$A:$F,MATCH(I$1,'Data BI Summary'!$2:$2,0),FALSE),INDIRECT("'"&$E27&"'!"&"$A:$K"),9,FALSE) -> -0.2219308191 | J27: =VLOOKUP(VLOOKUP($F27,'Data BI Summary'!$A:$F,MATCH(J$1,'Data BI Summary'!$2:$2,0),FALSE),INDIRECT("'"&$E27&"'!"&"$A:$K"),8,FALSE) -> -214.818763 | K27: =VLOOKUP(VLOOKUP($F27,'Data BI Summary'!$A:$F,MATCH(K$1,'Data BI Summary'!$2:$2,0),FALSE),INDIRECT("'"&$E27&"'!"&"$A:$K"),9,FALSE) -> -0.01942899346
B28: High | C28: =VLOOKUP(A$26,'Data Billing Quantities'!A:P,MATCH($B28&" kWh",'Data Billing Quantities'!$4:$4,0),FALSE) -> 129420 | D28: =VLOOKUP(A$26,'Data Billing Quantities'!A:P,MATCH(B28&" kW",'Data Billing Quantities'!$4:$4,0),FALSE) -> 300 | E28: BI_NPDI_AGSd_High | F28: BI Template_DemandNPDI | G28: =VLOOKUP(VLOOKUP($F28,'Data BI Summary'!$A:$F,MATCH(G$1,'Data BI Summary'!$2:$2,0),FALSE),INDIRECT("'"&$E28&"'!"&"$A:$K"),4,FALSE) -> 19840.57198 | H28: =VLOOKUP(VLOOKUP($F28,'Data BI Summary'!$A:$F,MATCH(H$1,'Data BI Summary'!$2:$2,0),FALSE),INDIRECT("'"&$E28&"'!"&"$A:$K"),8,FALSE) -> -387.588 | I28: =VLOOKUP(VLOOKUP($F28,'Data BI Summary'!$A:$F,MATCH(I$1,'Data BI Summary'!$2:$2,0),FALSE),INDIRECT("'"&$E28&"'!"&"$A:$K"),9,FALSE) -> -0.2835500749 | J28: =VLOOKUP(VLOOKUP($F28,'Data BI Summary'!$A:$F,MATCH(J$1,'Data BI Summary'!$2:$2,0),FALSE),INDIRECT("'"&$E28&"'!"&"$A:$K"),8,FALSE) -> -420.24474 | K28: =VLOOKUP(VLOOKUP($F28,'Data BI Summary'!$A:$F,MATCH(K$1,'Data BI Summary'!$2:$2,0),FALSE),INDIRECT("'"&$E28&"'!"&"$A:$K"),9,FALSE) -> -0.02118107988
A29: St Lgt-NPDI | B29: Average | C29: =VLOOKUP(A$29,'Data Billing Quantities'!A:P,MATCH($B29&" kWh",'Data Billing Quantities'!$4:$4,0),FALSE) -> 11389 | D29: =VLOOKUP(A$29,'Data Billing Quantities'!A:P,MATCH(B29&" kW",'Data Billing Quantities'!$4:$4,0),FALSE) -> 39 | E29: BI_NPDI_StLgt_Avg | F29: BI Template_unmNPDI | G29: =VLOOKUP(VLOOKUP($F29,'Data BI Summary'!$A:$F,MATCH(G$1,'Data BI Summary'!$2:$2,0),FALSE),INDIRECT("'"&$E29&"'!"&"$A:$K"),4,FALSE) -> 2773.850985 | H29: =VLOOKUP(VLOOKUP($F29,'Data BI Summary'!$A:$F,MATCH(H$1,'Data BI Summary'!$2:$2,0),FALSE),INDIRECT("'"&$E29&"'!"&"$A:$K"),8,FALSE) -> 75.2874 | I29: =VLOOKUP(VLOOKUP($F29,'Data BI Summary'!$A:$F,MATCH(I$1,'Data BI Summary'!$2:$2,0),FALSE),INDIRECT("'"&$E29&"'!"&"$A:$K"),9,FALSE) -> 0.05951332246 | J29: =VLOOKUP(VLOOKUP($F29,'Data BI Summary'!$A:$F,MATCH(J$1,'Data BI Summary'!$2:$2,0),FALSE),INDIRECT("'"&$E29&"'!"&"$A:$K"),8,FALSE) -> 77.52598282 | K29: =VLOOKUP(VLOOKUP($F29,'Data BI Summary'!$A:$F,MATCH(K$1,'Data BI Summary'!$2:$2,0),FALSE),INDIRECT("'"&$E29&"'!"&"$A:$K"),9,FALSE) -> 0.0279488636 | L29: Two-tier RPP
A30: Sen Lgt-NPDI | B30: Average | C30: =VLOOKUP(A$30,'Data Billing Quantities'!A:P,MATCH($B30&" kWh",'Data Billing Quantities'!$4:$4,0),FALSE) -> 108 | D30: =VLOOKUP(A$30,'Data Billing Quantities'!A:P,MATCH(B30&" kW",'Data Billing Quantities'!$4:$4,0),FALSE) -> 0.3368027211 | E30: BI_NPDI_SenLgt_Avg | F30: BI Template_unmNPDI | G30: =VLOOKUP(VLOOKUP($F30,'Data BI Summary'!$A:$F,MATCH(G$1,'Data BI Summary'!$2:$2,0),FALSE),INDIRECT("'"&$E30&"'!"&"$A:$K"),4,FALSE) -> 34.37511769 | H30: =VLOOKUP(VLOOKUP($F30,'Data BI Summary'!$A:$F,MATCH(H$1,'Data BI Summary'!$2:$2,0),FALSE),INDIRECT("'"&$E30&"'!"&"$A:$K"),8,FALSE) -> 1.2092 | I30: =VLOOKUP(VLOOKUP($F30,'Data BI Summary'!$A:$F,MATCH(I$1,'Data BI Summary'!$2:$2,0),FALSE),INDIRECT("'"&$E30&"'!"&"$A:$K"),9,FALSE) -> 0.05630051775 | J30: =VLOOKUP(VLOOKUP($F30,'Data BI Summary'!$A:$F,MATCH(J$1,'Data BI Summary'!$2:$2,0),FALSE),INDIRECT("'"&$E30&"'!"&"$A:$K"),8,FALSE) -> 1.236866517 | K30: =VLOOKUP(VLOOKUP($F30,'Data BI Summary'!$A:$F,MATCH(K$1,'Data BI Summary'!$2:$2,0),FALSE),INDIRECT("'"&$E30&"'!"&"$A:$K"),9,FALSE) -> 0.03598144821 | L30: Two-tier RPP
A31: USL-NPDI | B31: Average | C31: =VLOOKUP(A$31,'Data Billing Quantities'!A:P,MATCH($B31&" kWh",'Data Billing Quantities'!$4:$4,0),FALSE) -> 904 | E31: BI_NPDI_USL_Avg | F31: BI Template_unmNPDI | G31: =VLOOKUP(VLOOKUP($F31,'Data BI Summary'!$A:$F,MATCH(G$1,'Data BI Summary'!$2:$2,0),FALSE),INDIRECT("'"&$E31&"'!"&"$A:$K"),4,FALSE) -> 167.7485567 | H31: =VLOOKUP(VLOOKUP($F31,'Data BI Summary'!$A:$F,MATCH(H$1,'Data BI Summary'!$2:$2,0),FALSE),INDIRECT("'"&$E31&"'!"&"$A:$K"),8,FALSE) -> 5.6048 | I31: =VLOOKUP(VLOOKUP($F31,'Data BI Summary'!$A:$F,MATCH(I$1,'Data BI Summary'!$2:$2,0),FALSE),INDIRECT("'"&$E31&"'!"&"$A:$K"),9,FALSE) -> 0.0966391481 | J31: =VLOOKUP(VLOOKUP($F31,'Data BI Summary'!$A:$F,MATCH(J$1,'Data BI Summary'!$2:$2,0),FALSE),INDIRECT("'"&$E31&"'!"&"$A:$K"),8,FALSE) -> 5.777662518 | K31: =VLOOKUP(VLOOKUP($F31,'Data BI Summary'!$A:$F,MATCH(K$1,'Data BI Summary'!$2:$2,0),FALSE),INDIRECT("'"&$E31&"'!"&"$A:$K"),9,FALSE) -> 0.03444239778 | L31: Two-tier RPP
A32: HCHI to HONI
A33: AR-HCHI | B33: Low | C33: =VLOOKUP(A$33,'Data Billing Quantities'!A:P,MATCH($B33&" kWh",'Data Billing Quantities'!$4:$4,0),FALSE) -> 250 | E33: BI_HCHI_AR_Low | F33: BI Template_EnergyHCHI | G33: =VLOOKUP(VLOOKUP($F33,'Data BI Summary'!$A:$F,MATCH(G$1,'Data BI Summary'!$2:$2,0),FALSE),INDIRECT("'"&$E33&"'!"&"$A:$K"),4,FALSE) -> 70.5550448 | H33: =VLOOKUP(VLOOKUP($F33,'Data BI Summary'!$A:$F,MATCH(H$1,'Data BI Summary'!$2:$2,0),FALSE),INDIRECT("'"&$E33&"'!"&"$A:$K"),8,FALSE) -> 2.05 | I33: =VLOOKUP(VLOOKUP($F33,'Data BI Summary'!$A:$F,MATCH(I$1,'Data BI Summary'!$2:$2,0),FALSE),INDIRECT("'"&$E33&"'!"&"$A:$K"),9,FALSE) -> 0.05457207507 | J33: =VLOOKUP(VLOOKUP($F33,'Data BI Summary'!$A:$F,MATCH(J$1,'Data BI Summary'!$2:$2,0),FALSE),INDIRECT("'"&$E33&"'!"&"$A:$K"),8,FALSE) -> 2.1305416 | K33: =VLOOKUP(VLOOKUP($F33,'Data BI Summary'!$A:$F,MATCH(K$1,'Data BI Summary'!$2:$2,0),FALSE),INDIRECT("'"&$E33&"'!"&"$A:$K"),9,FALSE) -> 0.0301968712 | L33: TOU
B34: Typical | C34: =VLOOKUP(A$33,'Data Billing Quantities'!A:P,MATCH($B34&" kWh",'Data Billing Quantities'!$4:$4,0),FALSE) -> 750 | E34: BI_HCHI_AR_Typical | F34: BI Template_EnergyHCHI | G34: =VLOOKUP(VLOOKUP($F34,'Data BI Summary'!$A:$F,MATCH(G$1,'Data BI Summary'!$2:$2,0),FALSE),INDIRECT("'"&$E34&"'!"&"$A:$K"),4,FALSE) -> 133.8464744 | H34: =VLOOKUP(VLOOKUP($F34,'Data BI Summary'!$A:$F,MATCH(H$1,'Data BI Summary'!$2:$2,0),FALSE),INDIRECT("'"&$E34&"'!"&"$A:$K"),8,FALSE) -> 2.35 | I34: =VLOOKUP(VLOOKUP($F34,'Data BI Summary'!$A:$F,MATCH(I$1,'Data BI Summary'!$2:$2,0),FALSE),INDIRECT("'"&$E34&"'!"&"$A:$K"),9,FALSE) -> 0.06314658068 | J34: =VLOOKUP(VLOOKUP($F34,'Data BI Summary'!$A:$F,MATCH(J$1,'Data BI Summary'!$2:$2,0),FALSE),INDIRECT("'"&$E34&"'!"&"$A:$K"),8,FALSE) -> 2.5422248 | K34: =VLOOKUP(VLOOKUP($F34,'Data BI Summary'!$A:$F,MATCH(K$1,'Data BI Summary'!$2:$2,0),FALSE),INDIRECT("'"&$E34&"'!"&"$A:$K"),9,FALSE) -> 0.01899358807
B35: Average | C35: =VLOOKUP(A$33,'Data Billing Quantities'!A:P,MATCH($B35&" kWh",'Data Billing Quantities'!$4:$4,0),FALSE) -> 742 | E35: BI_HCHI_AR_Avg | F35: BI Template_EnergyHCHI | G35: =VLOOKUP(VLOOKUP($F35,'Data BI Summary'!$A:$F,MATCH(G$1,'Data BI Summary'!$2:$2,0),FALSE),INDIRECT("'"&$E35&"'!"&"$A:$K"),4,FALSE) -> 132.8338115 | H35: =VLOOKUP(VLOOKUP($F35,'Data BI Summary'!$A:$F,MATCH(H$1,'Data BI Summary'!$2:$2,0),FALSE),INDIRECT("'"&$E35&"'!"&"$A:$K"),8,FALSE) -> 2.3452 | I35: =VLOOKUP(VLOOKUP($F35,'Data BI Summary'!$A:$F,MATCH(I$1,'Data BI Summary'!$2:$2,0),FALSE),INDIRECT("'"&$E35&"'!"&"$A:$K"),9,FALSE) -> 0.06300811916 | J35: =VLOOKUP(VLOOKUP($F35,'Data BI Summary'!$A:$F,MATCH(J$1,'Data BI Summary'!$2:$2,0),FALSE),INDIRECT("'"&$E35&"'!"&"$A:$K"),8,FALSE) -> 2.535637869 | K35: =VLOOKUP(VLOOKUP($F35,'Data BI Summary'!$A:$F,MATCH(K$1,'Data BI Summary'!$2:$2,0),FALSE),INDIRECT("'"&$E35&"'!"&"$A:$K"),9,FALSE) -> 0.01908879855
B36: High | C36: =VLOOKUP(A$33,'Data Billing Quantities'!A:P,MATCH($B36&" kWh",'Data Billing Quantities'!$4:$4,0),FALSE) -> 1410 | E36: BI_HCHI_AR_High | F36: BI Template_EnergyHCHI | G36: =VLOOKUP(VLOOKUP($F36,'Data BI Summary'!$A:$F,MATCH(G$1,'Data BI Summary'!$2:$2,0),FALSE),INDIRECT("'"&$E36&"'!"&"$A:$K"),4,FALSE) -> 217.3911615 | H36: =VLOOKUP(VLOOKUP($F36,'Data BI Summary'!$A:$F,MATCH(H$1,'Data BI Summary'!$2:$2,0),FALSE),INDIRECT("'"&$E36&"'!"&"$A:$K"),8,FALSE) -> 2.746 | I36: =VLOOKUP(VLOOKUP($F36,'Data BI Summary'!$A:$F,MATCH(I$1,'Data BI Summary'!$2:$2,0),FALSE),INDIRECT("'"&$E36&"'!"&"$A:$K"),9,FALSE) -> 0.07471498925 | J36: =VLOOKUP(VLOOKUP($F36,'Data BI Summary'!$A:$F,MATCH(J$1,'Data BI Summary'!$2:$2,0),FALSE),INDIRECT("'"&$E36&"'!"&"$A:$K"),8,FALSE) -> 3.085646624 | K36: =VLOOKUP(VLOOKUP($F36,'Data BI Summary'!$A:$F,MATCH(K$1,'Data BI Summary'!$2:$2,0),FALSE),INDIRECT("'"&$E36&"'!"&"$A:$K"),9,FALSE) -> 0.0141939838
A37: AGSe-HCHI | B37: Low | C37: =VLOOKUP(A$37,'Data Billing Quantities'!A:P,MATCH($B37&" kWh",'Data Billing Quantities'!$4:$4,0),FALSE) -> 90 | E37: BI_HCHI_AGSe_Low | F37: BI Template_EnergyHCHI | G37: =VLOOKUP(VLOOKUP($F37,'Data BI Summary'!$A:$F,MATCH(G$1,'Data BI Summary'!$2:$2,0),FALSE),INDIRECT("'"&$E37&"'!"&"$A:$K"),4,FALSE) -> 53.8042713 | H37: =VLOOKUP(VLOOKUP($F37,'Data BI Summary'!$A:$F,MATCH(H$1,'Data BI Summary'!$2:$2,0),FALSE),INDIRECT("'"&$E37&"'!"&"$A:$K"),8,FALSE) -> 0.243 | I37: =VLOOKUP(VLOOKUP($F37,'Data BI Summary'!$A:$F,MATCH(I$1,'Data BI Summary'!$2:$2,0),FALSE),INDIRECT("'"&$E37&"'!"&"$A:$K"),9,FALSE) -> 0.005854293148 | J37: =VLOOKUP(VLOOKUP($F37,'Data BI Summary'!$A:$F,MATCH(J$1,'Data BI Summary'!$2:$2,0),FALSE),INDIRECT("'"&$E37&"'!"&"$A:$K"),8,FALSE) -> 0.265559976 | K37: =VLOOKUP(VLOOKUP($F37,'Data BI Summary'!$A:$F,MATCH(K$1,'Data BI Summary'!$2:$2,0),FALSE),INDIRECT("'"&$E37&"'!"&"$A:$K"),9,FALSE) -> 0.00493566718 | L37: TOU
B38: Typical | C38: =VLOOKUP(A$37,'Data Billing Quantities'!A:P,MATCH($B38&" kWh",'Data Billing Quantities'!$4:$4,0),FALSE) -> 2000 | E38: BI_HCHI_AGSe_Typical | F38: BI Template_EnergyHCHI | G38: =VLOOKUP(VLOOKUP($F38,'Data BI Summary'!$A:$F,MATCH(G$1,'Data BI Summary'!$2:$2,0),FALSE),INDIRECT("'"&$E38&"'!"&"$A:$K"),4,FALSE) -> 322.1822188 | H38: =VLOOKUP(VLOOKUP($F38,'Data BI Summary'!$A:$F,MATCH(H$1,'Data BI Summary'!$2:$2,0),FALSE),INDIRECT("'"&$E38&"'!"&"$A:$K"),8,FALSE) -> 5.4 | I38: =VLOOKUP(VLOOKUP($F38,'Data BI Summary'!$A:$F,MATCH(I$1,'Data BI Summary'!$2:$2,0),FALSE),INDIRECT("'"&$E38&"'!"&"$A:$K"),9,FALSE) -> 0.072619688 | J38: =VLOOKUP(VLOOKUP($F38,'Data BI Summary'!$A:$F,MATCH(J$1,'Data BI Summary'!$2:$2,0),FALSE),INDIRECT("'"&$E38&"'!"&"$A:$K"),8,FALSE) -> 5.9013328 | K38: =VLOOKUP(VLOOKUP($F38,'Data BI Summary'!$A:$F,MATCH(K$1,'Data BI Summary'!$2:$2,0),FALSE),INDIRECT("'"&$E38&"'!"&"$A:$K"),9,FALSE) -> 0.0183167551
B39: Average | C39: =VLOOKUP(A$37,'Data Billing Quantities'!A:P,MATCH($B39&" kWh",'Data Billing Quantities'!$4:$4,0),FALSE) -> 2261 | E39: BI_HCHI_AGSe_Avg | F39: BI Template_EnergyHCHI | G39: =VLOOKUP(VLOOKUP($F39,'Data BI Summary'!$A:$F,MATCH(G$1,'Data BI Summary'!$2:$2,0),FALSE),INDIRECT("'"&$E39&"'!"&"$A:$K"),4,FALSE) -> 358.8558546 | H39: =VLOOKUP(VLOOKUP($F39,'Data BI Summary'!$A:$F,MATCH(H$1,'Data BI Summary'!$2:$2,0),FALSE),INDIRECT("'"&$E39&"'!"&"$A:$K"),8,FALSE) -> 6.1047 | I39: =VLOOKUP(VLOOKUP($F39,'Data BI Summary'!$A:$F,MATCH(I$1,'Data BI Summary'!$2:$2,0),FALSE),INDIRECT("'"&$E39&"'!"&"$A:$K"),9,FALSE) -> 0.07742247226 | J39: =VLOOKUP(VLOOKUP($F39,'Data BI Summary'!$A:$F,MATCH(J$1,'Data BI Summary'!$2:$2,0),FALSE),INDIRECT("'"&$E39&"'!"&"$A:$K"),8,FALSE) -> 6.67145673 | K39: =VLOOKUP(VLOOKUP($F39,'Data BI Summary'!$A:$F,MATCH(K$1,'Data BI Summary'!$2:$2,0),FALSE),INDIRECT("'"&$E39&"'!"&"$A:$K"),9,FALSE) -> 0.01859090954
B40: High | C40: =VLOOKUP(A$37,'Data Billing Quantities'!A:P,MATCH($B40&" kWh",'Data Billing Quantities'!$4:$4,0),FALSE) -> 5430 | E40: BI_HCHI_AGSe_High | F40: BI Template_EnergyHCHI | G40: =VLOOKUP(VLOOKUP($F40,'Data BI Summary'!$A:$F,MATCH(G$1,'Data BI Summary'!$2:$2,0),FALSE),INDIRECT("'"&$E40&"'!"&"$A:$K"),4,FALSE) -> 804.1384282 | H40: =VLOOKUP(VLOOKUP($F40,'Data BI Summary'!$A:$F,MATCH(H$1,'Data BI Summary'!$2:$2,0),FALSE),INDIRECT("'"&$E40&"'!"&"$A:$K"),8,FALSE) -> 14.661 | I40: =VLOOKUP(VLOOKUP($F40,'Data BI Summary'!$A:$F,MATCH(I$1,'Data BI Summary'!$2:$2,0),FALSE),INDIRECT("'"&$E40&"'!"&"$A:$K"),9,FALSE) -> 0.1099388104 | J40: =VLOOKUP(VLOOKUP($F40,'Data BI Summary'!$A:$F,MATCH(J$1,'Data BI Summary'!$2:$2,0),FALSE),INDIRECT("'"&$E40&"'!"&"$A:$K"),8,FALSE) -> 16.02211855 | K40: =VLOOKUP(VLOOKUP($F40,'Data BI Summary'!$A:$F,MATCH(K$1,'Data BI Summary'!$2:$2,0),FALSE),INDIRECT("'"&$E40&"'!"&"$A:$K"),9,FALSE) -> 0.01992457765
A41: AGSd-HCHI | B41: Low | C41: =VLOOKUP(A$41,'Data Billing Quantities'!A:P,MATCH($B41&" kWh",'Data Billing Quantities'!$4:$4,0),FALSE) -> 10880 | D41: =VLOOKUP(A$41,'Data Billing Quantities'!A:P,MATCH(B41&" kW",'Data Billing Quantities'!$4:$4,0),FALSE) -> 55 | E41: BI_HCHI_AGSd_Low | F41: BI Template_DemandHCHI | G41: =VLOOKUP(VLOOKUP($F41,'Data BI Summary'!$A:$F,MATCH(G$1,'Data BI Summary'!$2:$2,0),FALSE),INDIRECT("'"&$E41&"'!"&"$A:$K"),4,FALSE) -> 2159.558965 | H41: =VLOOKUP(VLOOKUP($F41,'Data BI Summary'!$A:$F,MATCH(H$1,'Data BI Summary'!$2:$2,0),FALSE),INDIRECT("'"&$E41&"'!"&"$A:$K"),8,FALSE) -> -14.531 | I41: =VLOOKUP(VLOOKUP($F41,'Data BI Summary'!$A:$F,MATCH(I$1,'Data BI Summary'!$2:$2,0),FALSE),INDIRECT("'"&$E41&"'!"&"$A:$K"),9,FALSE) -> -0.03637364907 | J41: =VLOOKUP(VLOOKUP($F41,'Data BI Summary'!$A:$F,MATCH(J$1,'Data BI Summary'!$2:$2,0),FALSE),INDIRECT("'"&$E41&"'!"&"$A:$K"),8,FALSE) -> -13.169585 | K41: =VLOOKUP(VLOOKUP($F41,'Data BI Summary'!$A:$F,MATCH(K$1,'Data BI Summary'!$2:$2,0),FALSE),INDIRECT("'"&$E41&"'!"&"$A:$K"),9,FALSE) -> -0.006098275257 | L41: WAHSP
B42: Average | C42: =VLOOKUP(A$41,'Data Billing Quantities'!A:P,MATCH($B42&" kWh",'Data Billing Quantities'!$4:$4,0),FALSE) -> 57529 | D42: =VLOOKUP(A$41,'Data Billing Quantities'!A:P,MATCH(B42&" kW",'Data Billing Quantities'!$4:$4,0),FALSE) -> 175 | E42: BI_HCHI_AGSd_Avg | F42: BI Template_DemandHCHI | G42: =VLOOKUP(VLOOKUP($F42,'Data BI Summary'!$A:$F,MATCH(G$1,'Data BI Summary'!$2:$2,0),FALSE),INDIRECT("'"&$E42&"'!"&"$A:$K"),4,FALSE) -> 9363.686788 | H42: =VLOOKUP(VLOOKUP($F42,'Data BI Summary'!$A:$F,MATCH(H$1,'Data BI Summary'!$2:$2,0),FALSE),INDIRECT("'"&$E42&"'!"&"$A:$K"),8,FALSE) -> -147.0426 | I42: =VLOOKUP(VLOOKUP($F42,'Data BI Summary'!$A:$F,MATCH(I$1,'Data BI Summary'!$2:$2,0),FALSE),INDIRECT("'"&$E42&"'!"&"$A:$K"),9,FALSE) -> -0.167280838 | J42: =VLOOKUP(VLOOKUP($F42,'Data BI Summary'!$A:$F,MATCH(J$1,'Data BI Summary'!$2:$2,0),FALSE),INDIRECT("'"&$E42&"'!"&"$A:$K"),8,FALSE) -> -155.815813 | K42: =VLOOKUP(VLOOKUP($F42,'Data BI Summary'!$A:$F,MATCH(K$1,'Data BI Summary'!$2:$2,0),FALSE),INDIRECT("'"&$E42&"'!"&"$A:$K"),9,FALSE) -> -0.01664043411
B43: High | C43: =VLOOKUP(A$41,'Data Billing Quantities'!A:P,MATCH($B43&" kWh",'Data Billing Quantities'!$4:$4,0),FALSE) -> 135160 | D43: =VLOOKUP(A$41,'Data Billing Quantities'!A:P,MATCH(B43&" kW",'Data Billing Quantities'!$4:$4,0),FALSE) -> 375 | E43: BI_HCHI_AGSd_High | F43: BI Template_DemandHCHI | G43: =VLOOKUP(VLOOKUP($F43,'Data BI Summary'!$A:$F,MATCH(G$1,'Data BI Summary'!$2:$2,0),FALSE),INDIRECT("'"&$E43&"'!"&"$A:$K"),4,FALSE) -> 21355.64942 | H43: =VLOOKUP(VLOOKUP($F43,'Data BI Summary'!$A:$F,MATCH(H$1,'Data BI Summary'!$2:$2,0),FALSE),INDIRECT("'"&$E43&"'!"&"$A:$K"),8,FALSE) -> -367.379 | I43: =VLOOKUP(VLOOKUP($F43,'Data BI Summary'!$A:$F,MATCH(I$1,'Data BI Summary'!$2:$2,0),FALSE),INDIRECT("'"&$E43&"'!"&"$A:$K"),9,FALSE) -> -0.2188957644 | J43: =VLOOKUP(VLOOKUP($F43,'Data BI Summary'!$A:$F,MATCH(J$1,'Data BI Summary'!$2:$2,0),FALSE),INDIRECT("'"&$E43&"'!"&"$A:$K"),8,FALSE) -> -392.976145 | K43: =VLOOKUP(VLOOKUP($F43,'Data BI Summary'!$A:$F,MATCH(K$1,'Data BI Summary'!$2:$2,0),FALSE),INDIRECT("'"&$E43&"'!"&"$A:$K"),9,FALSE) -> -0.0184015076
A44: St Lgt-HCHI | B44: Average | C44: =VLOOKUP(A$44,'Data Billing Quantities'!A:P,MATCH($B44&" kWh",'Data Billing Quantities'!$4:$4,0),FALSE) -> 31001 | D44: =VLOOKUP(A$44,'Data Billing Quantities'!A:P,MATCH(B44&" kW",'Data Billing Quantities'!$4:$4,0),FALSE) -> 85 | E44: BI_HCHI_StLgt_Avg | F44: BI Template_unmHCHI | G44: =VLOOKUP(VLOOKUP($F44,'Data BI Summary'!$A:$F,MATCH(G$1,'Data BI Summary'!$2:$2,0),FALSE),INDIRECT("'"&$E44&"'!"&"$A:$K"),4,FALSE) -> 8393.717614 | H44: =VLOOKUP(VLOOKUP($F44,'Data BI Summary'!$A:$F,MATCH(H$1,'Data BI Summary'!$2:$2,0),FALSE),INDIRECT("'"&$E44&"'!"&"$A:$K"),8,FALSE) -> 204.7266 | I44: =VLOOKUP(VLOOKUP($F44,'Data BI Summary'!$A:$F,MATCH(I$1,'Data BI Summary'!$2:$2,0),FALSE),INDIRECT("'"&$E44&"'!"&"$A:$K"),9,FALSE) -> 0.06025341111 | J44: =VLOOKUP(VLOOKUP($F44,'Data BI Summary'!$A:$F,MATCH(J$1,'Data BI Summary'!$2:$2,0),FALSE),INDIRECT("'"&$E44&"'!"&"$A:$K"),8,FALSE) -> 235.1664574 | K44: =VLOOKUP(VLOOKUP($F44,'Data BI Summary'!$A:$F,MATCH(K$1,'Data BI Summary'!$2:$2,0),FALSE),INDIRECT("'"&$E44&"'!"&"$A:$K"),9,FALSE) -> 0.02801696081 | L44: Two-tier RPP
A45: Sen Lgt-HCHI | B45: Average | C45: =VLOOKUP(A$45,'Data Billing Quantities'!A:P,MATCH($B45&" kWh",'Data Billing Quantities'!$4:$4,0),FALSE) -> 61 | D45: =VLOOKUP(A$45,'Data Billing Quantities'!A:P,MATCH(B45&" kW",'Data Billing Quantities'!$4:$4,0),FALSE) -> 0.1956473214 | E45: BI_HCHI_SenLgt_Avg | F45: BI Template_unmHCHI | G45: =VLOOKUP(VLOOKUP($F45,'Data BI Summary'!$A:$F,MATCH(G$1,'Data BI Summary'!$2:$2,0),FALSE),INDIRECT("'"&$E45&"'!"&"$A:$K"),4,FALSE) -> 20.71670295 | H45: =VLOOKUP(VLOOKUP($F45,'Data BI Summary'!$A:$F,MATCH(H$1,'Data BI Summary'!$2:$2,0),FALSE),INDIRECT("'"&$E45&"'!"&"$A:$K"),8,FALSE) -> 0.7439 | I45: =VLOOKUP(VLOOKUP($F45,'Data BI Summary'!$A:$F,MATCH(I$1,'Data BI Summary'!$2:$2,0),FALSE),INDIRECT("'"&$E45&"'!"&"$A:$K"),9,FALSE) -> 0.05590500883 | J45: =VLOOKUP(VLOOKUP($F45,'Data BI Summary'!$A:$F,MATCH(J$1,'Data BI Summary'!$2:$2,0),FALSE),INDIRECT("'"&$E45&"'!"&"$A:$K"),8,FALSE) -> 0.7603184956 | K45: =VLOOKUP(VLOOKUP($F45,'Data BI Summary'!$A:$F,MATCH(K$1,'Data BI Summary'!$2:$2,0),FALSE),INDIRECT("'"&$E45&"'!"&"$A:$K"),9,FALSE) -> 0.03670074807 | L45: Two-tier RPP
A46: USL-HCHI | B46: Average | C46: =VLOOKUP(A$46,'Data Billing Quantities'!A:P,MATCH($B46&" kWh",'Data Billing Quantities'!$4:$4,0),FALSE) -> 471 | E46: BI_HCHI_USL_Avg | F46: BI Template_unmHCHI | G46: =VLOOKUP(VLOOKUP($F46,'Data BI Summary'!$A:$F,MATCH(G$1,'Data BI Summary'!$2:$2,0),FALSE),INDIRECT("'"&$E46&"'!"&"$A:$K"),4,FALSE) -> 104.4788211 | H46: =VLOOKUP(VLOOKUP($F46,'Data BI Summary'!$A:$F,MATCH(H$1,'Data BI Summary'!$2:$2,0),FALSE),INDIRECT("'"&$E46&"'!"&"$A:$K"),8,FALSE) -> 2.9202 | I46: =VLOOKUP(VLOOKUP($F46,'Data BI Summary'!$A:$F,MATCH(I$1,'Data BI Summary'!$2:$2,0),FALSE),INDIRECT("'"&$E46&"'!"&"$A:$K"),9,FALSE) -> 0.05967556698 | J46: =VLOOKUP(VLOOKUP($F46,'Data BI Summary'!$A:$F,MATCH(J$1,'Data BI Summary'!$2:$2,0),FALSE),INDIRECT("'"&$E46&"'!"&"$A:$K"),8,FALSE) -> 3.010264432 | K46: =VLOOKUP(VLOOKUP($F46,'Data BI Summary'!$A:$F,MATCH(K$1,'Data BI Summary'!$2:$2,0),FALSE),INDIRECT("'"&$E46&"'!"&"$A:$K"),9,FALSE) -> 0.02881219752 | L46: Two-tier RPP

Sheet BI Template_Energy (hidden)
A1: 2024 Bill Impacts (Low Consumption Level) - R1
A3: Rate Class | B3: =RIGHT(A1,LEN(A1)-FIND("- ",A1,1)-1) -> R1
A4: Monthly Consumption (kWh) | B4: =IF(COUNTIF(A1,"*Low*")>0,VLOOKUP(B3,'Data Billing Quantities'!$A:$Z,MATCH("Low kWh",'Data Billing Quantities'!4:4,0),FALSE),IF(COUNTIF(A1,"*Typical*")>0,VLOOKUP(B3,'Data Billing Quantities'!$A:$Z,MATCH("Typical kWh",'Data Billing Quantities'!4:4,0),FALSE),IF(COUNTIF(A1,"*Average*")>0,VLOOKUP(B3,'Data Billing Quantities'!$A:$Z,MATCH("Average kWh",'Data Billing Quantities'!4:4,0),FALSE),IF(COUNTIF(A1,"*High*")>0,VLOOKUP(B3,'Data Billing Quantities'!$A:$Z,MATCH("High kWh",'Data Billing Quantities'!4:4,0),FALSE),"error")))) -> 370
A5: Peak (kW) | B5: =IF(COUNTIF(A1,"*Low*")>0,VLOOKUP(B3,'Data Billing Quantities'!$A:$Z,MATCH("Low kW",'Data Billing Quantities'!4:4,0),FALSE),IF(COUNTIF(A1,"*Typical*")>0,VLOOKUP(B3,'Data Billing Quantities'!$A:$Z,MATCH("Typical kW",'Data Billing Quantities'!4:4,0),FALSE),IF(COUNTIF(A1,"*Average*")>0,VLOOKUP(B3,'Data Billing Quantities'!$A:$Z,MATCH("Average kW",'Data Billing Quantities'!4:4,0),FALSE),IF(COUNTIF(A1,"*High*")>0,VLOOKUP(B3,'Data Billing Quantities'!$A:$Z,MATCH("High kW",'Data Billing Quantities'!4:4,0),FALSE),"error")))) -> 0
A6: Loss factor | B6: =VLOOKUP(B3,'Data Billing Quantities'!A:D,MATCH(A6,'Data Billing Quantities'!4:4,0),FALSE) -> 1.076
A7: Commodity Threshold | B7: =VLOOKUP(B3,'Data Billing Quantities'!A:D,MATCH(A7,'Data Billing Quantities'!4:4,0),FALSE) -> 600
A8: Monthly Consumption (kWh) - Uplifted | B8: =B4*B6 -> 398.12
A9: Charge determinant | B9: =VLOOKUP(B3,'Data Billing Quantities'!A:D,MATCH(A9,'Data Billing Quantities'!4:4,0),FALSE) -> kWh
B11: Volume | C11: Current Rate ($) | D11: Current Charge ($) | E11: Volume | F11: Proposed Rate ($) | G11: Proposed Charge ($) | H11: Change ($) | I11: Change (%) | J11: % of Total Bill on RPP | K11: % of Total Bill
A12: Energy First Tier | B12: =IF(B4>B7,B7,B4) -> 370 | C12: =VLOOKUP($A12,'Data Pass Through'!$A:$D,2,FALSE) -> 0.087 | D12: =B12*C12 -> 32.19 | E12: =B12 -> 370 | F12: =VLOOKUP($A12,'Data Pass Through'!$A:$D,3,FALSE) -> 0.087 | G12: =E12*F12 -> 32.19 | H12: =G12-D12 -> 0 | I12: =IF(ISERROR(H12/ABS(D12)),"N/A",(H12/ABS(D12))) -> 0 | J12: =G12/$G$49 -> 0.3769602158
A13: Energy Second Tier | B13: =IF(B4>B7,(B4)-B7,0) -> 0 | C13: =VLOOKUP($A13,'Data Pass Through'!$A:$D,2,FALSE) -> 0.103 | D13: =B13*C13 -> 0 | E13: =B13 -> 0 | F13: =VLOOKUP($A13,'Data Pass Through'!$A:$D,3,FALSE) -> 0.103 | G13: =E13*F13 -> 0 | H13: 0 | I13: N/A | J13: =G13/$G$49 -> 0
A14: Sub-Total: Energy (RPP Tiered) | D14: =SUM(D12:D13) -> 32.19 | G14: =SUM(G12:G13) -> 32.19 | H14: 0 | I14: 0 | J14: =G14/$G$49 -> 0.3769602158
A15: TOU-Off Peak | B15: =B$4*VLOOKUP($B$3,'Data Billing Quantities'!$A:$O,MATCH('BI Template_Energy'!$A15,'Data Billing Quantities'!$4:$4,0),FALSE) -> 236.8 | C15: =VLOOKUP($A15,'Data Pass Through'!$A:$D,2,FALSE) -> 0.074 | D15: =B15*C15 -> 17.5232 | E15: 236.8 | F15: =VLOOKUP($A15,'Data Pass Through'!$A:$D,3,FALSE) -> 0.074 | G15: =E15*F15 -> 17.5232 | H15: 0 | I15: 0 | K15: =G15/$G$54 -> 0.1996420984
A16: TOU-Mid Peak | B16: =B$4*VLOOKUP($B$3,'Data Billing Quantities'!$A:$O,MATCH('BI Template_Energy'!$A16,'Data Billing Quantities'!$4:$4,0),FALSE) -> 66.6 | C16: =VLOOKUP($A16,'Data Pass Through'!$A:$D,2,FALSE) -> 0.102 | D16: =B16*C16 -> 6.7932 | E16: 66.6 | F16: =VLOOKUP($A16,'Data Pass Through'!$A:$D,3,FALSE) -> 0.102 | G16: =E16*F16 -> 6.7932 | H16: 0 | I16: 0 | K16: 0.07739503644
A17: TOU-On Peak | B17: =B$4*VLOOKUP($B$3,'Data Billing Quantities'!$A:$O,MATCH('BI Template_Energy'!$A17,'Data Billing Quantities'!$4:$4,0),FALSE) -> 66.6 | C17: =VLOOKUP($A17,'Data Pass Through'!$A:$D,2,FALSE) -> 0.151 | D17: =B17*C17 -> 10.0566 | E17: 66.6 | F17: =VLOOKUP($A17,'Data Pass Through'!$A:$D,3,FALSE) -> 0.151 | G17: =E17*F17 -> 10.0566 | H17: 0 | I17: 0 | K17: 0.1145750049
A18: Sub-Total: Energy (RPP TOU) | D18: =SUM(D15:D17) -> 34.373 | G18: =SUM(G15:G17) -> 34.373 | H18: 0 | I18: 0 | J18: =G18/$G$49 -> 0.4025241845 | K18: 0.3916121397
A19: Service Charge | B19: 1 | C19: =VLOOKUP($B$3,'Data Current Rates'!$A:$AJ,MATCH('BI Template_Energy'!$A19,CurrentHeader,0),FALSE) -> 60.72 | D19: =B19*C19 -> 60.72 | E19: 1 | F19: =VLOOKUP($B$3,'Data Proposed Rates'!$A:$BF,MATCH('BI Template_Energy'!$A19,ProposedHeader,0),FALSE) -> 68.3 | G19: =E19*F19 -> 68.3 | H19: 7.58 | I19: 0.1248353096 | J19: 0.7998254968 | K19: 0.7781429943
A20: Fixed Base Rate Adjustment to Recover Past Tax Amounts | B20: 1 | C20: =VLOOKUP($B$3,'Data Current Rates'!$A:$AJ,MATCH('BI Template_Energy'!$A20,CurrentHeader,0),FALSE) -> 1.56 | D20: =B20*C20 -> 1.56 | H20: =G20-D20 -> -1.56 | I20: =IF(ISERROR(H20/ABS(D20)),"N/A",(H20/ABS(D20))) -> -1 | J20: 0 | K20: 0
A21: Group 2 Fixed DVA Rider | B21: 1 | C21: =VLOOKUP($B$3,'Data Current Rates'!$A:$AJ,MATCH('BI Template_Energy'!$A21,CurrentHeader,0),FALSE) -> -0.21 | D21: =B21*C21 -> -0.21 | E21: 1 | F21: =VLOOKUP($B$3,'Data Proposed Rates'!$A:$BF,MATCH('BI Template_Energy'!$A21,ProposedHeader,0),FALSE) -> -0.21 | G21: -0.21 | H21: 0 | I21: 0 | J21: -0.002459199917 | K21: -0.002392533365
A22: Distribution Volumetric Charge | B22: =IF($B$9="kWh",$B$4,$B$5) -> 370 | C22: =VLOOKUP($B$3,'Data Current Rates'!$A:$AJ,MATCH('BI Template_Energy'!$A22,CurrentHeader,0),FALSE) -> 0.0056 | D22: 2.072 | E22: 370 | F22: =VLOOKUP($B$3,'Data Proposed Rates'!$A:$BF,MATCH('BI Template_Energy'!$A22,ProposedHeader,0),FALSE) -> 0 | G22: 0 | H22: -2.072 | I22: -1 | J22: 0 | K22: 0
A23: Volumetric Base Rate Adjustment to Recover Past Tax Amounts | B23: =IF($B$9="kWh",$B$4,$B$5) -> 370 | C23: =VLOOKUP($B$3,'Data Current Rates'!$A:$AJ,MATCH('BI Template_Energy'!$A23,CurrentHeader,0),FALSE) -> 0 | D23: =B23*C23 -> 0 | H23: =G23-D23 -> 0 | I23: =IF(ISERROR(H23/ABS(D23)),"N/A",(H23/ABS(D23))) -> N/A | J23: 0 | K23: 0
A24: Group 1 Volumetric DVA Rider (General) (2023) | B24: =IF($B$9="kWh",$B$4,$B$5) -> 370 | C24: =VLOOKUP($B$3,'Data Current Rates'!$A:$AJ,MATCH('BI Template_Energy'!$A24,CurrentHeader,0),FALSE) -> -0.0007 | D24: =B24*C24 -> -0.259 | E24: =B24 -> 370 | F24: =VLOOKUP($B$3,'Data Proposed Rates'!$A:$BF,MATCH('BI Template_Energy'!$A24,ProposedHeader,0),FALSE) -> -0.0007 | G24: =E24*F24 -> -0.259 | H24: =G24-D24 -> 0 | I24: =IF(ISERROR(H24/ABS(D24)),"N/A",(H24/ABS(D24))) -> 0 | J24: -0.003033013231 | K24: -0.00295079115
A25: Group 2 Volumetric DVA Rider | B25: 370 | C25: =VLOOKUP($B$3,'Data Current Rates'!$A:$AJ,MATCH('BI Template_Energy'!$A25,CurrentHeader,0),FALSE) -> 0 | D25: =B25*C25 -> 0 | E25: =IF($B$9="kWh",$B$4,$B$5) -> 370 | F25: =VLOOKUP($B$3,'Data Proposed Rates'!$A:$BF,MATCH('BI Template_Energy'!$A25,ProposedHeader,0),FALSE) -> 0 | G25: =E25*F25 -> 0 | H25: =G25-D25 -> 0 | I25: =IF(ISERROR(H25/ABS(D25)),"N/A",(H25/ABS(D25))) -> N/A | J25: =G25/$G$49 -> 0 | K25: =G25/$G$54 -> 0
A26: Group 1 Volumetric DVA Rider (General) (2024) | E26: 370 | F26: =VLOOKUP($B$3,'Data Proposed Rates'!$A:$BF,MATCH('BI Template_Energy'!$A26,ProposedHeader,0),FALSE) -> 0.0013 | G26: =E26*F26 -> 0.481 | H26: =G26-D26 -> 0.481 | I26: =IF(ISERROR(H26/ABS(D26)),"N/A",(H26/ABS(D26))) -> N/A | J26: =G26/$G$49 -> 0.005632738857 | K26: =G26/$G$54 -> 0.005480040707
A27: Group 1 Volumetric Deferral/Variance Account Rider (Sub-Account CBR) (2024) | E27: 370 | F27: =VLOOKUP($B$3,'Data Proposed Rates'!$A:$BF,MATCH('BI Template_Energy'!$A27,ProposedHeader,0),FALSE) -> -0.0005 | G27: -0.185 | H27: -0.185 | I27: N/A | J27: -0.002166438022 | K27: -0.002107707964
A28: Fair Hydro Plan - Distribution Rate Protection Savings* | D28: =IF(AND(B3<>"R1",B3<>"R2"),0,IF(VLOOKUP($A28,'Data Pass Through'!$A:$D,2,FALSE)=0,0,IF(SUM(D19:D20,D22:D23)<VLOOKUP($A28,'Data Pass Through'!$A:$D,2,FALSE),0,VLOOKUP($A28,'Data Pass Through'!$A:$D,2,FALSE)-SUM(D19:D20,D22:D23)))) -> -24.862 | G28: =IF(AND(B3<>"R1",B3<>"R2"),0,IF(VLOOKUP($A28,'Data Pass Through'!$A:$D,2,FALSE)=0,0,IF(SUM(G19:G20,G22:G23)<VLOOKUP($A28,'Data Pass Through'!$A:$D,2,FALSE),0,VLOOKUP($A28,'Data Pass Through'!$A:$D,2,FALSE)-SUM(G19:G20,G22:G23)))) -> -28.81 | H28: -3.948 | I28: -0.158796557 | J28: =G28/$G$49 -> -0.3373788076 | K28: =G28/$G$54 -> -0.3282327916
A29: Sub-Total: Distribution (excluding pass through) | D29: =SUM(INDIRECT("D19:D"&ROW()-1)) -> 39.021 | G29: =SUM(INDIRECT("g19:g"&ROW()-1)) -> 39.317 | H29: =G29-D29 -> 0.296 | I29: =IF(ISERROR(H29/ABS(D29)),"N/A",(H29/ABS(D29))) -> 0.007585659004 | J29: 0.4604207768 | K29: 0.4479392109
A30: Smart Metering Entity Charge | B30: 1 | C30: =VLOOKUP($A30,'Data Pass Through'!$A:$D,2,FALSE) -> 0.42 | D30: =B30*C30 -> 0.42 | E30: 1 | F30: =VLOOKUP($A30,'Data Pass Through'!$A:$D,3,FALSE) -> 0.42 | G30: =E30*F30 -> 0.42 | H30: 0 | I30: 0 | J30: 0.004918399834 | K30: 0.004785066729
A31: Line Losses on Cost of Power (based on two-tier RPP prices) | B31: =B8-B4 -> 28.12 | C31: =IF(B4>B7,C13,C12) -> 0.087 | D31: =B31*C31 -> 2.44644 | E31: 28.12 | F31: =IF(B4>B7,F13,F12) -> 0.087 | G31: =E31*F31 -> 2.44644 | H31: 0 | I31: 0 | J31: 0.0286489764 | K31: 0.02787233012
A32: Line Losses on Cost of Power (based on TOU prices) | B32: =B8-B4 -> 28.12 | C32: =VLOOKUP($B$3,'Data Billing Quantities'!$A:$O,MATCH('BI Template_Energy'!$A15,'Data Billing Quantities'!$4:$4,0),FALSE)*C15+VLOOKUP($B$3,'Data Billing Quantities'!$A:$O,MATCH('BI Template_Energy'!$A16,'Data Billing Quantities'!$4:$4,0),FALSE)*C16+VLOOKUP($B$3,'Data Billing Quantities'!$A:$O,MATCH('BI Template_Energy'!$A17,'Data Billing Quantities'!$4:$4,0),FALSE)*C17 -> 0.0929 | D32: =B32*C32 -> 2.612348 | E32: 28.12 | F32: =VLOOKUP($B$3,'Data Billing Quantities'!$A:$O,MATCH('BI Template_Energy'!$A15,'Data Billing Quantities'!$4:$4,0),FALSE)*F15+VLOOKUP($B$3,'Data Billing Quantities'!$A:$O,MATCH('BI Template_Energy'!$A16,'Data Billing Quantities'!$4:$4,0),FALSE)*F16+VLOOKUP($B$3,'Data Billing Quantities'!$A:$O,MATCH('BI Template_Energy'!$A17,'Data Billing Quantities'!$4:$4,0),FALSE)*F17 -> 0.0929 | G32: =E32*F32 -> 2.612348 | H32: 0 | I32: 0 | J32: 0.03059183802 | K32: 0.02976252262
A33: Sub-Total: Distribution (based on two-tier RPP prices) | D33: =SUM(D29,D30:D31) -> 41.88744 | G33: =SUM(G29,G30:G31) -> 42.18344 | H33: 0.296 | I33: 0.007066557422 | J33: 0.4939881531 | K33: 0.4805966078
A34: Sub-Total: Distribution (based on TOU prices) | D34: =SUM(D29,D30,D32) -> 42.053348 | G34: =SUM(G29,G30,G32) -> 42.349348 | H34: 0.296 | I34: 0.007038678585 | J34: 0.4959310147 | K34: 0.4824868003
A35: Retail Transmission Rate – Network Service Rate | B35: =B8 -> 398.12 | C35: =VLOOKUP($B$3,'Data Current Rates'!$A:$AJ,MATCH('BI Template_Energy'!$A35,CurrentHeader,0),FALSE) -> 0.0111 | D35: =B35*C35 -> 4.419132 | E35: 398.12 | F35: =VLOOKUP($B$3,'Data Proposed Rates'!$A:$BF,MATCH('BI Template_Energy'!$A35,ProposedHeader,0),FALSE) -> 0.011 | G35: =E35*F35 -> 4.37932 | H35: =G35-D35 -> -0.039812 | I35: -0.009009009009 | J35: 0.05128392086 | K35: 0.04989366292
A36: Retail Transmission Rate – Line and Transformation Connection Service Rate | B36: =B8 -> 398.12 | C36: =VLOOKUP($B$3,'Data Current Rates'!$A:$AJ,MATCH('BI Template_Energy'!$A36,CurrentHeader,0),FALSE) -> 0.0077 | D36: =B36*C36 -> 3.065524 | E36: 398.12 | F36: =VLOOKUP($B$3,'Data Proposed Rates'!$A:$BF,MATCH('BI Template_Energy'!$A36,ProposedHeader,0),FALSE) -> 0.0081 | G36: =E36*F36 -> 3.224772 | H36: =G36-D36 -> 0.159248 | I36: 0.05194805195 | J36: 0.03776361445 | K36: 0.03673987906
A37: Sub-Total: Retail Transmission | D37: =SUM(D35:D36) -> 7.484656 | G37: =SUM(G35:G36) -> 7.604092 | H37: =G37-D37 -> 0.119436 | I37: 0.01595744681 | J37: 0.08904753531 | K37: 0.08663354199
A38: Sub-Total: Delivery (based on two-tier RPP prices) | D38: =D33+D37 -> 49.372096 | G38: =G33+G37 -> 49.787532 | H38: =G38-D38 -> 0.415436 | I38: 0.008414388565 | J38: 0.5830356884 | K38: 0.5672301498
A39: Sub-Total: Delivery (based on TOU prices) | D39: =D34+D37 -> 49.538004 | G39: =G34+G37 -> 49.95344 | H39: =G39-D39 -> 0.415436 | I39: 0.00838620789 | J39: 0.58497855 | K39: 0.5691203423
A40: Wholesale Market Service Rate (WMS) - not including CBR | B40: =B8 -> 398.12 | C40: =VLOOKUP($A40,'Data Pass Through'!$A:$D,2,FALSE) -> 0.0041 | D40: =B40*C40 -> 1.632292 | E40: =$B$8 -> 398.12 | F40: =VLOOKUP($A40,'Data Pass Through'!$A:$D,3,FALSE) -> 0.0041 | G40: =E40*F40 -> 1.632292 | H40: 0 | I40: 0 | J40: 0.01911491596 | K40: 0.01859672891
A41: Capacity Based Recovery (CBR) - Applicable for Class B Customers | B41: =B8 -> 398.12 | C41: =VLOOKUP($A41,'Data Pass Through'!$A:$D,2,FALSE) -> 0.0004 | D41: =B41*C41 -> 0.159248 | E41: =$B$8 -> 398.12 | F41: =VLOOKUP($A41,'Data Pass Through'!$A:$D,3,FALSE) -> 0.0004 | G41: =E41*F41 -> 0.159248 | H41: =G41-D41 -> 0 | I41: =IF(ISERROR(H41/ABS(D41)),"N/A",(H41/ABS(D41))) -> 0 | J41: 0.001864869849 | K41: 0.001814315015
A42: Rural Rate Protection Charge | B42: =B8 -> 398.12 | C42: =VLOOKUP($A42,'Data Pass Through'!$A:$D,2,FALSE) -> 0.0007 | D42: 0.278684 | E42: 398.12 | F42: =VLOOKUP($A42,'Data Pass Through'!$A:$D,3,FALSE) -> 0.0007 | G42: 0.278684 | H42: 0 | I42: 0 | J42: 0.003263522236 | K42: 0.003175051277
A43: Standard Supply Service – Administration Charge (if applicable) | B43: 1 | C43: =VLOOKUP($A43,'Data Pass Through'!$A:$D,2,FALSE) -> 0.25 | D43: =B43*C43 -> 0.25 | E43: 1 | F43: =VLOOKUP($A43,'Data Pass Through'!$A:$D,3,FALSE) -> 0.25 | G43: 0.25 | H43: 0 | I43: 0 | J43: 0.002927618949 | K43: 0.002848254005
A44: Sub-Total: Regulatory | D44: =SUM(D40:D43) -> 2.320224 | G44: =SUM(G40:G43) -> 2.320224 | H44: 0 | I44: 0 | J44: 0.02717092699 | K44: 0.02643434921
A45: Total Electricty Charge on Two-Tier RPP | D45: =SUM(D14,D29,D30,D31,D37,D44) -> 83.88232 | G45: =SUM(G14,G29,G30,G31,G37,G44) -> 84.297756 | H45: 0.415436 | I45: 0.00495260503 | J45: 0.9871668312
A46: HST | C46: 0.13 | D46: =D45*C46 -> 10.9047016 | F46: =C46 -> 0.13 | G46: =G45*F46 -> 10.95870828 | H46: 0.05400668 | I46: 0.00495260503 | J46: 0.1283316881
A47: Total Electricity Charge on Two-Tier RPP (including HST) | D47: =SUM(D45:D46) -> 94.7870216 | G47: =SUM(G45:G46) -> 95.25646428 | H47: 0.46944268 | I47: 0.00495260503 | J47: 1.115498519
A48: Ontario Electricity Rebate (OER) | C48: =IF(($B$4*12)<250000,VLOOKUP(A48,'Data Pass Through'!$A$4:$C$20,2,0),0) -> -0.117 | D48: =D45*C48 -> -9.81423144 | F48: =C48 -> -0.117 | G48: =G45*F48 -> -9.862837452 | H48: -0.048606012 | I48: -0.00495260503 | J48: -0.1154985192
A49: Total Amount on Two-Tier RPP | D49: =SUM(D47:D48) -> 84.97279016 | G49: =SUM(G47:G48) -> 85.39362683 | H49: 0.420836668 | I49: 0.00495260503 | J49: 1
A50: Total Electricty Charge on TOU (before HST) | D50: =SUM(D18,D29,D30,D32,D37,D44) -> 86.231228 | G50: =SUM(G18,G29,G30,G32,G37,G44) -> 86.646664 | H50: 0.415436 | I50: 0.00481769783 | K50: =G50/$G$54 -> 0.9871668312
A51: HST | C51: 0.13 | D51: =D50*C51 -> 11.21005964 | F51: =C51 -> 0.13 | G51: =G50*F51 -> 11.26406632 | H51: 0.05400668 | I51: 0.00481769783 | K51: =G51/$G$54 -> 0.1283316881
A52: Total Electricity Charge on TOU (including HST) | D52: =SUM(D50:D51) -> 97.44128764 | G52: =SUM(G50:G51) -> 97.91073032 | H52: 0.46944268 | I52: 0.00481769783 | K52: =G52/$G$54 -> 1.115498519
A53: Ontario Electricity Rebate (OER) | C53: =IF(($B$4*12)<250000,VLOOKUP(A53,'Data Pass Through'!$A$4:$C$20,2,0),0) -> -0.117 | D53: =D50*C53 -> -10.08905368 | F53: =C53 -> -0.117 | G53: =G50*F53 -> -10.13765969 | H53: -0.048606012 | I53: -0.00481769783 | K53: =G53/$G$54 -> -0.1154985192
A54: Total Amount on TOU | D54: =SUM(D52:D53) -> 87.35223396 | G54: =SUM(G52:G53) -> 87.77307063 | H54: 0.420836668 | I54: 0.00481769783 | K54: =G54/$G$54 -> 1
A55: * Distribution rate protection applies to R1 and R2 customers

Sheet BI Template_EnergyUNM (hidden)
A1: 2024 Bill Impacts (Average Consumption Level) - USL
A3: Rate Class | B3: =RIGHT(A1,LEN(A1)-FIND("- ",A1,1)-1) -> USL
A4: Monthly Consumption (kWh) | B4: =IF(COUNTIF(A1,"*Low*")>0,VLOOKUP(B3,'Data Billing Quantities'!$A:$Z,MATCH("Low kWh",'Data Billing Quantities'!4:4,0),FALSE),IF(COUNTIF(A1,"*Typical*")>0,VLOOKUP(B3,'Data Billing Quantities'!$A:$Z,MATCH("Typical kWh",'Data Billing Quantities'!4:4,0),FALSE),IF(COUNTIF(A1,"*Average*")>0,VLOOKUP(B3,'Data Billing Quantities'!$A:$Z,MATCH("Average kWh",'Data Billing Quantities'!4:4,0),FALSE),IF(COUNTIF(A1,"*High*")>0,VLOOKUP(B3,'Data Billing Quantities'!$A:$Z,MATCH("High kWh",'Data Billing Quantities'!4:4,0),FALSE),"error")))) -> 477
A5: Peak (kW) | B5: =IF(COUNTIF(A1,"*Low*")>0,VLOOKUP(B3,'Data Billing Quantities'!$A:$Z,MATCH("Low kW",'Data Billing Quantities'!4:4,0),FALSE),IF(COUNTIF(A1,"*Typical*")>0,VLOOKUP(B3,'Data Billing Quantities'!$A:$Z,MATCH("Typical kW",'Data Billing Quantities'!4:4,0),FALSE),IF(COUNTIF(A1,"*Average*")>0,VLOOKUP(B3,'Data Billing Quantities'!$A:$Z,MATCH("Average kW",'Data Billing Quantities'!4:4,0),FALSE),IF(COUNTIF(A1,"*High*")>0,VLOOKUP(B3,'Data Billing Quantities'!$A:$Z,MATCH("High kW",'Data Billing Quantities'!4:4,0),FALSE),"error")))) -> 0
A6: Loss factor | B6: =VLOOKUP(B3,'Data Billing Quantities'!A:D,MATCH(A6,'Data Billing Quantities'!4:4,0),FALSE) -> 1.092
A7: Commodity Threshold | B7: =VLOOKUP(B3,'Data Billing Quantities'!A:D,MATCH(A7,'Data Billing Quantities'!4:4,0),FALSE) -> 750
A8: Monthly Consumption (kWh) - Uplifted | B8: =B4*B6 -> 520.884
A9: Charge determinant | B9: =VLOOKUP(B3,'Data Billing Quantities'!A:D,MATCH(A9,'Data Billing Quantities'!4:4,0),FALSE) -> kWh
B11: Volume | C11: Current Rate ($) | D11: Current Charge ($) | E11: Volume | F11: Proposed Rate ($) | G11: Proposed Charge ($) | H11: Change ($) | I11: Change (%) | J11: % of Total Bill
A12: Energy First Tier | B12: =IF(B4>B7,B7,B4) -> 477 | C12: =VLOOKUP($A12,'Data Pass Through'!$A:$D,2,FALSE) -> 0.087 | D12: =B12*C12 -> 41.499 | E12: =B12 -> 477 | F12: =VLOOKUP($A12,'Data Pass Through'!$A:$D,3,FALSE) -> 0.087 | G12: =E12*F12 -> 41.499 | H12: =G12-D12 -> 0 | I12: =IF(ISERROR(H12/ABS(D12)),"N/A",(H12/ABS(D12))) -> 0 | J12: =G12/$G$39 -> 0.3819478586
A13: Energy Second Tier | B13: =IF(B4>B7,(B4)-B7,0) -> 0 | C13: =VLOOKUP($A13,'Data Pass Through'!$A:$D,2,FALSE) -> 0.103 | D13: =B13*C13 -> 0 | E13: =B13 -> 0 | F13: =VLOOKUP($A13,'Data Pass Through'!$A:$D,3,FALSE) -> 0.103 | G13: =E13*F13 -> 0 | H13: 0 | I13: N/A | J13: 0
A14: Sub-Total: Energy (RPP Tiered) | D14: =SUM(D12:D13) -> 41.499 | G14: =SUM(G12:G13) -> 41.499 | H14: 0 | I14: 0 | J14: 0.3819478586
A15: Service Charge | B15: 1 | C15: =VLOOKUP($B$3,'Data Current Rates'!$A:$AJ,MATCH('BI Template_EnergyUNM'!$A15,CurrentHeader,0),FALSE) -> 38.29 | D15: =B15*C15 -> 38.29 | E15: 1 | F15: =VLOOKUP($B$3,'Data Proposed Rates'!$A:$BF,MATCH('BI Template_EnergyUNM'!$A15,ProposedHeader,0),FALSE) -> 38.29 | G15: =E15*F15 -> 38.29 | H15: 0 | I15: 0 | J15: 0.3524129137
A16: Fixed Base Rate Adjustment to Recover Past Tax Amounts | B16: 1 | C16: =VLOOKUP($B$3,'Data Current Rates'!$A:$AJ,MATCH('BI Template_EnergyUNM'!$A16,CurrentHeader,0),FALSE) -> 0.89 | D16: =B16*C16 -> 0.89 | H16: =G16-D16 -> -0.89 | I16: =IF(ISERROR(H16/ABS(D16)),"N/A",(H16/ABS(D16))) -> -1 | J16: 0
A17: Distribution Volumetric Charge | B17: =IF($B$9="kWh",$B$4,$B$5) -> 477 | C17: =VLOOKUP($B$3,'Data Current Rates'!$A:$AJ,MATCH('BI Template_EnergyUNM'!$A17,CurrentHeader,0),FALSE) -> 0.024 | D17: 11.448 | E17: 477 | F17: =VLOOKUP($B$3,'Data Proposed Rates'!$A:$BF,MATCH('BI Template_EnergyUNM'!$A17,ProposedHeader,0),FALSE) -> 0.0292 | G17: 13.9284 | H17: 2.4804 | I17: 0.2166666667 | J17: 0.1281939939
A18: Volumetric Base Rate Adjustment to Recover Past Tax Amounts | B18: =IF($B$9="kWh",$B$4,$B$5) -> 477 | C18: =VLOOKUP($B$3,'Data Current Rates'!$A:$AJ,MATCH('BI Template_EnergyUNM'!$A18,CurrentHeader,0),FALSE) -> 0.0006 | D18: =B18*C18 -> 0.2862 | H18: =G18-D18 -> -0.2862 | I18: =IF(ISERROR(H18/ABS(D18)),"N/A",(H18/ABS(D18))) -> -1 | J18: 0
A19: Group 1 Volumetric DVA Rider (General) (2023) | B19: =IF($B$9="kWh",$B$4,$B$5) -> 477 | C19: =VLOOKUP($B$3,'Data Current Rates'!$A:$AJ,MATCH('BI Template_EnergyUNM'!$A19,CurrentHeader,0),FALSE) -> -0.0007 | D19: =B19*C19 -> -0.3339 | E19: =B4 -> 477 | F19: =VLOOKUP($B$3,'Data Proposed Rates'!$A:$BF,MATCH('BI Template_EnergyUNM'!$A19,ProposedHeader,0),FALSE) -> -0.0007 | G19: =E19*F19 -> -0.3339 | H19: =G19-D19 -> 0 | I19: =IF(ISERROR(H19/ABS(D19)),"N/A",(H19/ABS(D19))) -> 0 | J19: -0.00307314369
A20: Group 2 Volumetric DVA Rider | B20: 477 | C20: =VLOOKUP($B$3,'Data Current Rates'!$A:$AJ,MATCH('BI Template_EnergyUNM'!$A20,CurrentHeader,0),FALSE) -> -0.0003 | D20: -0.1431 | E20: =IF($B$9="kWh",$B$4,$B$5) -> 477 | F20: =VLOOKUP($B$3,'Data Proposed Rates'!$A:$BF,MATCH('BI Template_EnergyUNM'!$A20,ProposedHeader,0),FALSE) -> -0.0003 | G20: -0.1431 | H20: 0 | I20: 0 | J20: -0.001317061581
A21: Group 1 Volumetric DVA Rider (General) (2024) | E21: 477 | F21: =VLOOKUP($B$3,'Data Proposed Rates'!$A:$BF,MATCH('BI Template_EnergyUNM'!$A21,ProposedHeader,0),FALSE) -> 0.0017 | G21: =E21*F21 -> 0.8109 | H21: =G21-D21 -> 0.8109 | I21: =IF(ISERROR(H21/ABS(D21)),"N/A",(H21/ABS(D21))) -> N/A | J21: =G21/$G$39 -> 0.007463348961
A22: Group 1 Volumetric Deferral/Variance Account Rider (Sub-Account CBR) (2024) | E22: 477 | F22: =VLOOKUP($B$3,'Data Proposed Rates'!$A:$BF,MATCH('BI Template_EnergyUNM'!$A22,ProposedHeader,0),FALSE) -> -0.0005 | G22: -0.2385 | H22: -0.2385 | I22: N/A | J22: -0.002195102636
A23: Sub-Total: Distribution (excluding pass through) | D23: =SUM(INDIRECT("D15:D"&ROW()-1)) -> 50.4372 | G23: =SUM(INDIRECT("g15:g"&ROW()-1)) -> 52.3138 | H23: =G23-D23 -> 1.8766 | I23: 0.03720666492 | J23: 0.4814849487
A24: Line Losses on Cost of Power (based on two-tier RPP prices) | B24: =B8-B4 -> 43.884 | C24: =IF(B4>B7,C13,C12) -> 0.087 | D24: =B24*C24 -> 3.817908 | E24: 43.884 | F24: =IF(B4>B7,F13,F12) -> 0.087 | G24: =E24*F24 -> 3.817908 | H24: 0 | I24: 0 | J24: 0.03513920299
A25: Sub-Total: Distribution (based on two-tier RPP prices) | D25: =SUM(D23,D24:D24) -> 54.255108 | G25: =SUM(G23,G24:G24) -> 56.131708 | H25: 1.8766 | I25: 0.03458844834 | J25: 0.5166241516
A26: Retail Transmission Rate – Network Service Rate | B26: =B8 -> 520.884 | C26: =VLOOKUP($B$3,'Data Current Rates'!$A:$AJ,MATCH('BI Template_EnergyUNM'!$A26,CurrentHeader,0),FALSE) -> 0.0075 | D26: =B26*C26 -> 3.90663 | E26: 520.884 | F26: =VLOOKUP($B$3,'Data Proposed Rates'!$A:$BF,MATCH('BI Template_EnergyUNM'!$A26,ProposedHeader,0),FALSE) -> 0.0073 | G26: =E26*F26 -> 3.8024532 | H26: =G26-D26 -> -0.1041768 | I26: -0.02666666667 | J26: 0.03499696034
A27: Retail Transmission Rate – Line and Transformation Connection Service Rate | B27: =B8 -> 520.884 | C27: =VLOOKUP($B$3,'Data Current Rates'!$A:$AJ,MATCH('BI Template_EnergyUNM'!$A27,CurrentHeader,0),FALSE) -> 0.0052 | D27: =B27*C27 -> 2.7085968 | E27: 520.884 | F27: =VLOOKUP($B$3,'Data Proposed Rates'!$A:$BF,MATCH('BI Template_EnergyUNM'!$A27,ProposedHeader,0),FALSE) -> 0.0055 | G27: =E27*F27 -> 2.864862 | H27: =G27-D27 -> 0.1562652 | I27: 0.05769230769 | J27: 0.02636757286
A28: Sub-Total: Retail Transmission | D28: =SUM(D26:D27) -> 6.6152268 | G28: =SUM(G26:G27) -> 6.6673152 | H28: =G28-D28 -> 0.0520884 | I28: 0.007874015748 | J28: 0.0613645332
A29: Sub-Total: Delivery (based on two-tier RPP prices) | D29: =D25+D28 -> 60.8703348 | G29: =G25+G28 -> 62.7990232 | H29: =G29-D29 -> 1.9286884 | I29: 0.03168519454 | J29: 0.5779886848
A30: Wholesale Market Service Rate (WMS) - not including CBR | B30: =B8 -> 520.884 | C30: =VLOOKUP($A30,'Data Pass Through'!$A:$D,2,FALSE) -> 0.0041 | D30: =B30*C30 -> 2.1356244 | E30: =$B$8 -> 520.884 | F30: =VLOOKUP($A30,'Data Pass Through'!$A:$D,3,FALSE) -> 0.0041 | G30: =E30*F30 -> 2.1356244 | H30: =G30-D30 -> 0 | I30: 0 | J30: 0.01965582704
A31: Capacity Based Recovery (CBR) - Applicable for Class B Customers | B31: =B8 -> 520.884 | C31: =VLOOKUP($A31,'Data Pass Through'!$A:$D,2,FALSE) -> 0.0004 | D31: =B31*C31 -> 0.2083536 | E31: =$B$8 -> 520.884 | F31: =VLOOKUP($A31,'Data Pass Through'!$A:$D,3,FALSE) -> 0.0004 | G31: =E31*F31 -> 0.2083536 | H31: 0 | I31: 0 | J31: 0.001917641662
A32: Rural Rate Protection Charge | B32: =B8 -> 520.884 | C32: =VLOOKUP($A32,'Data Pass Through'!$A:$D,2,FALSE) -> 0.0007 | D32: 0.3646188 | E32: 520.884 | F32: =VLOOKUP($A32,'Data Pass Through'!$A:$D,3,FALSE) -> 0.0007 | G32: 0.3646188 | H32: 0 | I32: 0 | J32: 0.003355872909
A33: Standard Supply Service – Administration Charge (if applicable) | B33: 1 | C33: =VLOOKUP($A33,'Data Pass Through'!$A:$D,2,FALSE) -> 0.25 | D33: =B33*C33 -> 0.25 | E33: 1 | F33: =VLOOKUP($A33,'Data Pass Through'!$A:$D,3,FALSE) -> 0.25 | G33: 0.25 | H33: 0 | I33: 0 | J33: 0.002300946159
A34: Sub-Total: Regulatory | D34: =SUM(D30:D33) -> 2.9585968 | G34: =SUM(G30:G33) -> 2.9585968 | H34: 0 | I34: 0 | J34: 0.02723028777
A35: Total Electricty Charge on Two-Tier RPP | D35: =SUM(D14,D23,D24,D28,D34) -> 105.3279316 | G35: =SUM(G14,G23,G24,G28,G34) -> 107.25662 | H35: 1.9286884 | I35: 0.01831127196 | J35: 0.9871668312
A36: HST | C36: 0.13 | D36: =D35*C36 -> 13.69263111 | F36: =C36 -> 0.13 | G36: =G35*F36 -> 13.9433606 | H36: 0.250729492 | I36: 0.01831127196 | J36: 0.1283316881
A37: Total Electricity Charge on Two-Tier RPP (including HST) | D37: =SUM(D35:D36) -> 119.0205627 | G37: =SUM(G35:G36) -> 121.1999806 | H37: 2.179417892 | I37: 0.01831127196 | J37: 1.115498519
A38: Ontario Electricity Rebate (OER) | C38: =IF(($B$4*12)<250000,VLOOKUP(A38,'Data Pass Through'!$A$4:$C$20,2,0),0) -> -0.117 | D38: =D35*C38 -> -12.323368 | F38: =C38 -> -0.117 | G38: =G35*F38 -> -12.54902454 | H38: -0.2256565428 | I38: -0.01831127196 | J38: -0.1154985192
A39: Total Amount on Two-Tier RPP | D39: =SUM(D37:D38) -> 106.6971947 | G39: =SUM(G37:G38) -> 108.6509561 | H39: 1.953761349 | I39: 0.01831127196 | J39: 1

Sheet BI Template_Demand (hidden)
A1: 2024 Bill Impacts (Average Consumption Level) - GSd
A3: Rate Class | B3: =RIGHT(A1,LEN(A1)-FIND("- ",A1,1)-1) -> GSd
A4: Monthly Consumption (kWh) | B4: =IF(COUNTIF(A1,"*Low*")>0,VLOOKUP(B3,'Data Billing Quantities'!$A:$Z,MATCH("Low kWh",'Data Billing Quantities'!4:4,0),FALSE),IF(COUNTIF(A1,"*Typical*")>0,VLOOKUP(B3,'Data Billing Quantities'!$A:$Z,MATCH("Typical kWh",'Data Billing Quantities'!4:4,0),FALSE),IF(COUNTIF(A1,"*Average*")>0,VLOOKUP(B3,'Data Billing Quantities'!$A:$Z,MATCH("Average kWh",'Data Billing Quantities'!4:4,0),FALSE),IF(COUNTIF(A1,"*High*")>0,VLOOKUP(B3,'Data Billing Quantities'!$A:$Z,MATCH("High kWh",'Data Billing Quantities'!4:4,0),FALSE),"error")))) -> 34334
A5: Peak (kW) | B5: =IF(COUNTIF(A1,"*Low*")>0,VLOOKUP(B3,'Data Billing Quantities'!$A:$Z,MATCH("Low kW",'Data Billing Quantities'!4:4,0),FALSE),IF(COUNTIF(A1,"*Typical*")>0,VLOOKUP(B3,'Data Billing Quantities'!$A:$Z,MATCH("Typical kW",'Data Billing Quantities'!4:4,0),FALSE),IF(COUNTIF(A1,"*Average*")>0,VLOOKUP(B3,'Data Billing Quantities'!$A:$Z,MATCH("Average kW",'Data Billing Quantities'!4:4,0),FALSE),IF(COUNTIF(A1,"*High*")>0,VLOOKUP(B3,'Data Billing Quantities'!$A:$Z,MATCH("High kW",'Data Billing Quantities'!4:4,0),FALSE),"error")))) -> 110
A6: Loss factor | B6: =VLOOKUP(B3,'Data Billing Quantities'!A:D,MATCH(A6,'Data Billing Quantities'!4:4,0),FALSE) -> 1.061
A7: Load factor | B7: =B4/(B5*730) -> 0.4275716065
A8: Monthly Consumption (kWh) - Uplifted | B8: =B4*B6 -> 36428.374
A9: Charge determinant | B9: =VLOOKUP(B3,'Data Billing Quantities'!A:D,MATCH(A9,'Data Billing Quantities'!4:4,0),FALSE) -> kW
B11: Volume | C11: Current Rate ($) | D11: Current Charge ($) | E11: Volume | F11: Proposed Rate ($) | G11: Proposed Charge ($) | H11: Change ($) | I11: Change (%) | J11: % of Total Bill
A12: Weighted Average Hourly Spot Price | B12: =B8 -> 36428.374 | C12: =VLOOKUP($A12,'Data Pass Through'!$A:$D,2,FALSE) -> 0.1025 | D12: =B12*C12 -> 3733.908335 | E12: =B8 -> 36428.374 | F12: =VLOOKUP($A12,'Data Pass Through'!$A:$D,3,FALSE) -> 0.1025 | G12: =E12*F12 -> 3733.908335 | H12: =G12-D12 -> 0 | I12: =IF(ISERROR(H12/ABS(D12)),"N/A",(H12/ABS(D12))) -> 0 | J12: =G12/$G$38 -> 0.4932322438
A13: Sub-Total: Energy (WAHSP) | D13: =SUM(D12:D12) -> 3733.908335 | G13: =SUM(G12:G12) -> 3733.908335 | H13: =G13-D13 -> 0 | I13: 0 | J13: 0.4932322438
A14: Service Charge | B14: 1 | C14: =VLOOKUP($B$3,'Data Current Rates'!$A:$AK,MATCH($A14,CurrentHeader,0),FALSE) -> 105.55 | D14: =B14*C14 -> 105.55 | E14: =B14 -> 1 | F14: =VLOOKUP($B$3,'Data Proposed Rates'!$A:$BF,MATCH($A14,ProposedHeader,0),FALSE) -> 105.55 | G14: =E14*F14 -> 105.55 | H14: 0 | I14: 0 | J14: 0.01394267311
A15: Fixed Base Rate Adjustment to Recover Past Tax Amounts | B15: 1 | C15: =VLOOKUP($B$3,'Data Current Rates'!$A:$AK,MATCH($A15,CurrentHeader,0),FALSE) -> 4.34 | D15: =B15*C15 -> 4.34 | H15: =G15-D15 -> -4.34 | I15: =IF(ISERROR(H15/ABS(D15)),"N/A",(H15/ABS(D15))) -> -1 | J15: 0
A16: Distribution Volumetric Charge | B16: =IF($B$9="kWh",$B$4,$B$5) -> 110 | C16: =VLOOKUP($B$3,'Data Current Rates'!$A:$AK,MATCH($A16,CurrentHeader,0),FALSE) -> 19.5196 | D16: =B16*C16 -> 2147.156 | E16: =$B$5 -> 110 | F16: =VLOOKUP($B$3,'Data Proposed Rates'!$A:$BF,MATCH($A16,ProposedHeader,0),FALSE) -> 20.5366 | G16: =E16*F16 -> 2259.026 | H16: 111.87 | I16: =IF(ISERROR(H16/ABS(D16)),"N/A",(H16/ABS(D16))) -> 0.05210147749 | J16: 0.2984070209
A17: Volumetric Base Rate Adjustment to Recover Past Tax Amounts | B17: =IF($B$9="kWh",$B$4,$B$5) -> 110 | C17: =VLOOKUP($B$3,'Data Current Rates'!$A:$AK,MATCH($A17,CurrentHeader,0),FALSE) -> 0.7338 | D17: =B17*C17 -> 80.718 | H17: =G17-D17 -> -80.718 | I17: =IF(ISERROR(H17/ABS(D17)),"N/A",(H17/ABS(D17))) -> -1 | J17: 0
A18: Group 1 Volumetric DVA Rider (General) (2023) | B18: =IF($B$9="kWh",$B$4,$B$5) -> 110 | C18: =VLOOKUP($B$3,'Data Current Rates'!$A:$AK,MATCH($A18,CurrentHeader,0),FALSE) -> -0.0855 | D18: =B18*C18 -> -9.405 | E18: =$B$5 -> 110 | F18: =VLOOKUP($B$3,'Data Proposed Rates'!$A:$BF,MATCH($A18,ProposedHeader,0),FALSE) -> -0.0855 | G18: -9.405 | H18: 0 | I18: =IF(ISERROR(H18/ABS(D18)),"N/A",(H18/ABS(D18))) -> 0 | J18: -0.001242357561
A19: Group 1 Volumetric Deferral/Variance Account Rider (Sub-Account RSVA Wholesale Market Service Charge & RSVA Power) (2023) | B19: =IF($B$9="kWh",$B$4,$B$5) -> 110 | C19: =VLOOKUP($B$3,'Data Current Rates'!$A:$AK,MATCH($A19,CurrentHeader,0),FALSE) -> -0.1195 | D19: -13.145 | E19: 110 | F19: =VLOOKUP($B$3,'Data Proposed Rates'!$A:$BF,MATCH($A19,ProposedHeader,0),FALSE) -> -0.1195 | G19: -13.145 | H19: 0 | I19: 0 | J19: -0.001736394486
A20: Group 1 Volumetric Deferral/Variance Account Rider (Sub-Account Global Adjustment) (2023) | B20: =$B$4 -> 34334 | C20: =VLOOKUP($B$3,'Data Proposed Rates'!$A:$BF,MATCH($A20,ProposedHeader,0),FALSE) -> -0.0009 | D20: -30.9006 | E20: =$B$4 -> 34334 | F20: =VLOOKUP($B$3,'Data Proposed Rates'!$A:$BF,MATCH($A20,ProposedHeader,0),FALSE) -> -0.0009 | G20: -30.9006 | H20: 0 | I20: 0 | J20: -0.004081828182
A21: Group 2 Volumetric DVA Rider | B21: =IF($B$9="kWh",$B$4,$B$5) -> 110 | C21: =VLOOKUP($B$3,'Data Current Rates'!$A:$AK,MATCH($A21,CurrentHeader,0),FALSE) -> -0.071 | D21: =B21*C21 -> -7.81 | E21: =B5 -> 110 | F21: =VLOOKUP($B$3,'Data Proposed Rates'!$A:$BF,MATCH($A21,ProposedHeader,0),FALSE) -> -0.071 | G21: =E21*F21 -> -7.81 | H21: =G21-D21 -> 0 | I21: =IF(ISERROR(H21/ABS(D21)),"N/A",(H21/ABS(D21))) -> 0 | J21: -0.001031665343
A22: Group 1 Volumetric DVA Rider (General) (2024) | E22: =IF($B$9="kWh",$B$4,$B$5) -> 110 | F22: =VLOOKUP($B$3,'Data Proposed Rates'!$A:$BF,MATCH($A22,ProposedHeader,0),FALSE) -> 0.6252 | G22: =E22*F22 -> 68.772 | H22: =G22-D22 -> 68.772 | I22: =IF(ISERROR(H22/ABS(D22)),"N/A",(H22/ABS(D22))) -> N/A | J22: =G22/$G$38 -> 0.009084467219
A23: Group 1 Volumetric Deferral/Variance Account Rider (Sub-Account RSVA Wholesale Market Service Charge & RSVA Power) (2024) | E23: =IF($B$9="kWh",$B$4,$B$5) -> 110 | F23: =VLOOKUP($B$3,'Data Proposed Rates'!$A:$BF,MATCH($A23,ProposedHeader,0),FALSE) -> 0.2099 | G23: 23.089 | H23: 23.089 | I23: N/A | J23: 0.003049951486
A24: Group 1 Volumetric Deferral/Variance Account Rider (Sub-Account Global Adjustment) (2024) | E24: =E20 -> 34334 | F24: =VLOOKUP($B$3,'Data Proposed Rates'!$A:$BF,MATCH($A24,ProposedHeader,0),FALSE) -> -0.0044 | G24: -151.0696 | H24: -151.0696 | I24: N/A | J24: -0.01995560445
A25: Group 1 Volumetric Deferral/Variance Account Rider (Sub-Account CBR) (2024) | E25: =IF($B$9="kWh",$B$4,$B$5) -> 110 | F25: =VLOOKUP($B$3,'Data Proposed Rates'!$A:$BF,MATCH($A25,ProposedHeader,0),FALSE) -> -0.1687 | G25: -18.557 | H25: -18.557 | I25: N/A | J25: -0.002451294977
A26: Sub-Total: Distribution | D26: =SUM(INDIRECT("D14:D"&ROW()-1)) -> 2276.5034 | G26: =SUM(INDIRECT("g14:g"&ROW()-1)) -> 2225.5498 | H26: -50.9536 | I26: -0.02238239574 | J26: 0.2939849678
A27: Retail Transmission Rate – Network Service Rate | B27: =IF($B$9="kWh",$B$4,$B$5) -> 110 | C27: =VLOOKUP($B$3,'Data Current Rates'!$A:$AK,MATCH($A27,CurrentHeader,0),FALSE) -> 2.8581 | D27: =B27*C27 -> 314.391 | E27: 110 | F27: =VLOOKUP($B$3,'Data Proposed Rates'!$A:$BF,MATCH($A27,ProposedHeader,0),FALSE) -> 2.811 | G27: =E27*F27 -> 309.21 | H27: -5.181 | I27: -0.01647947937 | J27: 0.04084522929
A28: Retail Transmission Rate – Line and Transformation Connection Service Rate | B28: =IF($B$9="kWh",$B$4,$B$5) -> 110 | C28: =VLOOKUP($B$3,'Data Current Rates'!$A:$AK,MATCH($A28,CurrentHeader,0),FALSE) -> 2.093 | D28: =B28*C28 -> 230.23 | E28: 110 | F28: =VLOOKUP($B$3,'Data Proposed Rates'!$A:$BF,MATCH($A28,ProposedHeader,0),FALSE) -> 2.1911 | G28: =E28*F28 -> 241.021 | H28: 10.791 | I28: 0.04687052078 | J28: 0.03183777371
A29: Sub-Total: Retail Transmission | D29: =SUM(D27:D28) -> 544.621 | G29: =SUM(G27:G28) -> 550.231 | H29: 5.61 | I29: 0.01030074125 | J29: 0.072683003
A30: Sub-Total: Delivery | D30: =D26+D29 -> 2821.1244 | G30: =G26+G29 -> 2775.7808 | H30: -45.3436 | I30: -0.01607288215 | J30: 0.3666679708
A31: Wholesale Market Service Rate (WMS) - not including CBR | B31: =$B$8 -> 36428.374 | C31: =VLOOKUP($A31,'Data Pass Through'!$A:$D,2,FALSE) -> 0.0041 | D31: =B31*C31 -> 149.3563334 | E31: =$B$8 -> 36428.374 | F31: =VLOOKUP($A31,'Data Pass Through'!$A:$D,3,FALSE) -> 0.0041 | G31: =E31*F31 -> 149.3563334 | H31: 0 | I31: 0 | J31: 0.01972928975
A32: Capacity Based Recovery (CBR) - Applicable for Class B Customers | B32: =$B$8 -> 36428.374 | C32: =VLOOKUP($A32,'Data Pass Through'!$A:$D,2,FALSE) -> 0.0004 | D32: =B32*C32 -> 14.5713496 | E32: =$B$8 -> 36428.374 | F32: =VLOOKUP($A32,'Data Pass Through'!$A:$D,3,FALSE) -> 0.0004 | G32: =E32*F32 -> 14.5713496 | H32: =G32-D32 -> 0 | I32: 0 | J32: 0.001924808756
A33: Rural Rate Protection Charge | B33: =$B$8 -> 36428.374 | C33: =VLOOKUP($A33,'Data Pass Through'!$A:$D,2,FALSE) -> 0.0007 | D33: =B33*C33 -> 25.4998618 | E33: =$B$8 -> 36428.374 | F33: =VLOOKUP($A33,'Data Pass Through'!$A:$D,3,FALSE) -> 0.0007 | G33: =E33*F33 -> 25.4998618 | H33: =G33-D33 -> 0 | I33: 0 | J33: 0.003368415323
A34: Standard Supply Service – Administration Charge (if applicable) | B34: 1 | C34: =VLOOKUP($A34,'Data Pass Through'!$A:$D,2,FALSE) -> 0.25 | D34: =B34*C34 -> 0.25 | E34: 1 | F34: =VLOOKUP($A34,'Data Pass Through'!$A:$D,3,FALSE) -> 0.25 | G34: =E34*F34 -> 0.25 | H34: 0 | I34: 0 | J34: 3.302385862e-05
A35: Sub-Total: Regulatory | D35: =SUM(D31:D34) -> 189.6775448 | G35: =SUM(G31:G34) -> 189.6775448 | H35: 0 | I35: 0 | J35: 0.02505553769
A36: Total Electricity Charge on Two-Tier RPP (before HST) | D36: =SUM(D13,D26,D29,D35) -> 6744.71028 | G36: =SUM(G13,G26,G29,G35) -> 6699.36668 | H36: -45.3436 | I36: -0.006722838805 | J36: 0.8849557522
A37: HST | C37: 0.13 | D37: =D36*C37 -> 876.8123364 | F37: =C37 -> 0.13 | G37: =G36*F37 -> 870.9176684 | H37: -5.894668 | I37: -0.006722838805 | J37: 0.1150442478
A38: Total Amount on WAHSP | D38: =SUM(D36:D37) -> 7621.522616 | G38: =SUM(G36:G37) -> 7570.284348 | H38: -51.238268 | I38: -0.006722838805 | J38: 1

Sheet BI Template_Seasonal (hidden)
A1: 2024 Bill Impacts (Low Consumption Level) - Seas-UR
A3: Rate Class | B3: =VLOOKUP(A1,'Data BI List Acq_Seas'!C:E,2,FALSE) -> Seas-UR | C3: =VLOOKUP(A1,'Data BI List Acq_Seas'!C:E,3,FALSE) -> Seas-UR
A4: Monthly Consumption (kWh) | B4: =IF(COUNTIF(A1,"*Low*")>0,VLOOKUP(B3,'Data Billing Quantities'!$A:$Z,MATCH("Low kWh",'Data Billing Quantities'!4:4,0),FALSE),IF(COUNTIF(A1,"*Typical*")>0,VLOOKUP(B3,'Data Billing Quantities'!$A:$Z,MATCH("Typical kWh",'Data Billing Quantities'!4:4,0),FALSE),IF(COUNTIF(A1,"*Average*")>0,VLOOKUP(B3,'Data Billing Quantities'!$A:$Z,MATCH("Average kWh",'Data Billing Quantities'!4:4,0),FALSE),IF(COUNTIF(A1,"*High*")>0,VLOOKUP(B3,'Data Billing Quantities'!$A:$Z,MATCH("High kWh",'Data Billing Quantities'!4:4,0),FALSE),"error")))) -> 40 | C4: =B4 -> 40
A5: Peak (kW) | B5: =IF(COUNTIF(A1,"*Low*")>0,VLOOKUP(B3,'Data Billing Quantities'!$A:$Z,MATCH("Low kW",'Data Billing Quantities'!4:4,0),FALSE),IF(COUNTIF(A1,"*Typical*")>0,VLOOKUP(B3,'Data Billing Quantities'!$A:$Z,MATCH("Typical kW",'Data Billing Quantities'!4:4,0),FALSE),IF(COUNTIF(A1,"*Average*")>0,VLOOKUP(B3,'Data Billing Quantities'!$A:$Z,MATCH("Average kW",'Data Billing Quantities'!4:4,0),FALSE),IF(COUNTIF(A1,"*High*")>0,VLOOKUP(B3,'Data Billing Quantities'!$A:$Z,MATCH("High kW",'Data Billing Quantities'!4:4,0),FALSE),"error")))) -> 0 | C5: =B5 -> 0
A6: Loss factor | B6: =VLOOKUP(B3,'Data Billing Quantities'!A:D,MATCH(A6,'Data Billing Quantities'!4:4,0),FALSE) -> 1.057 | C6: =VLOOKUP(C3,'Data Billing Quantities'!A:D,MATCH(A6,'Data Billing Quantities'!4:4,0),FALSE) -> 1.057
A7: Commodity Threshold | B7: =VLOOKUP(B3,'Data Billing Quantities'!A:D,MATCH(A7,'Data Billing Quantities'!4:4,0),FALSE) -> 600 | C7: =B7 -> 600
A8: Monthly Consumption (kWh) - Uplifted | B8: =B4*B6 -> 42.28 | C8: =C4*C6 -> 42.28
A9: Charge determinant | B9: =VLOOKUP(B3,'Data Billing Quantities'!A:D,MATCH(A9,'Data Billing Quantities'!4:4,0),FALSE) -> kWh | C9: =VLOOKUP(C3,'Data Billing Quantities'!A:D,MATCH(A9,'Data Billing Quantities'!4:4,0),FALSE) -> kWh
B11: Volume | C11: Current Rate ($) | D11: Current Charge ($) | E11: Volume | F11: Proposed Rate ($) | G11: Proposed Charge ($) | H11: Change ($) | I11: Change (%) | J11: % of Total Bill on RPP | K11: % of Total Bill
A12: Energy First Tier | B12: =IF(B4>B7,B7,B4) -> 40 | C12: =VLOOKUP($A12,'Data Pass Through'!$A:$D,2,FALSE) -> 0.087 | D12: =B12*C12 -> 3.48 | E12: =B12 -> 40 | F12: =VLOOKUP($A12,'Data Pass Through'!$A:$D,3,FALSE) -> 0.087 | G12: =E12*F12 -> 3.48 | H12: =G12-D12 -> 0 | I12: =IF(ISERROR(H12/ABS(D12)),"N/A",(H12/ABS(D12))) -> 0 | J12: =G12/$G$46 -> 0.07579395893
A13: Energy Second Tier | B13: =IF(B4>B7,(B4)-B7,0) -> 0 | C13: =VLOOKUP($A13,'Data Pass Through'!$A:$D,2,FALSE) -> 0.103 | D13: =B13*C13 -> 0 | E13: =B13 -> 0 | F13: =VLOOKUP($A13,'Data Pass Through'!$A:$D,3,FALSE) -> 0.103 | G13: =E13*F13 -> 0 | H13: 0 | I13: N/A | J13: =G13/$G$46 -> 0
A14: Sub-Total: Energy (RPP Tiered) | D14: =SUM(D12:D13) -> 3.48 | G14: =SUM(G12:G13) -> 3.48 | H14: 0 | I14: 0 | J14: =G14/$G$46 -> 0.07579395893
A15: TOU-Off Peak | B15: =B$4*VLOOKUP($B$3,'Data Billing Quantities'!$A:$O,MATCH('BI Template_Seasonal'!$A15,'Data Billing Quantities'!$4:$4,0),FALSE) -> 25.6 | C15: =VLOOKUP($A15,'Data Pass Through'!$A:$D,2,FALSE) -> 0.074 | D15: =B15*C15 -> 1.8944 | E15: 25.6 | F15: =VLOOKUP($A15,'Data Pass Through'!$A:$D,3,FALSE) -> 0.074 | G15: =E15*F15 -> 1.8944 | H15: 0 | I15: 0 | K15: =G15/$G$51 -> 0.04103395486
A16: TOU-Mid Peak | B16: =B$4*VLOOKUP($B$3,'Data Billing Quantities'!$A:$O,MATCH('BI Template_Seasonal'!$A16,'Data Billing Quantities'!$4:$4,0),FALSE) -> 7.2 | C16: =VLOOKUP($A16,'Data Pass Through'!$A:$D,2,FALSE) -> 0.102 | D16: =B16*C16 -> 0.7344 | E16: 7.2 | F16: =VLOOKUP($A16,'Data Pass Through'!$A:$D,3,FALSE) -> 0.102 | G16: =E16*F16 -> 0.7344 | H16: 0 | I16: 0 | K16: 0.01590758892
A17: TOU-On Peak | B17: =B$4*VLOOKUP($B$3,'Data Billing Quantities'!$A:$O,MATCH('BI Template_Seasonal'!$A17,'Data Billing Quantities'!$4:$4,0),FALSE) -> 7.2 | C17: =VLOOKUP($A17,'Data Pass Through'!$A:$D,2,FALSE) -> 0.151 | D17: =B17*C17 -> 1.0872 | E17: 7.2 | F17: =VLOOKUP($A17,'Data Pass Through'!$A:$D,3,FALSE) -> 0.151 | G17: =E17*F17 -> 1.0872 | H17: 0 | I17: 0 | K17: 0.02354946987
A18: Sub-Total: Energy (RPP TOU) | D18: =SUM(D15:D17) -> 3.716 | G18: =SUM(G15:G17) -> 3.716 | H18: 0 | I18: 0 | J18: =G18/$G$46 -> 0.08093400902 | K18: 0.08049101366
A19: Service Charge | B19: 1 | C19: =VLOOKUP($B$3,'Data Current Rates'!$A:$AJ,MATCH('BI Template_Seasonal'!$A19,CurrentHeader,0),FALSE) -> 38.1 | D19: =B19*C19 -> 38.1 | E19: 1 | F19: =IF(C3="R2",(VLOOKUP($C$3,'Data Proposed Rates'!$A:$BF,MATCH('BI Template_Seasonal'!$A19,ProposedHeader,0),FALSE)+'Data Pass Through'!B4),VLOOKUP($C$3,'Data Proposed Rates'!$A:$BF,MATCH('BI Template_Seasonal'!$A19,ProposedHeader,0),FALSE)) -> 40 | G19: =E19*F19 -> 40 | H19: 1.9 | I19: 0.0498687664 | J19: 0.8711949302 | K19: 0.8664264118
A20: Fixed Base Rate Adjustment to Recover Past Tax Amounts | B20: 1 | C20: =VLOOKUP($B$3,'Data Current Rates'!$A:$AJ,MATCH('BI Template_Seasonal'!$A20,CurrentHeader,0),FALSE) -> 1.79 | D20: =B20*C20 -> 1.79 | H20: =G20-D20 -> -1.79 | I20: =IF(ISERROR(H20/ABS(D20)),"N/A",(H20/ABS(D20))) -> -1 | J20: 0 | K20: 0
A21: Group 2 Fixed DVA Rider | B21: 1 | C21: =VLOOKUP($B$3,'Data Current Rates'!$A:$AJ,MATCH('BI Template_Seasonal'!$A21,CurrentHeader,0),FALSE) -> -0.11 | D21: =B21*C21 -> -0.11 | E21: 1 | F21: =VLOOKUP($C$3,'Data Proposed Rates'!$A:$BF,MATCH('BI Template_Seasonal'!$A21,ProposedHeader,0),FALSE) -> -0.11 | G21: -0.11 | H21: 0 | I21: 0 | J21: -0.002395786058 | K21: -0.002382672632
A22: Distribution Volumetric Charge | B22: =IF($B$9="kWh",$B$4,$B$5) -> 40 | C22: =VLOOKUP($B$3,'Data Current Rates'!$A:$AJ,MATCH('BI Template_Seasonal'!$A22,CurrentHeader,0),FALSE) -> 0 | D22: =B22*C22 -> 0 | E22: =IF($C$9="kWh",$C$4,$C$5) -> 40 | F22: =VLOOKUP($C$3,'Data Proposed Rates'!$A:$BF,MATCH('BI Template_Seasonal'!$A22,ProposedHeader,0),FALSE) -> 0 | G22: 0 | H22: 0 | I22: N/A | J22: 0 | K22: 0
A23: Group 1 Volumetric DVA Rider (General) (2023) | B23: =IF($B$9="kWh",$B$4,$B$5) -> 40 | C23: =VLOOKUP($B$3,'Data Current Rates'!$A:$AJ,MATCH('BI Template_Seasonal'!$A23,CurrentHeader,0),FALSE) -> -0.0007 | D23: =B23*C23 -> -0.028 | E23: =IF($C$9="kWh",$C$4,$C$5) -> 40 | F23: =VLOOKUP($C$3,'Data Proposed Rates'!$A:$BF,MATCH('BI Template_Seasonal'!$A23,ProposedHeader,0),FALSE) -> -0.0007 | G23: -0.028 | H23: 0 | I23: 0 | J23: -0.0006098364512 | K23: -0.0006064984883
A24: Group 1 Volumetric DVA Rider (General) (2024) | E24: =IF($B$9="kWh",$B$4,$B$5) -> 40 | F24: =VLOOKUP($C$3,'Data Proposed Rates'!$A:$BF,MATCH('BI Template_Seasonal'!$A24,ProposedHeader,0),FALSE) -> 0.0013 | G24: =E24*F24 -> 0.052 | H24: =G24-D24 -> 0.052 | I24: =IF(ISERROR(H24/ABS(D24)),"N/A",(H24/ABS(D24))) -> N/A | J24: =G24/$G$46 -> 0.001132553409 | K24: =G24/$G$51 -> 0.001126354335
A25: Group 1 Volumetric Deferral/Variance Account Rider (Sub-Account CBR) (2024) | E25: =IF($B$9="kWh",$B$4,$B$5) -> 40 | F25: =VLOOKUP($C$3,'Data Proposed Rates'!$A:$BF,MATCH('BI Template_Seasonal'!$A25,ProposedHeader,0),FALSE) -> -0.0005 | G25: -0.02 | H25: -0.02 | I25: N/A | J25: -0.0004355974651 | K25: -0.0004332132059
A26: Sub-Total: Distribution (excluding pass through) | D26: =SUM(INDIRECT("D19:D"&ROW()-1)) -> 39.752 | G26: =SUM(INDIRECT("g19:g"&ROW()-1)) -> 39.894 | H26: =G26-D26 -> 0.142 | I26: 0.003572147313 | J26: 0.8688862637 | K26: 0.8641303818
A27: Smart Metering Entity Charge | B27: =B19 -> 1 | C27: =VLOOKUP($A27,'Data Pass Through'!$A:$D,2,FALSE) -> 0.42 | D27: =B27*C27 -> 0.42 | E27: =E19 -> 1 | F27: =VLOOKUP($A27,'Data Pass Through'!$A:$D,3,FALSE) -> 0.42 | G27: =E27*F27 -> 0.42 | H27: 0 | I27: 0 | J27: 0.009147546767 | K27: 0.009097477324
A28: Line Losses on Cost of Power (based on two-tier RPP prices) | B28: =B8-B4 -> 2.28 | C28: =IF(B4>B7,C13,C12) -> 0.087 | D28: =B28*C28 -> 0.19836 | E28: =C8-C4 -> 2.28 | F28: =IF(C4>C7,F13,F12) -> 0.087 | G28: =E28*F28 -> 0.19836 | H28: 0 | I28: 0 | J28: 0.004320255659 | K28: 0.004296608576
A29: Line Losses on Cost of Power (based on TOU prices) | B29: =B8-B4 -> 2.28 | C29: =VLOOKUP($B$3,'Data Billing Quantities'!$A:$O,MATCH('BI Template_Seasonal'!$A15,'Data Billing Quantities'!$4:$4,0),FALSE)*C15+VLOOKUP($B$3,'Data Billing Quantities'!$A:$O,MATCH('BI Template_Seasonal'!$A16,'Data Billing Quantities'!$4:$4,0),FALSE)*C16+VLOOKUP($B$3,'Data Billing Quantities'!$A:$O,MATCH('BI Template_Seasonal'!$A17,'Data Billing Quantities'!$4:$4,0),FALSE)*C17 -> 0.0929 | D29: =B29*C29 -> 0.211812 | E29: =C8-C4 -> 2.28 | F29: =VLOOKUP($C$3,'Data Billing Quantities'!$A:$O,MATCH('BI Template_Seasonal'!$A15,'Data Billing Quantities'!$4:$4,0),FALSE)*F15+VLOOKUP($C$3,'Data Billing Quantities'!$A:$O,MATCH('BI Template_Seasonal'!$A16,'Data Billing Quantities'!$4:$4,0),FALSE)*F16+VLOOKUP($C$3,'Data Billing Quantities'!$A:$O,MATCH('BI Template_Seasonal'!$A17,'Data Billing Quantities'!$4:$4,0),FALSE)*F17 -> 0.0929 | G29: =E29*F29 -> 0.211812 | H29: 0 | I29: 0 | J29: 0.004613238514 | K29: 0.004587987778
A30: Sub-Total: Distribution (based on two-tier RPP prices) | D30: =SUM(D26,D27:D28) -> 40.37036 | G30: =SUM(G26,G27:G28) -> 40.51236 | H30: 0.142 | I30: 0.003517432096 | J30: 0.8823540661 | K30: 0.8775244677
A31: Sub-Total: Distribution (based on TOU prices) | D31: =SUM(D26,D27,D29) -> 40.383812 | G31: =SUM(G26,G27,G29) -> 40.525812 | H31: 0.142 | I31: 0.003516260426 | J31: 0.8826470489 | K31: 0.8778158469
A32: Retail Transmission Rate – Network Service Rate | B32: =IF($B$9="kWh",$B$8,$B$5) -> 42.28 | C32: =VLOOKUP($B$3,'Data Current Rates'!$A:$AJ,MATCH('BI Template_Seasonal'!$A32,CurrentHeader,0),FALSE) -> 0.012 | D32: =B32*C32 -> 0.50736 | E32: =IF($C$9="kWh",$C$8,$C$5) -> 42.28 | F32: =VLOOKUP($C$3,'Data Proposed Rates'!$A:$BF,MATCH('BI Template_Seasonal'!$A32,ProposedHeader,0),FALSE) -> 0.0118 | G32: =E32*F32 -> 0.498904 | H32: =G32-D32 -> -0.008456 | I32: -0.01666666667 | J32: 0.01086606589 | K32: 0.01080659006
A33: Retail Transmission Rate – Line and Transformation Connection Service Rate | B33: =IF($B$9="kWh",$B$8,$B$5) -> 42.28 | C33: =VLOOKUP($B$3,'Data Current Rates'!$A:$AJ,MATCH('BI Template_Seasonal'!$A33,CurrentHeader,0),FALSE) -> 0.0083 | D33: =B33*C33 -> 0.350924 | E33: =IF($C$9="kWh",$C$8,$C$5) -> 42.28 | F33: =VLOOKUP($C$3,'Data Proposed Rates'!$A:$BF,MATCH('BI Template_Seasonal'!$A33,ProposedHeader,0),FALSE) -> 0.0086 | G33: =E33*F33 -> 0.363608 | H33: =G33-D33 -> 0.012684 | I33: 0.03614457831 | J33: 0.007919336155 | K33: 0.007875989368
A34: Sub-Total: Retail Transmission | D34: =SUM(D32:D33) -> 0.858284 | G34: =SUM(G32:G33) -> 0.862512 | H34: =G34-D34 -> 0.004228 | I34: 0.004926108374 | J34: 0.01878540204 | K34: 0.01868257943
A35: Sub-Total: Delivery (based on two-tier RPP prices) | D35: =D30+D34 -> 41.228644 | G35: =G30+G34 -> 41.374872 | H35: =G35-D35 -> 0.146228 | I35: 0.003546757444 | J35: 0.9011394681 | K35: 0.8962070471
A36: Sub-Total: Delivery (based on TOU prices) | D36: =D31+D34 -> 41.242096 | G36: =G31+G34 -> 41.388324 | H36: =G36-D36 -> 0.146228 | I36: 0.003545600592 | J36: 0.901432451 | K36: 0.8964984263
A37: Wholesale Market Service Rate (WMS) - not including CBR | B37: =B8 -> 42.28 | C37: =VLOOKUP($A37,'Data Pass Through'!$A:$D,2,FALSE) -> 0.0041 | D37: =B37*C37 -> 0.173348 | E37: =$C$8 -> 42.28 | F37: =VLOOKUP($A37,'Data Pass Through'!$A:$D,3,FALSE) -> 0.0041 | G37: =E37*F37 -> 0.173348 | H37: 0 | I37: 0 | J37: 0.003775497469 | K37: 0.003754832141
A38: Capacity Based Recovery (CBR) - Applicable for Class B Customers | B38: =B8 -> 42.28 | C38: =VLOOKUP($A38,'Data Pass Through'!$A:$D,2,FALSE) -> 0.0004 | D38: =B38*C38 -> 0.016912 | E38: =$C$8 -> 42.28 | F38: =VLOOKUP($A38,'Data Pass Through'!$A:$D,3,FALSE) -> 0.0004 | G38: =E38*F38 -> 0.016912 | H38: 0 | I38: 0 | J38: 0.0003683412165 | K38: 0.0003663250869
A39: Rural Rate Protection Charge | B39: =B8 -> 42.28 | C39: =VLOOKUP($A39,'Data Pass Through'!$A:$D,2,FALSE) -> 0.0007 | D39: 0.029596 | E39: 42.28 | F39: =VLOOKUP($A39,'Data Pass Through'!$A:$D,3,FALSE) -> 0.0007 | G39: 0.029596 | H39: 0 | I39: 0 | J39: 0.0006445971289 | K39: 0.0006410689021
A40: Standard Supply Service – Administration Charge (if applicable) | B40: 1 | C40: =VLOOKUP($A40,'Data Pass Through'!$A:$D,2,FALSE) -> 0.25 | D40: =B40*C40 -> 0.25 | E40: 1 | F40: =VLOOKUP($A40,'Data Pass Through'!$A:$D,3,FALSE) -> 0.25 | G40: 0.25 | H40: 0 | I40: 0 | J40: 0.005444968314 | K40: 0.005415165074
A41: Sub-Total: Regulatory | D41: =SUM(D37:D40) -> 0.469856 | G41: =SUM(G37:G40) -> 0.469856 | H41: 0 | I41: 0 | J41: 0.01023340413 | K41: 0.0101773912
A42: Total Electricty Charge on Two-Tier RPP | D42: =SUM(D14,D26,D27,D28,D34,D41) -> 45.1785 | G42: =SUM(G14,G26,G27,G28,G34,G41) -> 45.324728 | H42: 0.146228 | I42: 0.003236672311 | J42: 0.9871668312
A43: HST | C43: 0.13 | D43: =D42*C43 -> 5.873205 | F43: =C43 -> 0.13 | G43: =G42*F43 -> 5.89221464 | H43: 0.01900964 | I43: 0.003236672311 | J43: 0.1283316881
A44: Total Electricity Charge on Two-Tier RPP (including HST) | D44: =SUM(D42:D43) -> 51.051705 | G44: =SUM(G42:G43) -> 51.21694264 | H44: 0.16523764 | I44: 0.003236672311 | J44: 1.115498519
A45: Ontario Electricity Rebate (OER) | C45: =IF(($B$4*12)<250000,VLOOKUP(A45,'Data Pass Through'!$A$4:$C$20,2,0),0) -> -0.117 | D45: =D42*C45 -> -5.2858845 | F45: =C45 -> -0.117 | G45: =G42*F45 -> -5.302993176 | H45: -0.017108676 | I45: -0.003236672311 | J45: -0.1154985192
A46: Total Amount on Two-Tier RPP | D46: =SUM(D44:D45) -> 45.7658205 | G46: =SUM(G44:G45) -> 45.91394946 | H46: 0.148128964 | I46: 0.003236672311 | J46: 1
A47: Total Electricty Charge on TOU (before HST) | D47: =SUM(D18,D26,D27,D29,D34,D41) -> 45.427952 | G47: =SUM(G18,G26,G27,G29,G34,G41) -> 45.57418 | H47: 0.146228 | I47: 0.003218899236 | K47: =G47/$G$51 -> 0.9871668312
A48: HST | C48: 0.13 | D48: =D47*C48 -> 5.90563376 | F48: =C48 -> 0.13 | G48: =G47*F48 -> 5.9246434 | H48: 0.01900964 | I48: 0.003218899236 | K48: =G48/$G$51 -> 0.1283316881
A49: Total Electricity Charge on TOU (including HST) | D49: =SUM(D47:D48) -> 51.33358576 | G49: =SUM(G47:G48) -> 51.4988234 | H49: 0.16523764 | I49: 0.003218899236 | K49: =G49/$G$51 -> 1.115498519
A50: Ontario Electricity Rebate (OER) | C50: =IF(($B$4*12)<250000,VLOOKUP(A50,'Data Pass Through'!$A$4:$C$20,2,0),0) -> -0.117 | D50: =D47*C50 -> -5.315070384 | F50: =C50 -> -0.117 | G50: =G47*F50 -> -5.33217906 | H50: -0.017108676 | I50: -0.003218899236 | K50: =G50/$G$51 -> -0.1154985192
A51: Total Amount on TOU | D51: =SUM(D49:D50) -> 46.01851538 | G51: =SUM(G49:G50) -> 46.16664434 | H51: 0.148128964 | I51: 0.003218899236 | K51: =G51/$G$51 -> 1
A52: * Distribution rate protection applies to R1 and R2 customers

Sheet BI Template_EnergyNPDI (hidden)
A1: 2024 Bill Impacts (Low Consumption Level) - AR_NPDI
A3: Rate Class | B3: =VLOOKUP(A1,'Data BI List Acq_Seas'!C:E,2,FALSE) -> AR-NPDI | C3: =VLOOKUP(A1,'Data BI List Acq_Seas'!C:E,3,FALSE) -> AR-NPDI
A4: Monthly Consumption (kWh) | B4: =IF(COUNTIF(A1,"*Low*")>0,VLOOKUP(B3,'Data Billing Quantities'!$A:$Z,MATCH("Low kWh",'Data Billing Quantities'!4:4,0),FALSE),IF(COUNTIF(A1,"*Typical*")>0,VLOOKUP(B3,'Data Billing Quantities'!$A:$Z,MATCH("Typical kWh",'Data Billing Quantities'!4:4,0),FALSE),IF(COUNTIF(A1,"*Average*")>0,VLOOKUP(B3,'Data Billing Quantities'!$A:$Z,MATCH("Average kWh",'Data Billing Quantities'!4:4,0),FALSE),IF(COUNTIF(A1,"*High*")>0,VLOOKUP(B3,'Data Billing Quantities'!$A:$Z,MATCH("High kWh",'Data Billing Quantities'!4:4,0),FALSE),"error")))) -> 290 | C4: =B4 -> 290
A5: Peak (kW) | B5: =IF(COUNTIF(A1,"*Low*")>0,VLOOKUP(B3,'Data Billing Quantities'!$A:$Z,MATCH("Low kW",'Data Billing Quantities'!4:4,0),FALSE),IF(COUNTIF(A1,"*Typical*")>0,VLOOKUP(B3,'Data Billing Quantities'!$A:$Z,MATCH("Typical kW",'Data Billing Quantities'!4:4,0),FALSE),IF(COUNTIF(A1,"*Average*")>0,VLOOKUP(B3,'Data Billing Quantities'!$A:$Z,MATCH("Average kW",'Data Billing Quantities'!4:4,0),FALSE),IF(COUNTIF(A1,"*High*")>0,VLOOKUP(B3,'Data Billing Quantities'!$A:$Z,MATCH("High kW",'Data Billing Quantities'!4:4,0),FALSE),"error")))) -> 0 | C5: =B5 -> 0
A6: Loss factor | B6: =VLOOKUP(B3,'Data Billing Quantities'!A:D,MATCH(A6,'Data Billing Quantities'!4:4,0),FALSE) -> 1.064 | C6: =VLOOKUP(C3,'Data Billing Quantities'!A:D,MATCH(A6,'Data Billing Quantities'!4:4,0),FALSE) -> 1.064
A7: Commodity Threshold | B7: =VLOOKUP(B3,'Data Billing Quantities'!A:D,MATCH(A7,'Data Billing Quantities'!4:4,0),FALSE) -> 750 | C7: =B7 -> 750
A8: Monthly Consumption (kWh) - Uplifted | B8: =B4*B6 -> 308.56 | C8: =C4*C6 -> 308.56
A9: Charge determinant | B9: =VLOOKUP(B3,'Data Billing Quantities'!A:D,MATCH(A9,'Data Billing Quantities'!4:4,0),FALSE) -> kWh | C9: =VLOOKUP(C3,'Data Billing Quantities'!A:D,MATCH(A9,'Data Billing Quantities'!4:4,0),FALSE) -> kWh
B11: Volume | C11: Current Rate ($) | D11: Current Charge ($) | E11: Volume | F11: Proposed Rate ($) | G11: Proposed Charge ($) | H11: Change ($) | I11: Change (%) | J11: % of Total Bill on RPP | K11: % of Total Bill
A12: Energy First Tier | B12: =IF(B4>B7,B7,B4) -> 290 | C12: =VLOOKUP($A12,'Data Pass Through'!$A:$D,2,FALSE) -> 0.087 | D12: =B12*C12 -> 25.23 | E12: =B12 -> 290 | F12: =VLOOKUP($A12,'Data Pass Through'!$A:$D,3,FALSE) -> 0.087 | G12: =E12*F12 -> 25.23 | H12: =G12-D12 -> 0 | I12: =IF(ISERROR(H12/ABS(D12)),"N/A",(H12/ABS(D12))) -> 0 | J12: =G12/$G$46 -> 0.3322417602
A13: Energy Second Tier | B13: =IF(B4>B7,(B4)-B7,0) -> 0 | C13: =VLOOKUP($A13,'Data Pass Through'!$A:$D,2,FALSE) -> 0.103 | D13: =B13*C13 -> 0 | E13: =B13 -> 0 | F13: =VLOOKUP($A13,'Data Pass Through'!$A:$D,3,FALSE) -> 0.103 | G13: =E13*F13 -> 0 | H13: 0 | I13: N/A | J13: =G13/$G$46 -> 0
A14: Sub-Total: Energy (RPP Tiered) | D14: =SUM(D12:D13) -> 25.23 | G14: =SUM(G12:G13) -> 25.23 | H14: 0 | I14: 0 | J14: =G14/$G$46 -> 0.3322417602
A15: TOU-Off Peak | B15: =B$4*VLOOKUP($B$3,'Data Billing Quantities'!$A:$O,MATCH('BI Template_EnergyNPDI'!$A15,'Data Billing Quantities'!$4:$4,0),FALSE) -> 185.6 | C15: =VLOOKUP($A15,'Data Pass Through'!$A:$D,2,FALSE) -> 0.074 | D15: =B15*C15 -> 13.7344 | E15: 185.6 | F15: =VLOOKUP($A15,'Data Pass Through'!$A:$D,3,FALSE) -> 0.074 | G15: =E15*F15 -> 13.7344 | H15: 0 | I15: 0 | K15: =G15/$G$51 -> 0.1765736313
A16: TOU-Mid Peak | B16: =B$4*VLOOKUP($B$3,'Data Billing Quantities'!$A:$O,MATCH('BI Template_EnergyNPDI'!$A16,'Data Billing Quantities'!$4:$4,0),FALSE) -> 52.2 | C16: =VLOOKUP($A16,'Data Pass Through'!$A:$D,2,FALSE) -> 0.102 | D16: =B16*C16 -> 5.3244 | E16: 52.2 | F16: =VLOOKUP($A16,'Data Pass Through'!$A:$D,3,FALSE) -> 0.102 | G16: =E16*F16 -> 5.3244 | H16: 0 | I16: 0 | K16: 0.06845210876
A17: TOU-On Peak | B17: =B$4*VLOOKUP($B$3,'Data Billing Quantities'!$A:$O,MATCH('BI Template_EnergyNPDI'!$A17,'Data Billing Quantities'!$4:$4,0),FALSE) -> 52.2 | C17: =VLOOKUP($A17,'Data Pass Through'!$A:$D,2,FALSE) -> 0.151 | D17: =B17*C17 -> 7.8822 | E17: 52.2 | F17: =VLOOKUP($A17,'Data Pass Through'!$A:$D,3,FALSE) -> 0.151 | G17: =E17*F17 -> 7.8822 | H17: 0 | I17: 0 | K17: 0.1013359649
A18: Sub-Total: Energy (RPP TOU) | D18: =SUM(D15:D17) -> 26.941 | G18: =SUM(G15:G17) -> 26.941 | H18: 0 | I18: 0 | J18: =G18/$G$46 -> 0.3547730979 | K18: 0.346361705
A19: Service Charge | B19: 1 | C19: =VLOOKUP($B$3,'Data Current Rates'!$A:$AJ,MATCH('BI Template_EnergyNPDI'!$A19,CurrentHeader,0),FALSE) -> 38.2 | D19: =B19*C19 -> 38.2 | E19: 1 | F19: =VLOOKUP($C$3,'Data Proposed Rates'!$A:$BF,MATCH('BI Template_EnergyNPDI'!$A19,ProposedHeader,0),FALSE) -> 40.1 | G19: =E19*F19 -> 40.1 | H19: 1.9 | I19: 0.0497382199 | J19: =G19/$G$46 -> 0.5280576529 | K19: 0.5155378186
A20: Distribution Volumetric Charge | B20: =IF($B$9="kWh",$B$4,$B$5) -> 290 | C20: =VLOOKUP($B$3,'Data Current Rates'!$A:$AJ,MATCH('BI Template_EnergyNPDI'!$A20,CurrentHeader,0),FALSE) -> 0 | D20: =B20*C20 -> 0 | E20: =IF($C$9="kWh",$C$4,$C$5) -> 290 | F20: =VLOOKUP($C$3,'Data Proposed Rates'!$A:$BF,MATCH('BI Template_EnergyNPDI'!$A20,ProposedHeader,0),FALSE) -> 0 | G20: 0 | H20: 0 | I20: N/A | J20: =G20/$G$46 -> 0 | K20: 0
A21: Group 1 Volumetric DVA Rider (General) (2023) | B21: =IF($B$9="kWh",$B$4,$B$5) -> 290 | C21: =VLOOKUP($B$3,'Data Current Rates'!$A:$AJ,MATCH('BI Template_EnergyNPDI'!$A21,CurrentHeader,0),FALSE) -> -0.0008 | D21: =B21*C21 -> -0.232 | E21: =IF($C$9="kWh",$C$4,$C$5) -> 290 | F21: =VLOOKUP($C$3,'Data Proposed Rates'!$A:$BF,MATCH('BI Template_EnergyNPDI'!$A21,ProposedHeader,0),FALSE) -> -0.0008 | G21: -0.232 | H21: 0 | I21: 0 | J21: =G21/$G$46 -> -0.003055096645 | K21: -0.002982662691
A22: Group 1 Volumetric DVA Rider (Excl 1595) (2024) | E22: =IF($B$9="kWh",$B$4,$B$5) -> 290 | F22: =VLOOKUP($C$3,'Data Proposed Rates'!$A:$BF,MATCH('BI Template_EnergyNPDI'!$A22,ProposedHeader,0),FALSE) -> 0.0011 | G22: =E22*F22 -> 0.319 | H22: =G22-D22 -> 0.319 | I22: =IF(ISERROR(H22/ABS(D22)),"N/A",(H22/ABS(D22))) -> N/A | J22: =G22/$G$46 -> 0.004200757887 | K22: =G22/$G$51 -> 0.0041011612
A23: Group 1 Volumetric Deferral/Variance Account Rider (Sub-Account CBR) (2024) | E23: =IF($B$9="kWh",$B$4,$B$5) -> 290 | F23: =VLOOKUP($C$3,'Data Proposed Rates'!$A:$BF,MATCH('BI Template_EnergyNPDI'!$A23,ProposedHeader,0),FALSE) -> -0.0005 | G23: -0.145 | H23: -0.145 | I23: N/A | J23: -0.001909435403 | K23: -0.001864164182
A24: Fixed Rider for Account 1592 | B24: 1 | C24: =VLOOKUP($B$3,'Data Current Rates'!$A:$AJ,MATCH('BI Template_EnergyNPDI'!$A24,CurrentHeader,0),FALSE) -> -0.43 | D24: =B24*C24 -> -0.43 | E24: 1 | F24: =VLOOKUP($C$3,'Data Proposed Rates'!$A:$BF,MATCH('BI Template_EnergyNPDI'!$A24,ProposedHeader,0),FALSE) -> -0.43 | G24: =E24*F24 -> -0.43 | H24: =G24-D24 -> 0 | I24: =IF(ISERROR(H24/ABS(D24)),"N/A",(H24/ABS(D24))) -> 0 | J24: =G24/$G$46 -> -0.005662463609 | K24: =G24/$G$51 -> -0.005528211022
A25: Volumetric Rider for Account 1592 | B25: =IF($B$9="kWh",$B$4,$B$5) -> 290 | C25: =VLOOKUP($B$3,'Data Current Rates'!$A:$AJ,MATCH('BI Template_EnergyNPDI'!$A25,CurrentHeader,0),FALSE) -> 0 | D25: =B25*C25 -> 0 | E25: =IF($C$9="kWh",$C$4,$C$5) -> 290 | F25: =VLOOKUP($C$3,'Data Proposed Rates'!$A:$BF,MATCH('BI Template_EnergyNPDI'!$A25,ProposedHeader,0),FALSE) -> 0 | G25: 0 | H25: 0 | I25: N/A | J25: 0 | K25: 0
A26: Sub-Total: Distribution (excluding pass through) | D26: =SUM(INDIRECT("D19:D"&ROW()-1)) -> 37.538 | G26: =SUM(INDIRECT("g19:g"&ROW()-1)) -> 39.612 | H26: =G26-D26 -> 2.074 | I26: 0.05525067931 | J26: =G26/$G$46 -> 0.5216314151 | K26: =G26/$G$51 -> 0.5092639419
A27: Smart Metering Entity Charge | B27: =B19 -> 1 | C27: =VLOOKUP($A27,'Data Pass Through'!$A:$D,2,FALSE) -> 0.42 | D27: =B27*C27 -> 0.42 | E27: =E19 -> 1 | F27: =VLOOKUP($A27,'Data Pass Through'!$A:$D,3,FALSE) -> 0.42 | G27: =E27*F27 -> 0.42 | H27: 0 | I27: 0 | J27: 0.005530778409 | K27: 0.005399647975
A28: Line Losses on Cost of Power (based on two-tier RPP prices) | B28: =B8-B4 -> 18.56 | C28: =IF(B4>B7,C13,C12) -> 0.087 | D28: =B28*C28 -> 1.61472 | E28: =C8-C4 -> 18.56 | F28: =IF(C4>C7,F13,F12) -> 0.087 | G28: =E28*F28 -> 1.61472 | H28: 0 | I28: 0 | J28: 0.02126347265 | K28: 0.02075933233
A29: Line Losses on Cost of Power (based on TOU prices) | B29: =B8-B4 -> 18.56 | C29: =VLOOKUP($B$3,'Data Billing Quantities'!$A:$O,MATCH('BI Template_EnergyNPDI'!$A15,'Data Billing Quantities'!$4:$4,0),FALSE)*C15+VLOOKUP($B$3,'Data Billing Quantities'!$A:$O,MATCH('BI Template_EnergyNPDI'!$A16,'Data Billing Quantities'!$4:$4,0),FALSE)*C16+VLOOKUP($B$3,'Data Billing Quantities'!$A:$O,MATCH('BI Template_EnergyNPDI'!$A17,'Data Billing Quantities'!$4:$4,0),FALSE)*C17 -> 0.0929 | D29: =B29*C29 -> 1.724224 | E29: =C8-C4 -> 18.56 | F29: =VLOOKUP($C$3,'Data Billing Quantities'!$A:$O,MATCH('BI Template_EnergyNPDI'!$A15,'Data Billing Quantities'!$4:$4,0),FALSE)*F15+VLOOKUP($C$3,'Data Billing Quantities'!$A:$O,MATCH('BI Template_EnergyNPDI'!$A16,'Data Billing Quantities'!$4:$4,0),FALSE)*F16+VLOOKUP($C$3,'Data Billing Quantities'!$A:$O,MATCH('BI Template_EnergyNPDI'!$A17,'Data Billing Quantities'!$4:$4,0),FALSE)*F17 -> 0.0929 | G29: =E29*F29 -> 1.724224 | H29: 0 | I29: 0 | J29: 0.02270547827 | K29: 0.02216714912
A30: Sub-Total: Distribution (based on two-tier RPP prices) | D30: =SUM(D26,D27:D28) -> 39.57272 | G30: =SUM(G26,G27:G28) -> 41.64672 | H30: 2.074 | I30: 0.05240984193 | J30: 0.5484256662 | K30: 0.5354229222
A31: Sub-Total: Distribution (based on TOU prices) | D31: =SUM(D26,D27,D29) -> 39.682224 | G31: =SUM(G26,G27,G29) -> 41.756224 | H31: 2.074 | I31: 0.05226521578 | J31: 0.5498676718 | K31: 0.536830739
A32: Retail Transmission Rate – Network Service Rate | B32: =IF($B$9="kWh",$B$8,$B$5) -> 308.56 | C32: =VLOOKUP($B$3,'Data Current Rates'!$A:$AJ,MATCH('BI Template_EnergyNPDI'!$A32,CurrentHeader,0),FALSE) -> 0.0118 | D32: =B32*C32 -> 3.641008 | E32: =IF($C$9="kWh",$C$8,$C$5) -> 308.56 | F32: =VLOOKUP($C$3,'Data Proposed Rates'!$A:$BF,MATCH('BI Template_EnergyNPDI'!$A32,ProposedHeader,0),FALSE) -> 0.0116 | G32: =E32*F32 -> 3.579296 | H32: =G32-D32 -> -0.061712 | I32: -0.01694915254 | J32: 0.04713403104 | K32: 0.04601652
A33: Retail Transmission Rate – Line and Transformation Connection Service Rate | B33: =IF($B$9="kWh",$B$8,$B$5) -> 308.56 | C33: =VLOOKUP($B$3,'Data Current Rates'!$A:$AJ,MATCH('BI Template_EnergyNPDI'!$A33,CurrentHeader,0),FALSE) -> 0.0082 | D33: =B33*C33 -> 2.530192 | E33: =IF($C$9="kWh",$C$8,$C$5) -> 308.56 | F33: =VLOOKUP($C$3,'Data Proposed Rates'!$A:$BF,MATCH('BI Template_EnergyNPDI'!$A33,ProposedHeader,0),FALSE) -> 0.0086 | G33: =E33*F33 -> 2.653616 | H33: =G33-D33 -> 0.123424 | I33: 0.0487804878 | J33: 0.03494419543 | K33: 0.03411569586
A34: Sub-Total: Retail Transmission | D34: =SUM(D32:D33) -> 6.1712 | G34: =SUM(G32:G33) -> 6.232912 | H34: =G34-D34 -> 0.061712 | I34: 0.01 | J34: 0.08207822647 | K34: 0.08013221586
A35: Sub-Total: Delivery (based on two-tier RPP prices) | D35: =D30+D34 -> 45.74392 | G35: =G30+G34 -> 47.879632 | H35: =G35-D35 -> 2.135712 | I35: 0.04668843422 | J35: 0.6305038926 | K35: 0.6155551381
A36: Sub-Total: Delivery (based on TOU prices) | D36: =D31+D34 -> 45.853424 | G36: =G31+G34 -> 47.989136 | H36: =G36-D36 -> 2.135712 | I36: 0.04657693611 | J36: 0.6319458983 | K36: 0.6169629548
A37: Wholesale Market Service Rate (WMS) - not including CBR | B37: =B8 -> 308.56 | C37: =VLOOKUP($A37,'Data Pass Through'!$A:$D,2,FALSE) -> 0.0041 | D37: =B37*C37 -> 1.265096 | E37: =$C$8 -> 308.56 | F37: =VLOOKUP($A37,'Data Pass Through'!$A:$D,3,FALSE) -> 0.0041 | G37: =E37*F37 -> 1.265096 | H37: 0 | I37: 0 | J37: 0.01665944201 | K37: 0.01626445965
A38: Capacity Based Recovery (CBR) - Applicable for Class B Customers | B38: =B8 -> 308.56 | C38: =VLOOKUP($A38,'Data Pass Through'!$A:$D,2,FALSE) -> 0.0004 | D38: =B38*C38 -> 0.123424 | E38: =$C$8 -> 308.56 | F38: =VLOOKUP($A38,'Data Pass Through'!$A:$D,3,FALSE) -> 0.0004 | G38: =E38*F38 -> 0.123424 | H38: 0 | I38: 0 | J38: 0.001625311415 | K38: 0.001586776552
A39: Rural Rate Protection Charge | B39: =B8 -> 308.56 | C39: =VLOOKUP($A39,'Data Pass Through'!$A:$D,2,FALSE) -> 0.0007 | D39: 0.215992 | E39: 308.56 | F39: =VLOOKUP($A39,'Data Pass Through'!$A:$D,3,FALSE) -> 0.0007 | G39: 0.215992 | H39: 0 | I39: 0 | J39: 0.002844294977 | K39: 0.002776858965
A40: Standard Supply Service – Administration Charge (if applicable) | B40: 1 | C40: =VLOOKUP($A40,'Data Pass Through'!$A:$D,2,FALSE) -> 0.25 | D40: =B40*C40 -> 0.25 | E40: 1 | F40: =VLOOKUP($A40,'Data Pass Through'!$A:$D,3,FALSE) -> 0.25 | G40: 0.25 | H40: 0 | I40: 0 | J40: 0.003292130005 | K40: 0.003214076176
A41: Sub-Total: Regulatory | D41: =SUM(D37:D40) -> 1.854512 | G41: =SUM(G37:G40) -> 1.854512 | H41: 0 | I41: 0 | J41: 0.0244211784 | K41: 0.02384217135
A42: Total Electricty Charge on Two-Tier RPP | D42: =SUM(D14,D26,D27,D28,D34,D41) -> 72.828432 | G42: =SUM(G14,G26,G27,G28,G34,G41) -> 74.964144 | H42: 2.135712 | I42: 0.02932525034 | J42: 0.9871668312
A43: HST | C43: 0.13 | D43: =D42*C43 -> 9.46769616 | F43: =C43 -> 0.13 | G43: =G42*F43 -> 9.74533872 | H43: 0.27764256 | I43: 0.02932525034 | J43: 0.1283316881
A44: Total Electricity Charge on Two-Tier RPP (including HST) | D44: =SUM(D42:D43) -> 82.29612816 | G44: =SUM(G42:G43) -> 84.70948272 | H44: 2.41335456 | I44: 0.02932525034 | J44: 1.115498519
A45: Ontario Electricity Rebate (OER) | C45: =IF(($B$4*12)<250000,VLOOKUP(A45,'Data Pass Through'!$A$4:$C$20,2,0),0) -> -0.117 | D45: =D42*C45 -> -8.520926544 | F45: =C45 -> -0.117 | G45: =G42*F45 -> -8.770804848 | H45: -0.249878304 | I45: -0.02932525034 | J45: -0.1154985192
A46: Total Amount on Two-Tier RPP | D46: =SUM(D44:D45) -> 73.77520162 | G46: =SUM(G44:G45) -> 75.93867787 | H46: 2.163476256 | I46: 0.02932525034 | J46: 1
A47: Total Electricty Charge on TOU (before HST) | D47: =SUM(D18,D26,D27,D29,D34,D41) -> 74.648936 | G47: =SUM(G18,G26,G27,G29,G34,G41) -> 76.784648 | H47: 2.135712 | I47: 0.02861007959 | K47: =G47/$G$51 -> 0.9871668312
A48: HST | C48: 0.13 | D48: =D47*C48 -> 9.70436168 | F48: =C48 -> 0.13 | G48: =G47*F48 -> 9.98200424 | H48: 0.27764256 | I48: 0.02861007959 | K48: =G48/$G$51 -> 0.1283316881
A49: Total Electricity Charge on TOU (including HST) | D49: =SUM(D47:D48) -> 84.35329768 | G49: =SUM(G47:G48) -> 86.76665224 | H49: 2.41335456 | I49: 0.02861007959 | K49: =G49/$G$51 -> 1.115498519
A50: Ontario Electricity Rebate (OER) | C50: =IF(($B$4*12)<250000,VLOOKUP(A50,'Data Pass Through'!$A$4:$C$20,2,0),0) -> -0.117 | D50: =D47*C50 -> -8.733925512 | F50: =C50 -> -0.117 | G50: =G47*F50 -> -8.983803816 | H50: -0.249878304 | I50: -0.02861007959 | K50: =G50/$G$51 -> -0.1154985192
A51: Total Amount on TOU | D51: =SUM(D49:D50) -> 75.61937217 | G51: =SUM(G49:G50) -> 77.78284842 | H51: 2.163476256 | I51: 0.02861007959 | K51: =G51/$G$51 -> 1

Sheet BI Template_DemandNPDI (hidden)
A1: 2024 Bill Impacts (Low Consumption Level) - AGSd_NPDI
A3: Rate Class | B3: =VLOOKUP(A1,'Data BI List Acq_Seas'!C:E,2,FALSE) -> AGSd-NPDI | C3: =VLOOKUP(A1,'Data BI List Acq_Seas'!C:E,3,FALSE) -> AGSd-NPDI
A4: Monthly Consumption (kWh) | B4: =IF(COUNTIF(A1,"*Low*")>0,VLOOKUP(B3,'Data Billing Quantities'!$A:$Z,MATCH("Low kWh",'Data Billing Quantities'!4:4,0),FALSE),IF(COUNTIF(A1,"*Typical*")>0,VLOOKUP(B3,'Data Billing Quantities'!$A:$Z,MATCH("Typical kWh",'Data Billing Quantities'!4:4,0),FALSE),IF(COUNTIF(A1,"*Average*")>0,VLOOKUP(B3,'Data Billing Quantities'!$A:$Z,MATCH("Average kWh",'Data Billing Quantities'!4:4,0),FALSE),IF(COUNTIF(A1,"*High*")>0,VLOOKUP(B3,'Data Billing Quantities'!$A:$Z,MATCH("High kWh",'Data Billing Quantities'!4:4,0),FALSE),"error")))) -> 13020 | C4: =B4 -> 13020
A5: Peak (kW) | B5: =IF(COUNTIF(A1,"*Low*")>0,VLOOKUP(B3,'Data Billing Quantities'!$A:$Z,MATCH("Low kW",'Data Billing Quantities'!4:4,0),FALSE),IF(COUNTIF(A1,"*Typical*")>0,VLOOKUP(B3,'Data Billing Quantities'!$A:$Z,MATCH("Typical kW",'Data Billing Quantities'!4:4,0),FALSE),IF(COUNTIF(A1,"*Average*")>0,VLOOKUP(B3,'Data Billing Quantities'!$A:$Z,MATCH("Average kW",'Data Billing Quantities'!4:4,0),FALSE),IF(COUNTIF(A1,"*High*")>0,VLOOKUP(B3,'Data Billing Quantities'!$A:$Z,MATCH("High kW",'Data Billing Quantities'!4:4,0),FALSE),"error")))) -> 55 | C5: =B5 -> 55
A6: Loss factor | B6: =VLOOKUP(B3,'Data Billing Quantities'!A:D,MATCH(A6,'Data Billing Quantities'!4:4,0),FALSE) -> 1.053 | C6: =VLOOKUP(C3,'Data Billing Quantities'!A:D,MATCH(A6,'Data Billing Quantities'!4:4,0),FALSE) -> 1.053
A7: Commodity Threshold | B7: =VLOOKUP(B3,'Data Billing Quantities'!A:D,MATCH(A7,'Data Billing Quantities'!4:4,0),FALSE) -> 0 | C7: =B7 -> 0
A8: Monthly Consumption (kWh) - Uplifted | B8: =B4*B6 -> 13710.06 | C8: =C4*C6 -> 13710.06
A9: Charge determinant | B9: =VLOOKUP(B3,'Data Billing Quantities'!A:D,MATCH(A9,'Data Billing Quantities'!4:4,0),FALSE) -> kW | C9: =VLOOKUP(C3,'Data Billing Quantities'!A:D,MATCH(A9,'Data Billing Quantities'!4:4,0),FALSE) -> kW
B11: Volume | C11: Current Rate ($) | D11: Current Charge ($) | E11: Volume | F11: Proposed Rate ($) | G11: Proposed Charge ($) | H11: Change ($) | I11: Change (%) | J11: % of Total Bill
A12: Weighted Average Hourly Spot Price | B12: =B8 -> 13710.06 | C12: =VLOOKUP($A12,'Data Pass Through'!$A:$D,2,FALSE) -> 0.1025 | D12: =B12*C12 -> 1405.28115 | E12: =C8 -> 13710.06 | F12: =VLOOKUP($A12,'Data Pass Through'!$A:$D,3,FALSE) -> 0.1025 | G12: =E12*F12 -> 1405.28115 | H12: =G12-D12 -> 0 | I12: =IF(ISERROR(H12/ABS(D12)),"N/A",(H12/ABS(D12))) -> 0 | J12: =G12/G$36 -> 0.5831633828
A13: Sub-Total: Energy (WASHP) | D13: =SUM(D12:D12) -> 1405.28115 | G13: =SUM(G12:G12) -> 1405.28115 | H13: 0 | I13: 0 | J13: 0.5831633828
A14: Service Charge | B14: 1 | C14: =VLOOKUP($B$3,'Data Current Rates'!$A:$AJ,MATCH('BI Template_DemandNPDI'!$A14,CurrentHeader,0),FALSE) -> 170.26 | D14: =B14*C14 -> 170.26 | E14: 1 | F14: =VLOOKUP($C$3,'Data Proposed Rates'!$A:$BF,MATCH('BI Template_DemandNPDI'!$A14,ProposedHeader,0),FALSE) -> 170.26 | G14: =E14*F14 -> 170.26 | H14: 0 | I14: 0 | J14: 0.07065447193
A15: Distribution Volumetric Charge | B15: =IF($B$9="kWh",$B$4,$B$5) -> 55 | C15: =VLOOKUP($B$3,'Data Current Rates'!$A:$AJ,MATCH('BI Template_DemandNPDI'!$A15,CurrentHeader,0),FALSE) -> 4.6406 | D15: =B15*C15 -> 255.233 | E15: =IF($C$9="kWh",$C$4,$C$5) -> 55 | F15: =VLOOKUP($C$3,'Data Proposed Rates'!$A:$BF,MATCH('BI Template_DemandNPDI'!$A15,ProposedHeader,0),FALSE) -> 4.908 | G15: 269.94 | H15: 14.707 | I15: 0.05762185924 | J15: 0.1120196649
A16: Group 1 Volumetric DVA Rider (General) (2023) | B16: =IF($B$9="kWh",$B$4,$B$5) -> 55 | C16: =VLOOKUP($B$3,'Data Current Rates'!$A:$AJ,MATCH('BI Template_DemandNPDI'!$A16,CurrentHeader,0),FALSE) -> -0.0653 | D16: =B16*C16 -> -3.5915 | E16: =IF($C$9="kWh",$C$4,$C$5) -> 55 | F16: =VLOOKUP($C$3,'Data Proposed Rates'!$A:$BF,MATCH('BI Template_DemandNPDI'!$A16,ProposedHeader,0),FALSE) -> -0.0653 | G16: -3.5915 | H16: 0 | I16: 0 | J16: -0.001490400188
A17: Group 1 Volumetric Deferral/Variance Account Rider (Sub-Account RSVA Wholesale Market Service Charge & RSVA Power) (2023) | B17: 55 | C17: =VLOOKUP($B$3,'Data Current Rates'!$A:$AJ,MATCH('BI Template_DemandNPDI'!$A17,CurrentHeader,0),FALSE) -> -0.1364 | D17: -7.502 | E17: 55 | F17: =VLOOKUP($C$3,'Data Proposed Rates'!$A:$BF,MATCH('BI Template_DemandNPDI'!$A17,ProposedHeader,0),FALSE) -> -0.1364 | G17: -7.502 | H17: 0 | I17: 0 | J17: -0.003113178952
A18: Group 1 Volumetric Deferral/Variance Account Rider (Sub-Account Global Adjustment) (2023) | B18: =$B$4 -> 13020 | C18: =VLOOKUP($B$3,'Data Current Rates'!$A:$AJ,MATCH('BI Template_DemandNPDI'!$A18,CurrentHeader,0),FALSE) -> -0.0009 | D18: -11.718 | E18: =$C$4 -> 13020 | F18: =VLOOKUP($C$3,'Data Proposed Rates'!$A:$BF,MATCH('BI Template_DemandNPDI'!$A18,ProposedHeader,0),FALSE) -> -0.0009 | G18: -11.718 | H18: 0 | I18: 0 | J18: -0.004862734066
A19: Group 1 Volumetric DVA Rider (Excl 1595) (2024) | E19: 55 | F19: =VLOOKUP($C$3,'Data Proposed Rates'!$A:$BF,MATCH('BI Template_DemandNPDI'!$A19,ProposedHeader,0),FALSE) -> 0.291 | G19: =E19*F19 -> 16.005 | H19: =G19-D19 -> 16.005 | I19: =IF(ISERROR(H19/ABS(D19)),"N/A",(H19/ABS(D19))) -> N/A | J19: =G19/G$36 -> 0.00664175275
A20: Group 1 Volumetric Deferral/Variance Account Rider (Sub-Account RSVA Wholesale Market Service Charge & RSVA Power) (2024) | E20: 55 | F20: =VLOOKUP($C$3,'Data Proposed Rates'!$A:$BF,MATCH('BI Template_DemandNPDI'!$A20,ProposedHeader,0),FALSE) -> 0.2386 | G20: 13.123 | H20: 13.123 | I20: N/A | J20: 0.005445780777
A21: Group 1 Volumetric Deferral/Variance Account Rider (Sub-Account Global Adjustment) (2024) | E21: =E18 -> 13020 | F21: =VLOOKUP($C$3,'Data Proposed Rates'!$A:$BF,MATCH('BI Template_DemandNPDI'!$A21,ProposedHeader,0),FALSE) -> -0.0044 | G21: -57.288 | H21: -57.288 | I21: N/A | J21: -0.02377336654
A22: Group 1 Volumetric Deferral/Variance Account Rider (Sub-Account CBR) (2024) | E22: 55 | F22: =VLOOKUP($C$3,'Data Proposed Rates'!$A:$BF,MATCH('BI Template_DemandNPDI'!$A22,ProposedHeader,0),FALSE) -> -0.1908 | G22: -10.494 | H22: -10.494 | I22: N/A | J22: -0.00435479871
A23: Volumetric Rider for Account 1592 | B23: =IF($B$9="kWh",$B$4,$B$5) -> 55 | C23: =VLOOKUP($B$3,'Data Current Rates'!$A:$AJ,MATCH('BI Template_DemandNPDI'!$A23,CurrentHeader,0),FALSE) -> -0.0618 | D23: =B23*C23 -> -3.399 | E23: 55 | F23: =VLOOKUP($C$3,'Data Proposed Rates'!$A:$BF,MATCH('BI Template_DemandNPDI'!$A23,ProposedHeader,0),FALSE) -> -0.0618 | G23: =E23*F23 -> -3.399 | H23: =G23-D23 -> 0 | I23: =IF(ISERROR(H23/ABS(D23)),"N/A",(H23/ABS(D23))) -> 0 | J23: -0.001410516563
A24: Sub-Total: Distribution | D24: =SUM(INDIRECT("D14:D"&ROW()-1)) -> 399.2825 | G24: =SUM(INDIRECT("g14:g"&ROW()-1)) -> 375.3355 | H24: =G24-D24 -> -23.947 | I24: -0.0599750803 | J24: =G24/G$36 -> 0.1557566754
A25: Retail Transmission Rate – Network Service Rate | B25: =IF($B$9="kWh",$B$4,$B$5) -> 55 | C25: =VLOOKUP($B$3,'Data Current Rates'!$A:$AJ,MATCH('BI Template_DemandNPDI'!$A25,CurrentHeader,0),FALSE) -> 2.9071 | D25: =B25*C25 -> 159.8905 | E25: =IF($C$9="kWh",$C$4,$C$5) -> 55 | F25: =VLOOKUP($C$3,'Data Proposed Rates'!$A:$BF,MATCH('BI Template_DemandNPDI'!$A25,ProposedHeader,0),FALSE) -> 2.8592 | G25: =E25*F25 -> 157.256 | H25: =G25-D25 -> -2.6345 | I25: -0.01647690138 | J25: 0.06525807375
A26: Retail Transmission Rate – Line and Transformation Connection Service Rate | B26: =IF($B$9="kWh",$B$4,$B$5) -> 55 | C26: =VLOOKUP($B$3,'Data Current Rates'!$A:$AJ,MATCH('BI Template_DemandNPDI'!$A26,CurrentHeader,0),FALSE) -> 2.1382 | D26: =B26*C26 -> 117.601 | E26: =IF($C$9="kWh",$C$4,$C$5) -> 55 | F26: =VLOOKUP($C$3,'Data Proposed Rates'!$A:$BF,MATCH('BI Template_DemandNPDI'!$A26,ProposedHeader,0),FALSE) -> 2.2384 | G26: =E26*F26 -> 123.112 | H26: =G26-D26 -> 5.511 | I26: 0.04686184641 | J26: 0.05108900122
A27: Sub-Total: Retail Transmission | D27: =SUM(D25:D26) -> 277.4915 | G27: =SUM(G25:G26) -> 280.368 | H27: =G27-D27 -> 2.8765 | I27: 0.01036608329 | J27: 0.116347075
A28: Sub-Total: Delivery (based on two-tier RPP prices) | D28: =SUM(D24,D27) -> 676.774 | G28: =SUM(G24,G27) -> 655.7035 | H28: =G28-D28 -> -21.0705 | I28: -0.0311337315 | J28: 0.2721037503
A29: Wholesale Market Service Rate (WMS) - not including CBR | B29: =B8 -> 13710.06 | C29: =VLOOKUP($A29,'Data Pass Through'!$A:$D,2,FALSE) -> 0.0041 | D29: =B29*C29 -> 56.211246 | E29: =$C$8 -> 13710.06 | F29: =VLOOKUP($A29,'Data Pass Through'!$A:$D,3,FALSE) -> 0.0041 | G29: =E29*F29 -> 56.211246 | H29: =G29-D29 -> 0 | I29: 0 | J29: 0.02332653531
A30: Capacity Based Recovery (CBR) - Applicable for Class B Customers | B30: =B8 -> 13710.06 | C30: =VLOOKUP($A30,'Data Pass Through'!$A:$D,2,FALSE) -> 0.0004 | D30: =B30*C30 -> 5.484024 | E30: =$C$8 -> 13710.06 | F30: =VLOOKUP($A30,'Data Pass Through'!$A:$D,3,FALSE) -> 0.0004 | G30: =E30*F30 -> 5.484024 | H30: 0 | I30: 0 | J30: 0.002275759543
A31: Rural Rate Protection Charge | B31: =B8 -> 13710.06 | C31: =VLOOKUP($A31,'Data Pass Through'!$A:$D,2,FALSE) -> 0.0007 | D31: 9.597042 | E31: 13710.06 | F31: =VLOOKUP($A31,'Data Pass Through'!$A:$D,3,FALSE) -> 0.0007 | G31: 9.597042 | H31: 0 | I31: 0 | J31: 0.0039825792
A32: Standard Supply Service – Administration Charge (if applicable) | B32: 1 | C32: =VLOOKUP($A32,'Data Pass Through'!$A:$D,2,FALSE) -> 0.25 | D32: =B32*C32 -> 0.25 | E32: =B32 -> 1 | F32: =VLOOKUP($A32,'Data Pass Through'!$A:$D,3,FALSE) -> 0.25 | G32: 0.25 | H32: 0 | I32: 0 | J32: 0.0001037449664
A33: Sub-Total: Regulatory | D33: =SUM(D29:D32) -> 71.542312 | G33: =SUM(G29:G32) -> 71.542312 | H33: 0 | I33: 0 | J33: 0.02968861902
A34: Total Electricity Charge on WAHSP | D34: =SUM(D13,D28,D33) -> 2153.597462 | G34: =SUM(G13,G28,G33) -> 2132.526962 | H34: -21.0705 | I34: -0.009783861827 | J34: 0.8849557522
A35: HST | C35: 0.13 | D35: =D34*C35 -> 279.9676701 | F35: =C35 -> 0.13 | G35: =G34*F35 -> 277.2285051 | H35: -2.739165 | I35: -0.009783861827 | J35: 0.1150442478
A36: Total Amount on WAHSP | D36: =SUM(D34:D35) -> 2433.565132 | G36: =SUM(G34:G35) -> 2409.755467 | H36: -23.809665 | I36: -0.009783861827 | J36: 1

Sheet BI Template_unmNPDI (hidden)
A1: 2024 Bill Impacts (Average Consumption Level) - St Lgt_NPDI
A3: Rate Class | B3: =VLOOKUP(A1,'Data BI List Acq_Seas'!C:E,2,FALSE) -> St Lgt-NPDI | C3: =VLOOKUP(A1,'Data BI List Acq_Seas'!C:E,3,FALSE) -> St Lgt-NPDI
A4: Monthly Consumption (kWh) | B4: =IF(COUNTIF(A1,"*Low*")>0,VLOOKUP(B3,'Data Billing Quantities'!$A:$Z,MATCH("Low kWh",'Data Billing Quantities'!4:4,0),FALSE),IF(COUNTIF(A1,"*Typical*")>0,VLOOKUP(B3,'Data Billing Quantities'!$A:$Z,MATCH("Typical kWh",'Data Billing Quantities'!4:4,0),FALSE),IF(COUNTIF(A1,"*Average*")>0,VLOOKUP(B3,'Data Billing Quantities'!$A:$Z,MATCH("Average kWh",'Data Billing Quantities'!4:4,0),FALSE),IF(COUNTIF(A1,"*High*")>0,VLOOKUP(B3,'Data Billing Quantities'!$A:$Z,MATCH("High kWh",'Data Billing Quantities'!4:4,0),FALSE),"error")))) -> 11389 | C4: =B4 -> 11389
A5: Peak (kW) | B5: =IF(COUNTIF(A1,"*Low*")>0,VLOOKUP(B3,'Data Billing Quantities'!$A:$Z,MATCH("Low kW",'Data Billing Quantities'!4:4,0),FALSE),IF(COUNTIF(A1,"*Typical*")>0,VLOOKUP(B3,'Data Billing Quantities'!$A:$Z,MATCH("Typical kW",'Data Billing Quantities'!4:4,0),FALSE),IF(COUNTIF(A1,"*Average*")>0,VLOOKUP(B3,'Data Billing Quantities'!$A:$Z,MATCH("Average kW",'Data Billing Quantities'!4:4,0),FALSE),IF(COUNTIF(A1,"*High*")>0,VLOOKUP(B3,'Data Billing Quantities'!$A:$Z,MATCH("High kW",'Data Billing Quantities'!4:4,0),FALSE),"error")))) -> 39 | C5: =B5 -> 39
A6: Loss factor | B6: =VLOOKUP(B3,'Data Billing Quantities'!A:D,MATCH(A6,'Data Billing Quantities'!4:4,0),FALSE) -> 1.092 | C6: =VLOOKUP(C3,'Data Billing Quantities'!A:D,MATCH(A6,'Data Billing Quantities'!4:4,0),FALSE) -> 1.092
A7: Commodity Threshold | B7: =VLOOKUP(B3,'Data Billing Quantities'!A:D,MATCH(A7,'Data Billing Quantities'!4:4,0),FALSE) -> 750 | C7: =B7 -> 750
A8: Monthly Consumption (kWh) - Uplifted | B8: =B4*B6 -> 12436.788 | C8: =C4*C6 -> 12436.788
A9: Charge determinant | B9: =VLOOKUP(B3,'Data Billing Quantities'!A:D,MATCH(A9,'Data Billing Quantities'!4:4,0),FALSE) -> kWh | C9: =VLOOKUP(C3,'Data Billing Quantities'!A:D,MATCH(A9,'Data Billing Quantities'!4:4,0),FALSE) -> kWh
B11: Volume | C11: Current Rate ($) | D11: Current Charge ($) | E11: Volume | F11: Proposed Rate ($) | G11: Proposed Charge ($) | H11: Change ($) | I11: Change (%) | J11: % of Total Bill
A12: Energy First Tier | B12: =IF(B4>B7,B7,B4) -> 750 | C12: =VLOOKUP($A12,'Data Pass Through'!$A:$D,2,FALSE) -> 0.087 | D12: =B12*C12 -> 65.25 | E12: =B12 -> 750 | F12: =VLOOKUP($A12,'Data Pass Through'!$A:$D,3,FALSE) -> 0.087 | G12: =E12*F12 -> 65.25 | H12: =G12-D12 -> 0 | I12: =IF(ISERROR(H12/ABS(D12)),"N/A",(H12/ABS(D12))) -> 0 | J12: =G12/$G$37 -> 0.02288368067
A13: Energy Second Tier | B13: =IF(B4>B7,(B4)-B7,0) -> 10639 | C13: =VLOOKUP($A13,'Data Pass Through'!$A:$D,2,FALSE) -> 0.103 | D13: =B13*C13 -> 1095.817 | E13: =B13 -> 10639 | F13: =VLOOKUP($A13,'Data Pass Through'!$A:$D,3,FALSE) -> 0.103 | G13: =E13*F13 -> 1095.817 | H13: 0 | I13: 0 | J13: 0.3843115142
A14: Sub-Total: Energy (RPP Tiered) | D14: =SUM(D12:D13) -> 1161.067 | G14: =SUM(G12:G13) -> 1161.067 | H14: 0 | I14: 0 | J14: 0.4071951948
A15: Service Charge | B15: =IF(VLOOKUP(B$3,'Data Billing Quantities'!A:P,MATCH("Acquired Street Light Service Charge",'Data Billing Quantities'!$4:$4,0),FALSE)>0,VLOOKUP(B$3,'Data Billing Quantities'!A:P,MATCH("Acquired Street Light Service Charge",'Data Billing Quantities'!$4:$4,0),FALSE),1) -> 1 | C15: =VLOOKUP($B$3,'Data Current Rates'!$A:$AJ,MATCH('BI Template_unmNPDI'!$A15,CurrentHeader,0),FALSE) -> 3.15 | D15: =B15*C15 -> 3.15 | E15: 1 | F15: =VLOOKUP($C$3,'Data Proposed Rates'!$A:$BF,MATCH('BI Template_unmNPDI'!$A15,ProposedHeader,0),FALSE) -> 3.27 | G15: =E15*F15 -> 3.27 | H15: 0.12 | I15: 0.0380952381 | J15: 0.001146814342
A16: Distribution Volumetric Charge | B16: =IF($B$9="kWh",$B$4,$B$5) -> 11389 | C16: =VLOOKUP($B$3,'Data Current Rates'!$A:$AJ,MATCH('BI Template_unmNPDI'!$A16,CurrentHeader,0),FALSE) -> 0.113 | D16: =B16*C16 -> 1286.957 | E16: =IF($C$9="kWh",$C$4,$C$5) -> 11389 | F16: =VLOOKUP($C$3,'Data Proposed Rates'!$A:$BF,MATCH('BI Template_unmNPDI'!$A16,ProposedHeader,0),FALSE) -> 0.1186 | G16: 1350.7354 | H16: 63.7784 | I16: 0.04955752212 | J16: 0.4737133726
A17: Group 1 Volumetric DVA Rider (General) (2023) | B17: =IF($B$9="kWh",$B$4,$B$5) -> 11389 | C17: =VLOOKUP($B$3,'Data Current Rates'!$A:$AJ,MATCH('BI Template_unmNPDI'!$A17,CurrentHeader,0),FALSE) -> -0.0011 | D17: =B17*C17 -> -12.5279 | E17: =IF($C$9="kWh",$C$4,$C$5) -> 11389 | F17: =VLOOKUP($C$3,'Data Proposed Rates'!$A:$BF,MATCH('BI Template_unmNPDI'!$A17,ProposedHeader,0),FALSE) -> -0.0011 | G17: -12.5279 | H17: 0 | I17: 0 | J17: -0.004393631618
A18: Group 1 Volumetric DVA Rider (Excl 1595) (2024) | E18: 11389 | F18: =VLOOKUP($C$3,'Data Proposed Rates'!$A:$BF,MATCH('BI Template_unmNPDI'!$A18,ProposedHeader,0),FALSE) -> 0.0015 | G18: =E18*F18 -> 17.0835 | H18: =G18-D18 -> 17.0835 | I18: =IF(ISERROR(H18/ABS(D18)),"N/A",(H18/ABS(D18))) -> N/A | J18: =G18/$G$37 -> 0.005991315842
A19: Group 1 Volumetric Deferral/Variance Account Rider (Sub-Account CBR) (2024) | E19: 11389 | F19: =VLOOKUP($C$3,'Data Proposed Rates'!$A:$BF,MATCH('BI Template_unmNPDI'!$A19,ProposedHeader,0),FALSE) -> -0.0005 | G19: -5.6945 | H19: -5.6945 | I19: N/A | J19: -0.001997105281
A20: Volumetric Rider for Account 1592 | B20: =IF($B$9="kWh",$B$4,$B$5) -> 11389 | C20: =VLOOKUP($B$3,'Data Current Rates'!$A:$AJ,MATCH('BI Template_unmNPDI'!$A20,CurrentHeader,0),FALSE) -> -0.0011 | D20: =B20*C20 -> -12.5279 | E20: =IF($C$9="kWh",$C$4,$C$5) -> 11389 | F20: =VLOOKUP($C$3,'Data Proposed Rates'!$A:$BF,MATCH('BI Template_unmNPDI'!$A20,ProposedHeader,0),FALSE) -> -0.0011 | G20: =E20*F20 -> -12.5279 | H20: =G20-D20 -> 0 | I20: =IF(ISERROR(H20/ABS(D20)),"N/A",(H20/ABS(D20))) -> 0 | J20: -0.004393631618
A21: Sub-Total: Distribution (excluding pass through) | D21: =SUM(INDIRECT("D15:D"&ROW()-1)) -> 1265.0512 | G21: =SUM(INDIRECT("g15:g"&ROW()-1)) -> 1340.3386 | H21: =G21-D21 -> 75.2874 | I21: 0.05951332246 | J21: 0.4700671343
A22: Line Losses on Cost of Power (based on two-tier RPP prices) | B22: =B8-B4 -> 1047.788 | C22: =IF(B4>B7,C13,C12) -> 0.103 | D22: =B22*C22 -> 107.922164 | E22: =C8-C4 -> 1047.788 | F22: =IF(C4>C7,F13,F12) -> 0.103 | G22: =E22*F22 -> 107.922164 | H22: 0 | I22: 0 | J22: 0.03784913928
A23: Sub-Total: Distribution (based on two-tier RPP prices) | D23: =SUM(D21,D22:D22) -> 1372.973364 | G23: =SUM(G21,G22:G22) -> 1448.260764 | H23: 75.2874 | I23: 0.05483529541 | J23: 0.5079162735
A24: Retail Transmission Rate – Network Service Rate | B24: =IF($B$9="kWh",$B$8,$B$5) -> 12436.788 | C24: =VLOOKUP($B$3,'Data Current Rates'!$A:$AJ,MATCH('BI Template_unmNPDI'!$A24,CurrentHeader,0),FALSE) -> 0.0064 | D24: =B24*C24 -> 79.5954432 | E24: =IF($C$9="kWh",$C$8,$C$5) -> 12436.788 | F24: =VLOOKUP($C$3,'Data Proposed Rates'!$A:$BF,MATCH('BI Template_unmNPDI'!$A24,ProposedHeader,0),FALSE) -> 0.0063 | G24: =E24*F24 -> 78.3517644 | H24: =G24-D24 -> -1.2436788 | I24: -0.015625 | J24: 0.02747857098
A25: Retail Transmission Rate – Line and Transformation Connection Service Rate | B25: =IF($B$9="kWh",$B$8,$B$5) -> 12436.788 | C25: =VLOOKUP($B$3,'Data Current Rates'!$A:$AJ,MATCH('BI Template_unmNPDI'!$A25,CurrentHeader,0),FALSE) -> 0.0048 | D25: =B25*C25 -> 59.6965824 | E25: =IF($C$9="kWh",$C$8,$C$5) -> 12436.788 | F25: =VLOOKUP($C$3,'Data Proposed Rates'!$A:$BF,MATCH('BI Template_unmNPDI'!$A25,ProposedHeader,0),FALSE) -> 0.005 | G25: =E25*F25 -> 62.18394 | H25: =G25-D25 -> 2.4873576 | I25: 0.04166666667 | J25: 0.02180838967
A26: Sub-Total: Retail Transmission | D26: =SUM(D24:D25) -> 139.2920256 | G26: =SUM(G24:G25) -> 140.5357044 | H26: =G26-D26 -> 1.2436788 | I26: 0.008928571429 | J26: 0.04928696064
A27: Sub-Total: Delivery (based on two-tier RPP prices) | D27: =D23+D26 -> 1512.26539 | G27: =G23+G26 -> 1588.796468 | H27: =G27-D27 -> 76.5310788 | I27: 0.05060691022 | J27: 0.5572032342
A28: Wholesale Market Service Rate (WMS) - not including CBR | B28: =B8 -> 12436.788 | C28: =VLOOKUP($A28,'Data Pass Through'!$A:$D,2,FALSE) -> 0.0041 | D28: =B28*C28 -> 50.9908308 | E28: =$C$8 -> 12436.788 | F28: =VLOOKUP($A28,'Data Pass Through'!$A:$D,3,FALSE) -> 0.0041 | G28: =E28*F28 -> 50.9908308 | H28: =G28-D28 -> 0 | I28: 0 | J28: 0.01788287953
A29: Capacity Based Recovery (CBR) - Applicable for Class B Customers | B29: =B8 -> 12436.788 | C29: =VLOOKUP($A29,'Data Pass Through'!$A:$D,2,FALSE) -> 0.0004 | D29: =B29*C29 -> 4.9747152 | E29: =$C$8 -> 12436.788 | F29: =VLOOKUP($A29,'Data Pass Through'!$A:$D,3,FALSE) -> 0.0004 | G29: =E29*F29 -> 4.9747152 | H29: 0 | I29: 0 | J29: 0.001744671173
A30: Rural Rate Protection Charge | B30: =B8 -> 12436.788 | C30: =VLOOKUP($A30,'Data Pass Through'!$A:$D,2,FALSE) -> 0.0007 | D30: 8.7057516 | E30: 12436.788 | F30: =VLOOKUP($A30,'Data Pass Through'!$A:$D,3,FALSE) -> 0.0007 | G30: 8.7057516 | H30: 0 | I30: 0 | J30: 0.003053174553
A31: Standard Supply Service – Administration Charge (if applicable) | B31: 1 | C31: =VLOOKUP($A31,'Data Pass Through'!$A:$D,2,FALSE) -> 0.25 | D31: =B31*C31 -> 0.25 | E31: 1 | F31: =VLOOKUP($A31,'Data Pass Through'!$A:$D,3,FALSE) -> 0.25 | G31: 0.25 | H31: 0 | I31: 0 | J31: 8.767693743e-05
A32: Sub-Total: Regulatory | D32: =SUM(D28:D31) -> 64.9212976 | G32: =SUM(G28:G31) -> 64.9212976 | H32: 0 | I32: 0 | J32: 0.02276840219
A33: Total Electricty Charge on Two-Tier RPP | D33: =SUM(D27,D32,D14) -> 2738.253687 | G33: =SUM(G27,G32,G14) -> 2814.784766 | H33: 76.5310788 | I33: 0.0279488636 | J33: 0.9871668312
A34: HST | C34: 0.13 | D34: =D33*C34 -> 355.9729793 | F34: =C34 -> 0.13 | G34: =G33*F34 -> 365.9220196 | H34: 9.949040244 | I34: 0.0279488636 | J34: 0.1283316881
A35: Total Electricity Charge on Two-Tier RPP (including HST) | D35: =SUM(D33:D34) -> 3094.226667 | G35: =SUM(G33:G34) -> 3180.706786 | H35: 86.48011904 | I35: 0.0279488636 | J35: 1.115498519
A36: Ontario Electricity Rebate (OER) | C36: =IF(($B$4*12)<250000,VLOOKUP(A36,'Data Pass Through'!$A$4:$C$20,2,0),0) -> -0.117 | D36: =D33*C36 -> -320.3756814 | F36: =C36 -> -0.117 | G36: =G33*F36 -> -329.3298176 | H36: -8.95413622 | I36: -0.0279488636 | J36: -0.1154985192
A37: Total Amount on Two-Tier RPP | D37: =SUM(D35:D36) -> 2773.850985 | G37: =SUM(G35:G36) -> 2851.376968 | H37: 77.52598282 | I37: 0.0279488636 | J37: 1

Sheet BI Template_EnergyHCHI (hidden)
A1: 2024 Bill Impacts (Low Consumption Level) - AR_HCHI
A3: Rate Class | B3: =VLOOKUP(A1,'Data BI List Acq_Seas'!C:E,2,FALSE) -> AR-HCHI | C3: =VLOOKUP(A1,'Data BI List Acq_Seas'!C:E,3,FALSE) -> AR-HCHI
A4: Monthly Consumption (kWh) | B4: =IF(COUNTIF(A1,"*Low*")>0,VLOOKUP(B3,'Data Billing Quantities'!$A:$Z,MATCH("Low kWh",'Data Billing Quantities'!4:4,0),FALSE),IF(COUNTIF(A1,"*Typical*")>0,VLOOKUP(B3,'Data Billing Quantities'!$A:$Z,MATCH("Typical kWh",'Data Billing Quantities'!4:4,0),FALSE),IF(COUNTIF(A1,"*Average*")>0,VLOOKUP(B3,'Data Billing Quantities'!$A:$Z,MATCH("Average kWh",'Data Billing Quantities'!4:4,0),FALSE),IF(COUNTIF(A1,"*High*")>0,VLOOKUP(B3,'Data Billing Quantities'!$A:$Z,MATCH("High kWh",'Data Billing Quantities'!4:4,0),FALSE),"error")))) -> 250 | C4: =B4 -> 250
A5: Peak (kW) | B5: =IF(COUNTIF(A1,"*Low*")>0,VLOOKUP(B3,'Data Billing Quantities'!$A:$Z,MATCH("Low kW",'Data Billing Quantities'!4:4,0),FALSE),IF(COUNTIF(A1,"*Typical*")>0,VLOOKUP(B3,'Data Billing Quantities'!$A:$Z,MATCH("Typical kW",'Data Billing Quantities'!4:4,0),FALSE),IF(COUNTIF(A1,"*Average*")>0,VLOOKUP(B3,'Data Billing Quantities'!$A:$Z,MATCH("Average kW",'Data Billing Quantities'!4:4,0),FALSE),IF(COUNTIF(A1,"*High*")>0,VLOOKUP(B3,'Data Billing Quantities'!$A:$Z,MATCH("High kW",'Data Billing Quantities'!4:4,0),FALSE),"error")))) -> 0 | C5: =B5 -> 0
A6: Loss factor | B6: =VLOOKUP(B3,'Data Billing Quantities'!A:D,MATCH(A6,'Data Billing Quantities'!4:4,0),FALSE) -> 1.064 | C6: =VLOOKUP(C3,'Data Billing Quantities'!A:D,MATCH(A6,'Data Billing Quantities'!4:4,0),FALSE) -> 1.064
A7: Commodity Threshold | B7: =VLOOKUP(B3,'Data Billing Quantities'!A:D,MATCH(A7,'Data Billing Quantities'!4:4,0),FALSE) -> 750 | C7: =B7 -> 750
A8: Monthly Consumption (kWh) - Uplifted | B8: =B4*B6 -> 266 | C8: =C4*C6 -> 266
A9: Charge determinant | B9: =VLOOKUP(B3,'Data Billing Quantities'!A:D,MATCH(A9,'Data Billing Quantities'!4:4,0),FALSE) -> kWh | C9: =VLOOKUP(C3,'Data Billing Quantities'!A:D,MATCH(A9,'Data Billing Quantities'!4:4,0),FALSE) -> kWh
B11: Volume | C11: Current Rate ($) | D11: Current Charge ($) | E11: Volume | F11: Proposed Rate ($) | G11: Proposed Charge ($) | H11: Change ($) | I11: Change (%) | J11: % of Total Bill on RPP | K11: % of Total Bill
A12: Energy First Tier | B12: =IF(B4>B7,B7,B4) -> 250 | C12: =VLOOKUP($A12,'Data Pass Through'!$A:$D,2,FALSE) -> 0.087 | D12: =B12*C12 -> 21.75 | E12: =B12 -> 250 | F12: =VLOOKUP($A12,'Data Pass Through'!$A:$D,3,FALSE) -> 0.087 | G12: =E12*F12 -> 21.75 | H12: =G12-D12 -> 0 | I12: =IF(ISERROR(H12/ABS(D12)),"N/A",(H12/ABS(D12))) -> 0 | J12: =G12/$G$46 -> 0.3059253125
A13: Energy Second Tier | B13: =IF(B4>B7,(B4)-B7,0) -> 0 | C13: =VLOOKUP($A13,'Data Pass Through'!$A:$D,2,FALSE) -> 0.103 | D13: =B13*C13 -> 0 | E13: =B13 -> 0 | F13: =VLOOKUP($A13,'Data Pass Through'!$A:$D,3,FALSE) -> 0.103 | G13: =E13*F13 -> 0 | H13: 0 | I13: N/A | J13: =G13/$G$46 -> 0
A14: Sub-Total: Energy (RPP Tiered) | D14: =SUM(D12:D13) -> 21.75 | G14: =SUM(G12:G13) -> 21.75 | H14: 0 | I14: 0 | J14: =G14/$G$46 -> 0.3059253125
A15: TOU-Off Peak | B15: =B$4*VLOOKUP($B$3,'Data Billing Quantities'!$A:$O,MATCH('BI Template_EnergyHCHI'!$A15,'Data Billing Quantities'!$4:$4,0),FALSE) -> 160 | C15: =VLOOKUP($A15,'Data Pass Through'!$A:$D,2,FALSE) -> 0.074 | D15: =B15*C15 -> 11.84 | E15: 160 | F15: =VLOOKUP($A15,'Data Pass Through'!$A:$D,3,FALSE) -> 0.074 | G15: =E15*F15 -> 11.84 | H15: 0 | I15: 0 | K15: =G15/$G$51 -> 0.1628933684
A16: TOU-Mid Peak | B16: =B$4*VLOOKUP($B$3,'Data Billing Quantities'!$A:$O,MATCH('BI Template_EnergyHCHI'!$A16,'Data Billing Quantities'!$4:$4,0),FALSE) -> 45 | C16: =VLOOKUP($A16,'Data Pass Through'!$A:$D,2,FALSE) -> 0.102 | D16: =B16*C16 -> 4.59 | E16: 45 | F16: =VLOOKUP($A16,'Data Pass Through'!$A:$D,3,FALSE) -> 0.102 | G16: =E16*F16 -> 4.59 | H16: 0 | I16: 0 | K16: 0.06314869601
A17: TOU-On Peak | B17: =B$4*VLOOKUP($B$3,'Data Billing Quantities'!$A:$O,MATCH('BI Template_EnergyHCHI'!$A17,'Data Billing Quantities'!$4:$4,0),FALSE) -> 45 | C17: =VLOOKUP($A17,'Data Pass Through'!$A:$D,2,FALSE) -> 0.151 | D17: =B17*C17 -> 6.795 | E17: 45 | F17: =VLOOKUP($A17,'Data Pass Through'!$A:$D,3,FALSE) -> 0.151 | G17: =E17*F17 -> 6.795 | H17: 0 | I17: 0 | K17: 0.09348483429
A18: Sub-Total: Energy (RPP TOU) | D18: =SUM(D15:D17) -> 23.225 | G18: =SUM(G15:G17) -> 23.225 | H18: 0 | I18: 0 | J18: =G18/$G$46 -> 0.3266719716 | K18: 0.3195268987
A19: Service Charge | B19: 1 | C19: =VLOOKUP($B$3,'Data Current Rates'!$A:$AJ,MATCH('BI Template_EnergyHCHI'!$A19,CurrentHeader,0),FALSE) -> 38.2 | D19: =B19*C19 -> 38.2 | E19: 1 | F19: =VLOOKUP($C$3,'Data Proposed Rates'!$A:$BF,MATCH('BI Template_EnergyHCHI'!$A19,ProposedHeader,0),FALSE) -> 40.1 | G19: =E19*F19 -> 40.1 | H19: 1.9 | I19: 0.0497382199 | J19: =G19/$G$46 -> 0.5640278176 | K19: 0.5516912222
A20: Distribution Volumetric Charge | B20: =IF($B$9="kWh",$B$4,$B$5) -> 250 | C20: =VLOOKUP($B$3,'Data Current Rates'!$A:$AJ,MATCH('BI Template_EnergyHCHI'!$A20,CurrentHeader,0),FALSE) -> 0 | D20: =B20*C20 -> 0 | E20: =IF($C$9="kWh",$C$4,$C$5) -> 250 | F20: =VLOOKUP($C$3,'Data Proposed Rates'!$A:$BF,MATCH('BI Template_EnergyHCHI'!$A20,ProposedHeader,0),FALSE) -> 0 | G20: 0 | H20: 0 | I20: N/A | J20: =G20/$G$46 -> 0 | K20: 0
A21: Group 1 Volumetric DVA Rider (General) (2023) | B21: =IF($B$9="kWh",$B$4,$B$5) -> 250 | C21: =VLOOKUP($B$3,'Data Current Rates'!$A:$AJ,MATCH('BI Template_EnergyHCHI'!$A21,CurrentHeader,0),FALSE) -> -0.0007 | D21: =B21*C21 -> -0.175 | E21: =IF($C$9="kWh",$C$4,$C$5) -> 250 | F21: =VLOOKUP($C$3,'Data Proposed Rates'!$A:$BF,MATCH('BI Template_EnergyHCHI'!$A21,ProposedHeader,0),FALSE) -> -0.0007 | G21: -0.175 | H21: 0 | I21: 0 | J21: =G21/$G$46 -> -0.002461468032 | K21: -0.002407630022
A22: Group 1 Volumetric DVA Rider (Excl 1595) (2024) | E22: =IF($B$9="kWh",$B$4,$B$5) -> 250 | F22: =VLOOKUP($C$3,'Data Proposed Rates'!$A:$BF,MATCH('BI Template_EnergyHCHI'!$A22,ProposedHeader,0),FALSE) -> 0.0011 | G22: =E22*F22 -> 0.275 | H22: =G22-D22 -> 0.275 | I22: =IF(ISERROR(H22/ABS(D22)),"N/A",(H22/ABS(D22))) -> N/A | J22: =G22/$G$46 -> 0.003868021193 | K22: =G22/$G$51 -> 0.003783418606
A23: Group 1 Volumetric Deferral/Variance Account Rider (Sub-Account CBR) (2024) | E23: =IF($B$9="kWh",$B$4,$B$5) -> 250 | F23: =VLOOKUP($C$3,'Data Proposed Rates'!$A:$BF,MATCH('BI Template_EnergyHCHI'!$A23,ProposedHeader,0),FALSE) -> -0.0005 | G23: -0.125 | H23: -0.125 | I23: N/A | J23: -0.001758191451 | K23: -0.00171973573
A24: Fixed Rider for Account 1592 | B24: 1 | C24: =VLOOKUP($B$3,'Data Current Rates'!$A:$AJ,MATCH('BI Template_EnergyHCHI'!$A24,CurrentHeader,0),FALSE) -> -0.46 | D24: =B24*C24 -> -0.46 | E24: 1 | F24: =VLOOKUP($C$3,'Data Proposed Rates'!$A:$BF,MATCH('BI Template_EnergyHCHI'!$A24,ProposedHeader,0),FALSE) -> -0.46 | G24: =E24*F24 -> -0.46 | H24: =G24-D24 -> 0 | I24: =IF(ISERROR(H24/ABS(D24)),"N/A",(H24/ABS(D24))) -> 0 | J24: =G24/$G$46 -> -0.006470144541 | K24: =G24/$G$51 -> -0.006328627487
A25: Volumetric Rider for Account 1592 | B25: =IF($B$9="kWh",$B$4,$B$5) -> 250 | C25: =VLOOKUP($B$3,'Data Current Rates'!$A:$AJ,MATCH('BI Template_EnergyHCHI'!$A25,CurrentHeader,0),FALSE) -> 0 | D25: =B25*C25 -> 0 | E25: =IF($C$9="kWh",$C$4,$C$5) -> 250 | F25: =VLOOKUP($C$3,'Data Proposed Rates'!$A:$BF,MATCH('BI Template_EnergyHCHI'!$A25,ProposedHeader,0),FALSE) -> 0 | G25: 0 | H25: 0 | I25: N/A | J25: 0 | K25: 0
A26: Sub-Total: Distribution (excluding pass through) | D26: =SUM(INDIRECT("D19:D"&ROW()-1)) -> 37.565 | G26: =SUM(INDIRECT("g19:g"&ROW()-1)) -> 39.615 | H26: =G26-D26 -> 2.05 | I26: 0.05457207507 | J26: =G26/$G$46 -> 0.5572060347 | K26: =G26/$G$51 -> 0.5450186476
A27: Smart Metering Entity Charge | B27: =B19 -> 1 | C27: =VLOOKUP($A27,'Data Pass Through'!$A:$D,2,FALSE) -> 0.42 | D27: =B27*C27 -> 0.42 | E27: =E19 -> 1 | F27: =VLOOKUP($A27,'Data Pass Through'!$A:$D,3,FALSE) -> 0.42 | G27: =E27*F27 -> 0.42 | H27: 0 | I27: 0 | J27: 0.005907523276 | K27: 0.005778312053
A28: Line Losses on Cost of Power (based on two-tier RPP prices) | B28: =B8-B4 -> 16 | C28: =IF(B4>B7,C13,C12) -> 0.087 | D28: =B28*C28 -> 1.392 | E28: =C8-C4 -> 16 | F28: =IF(C4>C7,F13,F12) -> 0.087 | G28: =E28*F28 -> 1.392 | H28: 0 | I28: 0 | J28: 0.01957922 | K28: 0.01915097709
A29: Line Losses on Cost of Power (based on TOU prices) | B29: =B8-B4 -> 16 | C29: =VLOOKUP($B$3,'Data Billing Quantities'!$A:$O,MATCH('BI Template_EnergyHCHI'!$A15,'Data Billing Quantities'!$4:$4,0),FALSE)*C15+VLOOKUP($B$3,'Data Billing Quantities'!$A:$O,MATCH('BI Template_EnergyHCHI'!$A16,'Data Billing Quantities'!$4:$4,0),FALSE)*C16+VLOOKUP($B$3,'Data Billing Quantities'!$A:$O,MATCH('BI Template_EnergyHCHI'!$A17,'Data Billing Quantities'!$4:$4,0),FALSE)*C17 -> 0.0929 | D29: =B29*C29 -> 1.4864 | E29: =C8-C4 -> 16 | F29: =VLOOKUP($C$3,'Data Billing Quantities'!$A:$O,MATCH('BI Template_EnergyHCHI'!$A15,'Data Billing Quantities'!$4:$4,0),FALSE)*F15+VLOOKUP($C$3,'Data Billing Quantities'!$A:$O,MATCH('BI Template_EnergyHCHI'!$A16,'Data Billing Quantities'!$4:$4,0),FALSE)*F16+VLOOKUP($C$3,'Data Billing Quantities'!$A:$O,MATCH('BI Template_EnergyHCHI'!$A17,'Data Billing Quantities'!$4:$4,0),FALSE)*F17 -> 0.0929 | G29: =E29*F29 -> 1.4864 | H29: 0 | I29: 0 | J29: 0.02090700619 | K29: 0.02044972151
A30: Sub-Total: Distribution (based on two-tier RPP prices) | D30: =SUM(D26,D27:D28) -> 39.377 | G30: =SUM(G26,G27:G28) -> 41.427 | H30: 2.05 | I30: 0.0520608477 | J30: 0.582692778 | K30: 0.5699479367
A31: Sub-Total: Distribution (based on TOU prices) | D31: =SUM(D26,D27,D29) -> 39.4714 | G31: =SUM(G26,G27,G29) -> 41.5214 | H31: 2.05 | I31: 0.05193633872 | J31: 0.5840205642 | K31: 0.5712466812
A32: Retail Transmission Rate – Network Service Rate | B32: =IF($B$9="kWh",$B$8,$B$5) -> 266 | C32: =VLOOKUP($B$3,'Data Current Rates'!$A:$AJ,MATCH('BI Template_EnergyHCHI'!$A32,CurrentHeader,0),FALSE) -> 0.0118 | D32: =B32*C32 -> 3.1388 | E32: =IF($C$9="kWh",$C$8,$C$5) -> 266 | F32: =VLOOKUP($C$3,'Data Proposed Rates'!$A:$BF,MATCH('BI Template_EnergyHCHI'!$A32,ProposedHeader,0),FALSE) -> 0.0116 | G32: =E32*F32 -> 3.0856 | H32: =G32-D32 -> -0.0532 | I32: -0.01694915254 | J32: 0.04340060434 | K32: 0.04245133255
A33: Retail Transmission Rate – Line and Transformation Connection Service Rate | B33: =IF($B$9="kWh",$B$8,$B$5) -> 266 | C33: =VLOOKUP($B$3,'Data Current Rates'!$A:$AJ,MATCH('BI Template_EnergyHCHI'!$A33,CurrentHeader,0),FALSE) -> 0.0082 | D33: =B33*C33 -> 2.1812 | E33: =IF($C$9="kWh",$C$8,$C$5) -> 266 | F33: =VLOOKUP($C$3,'Data Proposed Rates'!$A:$BF,MATCH('BI Template_EnergyHCHI'!$A33,ProposedHeader,0),FALSE) -> 0.0086 | G33: =E33*F33 -> 2.2876 | H33: =G33-D33 -> 0.1064 | I33: 0.0487804878 | J33: 0.03217631011 | K33: 0.03147253965
A34: Sub-Total: Retail Transmission | D34: =SUM(D32:D33) -> 5.32 | G34: =SUM(G32:G33) -> 5.3732 | H34: =G34-D34 -> 0.0532 | I34: 0.01 | J34: 0.07557691445 | K34: 0.0739238722
A35: Sub-Total: Delivery (based on two-tier RPP prices) | D35: =D30+D34 -> 44.697 | G35: =G30+G34 -> 46.8002 | H35: =G35-D35 -> 2.1032 | I35: 0.04705461217 | J35: 0.6582696925 | K35: 0.643871809
A36: Sub-Total: Delivery (based on TOU prices) | D36: =D31+D34 -> 44.7914 | G36: =G31+G34 -> 46.8946 | H36: =G36-D36 -> 2.1032 | I36: 0.04695544234 | J36: 0.6595974786 | K36: 0.6451705534
A37: Wholesale Market Service Rate (WMS) - not including CBR | B37: =B8 -> 266 | C37: =VLOOKUP($A37,'Data Pass Through'!$A:$D,2,FALSE) -> 0.0041 | D37: =B37*C37 -> 1.0906 | E37: =$C$8 -> 266 | F37: =VLOOKUP($A37,'Data Pass Through'!$A:$D,3,FALSE) -> 0.0041 | G37: =E37*F37 -> 1.0906 | H37: 0 | I37: 0 | J37: 0.01533986877 | K37: 0.0150043503
A38: Capacity Based Recovery (CBR) - Applicable for Class B Customers | B38: =B8 -> 266 | C38: =VLOOKUP($A38,'Data Pass Through'!$A:$D,2,FALSE) -> 0.0004 | D38: =B38*C38 -> 0.1064 | E38: =$C$8 -> 266 | F38: =VLOOKUP($A38,'Data Pass Through'!$A:$D,3,FALSE) -> 0.0004 | G38: =E38*F38 -> 0.1064 | H38: 0 | I38: 0 | J38: 0.001496572563 | K38: 0.001463839054
A39: Rural Rate Protection Charge | B39: =B8 -> 266 | C39: =VLOOKUP($A39,'Data Pass Through'!$A:$D,2,FALSE) -> 0.0007 | D39: 0.1862 | E39: 266 | F39: =VLOOKUP($A39,'Data Pass Through'!$A:$D,3,FALSE) -> 0.0007 | G39: 0.1862 | H39: 0 | I39: 0 | J39: 0.002619001986 | K39: 0.002561718344
A40: Standard Supply Service – Administration Charge (if applicable) | B40: 1 | C40: =VLOOKUP($A40,'Data Pass Through'!$A:$D,2,FALSE) -> 0.25 | D40: =B40*C40 -> 0.25 | E40: 1 | F40: =VLOOKUP($A40,'Data Pass Through'!$A:$D,3,FALSE) -> 0.25 | G40: 0.25 | H40: 0 | I40: 0 | J40: 0.003516382902 | K40: 0.00343947146
A41: Sub-Total: Regulatory | D41: =SUM(D37:D40) -> 1.6332 | G41: =SUM(G37:G40) -> 1.6332 | H41: 0 | I41: 0 | J41: 0.02297182623 | K41: 0.02246937916
A42: Total Electricty Charge on Two-Tier RPP | D42: =SUM(D14,D26,D27,D28,D34,D41) -> 68.0802 | G42: =SUM(G14,G26,G27,G28,G34,G41) -> 70.1834 | H42: 2.1032 | I42: 0.03089297623 | J42: 0.9871668312
A43: HST | C43: 0.13 | D43: =D42*C43 -> 8.850426 | F43: =C43 -> 0.13 | G43: =G42*F43 -> 9.123842 | H43: 0.273416 | I43: 0.03089297623 | J43: 0.1283316881
A44: Total Electricity Charge on Two-Tier RPP (including HST) | D44: =SUM(D42:D43) -> 76.930626 | G44: =SUM(G42:G43) -> 79.307242 | H44: 2.376616 | I44: 0.03089297623 | J44: 1.115498519
A45: Ontario Electricity Rebate (OER) | C45: =IF(($B$4*12)<250000,VLOOKUP(A45,'Data Pass Through'!$A$4:$C$20,2,0),0) -> -0.117 | D45: =D42*C45 -> -7.9653834 | F45: =C45 -> -0.117 | G45: =G42*F45 -> -8.2114578 | H45: -0.2460744 | I45: -0.03089297623 | J45: -0.1154985192
A46: Total Amount on Two-Tier RPP | D46: =SUM(D44:D45) -> 68.9652426 | G46: =SUM(G44:G45) -> 71.0957842 | H46: 2.1305416 | I46: 0.03089297623 | J46: 1
A47: Total Electricty Charge on TOU (before HST) | D47: =SUM(D18,D26,D27,D29,D34,D41) -> 69.6496 | G47: =SUM(G18,G26,G27,G29,G34,G41) -> 71.7528 | H47: 2.1032 | I47: 0.0301968712 | K47: =G47/$G$51 -> 0.9871668312
A48: HST | C48: 0.13 | D48: =D47*C48 -> 9.054448 | F48: =C48 -> 0.13 | G48: =G47*F48 -> 9.327864 | H48: 0.273416 | I48: 0.0301968712 | K48: =G48/$G$51 -> 0.1283316881
A49: Total Electricity Charge on TOU (including HST) | D49: =SUM(D47:D48) -> 78.704048 | G49: =SUM(G47:G48) -> 81.080664 | H49: 2.376616 | I49: 0.0301968712 | K49: =G49/$G$51 -> 1.115498519
A50: Ontario Electricity Rebate (OER) | C50: =IF(($B$4*12)<250000,VLOOKUP(A50,'Data Pass Through'!$A$4:$C$20,2,0),0) -> -0.117 | D50: =D47*C50 -> -8.1490032 | F50: =C50 -> -0.117 | G50: =G47*F50 -> -8.3950776 | H50: -0.2460744 | I50: -0.0301968712 | K50: =G50/$G$51 -> -0.1154985192
A51: Total Amount on TOU | D51: =SUM(D49:D50) -> 70.5550448 | G51: =SUM(G49:G50) -> 72.6855864 | H51: 2.1305416 | I51: 0.0301968712 | K51: =G51/$G$51 -> 1

Sheet BI Template_DemandHCHI (hidden)
A1: 2024 Bill Impacts (Low Consumption Level) - AGSd_HCHI
A3: Rate Class | B3: =VLOOKUP(A1,'Data BI List Acq_Seas'!C:E,2,FALSE) -> AGSd-HCHI | C3: =VLOOKUP(A1,'Data BI List Acq_Seas'!C:E,3,FALSE) -> AGSd-HCHI
A4: Monthly Consumption (kWh) | B4: =IF(COUNTIF(A1,"*Low*")>0,VLOOKUP(B3,'Data Billing Quantities'!$A:$Z,MATCH("Low kWh",'Data Billing Quantities'!4:4,0),FALSE),IF(COUNTIF(A1,"*Typical*")>0,VLOOKUP(B3,'Data Billing Quantities'!$A:$Z,MATCH("Typical kWh",'Data Billing Quantities'!4:4,0),FALSE),IF(COUNTIF(A1,"*Average*")>0,VLOOKUP(B3,'Data Billing Quantities'!$A:$Z,MATCH("Average kWh",'Data Billing Quantities'!4:4,0),FALSE),IF(COUNTIF(A1,"*High*")>0,VLOOKUP(B3,'Data Billing Quantities'!$A:$Z,MATCH("High kWh",'Data Billing Quantities'!4:4,0),FALSE),"error")))) -> 10880 | C4: =B4 -> 10880
A5: Peak (kW) | B5: =IF(COUNTIF(A1,"*Low*")>0,VLOOKUP(B3,'Data Billing Quantities'!$A:$Z,MATCH("Low kW",'Data Billing Quantities'!4:4,0),FALSE),IF(COUNTIF(A1,"*Typical*")>0,VLOOKUP(B3,'Data Billing Quantities'!$A:$Z,MATCH("Typical kW",'Data Billing Quantities'!4:4,0),FALSE),IF(COUNTIF(A1,"*Average*")>0,VLOOKUP(B3,'Data Billing Quantities'!$A:$Z,MATCH("Average kW",'Data Billing Quantities'!4:4,0),FALSE),IF(COUNTIF(A1,"*High*")>0,VLOOKUP(B3,'Data Billing Quantities'!$A:$Z,MATCH("High kW",'Data Billing Quantities'!4:4,0),FALSE),"error")))) -> 55 | C5: =B5 -> 55
A6: Loss factor | B6: =VLOOKUP(B3,'Data Billing Quantities'!A:D,MATCH(A6,'Data Billing Quantities'!4:4,0),FALSE) -> 1.053 | C6: =VLOOKUP(C3,'Data Billing Quantities'!A:D,MATCH(A6,'Data Billing Quantities'!4:4,0),FALSE) -> 1.053
A7: Commodity Threshold | B7: =VLOOKUP(B3,'Data Billing Quantities'!A:D,MATCH(A7,'Data Billing Quantities'!4:4,0),FALSE) -> 0 | C7: =B7 -> 0
A8: Monthly Consumption (kWh) - Uplifted | B8: =B4*B6 -> 11456.64 | C8: =C4*C6 -> 11456.64
A9: Charge determinant | B9: =VLOOKUP(B3,'Data Billing Quantities'!A:D,MATCH(A9,'Data Billing Quantities'!4:4,0),FALSE) -> kW | C9: =VLOOKUP(C3,'Data Billing Quantities'!A:D,MATCH(A9,'Data Billing Quantities'!4:4,0),FALSE) -> kW
B11: Volume | C11: Current Rate ($) | D11: Current Charge ($) | E11: Volume | F11: Proposed Rate ($) | G11: Proposed Charge ($) | H11: Change ($) | I11: Change (%) | J11: % of Total Bill
A12: Weighted Average Hourly Spot Price | B12: =B8 -> 11456.64 | C12: =VLOOKUP($A12,'Data Pass Through'!$A:$D,2,FALSE) -> 0.1025 | D12: =B12*C12 -> 1174.3056 | E12: =C8 -> 11456.64 | F12: =VLOOKUP($A12,'Data Pass Through'!$A:$D,3,FALSE) -> 0.1025 | G12: =E12*F12 -> 1174.3056 | H12: =G12-D12 -> 0 | I12: =IF(ISERROR(H12/ABS(D12)),"N/A",(H12/ABS(D12))) -> 0 | J12: =G12/G$36 -> 0.5471074406
A13: Sub-Total: Energy (WAHSP) | D13: =SUM(D12:D12) -> 1174.3056 | G13: =SUM(G12:G12) -> 1174.3056 | H13: 0 | I13: 0 | J13: 0.5471074406
A14: Service Charge | B14: 1 | C14: =VLOOKUP($B$3,'Data Current Rates'!$A:$AJ,MATCH('BI Template_DemandHCHI'!$A14,CurrentHeader,0),FALSE) -> 170.26 | D14: =B14*C14 -> 170.26 | E14: 1 | F14: =VLOOKUP($C$3,'Data Proposed Rates'!$A:$BF,MATCH('BI Template_DemandHCHI'!$A14,ProposedHeader,0),FALSE) -> 170.26 | G14: =E14*F14 -> 170.26 | H14: 0 | I14: 0 | J14: 0.07932391094
A15: Distribution Volumetric Charge | B15: =IF($B$9="kWh",$B$4,$B$5) -> 55 | C15: =VLOOKUP($B$3,'Data Current Rates'!$A:$AJ,MATCH('BI Template_DemandHCHI'!$A15,CurrentHeader,0),FALSE) -> 4.6406 | D15: =B15*C15 -> 255.233 | E15: =IF($C$9="kWh",$C$4,$C$5) -> 55 | F15: =VLOOKUP($C$3,'Data Proposed Rates'!$A:$BF,MATCH('BI Template_DemandHCHI'!$A15,ProposedHeader,0),FALSE) -> 4.908 | G15: 269.94 | H15: 14.707 | I15: 0.05762185924 | J15: 0.1257646924
A16: Group 1 Volumetric DVA Rider (General) (2023) | B16: =IF($B$9="kWh",$B$4,$B$5) -> 55 | C16: =VLOOKUP($B$3,'Data Current Rates'!$A:$AJ,MATCH('BI Template_DemandHCHI'!$A16,CurrentHeader,0),FALSE) -> -0.098 | D16: =B16*C16 -> -5.39 | E16: =IF($C$9="kWh",$C$4,$C$5) -> 55 | F16: =VLOOKUP($C$3,'Data Proposed Rates'!$A:$BF,MATCH('BI Template_DemandHCHI'!$A16,ProposedHeader,0),FALSE) -> -0.098 | G16: -5.39 | H16: 0 | I16: 0 | J16: -0.002511193939
A17: Group 1 Volumetric Deferral/Variance Account Rider (Sub-Account RSVA Wholesale Market Service Charge & RSVA Power) (2023) | B17: 55 | C17: =VLOOKUP($B$3,'Data Current Rates'!$A:$AJ,MATCH('BI Template_DemandHCHI'!$A17,CurrentHeader,0),FALSE) -> -0.1364 | D17: -7.502 | E17: 55 | F17: =VLOOKUP($C$3,'Data Proposed Rates'!$A:$BF,MATCH('BI Template_DemandHCHI'!$A17,ProposedHeader,0),FALSE) -> -0.1364 | G17: -7.502 | H17: 0 | I17: 0 | J17: -0.003495171972
A18: Group 1 Volumetric Deferral/Variance Account Rider (Sub-Account Global Adjustment) (2023) | B18: =$B$4 -> 10880 | C18: =VLOOKUP($B$3,'Data Current Rates'!$A:$AJ,MATCH('BI Template_DemandHCHI'!$A18,CurrentHeader,0),FALSE) -> -0.0009 | D18: -9.792 | E18: =$C$4 -> 10880 | F18: =VLOOKUP($C$3,'Data Proposed Rates'!$A:$BF,MATCH('BI Template_DemandHCHI'!$A18,ProposedHeader,0),FALSE) -> -0.0009 | G18: -9.792 | H18: 0 | I18: 0 | J18: -0.004562079972
A19: Group 1 Volumetric DVA Rider (Excl 1595) (2024) | E19: =IF($B$9="kWh",$B$4,$B$5) -> 55 | F19: =VLOOKUP($C$3,'Data Proposed Rates'!$A:$BF,MATCH('BI Template_DemandHCHI'!$A19,ProposedHeader,0),FALSE) -> 0.291 | G19: =E19*F19 -> 16.005 | H19: =G19-D19 -> 16.005 | I19: =IF(ISERROR(H19/ABS(D19)),"N/A",(H19/ABS(D19))) -> N/A | J19: =G19/G$36 -> 0.007456708532
A20: Group 1 Volumetric Deferral/Variance Account Rider (Sub-Account RSVA Wholesale Market Service Charge & RSVA Power) (2024) | E20: 55 | F20: =VLOOKUP($C$3,'Data Proposed Rates'!$A:$BF,MATCH('BI Template_DemandHCHI'!$A20,ProposedHeader,0),FALSE) -> 0.2386 | G20: 13.123 | H20: 13.123 | I20: N/A | J20: 0.006113988508
A21: Group 1 Volumetric Deferral/Variance Account Rider (Sub-Account Global Adjustment) (2024) | E21: =E18 -> 10880 | F21: =VLOOKUP($C$3,'Data Proposed Rates'!$A:$BF,MATCH('BI Template_DemandHCHI'!$A21,ProposedHeader,0),FALSE) -> -0.0044 | G21: -47.872 | H21: -47.872 | I21: N/A | J21: -0.02230350208
A22: Group 1 Volumetric Deferral/Variance Account Rider (Sub-Account CBR) (2024) | E22: 55 | F22: =VLOOKUP($C$3,'Data Proposed Rates'!$A:$BF,MATCH('BI Template_DemandHCHI'!$A22,ProposedHeader,0),FALSE) -> -0.1908 | G22: -10.494 | H22: -10.494 | I22: N/A | J22: -0.004889140852
A23: Volumetric Rider for Account 1592 | B23: =IF($B$9="kWh",$B$4,$B$5) -> 55 | C23: =VLOOKUP($B$3,'Data Current Rates'!$A:$AJ,MATCH('BI Template_DemandHCHI'!$A23,CurrentHeader,0),FALSE) -> -0.0603 | D23: =B23*C23 -> -3.3165 | E23: =IF($C$9="kWh",$C$4,$C$5) -> 55 | F23: =VLOOKUP($C$3,'Data Proposed Rates'!$A:$BF,MATCH('BI Template_DemandHCHI'!$A23,ProposedHeader,0),FALSE) -> -0.0603 | G23: =E23*F23 -> -3.3165 | H23: =G23-D23 -> 0 | I23: =IF(ISERROR(H23/ABS(D23)),"N/A",(H23/ABS(D23))) -> 0 | J23: =G23/G$36 -> -0.001545153005
A24: Sub-Total: Distribution | D24: =SUM(INDIRECT("D14:D"&ROW()-1)) -> 399.4925 | G24: =SUM(INDIRECT("g14:g"&ROW()-1)) -> 384.9615 | H24: =G24-D24 -> -14.531 | I24: -0.03637364907 | J24: =G24/G$36 -> 0.1793530585
A25: Retail Transmission Rate – Network Service Rate | B25: =IF($B$9="kWh",$B$4,$B$5) -> 55 | C25: =VLOOKUP($B$3,'Data Current Rates'!$A:$AJ,MATCH('BI Template_DemandHCHI'!$A25,CurrentHeader,0),FALSE) -> 2.9071 | D25: =B25*C25 -> 159.8905 | E25: =IF($C$9="kWh",$C$4,$C$5) -> 55 | F25: =VLOOKUP($C$3,'Data Proposed Rates'!$A:$BF,MATCH('BI Template_DemandHCHI'!$A25,ProposedHeader,0),FALSE) -> 2.8592 | G25: =E25*F25 -> 157.256 | H25: =G25-D25 -> -2.6345 | I25: -0.01647690138 | J25: 0.07326536438
A26: Retail Transmission Rate – Line and Transformation Connection Service Rate | B26: =IF($B$9="kWh",$B$4,$B$5) -> 55 | C26: =VLOOKUP($B$3,'Data Current Rates'!$A:$AJ,MATCH('BI Template_DemandHCHI'!$A26,CurrentHeader,0),FALSE) -> 2.1382 | D26: =B26*C26 -> 117.601 | E26: =IF($C$9="kWh",$C$4,$C$5) -> 55 | F26: =VLOOKUP($C$3,'Data Proposed Rates'!$A:$BF,MATCH('BI Template_DemandHCHI'!$A26,ProposedHeader,0),FALSE) -> 2.2384 | G26: =E26*F26 -> 123.112 | H26: =G26-D26 -> 5.511 | I26: 0.04686184641 | J26: 0.05735771951
A27: Sub-Total: Retail Transmission | D27: =SUM(D25:D26) -> 277.4915 | G27: =SUM(G25:G26) -> 280.368 | H27: =G27-D27 -> 2.8765 | I27: 0.01036608329 | J27: 0.1306230839
A28: Sub-Total: Delivery (based on two-tier RPP prices) | D28: =SUM(D24,D27) -> 676.984 | G28: =SUM(G24,G27) -> 665.3295 | H28: =G28-D28 -> -11.6545 | I28: -0.01721532562 | J28: 0.3099761424
A29: Wholesale Market Service Rate (WMS) - not including CBR | B29: =B8 -> 11456.64 | C29: =VLOOKUP($A29,'Data Pass Through'!$A:$D,2,FALSE) -> 0.0041 | D29: =B29*C29 -> 46.972224 | E29: =$C$8 -> 11456.64 | F29: =VLOOKUP($A29,'Data Pass Through'!$A:$D,3,FALSE) -> 0.0041 | G29: =E29*F29 -> 46.972224 | H29: =G29-D29 -> 0 | I29: 0 | J29: 0.02188429762
A30: Capacity Based Recovery (CBR) - Applicable for Class B Customers | B30: =B8 -> 11456.64 | C30: =VLOOKUP($A30,'Data Pass Through'!$A:$D,2,FALSE) -> 0.0004 | D30: =B30*C30 -> 4.582656 | E30: =$C$8 -> 11456.64 | F30: =VLOOKUP($A30,'Data Pass Through'!$A:$D,3,FALSE) -> 0.0004 | G30: =E30*F30 -> 4.582656 | H30: 0 | I30: 0 | J30: 0.002135053427
A31: Rural Rate Protection Charge | B31: =B8 -> 11456.64 | C31: =VLOOKUP($A31,'Data Pass Through'!$A:$D,2,FALSE) -> 0.0007 | D31: 8.019648 | E31: 11456.64 | F31: =VLOOKUP($A31,'Data Pass Through'!$A:$D,3,FALSE) -> 0.0007 | G31: 8.019648 | H31: 0 | I31: 0 | J31: 0.003736343497
A32: Standard Supply Service – Administration Charge (if applicable) | B32: 1 | C32: =VLOOKUP($A32,'Data Pass Through'!$A:$D,2,FALSE) -> 0.25 | D32: =B32*C32 -> 0.25 | E32: =B32 -> 1 | F32: =VLOOKUP($A32,'Data Pass Through'!$A:$D,3,FALSE) -> 0.25 | G32: 0.25 | H32: 0 | I32: 0 | J32: 0.0001164746725
A33: Sub-Total: Regulatory | D33: =SUM(D29:D32) -> 59.824528 | G33: =SUM(G29:G32) -> 59.824528 | H33: 0 | I33: 0 | J33: 0.02787216922
A34: Total Electricty Charge on WAHSP | D34: =SUM(D13,D28,D33) -> 1911.114128 | G34: =SUM(G13,G28,G33) -> 1899.459628 | H34: -11.6545 | I34: -0.006098275257 | J34: 0.8849557522
A35: HST | C35: 0.13 | D35: =D34*C35 -> 248.4448366 | F35: =C35 -> 0.13 | G35: =G34*F35 -> 246.9297516 | H35: -1.515085 | I35: -0.006098275257 | J35: 0.1150442478
A36: Total Amount on WAHSP | D36: =SUM(D34:D35) -> 2159.558965 | G36: =SUM(G34:G35) -> 2146.38938 | H36: -13.169585 | I36: -0.006098275257 | J36: 1

Sheet BI Template_unmHCHI (hidden)
A1: 2024 Bill Impacts (Average Consumption Level) - St Lgt_HCHI
A3: Rate Class | B3: =VLOOKUP(A1,'Data BI List Acq_Seas'!C:E,2,FALSE) -> St Lgt-HCHI | C3: =VLOOKUP(A1,'Data BI List Acq_Seas'!C:E,3,FALSE) -> St Lgt-HCHI
A4: Monthly Consumption (kWh) | B4: =IF(COUNTIF(A1,"*Low*")>0,VLOOKUP(B3,'Data Billing Quantities'!$A:$Z,MATCH("Low kWh",'Data Billing Quantities'!4:4,0),FALSE),IF(COUNTIF(A1,"*Typical*")>0,VLOOKUP(B3,'Data Billing Quantities'!$A:$Z,MATCH("Typical kWh",'Data Billing Quantities'!4:4,0),FALSE),IF(COUNTIF(A1,"*Average*")>0,VLOOKUP(B3,'Data Billing Quantities'!$A:$Z,MATCH("Average kWh",'Data Billing Quantities'!4:4,0),FALSE),IF(COUNTIF(A1,"*High*")>0,VLOOKUP(B3,'Data Billing Quantities'!$A:$Z,MATCH("High kWh",'Data Billing Quantities'!4:4,0),FALSE),"error")))) -> 31001 | C4: =B4 -> 31001
A5: Peak (kW) | B5: =IF(COUNTIF(A1,"*Low*")>0,VLOOKUP(B3,'Data Billing Quantities'!$A:$Z,MATCH("Low kW",'Data Billing Quantities'!4:4,0),FALSE),IF(COUNTIF(A1,"*Typical*")>0,VLOOKUP(B3,'Data Billing Quantities'!$A:$Z,MATCH("Typical kW",'Data Billing Quantities'!4:4,0),FALSE),IF(COUNTIF(A1,"*Average*")>0,VLOOKUP(B3,'Data Billing Quantities'!$A:$Z,MATCH("Average kW",'Data Billing Quantities'!4:4,0),FALSE),IF(COUNTIF(A1,"*High*")>0,VLOOKUP(B3,'Data Billing Quantities'!$A:$Z,MATCH("High kW",'Data Billing Quantities'!4:4,0),FALSE),"error")))) -> 85 | C5: =B5 -> 85
A6: Loss factor | B6: =VLOOKUP(B3,'Data Billing Quantities'!A:D,MATCH(A6,'Data Billing Quantities'!4:4,0),FALSE) -> 1.092 | C6: =VLOOKUP(C3,'Data Billing Quantities'!A:D,MATCH(A6,'Data Billing Quantities'!4:4,0),FALSE) -> 1.092
A7: Commodity Threshold | B7: =VLOOKUP(B3,'Data Billing Quantities'!A:D,MATCH(A7,'Data Billing Quantities'!4:4,0),FALSE) -> 750 | C7: =B7 -> 750
A8: Monthly Consumption (kWh) - Uplifted | B8: =B4*B6 -> 33853.092 | C8: =C4*C6 -> 33853.092
A9: Charge determinant | B9: =VLOOKUP(B3,'Data Billing Quantities'!A:D,MATCH(A9,'Data Billing Quantities'!4:4,0),FALSE) -> kWh | C9: =VLOOKUP(C3,'Data Billing Quantities'!A:D,MATCH(A9,'Data Billing Quantities'!4:4,0),FALSE) -> kWh
B11: Volume | C11: Current Rate ($) | D11: Current Charge ($) | E11: Volume | F11: Proposed Rate ($) | G11: Proposed Charge ($) | H11: Change ($) | I11: Change (%) | J11: % of Total Bill
A12: Energy First Tier | B12: =IF(B4>B7,B7,B4) -> 750 | C12: =VLOOKUP($A12,'Data Pass Through'!$A:$D,2,FALSE) -> 0.087 | D12: =B12*C12 -> 65.25 | E12: =B12 -> 750 | F12: =VLOOKUP($A12,'Data Pass Through'!$A:$D,3,FALSE) -> 0.087 | G12: =E12*F12 -> 65.25 | H12: =G12-D12 -> 0 | I12: =IF(ISERROR(H12/ABS(D12)),"N/A",(H12/ABS(D12))) -> 0 | J12: =G12/$G$37 -> 0.007561812102
A13: Energy Second Tier | B13: =IF(B4>B7,(B4)-B7,0) -> 30251 | C13: =VLOOKUP($A13,'Data Pass Through'!$A:$D,2,FALSE) -> 0.103 | D13: =B13*C13 -> 3115.853 | E13: =B13 -> 30251 | F13: =VLOOKUP($A13,'Data Pass Through'!$A:$D,3,FALSE) -> 0.103 | G13: =E13*F13 -> 3115.853 | H13: 0 | I13: 0 | J13: 0.3610957077
A14: Sub-Total: Energy (RPP Tiered) | D14: =SUM(D12:D13) -> 3181.103 | G14: =SUM(G12:G13) -> 3181.103 | H14: 0 | I14: 0 | J14: 0.3686575198
A15: Service Charge | B15: =IF(VLOOKUP(B$3,'Data Billing Quantities'!A:P,MATCH("Acquired Street Light Service Charge",'Data Billing Quantities'!$4:$4,0),FALSE)>0,VLOOKUP(B$3,'Data Billing Quantities'!A:P,MATCH("Acquired Street Light Service Charge",'Data Billing Quantities'!$4:$4,0),FALSE),1) -> 1 | C15: =VLOOKUP($B$3,'Data Current Rates'!$A:$AJ,MATCH('BI Template_unmHCHI'!$A15,CurrentHeader,0),FALSE) -> 3.15 | D15: =B15*C15 -> 3.15 | E15: 1 | F15: =VLOOKUP($C$3,'Data Proposed Rates'!$A:$BF,MATCH('BI Template_unmHCHI'!$A15,ProposedHeader,0),FALSE) -> 3.27 | G15: =E15*F15 -> 3.27 | H15: 0.12 | I15: 0.0380952381 | J15: 0.0003789597789
A16: Distribution Volumetric Charge | B16: =IF($B$9="kWh",$B$4,$B$5) -> 31001 | C16: =VLOOKUP($B$3,'Data Current Rates'!$A:$AJ,MATCH('BI Template_unmHCHI'!$A16,CurrentHeader,0),FALSE) -> 0.113 | D16: =B16*C16 -> 3503.113 | E16: =IF($C$9="kWh",$C$4,$C$5) -> 31001 | F16: =VLOOKUP($C$3,'Data Proposed Rates'!$A:$BF,MATCH('BI Template_unmHCHI'!$A16,ProposedHeader,0),FALSE) -> 0.1186 | G16: 3676.7186 | H16: 173.6056 | I16: 0.04955752212 | J16: 0.4260943327
A17: Group 1 Volumetric DVA Rider (General) (2023) | B17: =IF($B$9="kWh",$B$4,$B$5) -> 31001 | C17: =VLOOKUP($B$3,'Data Current Rates'!$A:$AJ,MATCH('BI Template_unmHCHI'!$A17,CurrentHeader,0),FALSE) -> -0.0007 | D17: =B17*C17 -> -21.7007 | E17: =IF($C$9="kWh",$C$4,$C$5) -> 31001 | F17: =VLOOKUP($C$3,'Data Proposed Rates'!$A:$BF,MATCH('BI Template_unmHCHI'!$A17,ProposedHeader,0),FALSE) -> -0.0007 | G17: -21.7007 | H17: 0 | I17: 0 | J17: -0.002514890665
A18: Group 1 Volumetric DVA Rider (Excl 1595) (2024) | E18: 31001 | F18: =VLOOKUP($C$3,'Data Proposed Rates'!$A:$BF,MATCH('BI Template_unmHCHI'!$A18,ProposedHeader,0),FALSE) -> 0.0015 | G18: =E18*F18 -> 46.5015 | H18: =G18-D18 -> 46.5015 | I18: =IF(ISERROR(H18/ABS(D18)),"N/A",(H18/ABS(D18))) -> N/A | J18: =G18/$G$37 -> 0.005389051425
A19: Group 1 Volumetric Deferral/Variance Account Rider (Sub-Account CBR) (2024) | E19: 31001 | F19: =VLOOKUP($C$3,'Data Proposed Rates'!$A:$BF,MATCH('BI Template_unmHCHI'!$A19,ProposedHeader,0),FALSE) -> -0.0005 | G19: -15.5005 | H19: -15.5005 | I19: N/A | J19: -0.001796350475
A20: Volumetric Rider for Account 1592 | B20: =IF($B$9="kWh",$B$4,$B$5) -> 31001 | C20: =VLOOKUP($B$3,'Data Current Rates'!$A:$AJ,MATCH('BI Template_unmHCHI'!$A20,CurrentHeader,0),FALSE) -> -0.0028 | D20: =B20*C20 -> -86.8028 | E20: =IF($C$9="kWh",$C$4,$C$5) -> 31001 | F20: =VLOOKUP($C$3,'Data Proposed Rates'!$A:$BF,MATCH('BI Template_unmHCHI'!$A20,ProposedHeader,0),FALSE) -> -0.0028 | G20: =E20*F20 -> -86.8028 | H20: =G20-D20 -> 0 | I20: =IF(ISERROR(H20/ABS(D20)),"N/A",(H20/ABS(D20))) -> 0 | J20: -0.01005956266
A21: Sub-Total: Distribution (excluding pass through) | D21: =SUM(INDIRECT("D15:D"&ROW()-1)) -> 3397.7595 | G21: =SUM(INDIRECT("g15:g"&ROW()-1)) -> 3602.4861 | H21: =G21-D21 -> 204.7266 | I21: 0.06025341111 | J21: 0.4174915401
A22: Line Losses on Cost of Power (based on two-tier RPP prices) | B22: =B8-B4 -> 2852.092 | C22: =IF(B4>B7,C13,C12) -> 0.103 | D22: =B22*C22 -> 293.765476 | E22: =C8-C4 -> 2852.092 | F22: =IF(C4>C7,F13,F12) -> 0.103 | G22: =E22*F22 -> 293.765476 | H22: 0 | I22: 0 | J22: 0.0340444342
A23: Sub-Total: Distribution (based on two-tier RPP prices) | D23: =SUM(D21,D22:D22) -> 3691.524976 | G23: =SUM(G21,G22:G22) -> 3896.251576 | H23: 204.7266 | I23: 0.05545854392 | J23: 0.4515359743
A24: Retail Transmission Rate – Network Service Rate | B24: =IF($B$9="kWh",$B$8,$B$5) -> 33853.092 | C24: =VLOOKUP($B$3,'Data Current Rates'!$A:$AJ,MATCH('BI Template_unmHCHI'!$A24,CurrentHeader,0),FALSE) -> 0.0064 | D24: =B24*C24 -> 216.6597888 | E24: =IF($C$9="kWh",$C$8,$C$5) -> 33853.092 | F24: =VLOOKUP($C$3,'Data Proposed Rates'!$A:$BF,MATCH('BI Template_unmHCHI'!$A24,ProposedHeader,0),FALSE) -> 0.0063 | G24: =E24*F24 -> 213.2744796 | H24: =G24-D24 -> -3.3853092 | I24: -0.015625 | J24: 0.02471634546
A25: Retail Transmission Rate – Line and Transformation Connection Service Rate | B25: =IF($B$9="kWh",$B$8,$B$5) -> 33853.092 | C25: =VLOOKUP($B$3,'Data Current Rates'!$A:$AJ,MATCH('BI Template_unmHCHI'!$A25,CurrentHeader,0),FALSE) -> 0.0048 | D25: =B25*C25 -> 162.4948416 | E25: =IF($C$9="kWh",$C$8,$C$5) -> 33853.092 | F25: =VLOOKUP($C$3,'Data Proposed Rates'!$A:$BF,MATCH('BI Template_unmHCHI'!$A25,ProposedHeader,0),FALSE) -> 0.005 | G25: =E25*F25 -> 169.26546 | H25: =G25-D25 -> 6.7706184 | I25: 0.04166666667 | J25: 0.01961614719
A26: Sub-Total: Retail Transmission | D26: =SUM(D24:D25) -> 379.1546304 | G26: =SUM(G24:G25) -> 382.5399396 | H26: =G26-D26 -> 3.3853092 | I26: 0.008928571429 | J26: 0.04433249264
A27: Sub-Total: Delivery (based on two-tier RPP prices) | D27: =D23+D26 -> 4070.679606 | G27: =G23+G26 -> 4278.791516 | H27: =G27-D27 -> 208.1119092 | I27: 0.05112461046 | J27: 0.4958684669
A28: Wholesale Market Service Rate (WMS) - not including CBR | B28: =B8 -> 33853.092 | C28: =VLOOKUP($A28,'Data Pass Through'!$A:$D,2,FALSE) -> 0.0041 | D28: =B28*C28 -> 138.7976772 | E28: =$C$8 -> 33853.092 | F28: =VLOOKUP($A28,'Data Pass Through'!$A:$D,3,FALSE) -> 0.0041 | G28: =E28*F28 -> 138.7976772 | H28: =G28-D28 -> 0 | I28: 0 | J28: 0.01608524069
A29: Capacity Based Recovery (CBR) - Applicable for Class B Customers | B29: =B8 -> 33853.092 | C29: =VLOOKUP($A29,'Data Pass Through'!$A:$D,2,FALSE) -> 0.0004 | D29: =B29*C29 -> 13.5412368 | E29: =$C$8 -> 33853.092 | F29: =VLOOKUP($A29,'Data Pass Through'!$A:$D,3,FALSE) -> 0.0004 | G29: =E29*F29 -> 13.5412368 | H29: 0 | I29: 0 | J29: 0.001569291775
A30: Rural Rate Protection Charge | B30: =B8 -> 33853.092 | C30: =VLOOKUP($A30,'Data Pass Through'!$A:$D,2,FALSE) -> 0.0007 | D30: 23.6971644 | E30: 33853.092 | F30: =VLOOKUP($A30,'Data Pass Through'!$A:$D,3,FALSE) -> 0.0007 | G30: 23.6971644 | H30: 0 | I30: 0 | J30: 0.002746260606
A31: Standard Supply Service – Administration Charge (if applicable) | B31: 1 | C31: =VLOOKUP($A31,'Data Pass Through'!$A:$D,2,FALSE) -> 0.25 | D31: =B31*C31 -> 0.25 | E31: 1 | F31: =VLOOKUP($A31,'Data Pass Through'!$A:$D,3,FALSE) -> 0.25 | G31: 0.25 | H31: 0 | I31: 0 | J31: 2.897246016e-05
A32: Sub-Total: Regulatory | D32: =SUM(D28:D31) -> 176.2860784 | G32: =SUM(G28:G31) -> 176.2860784 | H32: 0 | I32: 0 | J32: 0.02042976553
A33: Total Electricty Charge on Two-Tier RPP | D33: =SUM(D27,D32,D14) -> 7428.068685 | G33: =SUM(G27,G32,G14) -> 7636.180594 | H33: 208.1119092 | I33: 0.02801696081 | J33: 0.8849557522
A34: HST | C34: 0.13 | D34: =D33*C34 -> 965.648929 | F34: =C34 -> 0.13 | G34: =G33*F34 -> 992.7034772 | H34: 27.0545482 | I34: 0.02801696081 | J34: 0.1150442478
A35: Total Electricity Charge on Two-Tier RPP (including HST) | D35: =SUM(D33:D34) -> 8393.717614 | G35: =SUM(G33:G34) -> 8628.884071 | H35: 235.1664574 | I35: 0.02801696081 | J35: 1
A36: Ontario Electricity Rebate (OER) | C36: =IF(($B$4*12)<250000,VLOOKUP(A36,'Data Pass Through'!$A$4:$C$20,2,0),0) -> 0 | D36: =D33*C36 -> 0 | F36: =C36 -> 0 | G36: =G33*F36 -> 0 | H36: 0 | I36: N/A | J36: 0
A37: Total Amount on Two-Tier RPP | D37: =SUM(D35:D36) -> 8393.717614 | G37: =SUM(G35:G36) -> 8628.884071 | H37: 235.1664574 | I37: 0.02801696081 | J37: 1

Sheet BI Template_EnergyWHSI (hidden)
A1: 2024 Bill Impacts (Low Consumption Level) - AUR_WHSI
A3: Rate Class | B3: =VLOOKUP(A1,'Data BI List Acq_Seas'!C:E,2,FALSE) -> AUR-WHSI | C3: =VLOOKUP(A1,'Data BI List Acq_Seas'!C:E,3,FALSE) -> AUR-WHSI
A4: Monthly Consumption (kWh) | B4: =IF(COUNTIF(A1,"*Low*")>0,VLOOKUP(B3,'Data Billing Quantities'!$A:$Z,MATCH("Low kWh",'Data Billing Quantities'!4:4,0),FALSE),IF(COUNTIF(A1,"*Typical*")>0,VLOOKUP(B3,'Data Billing Quantities'!$A:$Z,MATCH("Typical kWh",'Data Billing Quantities'!4:4,0),FALSE),IF(COUNTIF(A1,"*Average*")>0,VLOOKUP(B3,'Data Billing Quantities'!$A:$Z,MATCH("Average kWh",'Data Billing Quantities'!4:4,0),FALSE),IF(COUNTIF(A1,"*High*")>0,VLOOKUP(B3,'Data Billing Quantities'!$A:$Z,MATCH("High kWh",'Data Billing Quantities'!4:4,0),FALSE),"error")))) -> 310 | C4: =B4 -> 310
A5: Peak (kW) | B5: =IF(COUNTIF(A1,"*Low*")>0,VLOOKUP(B3,'Data Billing Quantities'!$A:$Z,MATCH("Low kW",'Data Billing Quantities'!4:4,0),FALSE),IF(COUNTIF(A1,"*Typical*")>0,VLOOKUP(B3,'Data Billing Quantities'!$A:$Z,MATCH("Typical kW",'Data Billing Quantities'!4:4,0),FALSE),IF(COUNTIF(A1,"*Average*")>0,VLOOKUP(B3,'Data Billing Quantities'!$A:$Z,MATCH("Average kW",'Data Billing Quantities'!4:4,0),FALSE),IF(COUNTIF(A1,"*High*")>0,VLOOKUP(B3,'Data Billing Quantities'!$A:$Z,MATCH("High kW",'Data Billing Quantities'!4:4,0),FALSE),"error")))) -> 0 | C5: =B5 -> 0
A6: Loss factor | B6: =VLOOKUP(B3,'Data Billing Quantities'!A:D,MATCH(A6,'Data Billing Quantities'!4:4,0),FALSE) -> 1.043 | C6: =VLOOKUP(C3,'Data Billing Quantities'!A:D,MATCH(A6,'Data Billing Quantities'!4:4,0),FALSE) -> 1.043
A7: Commodity Threshold | B7: =VLOOKUP(B3,'Data Billing Quantities'!A:D,MATCH(A7,'Data Billing Quantities'!4:4,0),FALSE) -> 750 | C7: =B7 -> 750
A8: Monthly Consumption (kWh) - Uplifted | B8: =B4*B6 -> 323.33 | C8: =C4*C6 -> 323.33
A9: Charge determinant | B9: =VLOOKUP(B3,'Data Billing Quantities'!A:D,MATCH(A9,'Data Billing Quantities'!4:4,0),FALSE) -> kWh | C9: =VLOOKUP(C3,'Data Billing Quantities'!A:D,MATCH(A9,'Data Billing Quantities'!4:4,0),FALSE) -> kWh
B11: Volume | C11: Current Rate ($) | D11: Current Charge ($) | E11: Volume | F11: Proposed Rate ($) | G11: Proposed Charge ($) | H11: Change ($) | I11: Change (%) | J11: % of Total Bill on RPP | K11: % of Total Bill
A12: Energy First Tier | B12: =IF(B4>B7,B7,B4) -> 310 | C12: =VLOOKUP($A12,'Data Pass Through'!$A:$D,2,FALSE) -> 0.087 | D12: =B12*C12 -> 26.97 | E12: =B12 -> 310 | F12: =VLOOKUP($A12,'Data Pass Through'!$A:$D,3,FALSE) -> 0.087 | G12: =E12*F12 -> 26.97 | H12: =G12-D12 -> 0 | I12: =IF(ISERROR(H12/ABS(D12)),"N/A",(H12/ABS(D12))) -> 0 | J12: =G12/$G$46 -> 0.3815570493
A13: Energy Second Tier | B13: =IF(B4>B7,(B4)-B7,0) -> 0 | C13: =VLOOKUP($A13,'Data Pass Through'!$A:$D,2,FALSE) -> 0.103 | D13: =B13*C13 -> 0 | E13: =B13 -> 0 | F13: =VLOOKUP($A13,'Data Pass Through'!$A:$D,3,FALSE) -> 0.103 | G13: =E13*F13 -> 0 | H13: 0 | I13: N/A | J13: =G13/$G$46 -> 0
A14: Sub-Total: Energy (RPP Tiered) | D14: =SUM(D12:D13) -> 26.97 | G14: =SUM(G12:G13) -> 26.97 | H14: 0 | I14: 0 | J14: =G14/$G$46 -> 0.3815570493
A15: TOU-Off Peak | B15: =B$4*VLOOKUP($B$3,'Data Billing Quantities'!$A:$O,MATCH('BI Template_EnergyWHSI'!$A15,'Data Billing Quantities'!$4:$4,0),FALSE) -> 198.4 | C15: =VLOOKUP($A15,'Data Pass Through'!$A:$D,2,FALSE) -> 0.074 | D15: =B15*C15 -> 14.6816 | E15: 198.4 | F15: =VLOOKUP($A15,'Data Pass Through'!$A:$D,3,FALSE) -> 0.074 | G15: =E15*F15 -> 14.6816 | H15: 0 | I15: 0 | K15: =G15/$G$51 -> 0.2021799374
A16: TOU-Mid Peak | B16: =B$4*VLOOKUP($B$3,'Data Billing Quantities'!$A:$O,MATCH('BI Template_EnergyWHSI'!$A16,'Data Billing Quantities'!$4:$4,0),FALSE) -> 55.8 | C16: =VLOOKUP($A16,'Data Pass Through'!$A:$D,2,FALSE) -> 0.102 | D16: =B16*C16 -> 5.6916 | E16: 55.8 | F16: =VLOOKUP($A16,'Data Pass Through'!$A:$D,3,FALSE) -> 0.102 | G16: =E16*F16 -> 5.6916 | H16: 0 | I16: 0 | K16: 0.07837887777
A17: TOU-On Peak | B17: =B$4*VLOOKUP($B$3,'Data Billing Quantities'!$A:$O,MATCH('BI Template_EnergyWHSI'!$A17,'Data Billing Quantities'!$4:$4,0),FALSE) -> 55.8 | C17: =VLOOKUP($A17,'Data Pass Through'!$A:$D,2,FALSE) -> 0.151 | D17: =B17*C17 -> 8.4258 | E17: 55.8 | F17: =VLOOKUP($A17,'Data Pass Through'!$A:$D,3,FALSE) -> 0.151 | G17: =E17*F17 -> 8.4258 | H17: 0 | I17: 0 | K17: 0.1160314759
A18: Sub-Total: Energy (RPP TOU) | D18: =SUM(D15:D17) -> 28.799 | G18: =SUM(G15:G17) -> 28.799 | H18: 0 | I18: 0 | J18: =G18/$G$46 -> 0.4074327572 | K18: 0.3965902911
A19: Service Charge | B19: 1 | C19: =VLOOKUP($B$3,'Data Current Rates'!$A:$AJ,MATCH('BI Template_EnergyWHSI'!$A19,CurrentHeader,0),FALSE) -> 31.46 | D19: =B19*C19 -> 31.46 | E19: 1 | F19: =VLOOKUP($C$3,'Data Proposed Rates'!$A:$BF,MATCH('BI Template_EnergyWHSI'!$A19,ProposedHeader,0),FALSE) -> 33.03 | G19: =E19*F19 -> 33.03 | H19: 1.57 | I19: 0.04990464081 | J19: 0.4672906688 | K19: 0.4548552837
A20: Distribution Volumetric Charge | B20: =IF($B$9="kWh",$B$4,$B$5) -> 310 | C20: =VLOOKUP($B$3,'Data Current Rates'!$A:$AJ,MATCH('BI Template_EnergyWHSI'!$A20,CurrentHeader,0),FALSE) -> 0 | D20: =B20*C20 -> 0 | E20: =IF($C$9="kWh",$C$4,$C$5) -> 310 | F20: =VLOOKUP($C$3,'Data Proposed Rates'!$A:$BF,MATCH('BI Template_EnergyWHSI'!$A20,ProposedHeader,0),FALSE) -> 0 | G20: 0 | H20: 0 | I20: N/A | J20: 0 | K20: 0
A21: Group 1 Volumetric DVA Rider (General) (2023) | B21: =IF($B$9="kWh",$B$4,$B$5) -> 310 | C21: =VLOOKUP($B$3,'Data Current Rates'!$A:$AJ,MATCH('BI Template_EnergyWHSI'!$A21,CurrentHeader,0),FALSE) -> -0.0009 | D21: =B21*C21 -> -0.279 | E21: =IF($C$9="kWh",$C$4,$C$5) -> 310 | F21: =VLOOKUP($C$3,'Data Proposed Rates'!$A:$BF,MATCH('BI Template_EnergyWHSI'!$A21,ProposedHeader,0),FALSE) -> -0.0009 | G21: -0.279 | H21: 0 | I21: 0 | J21: -0.003947141889 | K21: -0.003842101851
A22: Group 1 Volumetric DVA Rider (Excl 1595) (2024) | E22: 310 | F22: =VLOOKUP($C$3,'Data Proposed Rates'!$A:$BF,MATCH('BI Template_EnergyWHSI'!$A22,ProposedHeader,0),FALSE) -> 0.001 | G22: =E22*F22 -> 0.31 | H22: =G22-D22 -> 0.31 | I22: =IF(ISERROR(H22/ABS(D22)),"N/A",(H22/ABS(D22))) -> N/A | J22: =G22/$G$46 -> 0.00438571321 | K22: =G22/$G$51 -> 0.004269002057
A23: Group 1 Volumetric Deferral/Variance Account Rider (Sub-Account CBR) (2024) | E23: 310 | F23: =VLOOKUP($C$3,'Data Proposed Rates'!$A:$BF,MATCH('BI Template_EnergyWHSI'!$A23,ProposedHeader,0),FALSE) -> -0.0005 | G23: -0.155 | H23: -0.155 | I23: N/A | J23: -0.002192856605 | K23: -0.002134501029
A24: Fixed Rider for Account 1592 | B24: 1 | C24: =VLOOKUP($B$3,'Data Current Rates'!$A:$AJ,MATCH('BI Template_EnergyWHSI'!$A24,CurrentHeader,0),FALSE) -> -0.4 | D24: =B24*C24 -> -0.4 | E24: 1 | F24: =VLOOKUP($C$3,'Data Proposed Rates'!$A:$BF,MATCH('BI Template_EnergyWHSI'!$A24,ProposedHeader,0),FALSE) -> -0.4 | G24: =E24*F24 -> -0.4 | H24: =G24-D24 -> 0 | I24: =IF(ISERROR(H24/ABS(D24)),"N/A",(H24/ABS(D24))) -> 0 | J24: -0.005658984787 | K24: -0.005508389751
A25: Volumetric Rider for Account 1592 | B25: =IF($B$9="kWh",$B$4,$B$5) -> 310 | C25: =VLOOKUP($B$3,'Data Current Rates'!$A:$AJ,MATCH('BI Template_EnergyWHSI'!$A25,CurrentHeader,0),FALSE) -> 0 | D25: =B25*C25 -> 0 | E25: =IF($C$9="kWh",$C$4,$C$5) -> 310 | F25: =VLOOKUP($C$3,'Data Proposed Rates'!$A:$BF,MATCH('BI Template_EnergyWHSI'!$A25,ProposedHeader,0),FALSE) -> 0 | G25: 0 | H25: 0 | I25: N/A | J25: 0 | K25: 0
A26: Sub-Total: Distribution (excluding pass through) | D26: =SUM(INDIRECT("D19:D"&ROW()-1)) -> 30.781 | G26: =SUM(INDIRECT("g19:g"&ROW()-1)) -> 32.506 | H26: =G26-D26 -> 1.725 | I26: 0.05604106429 | J26: 0.4598773987 | K26: 0.4476392931
A27: Smart Metering Entity Charge | B27: =B19 -> 1 | C27: =VLOOKUP($A27,'Data Pass Through'!$A:$D,2,FALSE) -> 0.42 | D27: =B27*C27 -> 0.42 | E27: =E19 -> 1 | F27: =VLOOKUP($A27,'Data Pass Through'!$A:$D,3,FALSE) -> 0.42 | G27: =E27*F27 -> 0.42 | H27: 0 | I27: 0 | J27: 0.005941934026 | K27: 0.005783809239
A28: Line Losses on Cost of Power (based on two-tier RPP prices) | B28: =B8-B4 -> 13.33 | C28: =IF(B4>B7,C13,C12) -> 0.087 | D28: =B28*C28 -> 1.15971 | E28: =C8-C4 -> 13.33 | F28: =IF(C4>C7,F13,F12) -> 0.087 | G28: =E28*F28 -> 1.15971 | H28: 0 | I28: 0 | J28: 0.01640695312 | K28: 0.0159703367
A29: Line Losses on Cost of Power (based on TOU prices) | B29: =B8-B4 -> 13.33 | C29: =VLOOKUP($B$3,'Data Billing Quantities'!$A:$O,MATCH('BI Template_EnergyWHSI'!$A15,'Data Billing Quantities'!$4:$4,0),FALSE)*C15+VLOOKUP($B$3,'Data Billing Quantities'!$A:$O,MATCH('BI Template_EnergyWHSI'!$A16,'Data Billing Quantities'!$4:$4,0),FALSE)*C16+VLOOKUP($B$3,'Data Billing Quantities'!$A:$O,MATCH('BI Template_EnergyWHSI'!$A17,'Data Billing Quantities'!$4:$4,0),FALSE)*C17 -> 0.0929 | D29: =B29*C29 -> 1.238357 | E29: =C8-C4 -> 13.33 | F29: =VLOOKUP($C$3,'Data Billing Quantities'!$A:$O,MATCH('BI Template_EnergyWHSI'!$A15,'Data Billing Quantities'!$4:$4,0),FALSE)*F15+VLOOKUP($C$3,'Data Billing Quantities'!$A:$O,MATCH('BI Template_EnergyWHSI'!$A16,'Data Billing Quantities'!$4:$4,0),FALSE)*F16+VLOOKUP($C$3,'Data Billing Quantities'!$A:$O,MATCH('BI Template_EnergyWHSI'!$A17,'Data Billing Quantities'!$4:$4,0),FALSE)*F17 -> 0.0929 | G29: =E29*F29 -> 1.238357 | H29: 0 | I29: 0 | J29: 0.01751960856 | K29: 0.01705338252
A30: Sub-Total: Distribution (based on two-tier RPP prices) | D30: =SUM(D26,D27:D28) -> 32.36071 | G30: =SUM(G26,G27:G28) -> 34.08571 | H30: 1.725 | I30: 0.05330538174 | J30: 0.4822262858 | K30: 0.4693934391
A31: Sub-Total: Distribution (based on TOU prices) | D31: =SUM(D26,D27,D29) -> 32.439357 | G31: =SUM(G26,G27,G29) -> 34.164357 | H31: 1.725 | I31: 0.05317614649 | J31: 0.4833389413 | K31: 0.4704764849
A32: Retail Transmission Rate – Network Service Rate | B32: =IF($B$9="kWh",$B$8,$B$5) -> 323.33 | C32: =VLOOKUP($B$3,'Data Current Rates'!$A:$AJ,MATCH('BI Template_EnergyWHSI'!$A32,CurrentHeader,0),FALSE) -> 0.0124 | D32: =B32*C32 -> 4.009292 | E32: =IF($C$9="kWh",$C$8,$C$5) -> 323.33 | F32: =VLOOKUP($C$3,'Data Proposed Rates'!$A:$BF,MATCH('BI Template_EnergyWHSI'!$A32,ProposedHeader,0),FALSE) -> 0.0121 | G32: =E32*F32 -> 3.912293 | H32: =G32-D32 -> -0.096999 | I32: -0.02419354839 | J32: 0.05534901642 | K32: 0.05387608666
A33: Retail Transmission Rate – Line and Transformation Connection Service Rate | B33: =IF($B$9="kWh",$B$8,$B$5) -> 323.33 | C33: =VLOOKUP($B$3,'Data Current Rates'!$A:$AJ,MATCH('BI Template_EnergyWHSI'!$A33,CurrentHeader,0),FALSE) -> 0.0085 | D33: =B33*C33 -> 2.748305 | E33: =IF($C$9="kWh",$C$8,$C$5) -> 323.33 | F33: =VLOOKUP($C$3,'Data Proposed Rates'!$A:$BF,MATCH('BI Template_EnergyWHSI'!$A33,ProposedHeader,0),FALSE) -> 0.0089 | G33: =E33*F33 -> 2.877637 | H33: =G33-D33 -> 0.129332 | I33: 0.04705882353 | J33: 0.04071126001 | K33: 0.0396278654
A34: Sub-Total: Retail Transmission | D34: =SUM(D32:D33) -> 6.757597 | G34: =SUM(G32:G33) -> 6.78993 | H34: =G34-D34 -> 0.032333 | I34: 0.004784688995 | J34: 0.09606027643 | K34: 0.09350395206
A35: Sub-Total: Delivery (based on two-tier RPP prices) | D35: =D30+D34 -> 39.118307 | G35: =G30+G34 -> 40.87564 | H35: =G35-D35 -> 1.757333 | I35: 0.04492354437 | J35: 0.5782865623 | K35: 0.5628973911
A36: Sub-Total: Delivery (based on TOU prices) | D36: =D31+D34 -> 39.196954 | G36: =G31+G34 -> 40.954287 | H36: =G36-D36 -> 1.757333 | I36: 0.04483340721 | J36: 0.5793992177 | K36: 0.5639804369
A37: Wholesale Market Service Rate (WMS) - not including CBR | B37: =B8 -> 323.33 | C37: =VLOOKUP($A37,'Data Pass Through'!$A:$D,2,FALSE) -> 0.0041 | D37: =B37*C37 -> 1.325653 | E37: =$C$8 -> 323.33 | F37: =VLOOKUP($A37,'Data Pass Through'!$A:$D,3,FALSE) -> 0.0041 | G37: =E37*F37 -> 1.325653 | H37: 0 | I37: 0 | J37: 0.0187546254 | K37: 0.0182555335
A38: Capacity Based Recovery (CBR) - Applicable for Class B Customers | B38: =B8 -> 323.33 | C38: =VLOOKUP($A38,'Data Pass Through'!$A:$D,2,FALSE) -> 0.0004 | D38: =B38*C38 -> 0.129332 | E38: =$C$8 -> 323.33 | F38: =VLOOKUP($A38,'Data Pass Through'!$A:$D,3,FALSE) -> 0.0004 | G38: =E38*F38 -> 0.129332 | H38: 0 | I38: 0 | J38: 0.001829719551 | K38: 0.001781027658
A39: Rural Rate Protection Charge | B39: =B8 -> 323.33 | C39: =VLOOKUP($A39,'Data Pass Through'!$A:$D,2,FALSE) -> 0.0007 | D39: 0.226331 | E39: 323.33 | F39: =VLOOKUP($A39,'Data Pass Through'!$A:$D,3,FALSE) -> 0.0007 | G39: 0.226331 | H39: 0 | I39: 0 | J39: 0.003202009214 | K39: 0.003116798402
A40: Standard Supply Service – Administration Charge (if applicable) | B40: 1 | C40: =VLOOKUP($A40,'Data Pass Through'!$A:$D,2,FALSE) -> 0.25 | D40: =B40*C40 -> 0.25 | E40: 1 | F40: =VLOOKUP($A40,'Data Pass Through'!$A:$D,3,FALSE) -> 0.25 | G40: 0.25 | H40: 0 | I40: 0 | J40: 0.003536865492 | K40: 0.003442743594
A41: Sub-Total: Regulatory | D41: =SUM(D37:D40) -> 1.931316 | G41: =SUM(G37:G40) -> 1.931316 | H41: 0 | I41: 0 | J41: 0.02732321966 | K41: 0.02659610315
A42: Total Electricty Charge on Two-Tier RPP | D42: =SUM(D14,D26,D27,D28,D34,D41) -> 68.019623 | G42: =SUM(G14,G26,G27,G28,G34,G41) -> 69.776956 | H42: 1.757333 | I42: 0.02583567686 | J42: 0.9871668312
A43: HST | C43: 0.13 | D43: =D42*C43 -> 8.84255099 | F43: =C43 -> 0.13 | G43: =G42*F43 -> 9.07100428 | H43: 0.22845329 | I43: 0.02583567686 | J43: 0.1283316881
A44: Total Electricity Charge on Two-Tier RPP (including HST) | D44: =SUM(D42:D43) -> 76.86217399 | G44: =SUM(G42:G43) -> 78.84796028 | H44: 1.98578629 | I44: 0.02583567686 | J44: 1.115498519
A45: Ontario Electricity Rebate (OER) | C45: =IF(($B$4*12)<250000,VLOOKUP(A45,'Data Pass Through'!$A$4:$C$20,2,0),0) -> -0.117 | D45: =D42*C45 -> -7.958295891 | F45: =C45 -> -0.117 | G45: =G42*F45 -> -8.163903852 | H45: -0.205607961 | I45: -0.02583567686 | J45: -0.1154985192
A46: Total Amount on Two-Tier RPP | D46: =SUM(D44:D45) -> 68.9038781 | G46: =SUM(G44:G45) -> 70.68405643 | H46: 1.780178329 | I46: 0.02583567686 | J46: 1
A47: Total Electricty Charge on TOU (before HST) | D47: =SUM(D18,D26,D27,D29,D34,D41) -> 69.92727 | G47: =SUM(G18,G26,G27,G29,G34,G41) -> 71.684603 | H47: 1.757333 | I47: 0.02513086811 | K47: =G47/$G$51 -> 0.9871668312
A48: HST | C48: 0.13 | D48: =D47*C48 -> 9.0905451 | F48: =C48 -> 0.13 | G48: =G47*F48 -> 9.31899839 | H48: 0.22845329 | I48: 0.02513086811 | K48: =G48/$G$51 -> 0.1283316881
A49: Total Electricity Charge on TOU (including HST) | D49: =SUM(D47:D48) -> 79.0178151 | G49: =SUM(G47:G48) -> 81.00360139 | H49: 1.98578629 | I49: 0.02513086811 | K49: =G49/$G$51 -> 1.115498519
A50: Ontario Electricity Rebate (OER) | C50: =IF(($B$4*12)<250000,VLOOKUP(A50,'Data Pass Through'!$A$4:$C$20,2,0),0) -> -0.117 | D50: =D47*C50 -> -8.18149059 | F50: =C50 -> -0.117 | G50: =G47*F50 -> -8.387098551 | H50: -0.205607961 | I50: -0.02513086811 | K50: =G50/$G$51 -> -0.1154985192
A51: Total Amount on TOU | D51: =SUM(D49:D50) -> 70.83632451 | G51: =SUM(G49:G50) -> 72.61650284 | H51: 1.780178329 | I51: 0.02513086811 | K51: =G51/$G$51 -> 1

Sheet BI Template_DemandWHSI (hidden)
A1: 2024 Bill Impacts (Low Consumption Level) - AUGd_WHSI
A3: Rate Class | B3: =VLOOKUP(A1,'Data BI List Acq_Seas'!C:E,2,FALSE) -> AUGd-WHSI | C3: =VLOOKUP(A1,'Data BI List Acq_Seas'!C:E,3,FALSE) -> AUGd-WHSI
A4: Monthly Consumption (kWh) | B4: =IF(COUNTIF(A1,"*Low*")>0,VLOOKUP(B3,'Data Billing Quantities'!$A:$Z,MATCH("Low kWh",'Data Billing Quantities'!4:4,0),FALSE),IF(COUNTIF(A1,"*Typical*")>0,VLOOKUP(B3,'Data Billing Quantities'!$A:$Z,MATCH("Typical kWh",'Data Billing Quantities'!4:4,0),FALSE),IF(COUNTIF(A1,"*Average*")>0,VLOOKUP(B3,'Data Billing Quantities'!$A:$Z,MATCH("Average kWh",'Data Billing Quantities'!4:4,0),FALSE),IF(COUNTIF(A1,"*High*")>0,VLOOKUP(B3,'Data Billing Quantities'!$A:$Z,MATCH("High kWh",'Data Billing Quantities'!4:4,0),FALSE),"error")))) -> 9370 | C4: =B4 -> 9370
A5: Peak (kW) | B5: =IF(COUNTIF(A1,"*Low*")>0,VLOOKUP(B3,'Data Billing Quantities'!$A:$Z,MATCH("Low kW",'Data Billing Quantities'!4:4,0),FALSE),IF(COUNTIF(A1,"*Typical*")>0,VLOOKUP(B3,'Data Billing Quantities'!$A:$Z,MATCH("Typical kW",'Data Billing Quantities'!4:4,0),FALSE),IF(COUNTIF(A1,"*Average*")>0,VLOOKUP(B3,'Data Billing Quantities'!$A:$Z,MATCH("Average kW",'Data Billing Quantities'!4:4,0),FALSE),IF(COUNTIF(A1,"*High*")>0,VLOOKUP(B3,'Data Billing Quantities'!$A:$Z,MATCH("High kW",'Data Billing Quantities'!4:4,0),FALSE),"error")))) -> 50 | C5: =B5 -> 50
A6: Loss factor | B6: =VLOOKUP(B3,'Data Billing Quantities'!A:D,MATCH(A6,'Data Billing Quantities'!4:4,0),FALSE) -> 1.033 | C6: =VLOOKUP(C3,'Data Billing Quantities'!A:D,MATCH(A6,'Data Billing Quantities'!4:4,0),FALSE) -> 1.033
A7: Commodity Threshold | B7: =VLOOKUP(B3,'Data Billing Quantities'!A:D,MATCH(A7,'Data Billing Quantities'!4:4,0),FALSE) -> 0 | C7: =B7 -> 0
A8: Monthly Consumption (kWh) - Uplifted | B8: =B4*B6 -> 9679.21 | C8: =C4*C6 -> 9679.21
A9: Charge determinant | B9: =VLOOKUP(B3,'Data Billing Quantities'!A:D,MATCH(A9,'Data Billing Quantities'!4:4,0),FALSE) -> kW | C9: =VLOOKUP(C3,'Data Billing Quantities'!A:D,MATCH(A9,'Data Billing Quantities'!4:4,0),FALSE) -> kW
B11: Volume | C11: Current Rate ($) | D11: Current Charge ($) | E11: Volume | F11: Proposed Rate ($) | G11: Proposed Charge ($) | H11: Change ($) | I11: Change (%) | J11: % of Total Bill
A12: Weighted Average Hourly Spot Price | B12: =B8 -> 9679.21 | C12: =VLOOKUP($A12,'Data Pass Through'!$A:$D,2,FALSE) -> 0.1025 | D12: =B12*C12 -> 992.119025 | E12: =C8 -> 9679.21 | F12: =VLOOKUP($A12,'Data Pass Through'!$A:$D,3,FALSE) -> 0.1025 | G12: =E12*F12 -> 992.119025 | H12: =G12-D12 -> 0 | I12: =IF(ISERROR(H12/ABS(D12)),"N/A",(H12/ABS(D12))) -> 0 | J12: =G12/G$36 -> 0.5546699291
A13: Sub-Total: Energy (WAHSP) | D13: =SUM(D12:D12) -> 992.119025 | G13: =SUM(G12:G12) -> 992.119025 | H13: 0 | I13: 0 | J13: 0.5546699291
A14: Service Charge | B14: 1 | C14: =VLOOKUP($B$3,'Data Current Rates'!$A:$AJ,MATCH('BI Template_DemandWHSI'!$A14,CurrentHeader,0),FALSE) -> 146.47 | D14: =B14*C14 -> 146.47 | E14: 1 | F14: =VLOOKUP($C$3,'Data Proposed Rates'!$A:$BF,MATCH('BI Template_DemandWHSI'!$A14,ProposedHeader,0),FALSE) -> 146.47 | G14: =E14*F14 -> 146.47 | H14: 0 | I14: 0 | J14: 0.0818878607
A15: Distribution Volumetric Charge | B15: =IF($B$9="kWh",$B$4,$B$5) -> 50 | C15: =VLOOKUP($B$3,'Data Current Rates'!$A:$AJ,MATCH('BI Template_DemandWHSI'!$A15,CurrentHeader,0),FALSE) -> 2.8482 | D15: =B15*C15 -> 142.41 | E15: =IF($C$9="kWh",$C$4,$C$5) -> 50 | F15: =VLOOKUP($C$3,'Data Proposed Rates'!$A:$BF,MATCH('BI Template_DemandWHSI'!$A15,ProposedHeader,0),FALSE) -> 3.0288 | G15: 151.44 | H15: 9.03 | I15: 0.06340846851 | J15: 0.08466646839
A16: Group 1 Volumetric DVA Rider (General) (2023) | B16: =IF($B$9="kWh",$B$4,$B$5) -> 50 | C16: =VLOOKUP($B$3,'Data Current Rates'!$A:$AJ,MATCH('BI Template_DemandWHSI'!$A16,CurrentHeader,0),FALSE) -> -0.0645 | D16: =B16*C16 -> -3.225 | E16: =IF($C$9="kWh",$C$4,$C$5) -> 50 | F16: =VLOOKUP($C$3,'Data Proposed Rates'!$A:$BF,MATCH('BI Template_DemandWHSI'!$A16,ProposedHeader,0),FALSE) -> -0.0645 | G16: -3.225 | H16: 0 | I16: 0 | J16: -0.001803020078
A17: Group 1 Volumetric Deferral/Variance Account Rider (Sub-Account RSVA Wholesale Market Service Charge & RSVA Power) (2023) | B17: =IF($B$9="kWh",$B$4,$B$5) -> 50 | C17: =VLOOKUP($B$3,'Data Current Rates'!$A:$AJ,MATCH('BI Template_DemandWHSI'!$A17,CurrentHeader,0),FALSE) -> -0.1351 | D17: -6.755 | E17: 50 | F17: =VLOOKUP($C$3,'Data Proposed Rates'!$A:$BF,MATCH('BI Template_DemandWHSI'!$A17,ProposedHeader,0),FALSE) -> -0.1351 | G17: -6.755 | H17: 0 | I17: 0 | J17: -0.003776558333
A18: Group 1 Volumetric Deferral/Variance Account Rider (Sub-Account Global Adjustment) (2023) | B18: =$B$4 -> 9370 | C18: =VLOOKUP($B$3,'Data Current Rates'!$A:$AJ,MATCH('BI Template_DemandWHSI'!$A18,CurrentHeader,0),FALSE) -> -0.0009 | D18: -8.433 | E18: =$C$4 -> 9370 | F18: =VLOOKUP($C$3,'Data Proposed Rates'!$A:$BF,MATCH('BI Template_DemandWHSI'!$A18,ProposedHeader,0),FALSE) -> -0.0009 | G18: -8.433 | H18: 0 | I18: 0 | J18: -0.004714687849
A19: Group 1 Volumetric DVA Rider (Excl 1595) (2024) | E19: =IF($C$9="kWh",$C$4,$C$5) -> 50 | F19: =VLOOKUP($C$3,'Data Proposed Rates'!$A:$BF,MATCH('BI Template_DemandWHSI'!$A19,ProposedHeader,0),FALSE) -> 0.2885 | G19: =E19*F19 -> 14.425 | H19: =G19-D19 -> 14.425 | I19: =IF(ISERROR(H19/ABS(D19)),"N/A",(H19/ABS(D19))) -> N/A | J19: =G19/G$36 -> 0.0080646712
A20: Group 1 Volumetric Deferral/Variance Account Rider (Sub-Account RSVA Wholesale Market Service Charge & RSVA Power) (2024) | E20: =IF($C$9="kWh",$C$4,$C$5) -> 50 | F20: =VLOOKUP($C$3,'Data Proposed Rates'!$A:$BF,MATCH('BI Template_DemandWHSI'!$A20,ProposedHeader,0),FALSE) -> 0.2374 | G20: 11.87 | H20: 11.87 | I20: N/A | J20: 0.006636232037
A21: Group 1 Volumetric Deferral/Variance Account Rider (Sub-Account Global Adjustment) (2024) | E21: =E18 -> 9370 | F21: =VLOOKUP($C$3,'Data Proposed Rates'!$A:$BF,MATCH('BI Template_DemandWHSI'!$A21,ProposedHeader,0),FALSE) -> -0.0044 | G21: -41.228 | H21: -41.228 | I21: N/A | J21: -0.02304958504
A22: Group 1 Volumetric Deferral/Variance Account Rider (Sub-Account CBR) (2024) | E22: 50 | F22: =VLOOKUP($C$3,'Data Proposed Rates'!$A:$BF,MATCH('BI Template_DemandWHSI'!$A22,ProposedHeader,0),FALSE) -> -0.1923 | G22: -9.615 | H22: -9.615 | I22: N/A | J22: -0.005375515673
A23: Volumetric Rider for Account 1592 | B23: =IF($B$9="kWh",$B$4,$B$5) -> 50 | C23: =VLOOKUP($B$3,'Data Current Rates'!$A:$AJ,MATCH('BI Template_DemandWHSI'!$A23,CurrentHeader,0),FALSE) -> -0.0392 | D23: =B23*C23 -> -1.96 | E23: =IF($C$9="kWh",$C$4,$C$5) -> 50 | F23: =VLOOKUP($C$3,'Data Proposed Rates'!$A:$BF,MATCH('BI Template_DemandWHSI'!$A23,ProposedHeader,0),FALSE) -> -0.0392 | G23: =E23*F23 -> -1.96 | H23: =G23-D23 -> 0 | I23: =IF(ISERROR(H23/ABS(D23)),"N/A",(H23/ABS(D23))) -> 0 | J23: =G23/G$36 -> -0.001095788946
A24: Sub-Total: Distribution | D24: =SUM(INDIRECT("D14:D"&ROW()-1)) -> 268.507 | G24: =SUM(INDIRECT("g14:g"&ROW()-1)) -> 252.989 | H24: =G24-D24 -> -15.518 | I24: -0.05779365156 | J24: =G24/G$36 -> 0.1414400764
A25: Retail Transmission Rate – Network Service Rate | B25: =IF($B$9="kWh",$B$4,$B$5) -> 50 | C25: =VLOOKUP($B$3,'Data Current Rates'!$A:$AJ,MATCH('BI Template_DemandWHSI'!$A25,CurrentHeader,0),FALSE) -> 3.3115 | D25: =B25*C25 -> 165.575 | E25: =IF($C$9="kWh",$C$4,$C$5) -> 50 | F25: =VLOOKUP($C$3,'Data Proposed Rates'!$A:$BF,MATCH('BI Template_DemandWHSI'!$A25,ProposedHeader,0),FALSE) -> 3.2568 | G25: =E25*F25 -> 162.84 | H25: =G25-D25 -> -2.735 | I25: -0.01651819417 | J25: 0.09103993471
A26: Retail Transmission Rate – Line and Transformation Connection Service Rate | B26: =IF($B$9="kWh",$B$4,$B$5) -> 50 | C26: =VLOOKUP($B$3,'Data Current Rates'!$A:$AJ,MATCH('BI Template_DemandWHSI'!$A26,CurrentHeader,0),FALSE) -> 2.3759 | D26: =B26*C26 -> 118.795 | E26: =IF($C$9="kWh",$C$4,$C$5) -> 50 | F26: =VLOOKUP($C$3,'Data Proposed Rates'!$A:$BF,MATCH('BI Template_DemandWHSI'!$A26,ProposedHeader,0),FALSE) -> 2.4872 | G26: =E26*F26 -> 124.36 | H26: =G26-D26 -> 5.565 | I26: 0.04684540595 | J26: 0.06952669049
A27: Sub-Total: Retail Transmission | D27: =SUM(D25:D26) -> 284.37 | G27: =SUM(G25:G26) -> 287.2 | H27: =G27-D27 -> 2.83 | I27: 0.009951823329 | J27: 0.1605666252
A28: Sub-Total: Delivery (based on two-tier RPP prices) | D28: =SUM(D24,D27) -> 552.877 | G28: =SUM(G24,G27) -> 540.189 | H28: =G28-D28 -> -12.688 | I28: -0.02294904653 | J28: 0.3020067016
A29: Wholesale Market Service Rate (WMS) - not including CBR | B29: =B8 -> 9679.21 | C29: =VLOOKUP($A29,'Data Pass Through'!$A:$D,2,FALSE) -> 0.0041 | D29: =B29*C29 -> 39.684761 | E29: =$C$8 -> 9679.21 | F29: =VLOOKUP($A29,'Data Pass Through'!$A:$D,3,FALSE) -> 0.0041 | G29: =E29*F29 -> 39.684761 | H29: =G29-D29 -> 0 | I29: 0 | J29: 0.02218679716
A30: Capacity Based Recovery (CBR) - Applicable for Class B Customers | B30: =B8 -> 9679.21 | C30: =VLOOKUP($A30,'Data Pass Through'!$A:$D,2,FALSE) -> 0.0004 | D30: =B30*C30 -> 3.871684 | E30: =$C$8 -> 9679.21 | F30: =VLOOKUP($A30,'Data Pass Through'!$A:$D,3,FALSE) -> 0.0004 | G30: =E30*F30 -> 3.871684 | H30: 0 | I30: 0 | J30: 0.002164565577
A31: Rural Rate Protection Charge | B31: =B8 -> 9679.21 | C31: =VLOOKUP($A31,'Data Pass Through'!$A:$D,2,FALSE) -> 0.0007 | D31: 6.775447 | E31: 9679.21 | F31: =VLOOKUP($A31,'Data Pass Through'!$A:$D,3,FALSE) -> 0.0007 | G31: 6.775447 | H31: 0 | I31: 0 | J31: 0.00378798976
A32: Standard Supply Service – Administration Charge (if applicable) | B32: 1 | C32: =VLOOKUP($A32,'Data Pass Through'!$A:$D,2,FALSE) -> 0.25 | D32: =B32*C32 -> 0.25 | E32: =B32 -> 1 | F32: =VLOOKUP($A32,'Data Pass Through'!$A:$D,3,FALSE) -> 0.25 | G32: 0.25 | H32: 0 | I32: 0 | J32: 0.0001397689983
A33: Sub-Total: Regulatory | D33: =SUM(D29:D32) -> 50.581892 | G33: =SUM(G29:G32) -> 50.581892 | H33: 0 | I33: 0 | J33: 0.0282791215
A34: Total Electricty Charge on WAHSP | D34: =SUM(D13,D28,D33) -> 1595.577917 | G34: =SUM(G13,G28,G33) -> 1582.889917 | H34: -12.688 | I34: -0.007951977691 | J34: 0.8849557522
A35: HST | C35: 0.13 | D35: =D34*C35 -> 207.4251292 | F35: =C35 -> 0.13 | G35: =G34*F35 -> 205.7756892 | H35: -1.64944 | I35: -0.007951977691 | J35: 0.1150442478
A36: Total Amount on WAHSP | D36: =SUM(D34:D35) -> 1803.003046 | G36: =SUM(G34:G35) -> 1788.665606 | H36: -14.33744 | I36: -0.007951977691 | J36: 1

Sheet BI Template_unmWHSI (hidden)
A1: 2024 Bill Impacts (Average Consumption Level) - St Lgt_WHSI
A3: Rate Class | B3: =VLOOKUP(A1,'Data BI List Acq_Seas'!C:E,2,FALSE) -> St Lgt-WHSI | C3: =VLOOKUP(A1,'Data BI List Acq_Seas'!C:E,3,FALSE) -> St Lgt-WHSI
A4: Monthly Consumption (kWh) | B4: =IF(COUNTIF(A1,"*Low*")>0,VLOOKUP(B3,'Data Billing Quantities'!$A:$Z,MATCH("Low kWh",'Data Billing Quantities'!4:4,0),FALSE),IF(COUNTIF(A1,"*Typical*")>0,VLOOKUP(B3,'Data Billing Quantities'!$A:$Z,MATCH("Typical kWh",'Data Billing Quantities'!4:4,0),FALSE),IF(COUNTIF(A1,"*Average*")>0,VLOOKUP(B3,'Data Billing Quantities'!$A:$Z,MATCH("Average kWh",'Data Billing Quantities'!4:4,0),FALSE),IF(COUNTIF(A1,"*High*")>0,VLOOKUP(B3,'Data Billing Quantities'!$A:$Z,MATCH("High kWh",'Data Billing Quantities'!4:4,0),FALSE),"error")))) -> 37079 | C4: =B4 -> 37079
A5: Peak (kW) | B5: =IF(COUNTIF(A1,"*Low*")>0,VLOOKUP(B3,'Data Billing Quantities'!$A:$Z,MATCH("Low kW",'Data Billing Quantities'!4:4,0),FALSE),IF(COUNTIF(A1,"*Typical*")>0,VLOOKUP(B3,'Data Billing Quantities'!$A:$Z,MATCH("Typical kW",'Data Billing Quantities'!4:4,0),FALSE),IF(COUNTIF(A1,"*Average*")>0,VLOOKUP(B3,'Data Billing Quantities'!$A:$Z,MATCH("Average kW",'Data Billing Quantities'!4:4,0),FALSE),IF(COUNTIF(A1,"*High*")>0,VLOOKUP(B3,'Data Billing Quantities'!$A:$Z,MATCH("High kW",'Data Billing Quantities'!4:4,0),FALSE),"error")))) -> 104 | C5: =B5 -> 104
A6: Loss factor | B6: =VLOOKUP(B3,'Data Billing Quantities'!A:D,MATCH(A6,'Data Billing Quantities'!4:4,0),FALSE) -> 1.092 | C6: =VLOOKUP(C3,'Data Billing Quantities'!A:D,MATCH(A6,'Data Billing Quantities'!4:4,0),FALSE) -> 1.092
A7: Commodity Threshold | B7: =VLOOKUP(B3,'Data Billing Quantities'!A:D,MATCH(A7,'Data Billing Quantities'!4:4,0),FALSE) -> 750 | C7: =B7 -> 750
A8: Monthly Consumption (kWh) - Uplifted | B8: =B4*B6 -> 40490.268 | C8: =C4*C6 -> 40490.268
A9: Charge determinant | B9: =VLOOKUP(B3,'Data Billing Quantities'!A:D,MATCH(A9,'Data Billing Quantities'!4:4,0),FALSE) -> kWh | C9: =VLOOKUP(C3,'Data Billing Quantities'!A:D,MATCH(A9,'Data Billing Quantities'!4:4,0),FALSE) -> kWh
B11: Volume | C11: Current Rate ($) | D11: Current Charge ($) | E11: Volume | F11: Proposed Rate ($) | G11: Proposed Charge ($) | H11: Change ($) | I11: Change (%) | J11: % of Total Bill
A12: Energy First Tier | B12: =IF(B4>B7,B7,B4) -> 750 | C12: =VLOOKUP($A12,'Data Pass Through'!$A:$D,2,FALSE) -> 0.087 | D12: =B12*C12 -> 65.25 | E12: =B12 -> 750 | F12: =VLOOKUP($A12,'Data Pass Through'!$A:$D,3,FALSE) -> 0.087 | G12: =E12*F12 -> 65.25 | H12: =G12-D12 -> 0 | I12: =IF(ISERROR(H12/ABS(D12)),"N/A",(H12/ABS(D12))) -> 0 | J12: =G12/$G$37 -> 0.006280339926
A13: Energy Second Tier | B13: =IF(B4>B7,(B4)-B7,0) -> 36329 | C13: =VLOOKUP($A13,'Data Pass Through'!$A:$D,2,FALSE) -> 0.103 | D13: =B13*C13 -> 3741.887 | E13: =B13 -> 36329 | F13: =VLOOKUP($A13,'Data Pass Through'!$A:$D,3,FALSE) -> 0.103 | G13: =E13*F13 -> 3741.887 | H13: 0 | I13: 0 | J13: 0.3601581966
A14: Sub-Total: Energy (RPP Tiered) | D14: =SUM(D12:D13) -> 3807.137 | G14: =SUM(G12:G13) -> 3807.137 | H14: 0 | I14: 0 | J14: 0.3664385365
